Workbook

Sheet Home
A1: Event | B1: Northern Schools' Inter-County Cross Country Championships
A2: Venue | B2: Barnard Castle School
A3: Date | B3: 2018-02-03 | C3: enter date in following format >>>>>>> | F3: dd/mm/yyyy | G3: =CONCATENATE(TEXT(I3,"dddd")," ",Home!J3) -> Saturday 3rd February 2018 | I3: =B3 -> 2018-02-03 | J3: =IF(B3="","",DAY(B3)&IF(OR(DAY(B3)={1,2,3,21,22,23,31}),CHOOSE(1*RIGHT(DAY(B3),1),"st ","nd ","rd "),"th ")&TEXT(B3,"mmmm yyyy")) -> 3rd February 2018
A4: Age Groups | B4: Minor Boys | C4: Scoring Athletes | D4: 6 | E4: District/Teams | F4: Cleveland | G4: Sheet Names | I4: =B3 -> 2018-02-03
B5: Minor Girls | C5: Scoring Athletes | D5: 6 | F5: Cumbria | G5: Home
B6: Junior Boys | C6: Scoring Athletes | D6: 6 | F6: Durham | G6: Minor_Boys
B7: Junior Girls | C7: Scoring Athletes | D7: 6 | F7: Northumberland | G7: Minor_Girls
B8: Intermediate Boys | C8: Scoring Athletes | D8: 6 | F8: North Yorkshire | G8: Junior_Boys
B9: Intermediate Girls | C9: Scoring Athletes | D9: 6 | G9: Junior_Girls
B10: Senior Boys | C10: Scoring Athletes | D10: 6 | G10: Intermediate_Boys
B11: Senior Girls | C11: Scoring Athletes | D11: 6 | G11: Intermediate_Girls
G12: Senior_Boys
A13: WHEN ENTERING TIMES PLEASE USE THE(.) AS THE TIME SEPARATOR. The time column is in number format to 2 decimal places | G13: Senior_Girls
A14: Only the yellow shaded cells are unlocked please enter the event, venue and date above.
A15: This sheet is protected please contact me on the phone number below to obtain password.
A16: 07506 678788 | B16: Dave Taylor
A23: Northern Schools' Inter-County Cross Country Results 2018

Sheet Minor_Boys
G1: =Home!$B$1 -> Northern Schools' Inter-County Cross Country Championships | T1: a | V1: =CONCATENATE(W1,X1) -> Home!$B4 | W1: Home!$B | X1: =IF(Y1="Minor_Boys",4,IF(Y1="Junior_Boys",6,IF(Y1="Intermediate_Boys",8,IF(Y1="Senior_Boys",10,IF(Y1="Minor_Girls",5,IF(Y1="Junior_Girls",7,IF(Y1="Intermediate_Girls",9,IF(Y1="Senior_Girls",11,"")))))))) -> 4 | Y1: =MID(CELL("Filename",A1),SEARCH("]",CELL("Filename",A1),1)+1,32) -> Minor_Boys | AA1: =Y1 -> Minor_Boys | AE1: =CONCATENATE(Y1," ",Z1) -> Minor_Boys
G2: =Home!$B$2 -> Barnard Castle School | T2: b | V2: =CONCATENATE(W2,X2) -> Home!$D4 | W2: Home!$D | X2: =X1 -> 4
G3: =Home!$G$3 -> Saturday 3rd February 2018 | T3: c
T4: c
G5: =INDIRECT(V1) -> Minor Boys | N5: =CONCATENATE("Team Results"," ",INDIRECT(V2)," ","to Score") -> Team Results 6 to Score | T5: d
A6: =Home!F4 -> Cleveland | B6: =Home!F5 -> Cumbria | C6: =Home!F6 -> Durham | D6: =Home!F7 -> Northumberland | E6: =Home!F8 -> North Yorkshire | F6: =Home!F9 -> 0 | G6: Pos | H6: Num | I6: Name | O6: County | S6: Time | T6: e
A7: =IF(O7=A6,COUNTIF(O7:O7,A6),"") ->  | B7: =IF(O7=B6,COUNTIF(O7:O7,B6),"") ->  | C7: =IF(O7=C6,COUNTIF(O7:O7,C6),"") ->  | D7: =IF(O7=D6,COUNTIF(O7:O7,D6),"") -> 1 | E7: =IF(O7=E6,COUNTIF(O7:O7,E6),"") ->  | F7: =IF(O7=F6,COUNTIF(O7:O7,F6),"") ->  | G7: =IF(LEFT(S7,1)="D",0,AM7) -> 1 | H7: 61 | I7: =IFERROR(VLOOKUP(H7,INDIRECT($AA$1),2,0),"") -> Tom Slane | O7: =IFERROR(VLOOKUP(H7,INDIRECT($AA$1),3,0),"") -> Northumberland | S7: 9.03 | T7: =IF(H7=0,0,1) -> 1 | AM7: 1
A8: =IF(O8=A6,COUNTIF(O7:O8,A6),"") ->  | B8: =IF(O8=B6,COUNTIF(O7:O8,B6),"") ->  | C8: =IF(O8=C6,COUNTIF(O7:O8,C6),"") ->  | D8: =IF(O8=D6,COUNTIF(O7:O8,D6),"") ->  | E8: =IF(O8=E6,COUNTIF(O7:O8,E6),"") -> 1 | F8: =IF(O8=F6,COUNTIF(O7:O8,F6),"") ->  | G8: 2 | H8: 82 | I8: Archie Gray | O8: North Yorkshire | S8: 9.12 | T8: 1 | AM8: 2
A9: =IF(O9=A6,COUNTIF(O7:O9,A6),"") ->  | B9: =IF(O9=B6,COUNTIF(O7:O9,B6),"") ->  | C9: =IF(O9=C6,COUNTIF(O7:O9,C6),"") ->  | D9: =IF(O9=D6,COUNTIF(O7:O9,D6),"") ->  | E9: =IF(O9=E6,COUNTIF(O7:O9,E6),"") -> 2 | F9: =IF(O9=F6,COUNTIF(O7:O9,F6),"") ->  | G9: 3 | H9: 83 | I9: Archie Bordewich | O9: North Yorkshire | S9: 9.13 | T9: 1 | AM9: 3
A10: =IF(O10=A6,COUNTIF(O7:O10,A6),"") ->  | B10: =IF(O10=B6,COUNTIF(O7:O10,B6),"") -> 1 | C10: =IF(O10=C6,COUNTIF(O7:O10,C6),"") ->  | D10: =IF(O10=D6,COUNTIF(O7:O10,D6),"") ->  | E10: =IF(O10=E6,COUNTIF(O7:O10,E6),"") ->  | F10: =IF(O10=F6,COUNTIF(O7:O10,F6),"") ->  | G10: 4 | H10: 21 | I10: Thomas Renwick | O10: Cumbria | S10: 9.2 | T10: 1 | AM10: 4
A11: =IF(O11=A6,COUNTIF(O7:O11,A6),"") ->  | B11: =IF(O11=B6,COUNTIF(O7:O11,B6),"") ->  | C11: =IF(O11=C6,COUNTIF(O7:O11,C6),"") -> 1 | D11: =IF(O11=D6,COUNTIF(O7:O11,D6),"") ->  | E11: =IF(O11=E6,COUNTIF(O7:O11,E6),"") ->  | F11: =IF(O11=F6,COUNTIF(O7:O11,F6),"") ->  | G11: 5 | H11: 41 | I11: Daniel Richardson | O11: Durham | S11: 9.22 | T11: 1 | AM11: 5
A12: =IF(O12=A6,COUNTIF(O7:O12,A6),"") ->  | B12: =IF(O12=B6,COUNTIF(O7:O12,B6),"") ->  | C12: =IF(O12=C6,COUNTIF(O7:O12,C6),"") -> 2 | D12: =IF(O12=D6,COUNTIF(O7:O12,D6),"") ->  | E12: =IF(O12=E6,COUNTIF(O7:O12,E6),"") ->  | F12: =IF(O12=F6,COUNTIF(O7:O12,F6),"") ->  | G12: 6 | H12: 42 | I12: Dylan Wilson | O12: Durham | S12: 9.24 | T12: 1 | AM12: 6
A13: =IF(O13=A6,COUNTIF(O7:O13,A6),"") ->  | B13: =IF(O13=B6,COUNTIF(O7:O13,B6),"") ->  | C13: =IF(O13=C6,COUNTIF(O7:O13,C6),"") ->  | D13: =IF(O13=D6,COUNTIF(O7:O13,D6),"") ->  | E13: =IF(O13=E6,COUNTIF(O7:O13,E6),"") -> 3 | F13: =IF(O13=F6,COUNTIF(O7:O13,F6),"") ->  | G13: 7 | H13: 84 | I13: Joshua Hammett | O13: North Yorkshire | S13: 9.25 | T13: 1 | AM13: 7
A14: =IF(O14=A6,COUNTIF(O7:O14,A6),"") ->  | B14: =IF(O14=B6,COUNTIF(O7:O14,B6),"") ->  | C14: =IF(O14=C6,COUNTIF(O7:O14,C6),"") -> 3 | D14: =IF(O14=D6,COUNTIF(O7:O14,D6),"") ->  | E14: =IF(O14=E6,COUNTIF(O7:O14,E6),"") ->  | F14: =IF(O14=F6,COUNTIF(O7:O14,F6),"") ->  | G14: 8 | H14: 43 | I14: Angus Milne | O14: Durham | S14: 9.27 | T14: 1 | AM14: 8
A15: =IF(O15=A6,COUNTIF(O7:O15,A6),"") ->  | B15: =IF(O15=B6,COUNTIF(O7:O15,B6),"") ->  | C15: =IF(O15=C6,COUNTIF(O7:O15,C6),"") -> 4 | D15: =IF(O15=D6,COUNTIF(O7:O15,D6),"") ->  | E15: =IF(O15=E6,COUNTIF(O7:O15,E6),"") ->  | F15: =IF(O15=F6,COUNTIF(O7:O15,F6),"") ->  | G15: 9 | H15: 47 | I15: Benjamin Giles | O15: Durham | S15: 9.28 | T15: 1 | AM15: 9
A16: =IF(O16=A6,COUNTIF(O7:O16,A6),"") ->  | B16: =IF(O16=B6,COUNTIF(O7:O16,B6),"") ->  | C16: =IF(O16=C6,COUNTIF(O7:O16,C6),"") ->  | D16: =IF(O16=D6,COUNTIF(O7:O16,D6),"") -> 2 | E16: =IF(O16=E6,COUNTIF(O7:O16,E6),"") ->  | F16: =IF(O16=F6,COUNTIF(O7:O16,F6),"") ->  | G16: 10 | H16: 63 | I16: Ethan Bond | O16: Northumberland | S16: 9.28 | T16: 1 | AM16: 10
A17: =IF(O17=A6,COUNTIF(O7:O17,A6),"") ->  | B17: =IF(O17=B6,COUNTIF(O7:O17,B6),"") ->  | C17: =IF(O17=C6,COUNTIF(O7:O17,C6),"") ->  | D17: =IF(O17=D6,COUNTIF(O7:O17,D6),"") -> 3 | E17: =IF(O17=E6,COUNTIF(O7:O17,E6),"") ->  | F17: =IF(O17=F6,COUNTIF(O7:O17,F6),"") ->  | G17: 11 | H17: 73 | I17: Oliver Dixon | O17: Northumberland | S17: 9.31 | T17: 1 | AM17: 11
A18: =IF(O18=A6,COUNTIF(O7:O18,A6),"") ->  | B18: =IF(O18=B6,COUNTIF(O7:O18,B6),"") ->  | C18: =IF(O18=C6,COUNTIF(O7:O18,C6),"") ->  | D18: =IF(O18=D6,COUNTIF(O7:O18,D6),"") -> 4 | E18: =IF(O18=E6,COUNTIF(O7:O18,E6),"") ->  | F18: =IF(O18=F6,COUNTIF(O7:O18,F6),"") ->  | G18: 12 | H18: 64 | I18: Noah Curran | O18: Northumberland | S18: 9.33 | T18: 1 | AM18: 12
A19: =IF(O19=A6,COUNTIF(O7:O19,A6),"") ->  | B19: =IF(O19=B6,COUNTIF(O7:O19,B6),"") ->  | C19: =IF(O19=C6,COUNTIF(O7:O19,C6),"") ->  | D19: =IF(O19=D6,COUNTIF(O7:O19,D6),"") ->  | E19: =IF(O19=E6,COUNTIF(O7:O19,E6),"") -> 4 | F19: =IF(O19=F6,COUNTIF(O7:O19,F6),"") ->  | G19: 13 | H19: 85 | I19: Will Partner | O19: North Yorkshire | S19: 9.33 | T19: 1 | AM19: 13
A20: =IF(O20=A6,COUNTIF(O7:O20,A6),"") ->  | B20: =IF(O20=B6,COUNTIF(O7:O20,B6),"") ->  | C20: =IF(O20=C6,COUNTIF(O7:O20,C6),"") ->  | D20: =IF(O20=D6,COUNTIF(O7:O20,D6),"") ->  | E20: =IF(O20=E6,COUNTIF(O7:O20,E6),"") -> 5 | F20: =IF(O20=F6,COUNTIF(O7:O20,F6),"") ->  | G20: 14 | H20: 81 | I20: Campbell Darcy | O20: North Yorkshire | S20: 9.33 | T20: 1 | AM20: 14
A21: =IF(O21=A6,COUNTIF(O7:O21,A6),"") ->  | B21: =IF(O21=B6,COUNTIF(O7:O21,B6),"") ->  | C21: =IF(O21=C6,COUNTIF(O7:O21,C6),"") -> 5 | D21: =IF(O21=D6,COUNTIF(O7:O21,D6),"") ->  | E21: =IF(O21=E6,COUNTIF(O7:O21,E6),"") ->  | F21: =IF(O21=F6,COUNTIF(O7:O21,F6),"") ->  | G21: 15 | H21: 44 | I21: George Wilkinson | O21: Durham | S21: 9.35 | T21: 1 | AM21: 15
A22: =IF(O22=A6,COUNTIF(O7:O22,A6),"") ->  | B22: =IF(O22=B6,COUNTIF(O7:O22,B6),"") ->  | C22: =IF(O22=C6,COUNTIF(O7:O22,C6),"") ->  | D22: =IF(O22=D6,COUNTIF(O7:O22,D6),"") -> 5 | E22: =IF(O22=E6,COUNTIF(O7:O22,E6),"") ->  | F22: =IF(O22=F6,COUNTIF(O7:O22,F6),"") ->  | G22: 16 | H22: 70 | I22: Ryan Davies | O22: Northumberland | S22: 9.39 | T22: 1 | AM22: 16
A23: =IF(O23=A6,COUNTIF(O7:O23,A6),"") ->  | B23: =IF(O23=B6,COUNTIF(O7:O23,B6),"") ->  | C23: =IF(O23=C6,COUNTIF(O7:O23,C6),"") ->  | D23: =IF(O23=D6,COUNTIF(O7:O23,D6),"") -> 6 | E23: =IF(O23=E6,COUNTIF(O7:O23,E6),"") ->  | F23: =IF(O23=F6,COUNTIF(O7:O23,F6),"") ->  | G23: 17 | H23: 67 | I23: Bertie Marr | O23: Northumberland | S23: 9.34 | T23: 1 | AM23: 17
A24: =IF(O24=A6,COUNTIF(O7:O24,A6),"") ->  | B24: =IF(O24=B6,COUNTIF(O7:O24,B6),"") ->  | C24: =IF(O24=C6,COUNTIF(O7:O24,C6),"") -> 6 | D24: =IF(O24=D6,COUNTIF(O7:O24,D6),"") ->  | E24: =IF(O24=E6,COUNTIF(O7:O24,E6),"") ->  | F24: =IF(O24=F6,COUNTIF(O7:O24,F6),"") ->  | G24: 18 | H24: 45 | I24: George Beevers | O24: Durham | S24: 9.44 | T24: 1 | AM24: 18
A25: =IF(O25=A6,COUNTIF(O7:O25,A6),"") ->  | B25: =IF(O25=B6,COUNTIF(O7:O25,B6),"") ->  | C25: =IF(O25=C6,COUNTIF(O7:O25,C6),"") ->  | D25: =IF(O25=D6,COUNTIF(O7:O25,D6),"") ->  | E25: =IF(O25=E6,COUNTIF(O7:O25,E6),"") -> 6 | F25: =IF(O25=F6,COUNTIF(O7:O25,F6),"") ->  | G25: 19 | H25: 90 | I25: Freddie Marsh | O25: North Yorkshire | S25: 9.45 | T25: 1 | AM25: 19
A26: =IF(O26=A6,COUNTIF(O7:O26,A6),"") ->  | B26: =IF(O26=B6,COUNTIF(O7:O26,B6),"") -> 2 | C26: =IF(O26=C6,COUNTIF(O7:O26,C6),"") ->  | D26: =IF(O26=D6,COUNTIF(O7:O26,D6),"") ->  | E26: =IF(O26=E6,COUNTIF(O7:O26,E6),"") ->  | F26: =IF(O26=F6,COUNTIF(O7:O26,F6),"") ->  | G26: 20 | H26: 22 | I26: Hector Westmorland-Nicholson | O26: Cumbria | S26: 9.46 | T26: 1 | AM26: 20
A27: =IF(O27=A6,COUNTIF(O7:O27,A6),"") ->  | B27: =IF(O27=B6,COUNTIF(O7:O27,B6),"") ->  | C27: =IF(O27=C6,COUNTIF(O7:O27,C6),"") ->  | D27: =IF(O27=D6,COUNTIF(O7:O27,D6),"") -> 7 | E27: =IF(O27=E6,COUNTIF(O7:O27,E6),"") ->  | F27: =IF(O27=F6,COUNTIF(O7:O27,F6),"") ->  | G27: 21 | H27: 72 | I27: Lewis Henry | O27: Northumberland | S27: 9.48 | T27: 1 | AM27: 21
A28: =IF(O28=A6,COUNTIF(O7:O28,A6),"") ->  | B28: =IF(O28=B6,COUNTIF(O7:O28,B6),"") ->  | C28: =IF(O28=C6,COUNTIF(O7:O28,C6),"") ->  | D28: =IF(O28=D6,COUNTIF(O7:O28,D6),"") ->  | E28: =IF(O28=E6,COUNTIF(O7:O28,E6),"") -> 7 | F28: =IF(O28=F6,COUNTIF(O7:O28,F6),"") ->  | G28: 22 | H28: 91 | I28: Cian Winter | O28: North Yorkshire | S28: 9.54 | T28: 1 | AM28: 22
A29: =IF(O29=A6,COUNTIF(O7:O29,A6),"") ->  | B29: =IF(O29=B6,COUNTIF(O7:O29,B6),"") ->  | C29: =IF(O29=C6,COUNTIF(O7:O29,C6),"") ->  | D29: =IF(O29=D6,COUNTIF(O7:O29,D6),"") -> 8 | E29: =IF(O29=E6,COUNTIF(O7:O29,E6),"") ->  | F29: =IF(O29=F6,COUNTIF(O7:O29,F6),"") ->  | G29: 23 | H29: 65 | I29: Cameron Simpson | O29: Northumberland | S29: 9.55 | T29: 1 | AM29: 23
A30: =IF(O30=A6,COUNTIF(O7:O30,A6),"") ->  | B30: =IF(O30=B6,COUNTIF(O7:O30,B6),"") -> 3 | C30: =IF(O30=C6,COUNTIF(O7:O30,C6),"") ->  | D30: =IF(O30=D6,COUNTIF(O7:O30,D6),"") ->  | E30: =IF(O30=E6,COUNTIF(O7:O30,E6),"") ->  | F30: =IF(O30=F6,COUNTIF(O7:O30,F6),"") ->  | G30: 24 | H30: 32 | I30: Kia Hatcher | O30: Cumbria | S30: 10 | T30: 1 | AM30: 24
A31: =IF(O31=A6,COUNTIF(O7:O31,A6),"") -> 1 | B31: =IF(O31=B6,COUNTIF(O7:O31,B6),"") ->  | C31: =IF(O31=C6,COUNTIF(O7:O31,C6),"") ->  | D31: =IF(O31=D6,COUNTIF(O7:O31,D6),"") ->  | E31: =IF(O31=E6,COUNTIF(O7:O31,E6),"") ->  | F31: =IF(O31=F6,COUNTIF(O7:O31,F6),"") ->  | G31: 25 | H31: 2 | I31: Jack Farrell | O31: Cleveland | S31: 10 | T31: 1 | AM31: 25
A32: =IF(O32=A6,COUNTIF(O7:O32,A6),"") ->  | B32: =IF(O32=B6,COUNTIF(O7:O32,B6),"") ->  | C32: =IF(O32=C6,COUNTIF(O7:O32,C6),"") ->  | D32: =IF(O32=D6,COUNTIF(O7:O32,D6),"") ->  | E32: =IF(O32=E6,COUNTIF(O7:O32,E6),"") -> 8 | F32: =IF(O32=F6,COUNTIF(O7:O32,F6),"") ->  | G32: 26 | H32: 87 | I32: Isaac Henson | O32: North Yorkshire | S32: 10 | T32: 1 | AM32: 26
A33: =IF(O33=A6,COUNTIF(O7:O33,A6),"") ->  | B33: =IF(O33=B6,COUNTIF(O7:O33,B6),"") -> 4 | C33: =IF(O33=C6,COUNTIF(O7:O33,C6),"") ->  | D33: =IF(O33=D6,COUNTIF(O7:O33,D6),"") ->  | E33: =IF(O33=E6,COUNTIF(O7:O33,E6),"") ->  | F33: =IF(O33=F6,COUNTIF(O7:O33,F6),"") ->  | G33: 27 | H33: 28 | I33: Fin Logue | O33: Cumbria | S33: 10 | T33: 1 | AM33: 27
A34: =IF(O34=A6,COUNTIF(O7:O34,A6),"") ->  | B34: =IF(O34=B6,COUNTIF(O7:O34,B6),"") ->  | C34: =IF(O34=C6,COUNTIF(O7:O34,C6),"") ->  | D34: =IF(O34=D6,COUNTIF(O7:O34,D6),"") -> 9 | E34: =IF(O34=E6,COUNTIF(O7:O34,E6),"") ->  | F34: =IF(O34=F6,COUNTIF(O7:O34,F6),"") ->  | G34: 28 | H34: 66 | I34: Charlie Whittaker | O34: Northumberland | S34: 10 | T34: 1 | AM34: 28
A35: =IF(O35=A6,COUNTIF(O7:O35,A6),"") ->  | B35: =IF(O35=B6,COUNTIF(O7:O35,B6),"") ->  | C35: =IF(O35=C6,COUNTIF(O7:O35,C6),"") -> 7 | D35: =IF(O35=D6,COUNTIF(O7:O35,D6),"") ->  | E35: =IF(O35=E6,COUNTIF(O7:O35,E6),"") ->  | F35: =IF(O35=F6,COUNTIF(O7:O35,F6),"") ->  | G35: 29 | H35: 48 | I35: Luke Bell | O35: Durham | S35: 10 | T35: 1 | AM35: 29
A36: =IF(O36=A6,COUNTIF(O7:O36,A6),"") ->  | B36: =IF(O36=B6,COUNTIF(O7:O36,B6),"") -> 5 | C36: =IF(O36=C6,COUNTIF(O7:O36,C6),"") ->  | D36: =IF(O36=D6,COUNTIF(O7:O36,D6),"") ->  | E36: =IF(O36=E6,COUNTIF(O7:O36,E6),"") ->  | F36: =IF(O36=F6,COUNTIF(O7:O36,F6),"") ->  | G36: 30 | H36: 23 | I36: Mason McAnaney | O36: Cumbria | S36: 10 | T36: 1 | AM36: 30
A37: =IF(O37=A6,COUNTIF(O7:O37,A6),"") -> 2 | B37: =IF(O37=B6,COUNTIF(O7:O37,B6),"") ->  | C37: =IF(O37=C6,COUNTIF(O7:O37,C6),"") ->  | D37: =IF(O37=D6,COUNTIF(O7:O37,D6),"") ->  | E37: =IF(O37=E6,COUNTIF(O7:O37,E6),"") ->  | F37: =IF(O37=F6,COUNTIF(O7:O37,F6),"") ->  | G37: 31 | H37: 8 | I37: Liam Woods-Ruddick | O37: Cleveland | S37: 10 | T37: 1 | AM37: 31
A38: =IF(O38=A6,COUNTIF(O7:O38,A6),"") ->  | B38: =IF(O38=B6,COUNTIF(O7:O38,B6),"") -> 6 | C38: =IF(O38=C6,COUNTIF(O7:O38,C6),"") ->  | D38: =IF(O38=D6,COUNTIF(O7:O38,D6),"") ->  | E38: =IF(O38=E6,COUNTIF(O7:O38,E6),"") ->  | F38: =IF(O38=F6,COUNTIF(O7:O38,F6),"") ->  | G38: 32 | H38: 31 | I38: Ed Sargent | O38: Cumbria | S38: 10 | T38: 1 | AM38: 32
A39: =IF(O39=A6,COUNTIF(O7:O39,A6),"") ->  | B39: =IF(O39=B6,COUNTIF(O7:O39,B6),"") ->  | C39: =IF(O39=C6,COUNTIF(O7:O39,C6),"") ->  | D39: =IF(O39=D6,COUNTIF(O7:O39,D6),"") ->  | E39: =IF(O39=E6,COUNTIF(O7:O39,E6),"") -> 9 | F39: =IF(O39=F6,COUNTIF(O7:O39,F6),"") ->  | G39: =IF(LEFT(S39,1)="D",0,AM39) -> 33 | H39: 86 | I39: =IFERROR(VLOOKUP(H39,INDIRECT($AA$1),2,0),"") -> Louis How | O39: =IFERROR(VLOOKUP(H39,INDIRECT($AA$1),3,0),"") -> North Yorkshire | S39: 10 | T39: =IF(H39=0,0,1) -> 1 | AM39: 33
A40: =IF(O40=A6,COUNTIF(O7:O40,A6),"") ->  | B40: =IF(O40=B6,COUNTIF(O7:O40,B6),"") -> 7 | C40: =IF(O40=C6,COUNTIF(O7:O40,C6),"") ->  | D40: =IF(O40=D6,COUNTIF(O7:O40,D6),"") ->  | E40: =IF(O40=E6,COUNTIF(O7:O40,E6),"") ->  | F40: =IF(O40=F6,COUNTIF(O7:O40,F6),"") ->  | G40: 34 | H40: 26 | I40: Oliver Smith | O40: Cumbria | S40: 10 | T40: 1 | AM40: 34
A41: =IF(O41=A6,COUNTIF(O7:O41,A6),"") ->  | B41: =IF(O41=B6,COUNTIF(O7:O41,B6),"") ->  | C41: =IF(O41=C6,COUNTIF(O7:O41,C6),"") -> 8 | D41: =IF(O41=D6,COUNTIF(O7:O41,D6),"") ->  | E41: =IF(O41=E6,COUNTIF(O7:O41,E6),"") ->  | F41: =IF(O41=F6,COUNTIF(O7:O41,F6),"") ->  | G41: 35 | H41: 50 | I41: William Henderson | O41: Durham | S41: 10 | T41: 1 | AM41: 35
A42: =IF(O42=A6,COUNTIF(O7:O42,A6),"") ->  | B42: =IF(O42=B6,COUNTIF(O7:O42,B6),"") ->  | C42: =IF(O42=C6,COUNTIF(O7:O42,C6),"") ->  | D42: =IF(O42=D6,COUNTIF(O7:O42,D6),"") -> 10 | E42: =IF(O42=E6,COUNTIF(O7:O42,E6),"") ->  | F42: =IF(O42=F6,COUNTIF(O7:O42,F6),"") ->  | G42: 36 | H42: 62 | I42: Max Murray-John | O42: Northumberland | S42: 10 | T42: 1 | AM42: 36
A43: =IF(O43=A6,COUNTIF(O7:O43,A6),"") ->  | B43: =IF(O43=B6,COUNTIF(O7:O43,B6),"") ->  | C43: =IF(O43=C6,COUNTIF(O7:O43,C6),"") ->  | D43: =IF(O43=D6,COUNTIF(O7:O43,D6),"") ->  | E43: =IF(O43=E6,COUNTIF(O7:O43,E6),"") -> 10 | F43: =IF(O43=F6,COUNTIF(O7:O43,F6),"") ->  | G43: 37 | H43: 89 | I43: Finlay Tulip | O43: North Yorkshire | S43: 10 | T43: 1 | AM43: 37
A44: =IF(O44=A6,COUNTIF(O7:O44,A6),"") ->  | B44: =IF(O44=B6,COUNTIF(O7:O44,B6),"") ->  | C44: =IF(O44=C6,COUNTIF(O7:O44,C6),"") ->  | D44: =IF(O44=D6,COUNTIF(O7:O44,D6),"") -> 11 | E44: =IF(O44=E6,COUNTIF(O7:O44,E6),"") ->  | F44: =IF(O44=F6,COUNTIF(O7:O44,F6),"") ->  | G44: 38 | H44: 74 | I44: Harry Twinn | O44: Northumberland | S44: 10 | T44: 1 | AM44: 38
A45: =IF(O45=A6,COUNTIF(O7:O45,A6),"") -> 3 | B45: =IF(O45=B6,COUNTIF(O7:O45,B6),"") ->  | C45: =IF(O45=C6,COUNTIF(O7:O45,C6),"") ->  | D45: =IF(O45=D6,COUNTIF(O7:O45,D6),"") ->  | E45: =IF(O45=E6,COUNTIF(O7:O45,E6),"") ->  | F45: =IF(O45=F6,COUNTIF(O7:O45,F6),"") ->  | G45: 39 | H45: 6 | I45: John Bolam | O45: Cleveland | S45: 10 | T45: 1 | AM45: 39
A46: =IF(O46=A6,COUNTIF(O7:O46,A6),"") -> 4 | B46: =IF(O46=B6,COUNTIF(O7:O46,B6),"") ->  | C46: =IF(O46=C6,COUNTIF(O7:O46,C6),"") ->  | D46: =IF(O46=D6,COUNTIF(O7:O46,D6),"") ->  | E46: =IF(O46=E6,COUNTIF(O7:O46,E6),"") ->  | F46: =IF(O46=F6,COUNTIF(O7:O46,F6),"") ->  | G46: 40 | H46: 5 | I46: Tom Graham | O46: Cleveland | S46: 10 | T46: 1 | AM46: 40
A47: =IF(O47=A6,COUNTIF(O7:O47,A6),"") ->  | B47: =IF(O47=B6,COUNTIF(O7:O47,B6),"") ->  | C47: =IF(O47=C6,COUNTIF(O7:O47,C6),"") ->  | D47: =IF(O47=D6,COUNTIF(O7:O47,D6),"") -> 12 | E47: =IF(O47=E6,COUNTIF(O7:O47,E6),"") ->  | F47: =IF(O47=F6,COUNTIF(O7:O47,F6),"") ->  | G47: 41 | H47: 69 | I47: Joseph Hudspith | O47: Northumberland | S47: 10 | T47: 1 | AM47: 41
A48: =IF(O48=A6,COUNTIF(O7:O48,A6),"") -> 5 | B48: =IF(O48=B6,COUNTIF(O7:O48,B6),"") ->  | C48: =IF(O48=C6,COUNTIF(O7:O48,C6),"") ->  | D48: =IF(O48=D6,COUNTIF(O7:O48,D6),"") ->  | E48: =IF(O48=E6,COUNTIF(O7:O48,E6),"") ->  | F48: =IF(O48=F6,COUNTIF(O7:O48,F6),"") ->  | G48: 42 | H48: 1 | I48: Noah Payne | O48: Cleveland | S48: 10 | T48: 1 | AM48: 42
A49: =IF(O49=A6,COUNTIF(O7:O49,A6),"") ->  | B49: =IF(O49=B6,COUNTIF(O7:O49,B6),"") -> 8 | C49: =IF(O49=C6,COUNTIF(O7:O49,C6),"") ->  | D49: =IF(O49=D6,COUNTIF(O7:O49,D6),"") ->  | E49: =IF(O49=E6,COUNTIF(O7:O49,E6),"") ->  | F49: =IF(O49=F6,COUNTIF(O7:O49,F6),"") ->  | G49: 43 | H49: 27 | I49: Joseph Rigby | O49: Cumbria | S49: 10 | T49: 1 | AM49: 43
A50: =IF(O50=A6,COUNTIF(O7:O50,A6),"") ->  | B50: =IF(O50=B6,COUNTIF(O7:O50,B6),"") -> 9 | C50: =IF(O50=C6,COUNTIF(O7:O50,C6),"") ->  | D50: =IF(O50=D6,COUNTIF(O7:O50,D6),"") ->  | E50: =IF(O50=E6,COUNTIF(O7:O50,E6),"") ->  | F50: =IF(O50=F6,COUNTIF(O7:O50,F6),"") ->  | G50: 44 | H50: 30 | I50: Daniel Knott | O50: Cumbria | S50: 10 | T50: 1 | AM50: 44
A51: =IF(O51=A6,COUNTIF(O7:O51,A6),"") ->  | B51: =IF(O51=B6,COUNTIF(O7:O51,B6),"") -> 10 | C51: =IF(O51=C6,COUNTIF(O7:O51,C6),"") ->  | D51: =IF(O51=D6,COUNTIF(O7:O51,D6),"") ->  | E51: =IF(O51=E6,COUNTIF(O7:O51,E6),"") ->  | F51: =IF(O51=F6,COUNTIF(O7:O51,F6),"") ->  | G51: 45 | H51: 24 | I51: Charlie Barry | O51: Cumbria | S51: 10.01 | T51: 1 | AM51: 45
A52: =IF(O52=A6,COUNTIF(O7:O52,A6),"") ->  | B52: =IF(O52=B6,COUNTIF(O7:O52,B6),"") ->  | C52: =IF(O52=C6,COUNTIF(O7:O52,C6),"") ->  | D52: =IF(O52=D6,COUNTIF(O7:O52,D6),"") -> 13 | E52: =IF(O52=E6,COUNTIF(O7:O52,E6),"") ->  | F52: =IF(O52=F6,COUNTIF(O7:O52,F6),"") ->  | G52: 46 | H52: 77 | I52: Ben Asquith | O52: Northumberland | S52: 10.3 | T52: 1 | AM52: 46
A53: =IF(O53=A6,COUNTIF(O7:O53,A6),"") -> 6 | B53: =IF(O53=B6,COUNTIF(O7:O53,B6),"") ->  | C53: =IF(O53=C6,COUNTIF(O7:O53,C6),"") ->  | D53: =IF(O53=D6,COUNTIF(O7:O53,D6),"") ->  | E53: =IF(O53=E6,COUNTIF(O7:O53,E6),"") ->  | F53: =IF(O53=F6,COUNTIF(O7:O53,F6),"") ->  | G53: 47 | H53: 3 | I53: Riley Middleton | O53: Cleveland | S53: 10.08 | T53: 1 | AM53: 47
A54: =IF(O54=A6,COUNTIF(O7:O54,A6),"") ->  | B54: =IF(O54=B6,COUNTIF(O7:O54,B6),"") ->  | C54: =IF(O54=C6,COUNTIF(O7:O54,C6),"") ->  | D54: =IF(O54=D6,COUNTIF(O7:O54,D6),"") -> 14 | E54: =IF(O54=E6,COUNTIF(O7:O54,E6),"") ->  | F54: =IF(O54=F6,COUNTIF(O7:O54,F6),"") ->  | G54: 48 | H54: 71 | I54: Nathaniel Henderson | O54: Northumberland | S54: 10.09 | T54: 1 | AM54: 48
A55: =IF(O55=A6,COUNTIF(O7:O55,A6),"") ->  | B55: =IF(O55=B6,COUNTIF(O7:O55,B6),"") ->  | C55: =IF(O55=C6,COUNTIF(O7:O55,C6),"") -> 9 | D55: =IF(O55=D6,COUNTIF(O7:O55,D6),"") ->  | E55: =IF(O55=E6,COUNTIF(O7:O55,E6),"") ->  | F55: =IF(O55=F6,COUNTIF(O7:O55,F6),"") ->  | G55: 49 | H55: 49 | I55: Sam Terry | O55: Durham | S55: 10.13 | T55: 1 | AM55: 49
A56: =IF(O56=A6,COUNTIF(O7:O56,A6),"") ->  | B56: =IF(O56=B6,COUNTIF(O7:O56,B6),"") ->  | C56: =IF(O56=C6,COUNTIF(O7:O56,C6),"") ->  | D56: =IF(O56=D6,COUNTIF(O7:O56,D6),"") ->  | E56: =IF(O56=E6,COUNTIF(O7:O56,E6),"") -> 11 | F56: =IF(O56=F6,COUNTIF(O7:O56,F6),"") ->  | G56: 50 | H56: 88 | I56: Sam Pratt | O56: North Yorkshire | S56: 10.13 | T56: 1 | AM56: 50
A57: =IF(O57=A6,COUNTIF(O7:O57,A6),"") ->  | B57: =IF(O57=B6,COUNTIF(O7:O57,B6),"") -> 11 | C57: =IF(O57=C6,COUNTIF(O7:O57,C6),"") ->  | D57: =IF(O57=D6,COUNTIF(O7:O57,D6),"") ->  | E57: =IF(O57=E6,COUNTIF(O7:O57,E6),"") ->  | F57: =IF(O57=F6,COUNTIF(O7:O57,F6),"") ->  | G57: 51 | H57: 37 | I57: Finn Walker | O57: Cumbria | S57: 10.14 | T57: 1 | AM57: 51
A58: =IF(O58=A6,COUNTIF(O7:O58,A6),"") ->  | B58: =IF(O58=B6,COUNTIF(O7:O58,B6),"") ->  | C58: =IF(O58=C6,COUNTIF(O7:O58,C6),"") -> 10 | D58: =IF(O58=D6,COUNTIF(O7:O58,D6),"") ->  | E58: =IF(O58=E6,COUNTIF(O7:O58,E6),"") ->  | F58: =IF(O58=F6,COUNTIF(O7:O58,F6),"") ->  | G58: 52 | H58: 46 | I58: Jordy Armstrong | O58: Durham | S58: 10.14 | T58: 1 | AM58: 52
A59: =IF(O59=A6,COUNTIF(O7:O59,A6),"") ->  | B59: =IF(O59=B6,COUNTIF(O7:O59,B6),"") ->  | C59: =IF(O59=C6,COUNTIF(O7:O59,C6),"") ->  | D59: =IF(O59=D6,COUNTIF(O7:O59,D6),"") -> 15 | E59: =IF(O59=E6,COUNTIF(O7:O59,E6),"") ->  | F59: =IF(O59=F6,COUNTIF(O7:O59,F6),"") ->  | G59: 53 | H59: 75 | I59: Daniel Lamb | O59: Northumberland | S59: 10.15 | T59: 1 | AM59: 53
A60: =IF(O60=A6,COUNTIF(O7:O60,A6),"") ->  | B60: =IF(O60=B6,COUNTIF(O7:O60,B6),"") -> 12 | C60: =IF(O60=C6,COUNTIF(O7:O60,C6),"") ->  | D60: =IF(O60=D6,COUNTIF(O7:O60,D6),"") ->  | E60: =IF(O60=E6,COUNTIF(O7:O60,E6),"") ->  | F60: =IF(O60=F6,COUNTIF(O7:O60,F6),"") ->  | G60: 54 | H60: 29 | I60: Greg Barnard McKenzie | O60: Cumbria | S60: 10.19 | T60: 1 | AM60: 54
A61: =IF(O61=A6,COUNTIF(O7:O61,A6),"") -> 7 | B61: =IF(O61=B6,COUNTIF(O7:O61,B6),"") ->  | C61: =IF(O61=C6,COUNTIF(O7:O61,C6),"") ->  | D61: =IF(O61=D6,COUNTIF(O7:O61,D6),"") ->  | E61: =IF(O61=E6,COUNTIF(O7:O61,E6),"") ->  | F61: =IF(O61=F6,COUNTIF(O7:O61,F6),"") ->  | G61: 55 | H61: 7 | I61: Max Peverall | O61: Cleveland | S61: 10.23 | T61: 1 | AM61: 55
A62: =IF(O62=A6,COUNTIF(O7:O62,A6),"") ->  | B62: =IF(O62=B6,COUNTIF(O7:O62,B6),"") -> 13 | C62: =IF(O62=C6,COUNTIF(O7:O62,C6),"") ->  | D62: =IF(O62=D6,COUNTIF(O7:O62,D6),"") ->  | E62: =IF(O62=E6,COUNTIF(O7:O62,E6),"") ->  | F62: =IF(O62=F6,COUNTIF(O7:O62,F6),"") ->  | G62: 56 | H62: 33 | I62: Isaac Barber | O62: Cumbria | S62: 10.24 | T62: 1 | AM62: 56
A63: =IF(O63=A6,COUNTIF(O7:O63,A6),"") ->  | B63: =IF(O63=B6,COUNTIF(O7:O63,B6),"") ->  | C63: =IF(O63=C6,COUNTIF(O7:O63,C6),"") ->  | D63: =IF(O63=D6,COUNTIF(O7:O63,D6),"") -> 16 | E63: =IF(O63=E6,COUNTIF(O7:O63,E6),"") ->  | F63: =IF(O63=F6,COUNTIF(O7:O63,F6),"") ->  | G63: 57 | H63: 76 | I63: Adam Howliston | O63: Northumberland | S63: 10.46 | T63: 1 | AM63: 57
A64: =IF(O64=A6,COUNTIF(O7:O64,A6),"") ->  | B64: =IF(O64=B6,COUNTIF(O7:O64,B6),"") ->  | C64: =IF(O64=C6,COUNTIF(O7:O64,C6),"") ->  | D64: =IF(O64=D6,COUNTIF(O7:O64,D6),"") ->  | E64: =IF(O64=E6,COUNTIF(O7:O64,E6),"") ->  | F64: =IF(O64=F6,COUNTIF(O7:O64,F6),"") ->  | G64: 58 | T64: 0 | AM64: 58
A65: =IF(O65=A6,COUNTIF(O7:O65,A6),"") ->  | B65: =IF(O65=B6,COUNTIF(O7:O65,B6),"") ->  | C65: =IF(O65=C6,COUNTIF(O7:O65,C6),"") ->  | D65: =IF(O65=D6,COUNTIF(O7:O65,D6),"") ->  | E65: =IF(O65=E6,COUNTIF(O7:O65,E6),"") ->  | F65: =IF(O65=F6,COUNTIF(O7:O65,F6),"") ->  | G65: 59 | T65: 0 | AM65: 59
A66: =IF(O66=A6,COUNTIF(O7:O66,A6),"") ->  | B66: =IF(O66=B6,COUNTIF(O7:O66,B6),"") ->  | C66: =IF(O66=C6,COUNTIF(O7:O66,C6),"") ->  | D66: =IF(O66=D6,COUNTIF(O7:O66,D6),"") ->  | E66: =IF(O66=E6,COUNTIF(O7:O66,E6),"") ->  | F66: =IF(O66=F6,COUNTIF(O7:O66,F6),"") ->  | G66: 60 | T66: 0 | AM66: 60
A67: =IF(O67=A6,COUNTIF(O7:O67,A6),"") ->  | B67: =IF(O67=B6,COUNTIF(O7:O67,B6),"") ->  | C67: =IF(O67=C6,COUNTIF(O7:O67,C6),"") ->  | D67: =IF(O67=D6,COUNTIF(O7:O67,D6),"") ->  | E67: =IF(O67=E6,COUNTIF(O7:O67,E6),"") ->  | F67: =IF(O67=F6,COUNTIF(O7:O67,F6),"") ->  | G67: 61 | T67: 0 | AM67: 61
A68: =IF(O68=A6,COUNTIF(O7:O68,A6),"") ->  | B68: =IF(O68=B6,COUNTIF(O7:O68,B6),"") ->  | C68: =IF(O68=C6,COUNTIF(O7:O68,C6),"") ->  | D68: =IF(O68=D6,COUNTIF(O7:O68,D6),"") ->  | E68: =IF(O68=E6,COUNTIF(O7:O68,E6),"") ->  | F68: =IF(O68=F6,COUNTIF(O7:O68,F6),"") ->  | G68: 62 | T68: 0 | AM68: 62
A69: =IF(O69=A6,COUNTIF(O7:O69,A6),"") ->  | B69: =IF(O69=B6,COUNTIF(O7:O69,B6),"") ->  | C69: =IF(O69=C6,COUNTIF(O7:O69,C6),"") ->  | D69: =IF(O69=D6,COUNTIF(O7:O69,D6),"") ->  | E69: =IF(O69=E6,COUNTIF(O7:O69,E6),"") ->  | F69: =IF(O69=F6,COUNTIF(O7:O69,F6),"") ->  | G69: 63 | T69: 0 | AM69: 63
A70: =IF(O70=A6,COUNTIF(O7:O70,A6),"") ->  | B70: =IF(O70=B6,COUNTIF(O7:O70,B6),"") ->  | C70: =IF(O70=C6,COUNTIF(O7:O70,C6),"") ->  | D70: =IF(O70=D6,COUNTIF(O7:O70,D6),"") ->  | E70: =IF(O70=E6,COUNTIF(O7:O70,E6),"") ->  | F70: =IF(O70=F6,COUNTIF(O7:O70,F6),"") ->  | G70: 64 | T70: 0 | AM70: 64
A71: =IF(O71=A6,COUNTIF(O7:O71,A6),"") ->  | B71: =IF(O71=B6,COUNTIF(O7:O71,B6),"") ->  | C71: =IF(O71=C6,COUNTIF(O7:O71,C6),"") ->  | D71: =IF(O71=D6,COUNTIF(O7:O71,D6),"") ->  | E71: =IF(O71=E6,COUNTIF(O7:O71,E6),"") ->  | F71: =IF(O71=F6,COUNTIF(O7:O71,F6),"") ->  | G71: =IF(LEFT(S71,1)="D",0,AM71) -> 65 | I71: =IFERROR(VLOOKUP(H71,INDIRECT($AA$1),2,0),"") ->  | O71: =IFERROR(VLOOKUP(H71,INDIRECT($AA$1),3,0),"") ->  | T71: =IF(H71=0,0,1) -> 0 | AM71: 65
A72: =IF(O72=A6,COUNTIF(O7:O72,A6),"") ->  | B72: =IF(O72=B6,COUNTIF(O7:O72,B6),"") ->  | C72: =IF(O72=C6,COUNTIF(O7:O72,C6),"") ->  | D72: =IF(O72=D6,COUNTIF(O7:O72,D6),"") ->  | E72: =IF(O72=E6,COUNTIF(O7:O72,E6),"") ->  | F72: =IF(O72=F6,COUNTIF(O7:O72,F6),"") ->  | G72: 66 | T72: 0 | AM72: 66
A73: =IF(O73=A6,COUNTIF(O7:O73,A6),"") ->  | B73: =IF(O73=B6,COUNTIF(O7:O73,B6),"") ->  | C73: =IF(O73=C6,COUNTIF(O7:O73,C6),"") ->  | D73: =IF(O73=D6,COUNTIF(O7:O73,D6),"") ->  | E73: =IF(O73=E6,COUNTIF(O7:O73,E6),"") ->  | F73: =IF(O73=F6,COUNTIF(O7:O73,F6),"") ->  | G73: 67 | T73: 0 | AM73: 67
A74: =IF(O74=A6,COUNTIF(O7:O74,A6),"") ->  | B74: =IF(O74=B6,COUNTIF(O7:O74,B6),"") ->  | C74: =IF(O74=C6,COUNTIF(O7:O74,C6),"") ->  | D74: =IF(O74=D6,COUNTIF(O7:O74,D6),"") ->  | E74: =IF(O74=E6,COUNTIF(O7:O74,E6),"") ->  | F74: =IF(O74=F6,COUNTIF(O7:O74,F6),"") ->  | G74: 68 | T74: 0 | AM74: 68
A75: =IF(O75=A6,COUNTIF(O7:O75,A6),"") ->  | B75: =IF(O75=B6,COUNTIF(O7:O75,B6),"") ->  | C75: =IF(O75=C6,COUNTIF(O7:O75,C6),"") ->  | D75: =IF(O75=D6,COUNTIF(O7:O75,D6),"") ->  | E75: =IF(O75=E6,COUNTIF(O7:O75,E6),"") ->  | F75: =IF(O75=F6,COUNTIF(O7:O75,F6),"") ->  | G75: 69 | T75: 0 | AM75: 69
A76: =IF(O76=A6,COUNTIF(O7:O76,A6),"") ->  | B76: =IF(O76=B6,COUNTIF(O7:O76,B6),"") ->  | C76: =IF(O76=C6,COUNTIF(O7:O76,C6),"") ->  | D76: =IF(O76=D6,COUNTIF(O7:O76,D6),"") ->  | E76: =IF(O76=E6,COUNTIF(O7:O76,E6),"") ->  | F76: =IF(O76=F6,COUNTIF(O7:O76,F6),"") ->  | G76: 70 | T76: 0 | AM76: 70
A77: =IF(O77=A6,COUNTIF(O7:O77,A6),"") ->  | B77: =IF(O77=B6,COUNTIF(O7:O77,B6),"") ->  | C77: =IF(O77=C6,COUNTIF(O7:O77,C6),"") ->  | D77: =IF(O77=D6,COUNTIF(O7:O77,D6),"") ->  | E77: =IF(O77=E6,COUNTIF(O7:O77,E6),"") ->  | F77: =IF(O77=F6,COUNTIF(O7:O77,F6),"") ->  | G77: 71 | T77: 0 | AM77: 71
A78: =IF(O78=A6,COUNTIF(O7:O78,A6),"") ->  | B78: =IF(O78=B6,COUNTIF(O7:O78,B6),"") ->  | C78: =IF(O78=C6,COUNTIF(O7:O78,C6),"") ->  | D78: =IF(O78=D6,COUNTIF(O7:O78,D6),"") ->  | E78: =IF(O78=E6,COUNTIF(O7:O78,E6),"") ->  | F78: =IF(O78=F6,COUNTIF(O7:O78,F6),"") ->  | G78: 72 | T78: 0 | AM78: 72
A79: =IF(O79=A6,COUNTIF(O7:O79,A6),"") ->  | B79: =IF(O79=B6,COUNTIF(O7:O79,B6),"") ->  | C79: =IF(O79=C6,COUNTIF(O7:O79,C6),"") ->  | D79: =IF(O79=D6,COUNTIF(O7:O79,D6),"") ->  | E79: =IF(O79=E6,COUNTIF(O7:O79,E6),"") ->  | F79: =IF(O79=F6,COUNTIF(O7:O79,F6),"") ->  | G79: 73 | T79: 0 | AM79: 73
A80: =IF(O80=A6,COUNTIF(O7:O80,A6),"") ->  | B80: =IF(O80=B6,COUNTIF(O7:O80,B6),"") ->  | C80: =IF(O80=C6,COUNTIF(O7:O80,C6),"") ->  | D80: =IF(O80=D6,COUNTIF(O7:O80,D6),"") ->  | E80: =IF(O80=E6,COUNTIF(O7:O80,E6),"") ->  | F80: =IF(O80=F6,COUNTIF(O7:O80,F6),"") ->  | G80: 74 | T80: 0 | AM80: 74
A81: =IF(O81=A6,COUNTIF(O7:O81,A6),"") ->  | B81: =IF(O81=B6,COUNTIF(O7:O81,B6),"") ->  | C81: =IF(O81=C6,COUNTIF(O7:O81,C6),"") ->  | D81: =IF(O81=D6,COUNTIF(O7:O81,D6),"") ->  | E81: =IF(O81=E6,COUNTIF(O7:O81,E6),"") ->  | F81: =IF(O81=F6,COUNTIF(O7:O81,F6),"") ->  | G81: 75 | T81: 0 | AM81: 75
A82: =IF(O82=A6,COUNTIF(O7:O82,A6),"") ->  | B82: =IF(O82=B6,COUNTIF(O7:O82,B6),"") ->  | C82: =IF(O82=C6,COUNTIF(O7:O82,C6),"") ->  | D82: =IF(O82=D6,COUNTIF(O7:O82,D6),"") ->  | E82: =IF(O82=E6,COUNTIF(O7:O82,E6),"") ->  | F82: =IF(O82=F6,COUNTIF(O7:O82,F6),"") ->  | G82: 76 | T82: 0 | AM82: 76
A83: =IF(O83=A6,COUNTIF(O7:O83,A6),"") ->  | B83: =IF(O83=B6,COUNTIF(O7:O83,B6),"") ->  | C83: =IF(O83=C6,COUNTIF(O7:O83,C6),"") ->  | D83: =IF(O83=D6,COUNTIF(O7:O83,D6),"") ->  | E83: =IF(O83=E6,COUNTIF(O7:O83,E6),"") ->  | F83: =IF(O83=F6,COUNTIF(O7:O83,F6),"") ->  | G83: 77 | T83: 0 | AM83: 77
A84: =IF(O84=A6,COUNTIF(O7:O84,A6),"") ->  | B84: =IF(O84=B6,COUNTIF(O7:O84,B6),"") ->  | C84: =IF(O84=C6,COUNTIF(O7:O84,C6),"") ->  | D84: =IF(O84=D6,COUNTIF(O7:O84,D6),"") ->  | E84: =IF(O84=E6,COUNTIF(O7:O84,E6),"") ->  | F84: =IF(O84=F6,COUNTIF(O7:O84,F6),"") ->  | G84: 78 | T84: 0 | AM84: 78
A85: =IF(O85=A6,COUNTIF(O7:O85,A6),"") ->  | B85: =IF(O85=B6,COUNTIF(O7:O85,B6),"") ->  | C85: =IF(O85=C6,COUNTIF(O7:O85,C6),"") ->  | D85: =IF(O85=D6,COUNTIF(O7:O85,D6),"") ->  | E85: =IF(O85=E6,COUNTIF(O7:O85,E6),"") ->  | F85: =IF(O85=F6,COUNTIF(O7:O85,F6),"") ->  | G85: 79 | T85: 0 | AM85: 79
A86: =IF(O86=A6,COUNTIF(O7:O86,A6),"") ->  | B86: =IF(O86=B6,COUNTIF(O7:O86,B6),"") ->  | C86: =IF(O86=C6,COUNTIF(O7:O86,C6),"") ->  | D86: =IF(O86=D6,COUNTIF(O7:O86,D6),"") ->  | E86: =IF(O86=E6,COUNTIF(O7:O86,E6),"") ->  | F86: =IF(O86=F6,COUNTIF(O7:O86,F6),"") ->  | G86: 80 | T86: 0 | AM86: 80
A87: =IF(O87=A6,COUNTIF(O7:O87,A6),"") ->  | B87: =IF(O87=B6,COUNTIF(O7:O87,B6),"") ->  | C87: =IF(O87=C6,COUNTIF(O7:O87,C6),"") ->  | D87: =IF(O87=D6,COUNTIF(O7:O87,D6),"") ->  | E87: =IF(O87=E6,COUNTIF(O7:O87,E6),"") ->  | F87: =IF(O87=F6,COUNTIF(O7:O87,F6),"") ->  | G87: 81 | T87: 0 | AM87: 81
A88: =IF(O88=A6,COUNTIF(O7:O88,A6),"") ->  | B88: =IF(O88=B6,COUNTIF(O7:O88,B6),"") ->  | C88: =IF(O88=C6,COUNTIF(O7:O88,C6),"") ->  | D88: =IF(O88=D6,COUNTIF(O7:O88,D6),"") ->  | E88: =IF(O88=E6,COUNTIF(O7:O88,E6),"") ->  | F88: =IF(O88=F6,COUNTIF(O7:O88,F6),"") ->  | G88: 82 | T88: 0 | AM88: 82
A89: =IF(O89=A6,COUNTIF(O7:O89,A6),"") ->  | B89: =IF(O89=B6,COUNTIF(O7:O89,B6),"") ->  | C89: =IF(O89=C6,COUNTIF(O7:O89,C6),"") ->  | D89: =IF(O89=D6,COUNTIF(O7:O89,D6),"") ->  | E89: =IF(O89=E6,COUNTIF(O7:O89,E6),"") ->  | F89: =IF(O89=F6,COUNTIF(O7:O89,F6),"") ->  | G89: 83 | T89: 0 | AM89: 83
A90: =IF(O90=A6,COUNTIF(O7:O90,A6),"") ->  | B90: =IF(O90=B6,COUNTIF(O7:O90,B6),"") ->  | C90: =IF(O90=C6,COUNTIF(O7:O90,C6),"") ->  | D90: =IF(O90=D6,COUNTIF(O7:O90,D6),"") ->  | E90: =IF(O90=E6,COUNTIF(O7:O90,E6),"") ->  | F90: =IF(O90=F6,COUNTIF(O7:O90,F6),"") ->  | G90: 84 | T90: 0 | AM90: 84
A91: =IF(O91=A6,COUNTIF(O7:O91,A6),"") ->  | B91: =IF(O91=B6,COUNTIF(O7:O91,B6),"") ->  | C91: =IF(O91=C6,COUNTIF(O7:O91,C6),"") ->  | D91: =IF(O91=D6,COUNTIF(O7:O91,D6),"") ->  | E91: =IF(O91=E6,COUNTIF(O7:O91,E6),"") ->  | F91: =IF(O91=F6,COUNTIF(O7:O91,F6),"") ->  | G91: 85 | T91: 0 | AM91: 85
A92: =IF(O92=A6,COUNTIF(O7:O92,A6),"") ->  | B92: =IF(O92=B6,COUNTIF(O7:O92,B6),"") ->  | C92: =IF(O92=C6,COUNTIF(O7:O92,C6),"") ->  | D92: =IF(O92=D6,COUNTIF(O7:O92,D6),"") ->  | E92: =IF(O92=E6,COUNTIF(O7:O92,E6),"") ->  | F92: =IF(O92=F6,COUNTIF(O7:O92,F6),"") ->  | G92: 86 | T92: 0 | AM92: 86
A93: =IF(O93=A6,COUNTIF(O7:O93,A6),"") ->  | B93: =IF(O93=B6,COUNTIF(O7:O93,B6),"") ->  | C93: =IF(O93=C6,COUNTIF(O7:O93,C6),"") ->  | D93: =IF(O93=D6,COUNTIF(O7:O93,D6),"") ->  | E93: =IF(O93=E6,COUNTIF(O7:O93,E6),"") ->  | F93: =IF(O93=F6,COUNTIF(O7:O93,F6),"") ->  | G93: 87 | T93: 0 | AM93: 87
A94: =IF(O94=A6,COUNTIF(O7:O94,A6),"") ->  | B94: =IF(O94=B6,COUNTIF(O7:O94,B6),"") ->  | C94: =IF(O94=C6,COUNTIF(O7:O94,C6),"") ->  | D94: =IF(O94=D6,COUNTIF(O7:O94,D6),"") ->  | E94: =IF(O94=E6,COUNTIF(O7:O94,E6),"") ->  | F94: =IF(O94=F6,COUNTIF(O7:O94,F6),"") ->  | G94: 88 | T94: 0 | AM94: 88
A95: =IF(O95=A6,COUNTIF(O7:O95,A6),"") ->  | B95: =IF(O95=B6,COUNTIF(O7:O95,B6),"") ->  | C95: =IF(O95=C6,COUNTIF(O7:O95,C6),"") ->  | D95: =IF(O95=D6,COUNTIF(O7:O95,D6),"") ->  | E95: =IF(O95=E6,COUNTIF(O7:O95,E6),"") ->  | F95: =IF(O95=F6,COUNTIF(O7:O95,F6),"") ->  | G95: 89 | T95: 0 | AM95: 89
A96: =IF(O96=A6,COUNTIF(O7:O96,A6),"") ->  | B96: =IF(O96=B6,COUNTIF(O7:O96,B6),"") ->  | C96: =IF(O96=C6,COUNTIF(O7:O96,C6),"") ->  | D96: =IF(O96=D6,COUNTIF(O7:O96,D6),"") ->  | E96: =IF(O96=E6,COUNTIF(O7:O96,E6),"") ->  | F96: =IF(O96=F6,COUNTIF(O7:O96,F6),"") ->  | G96: 90 | T96: 0 | AM96: 90
A97: =IF(O97=A6,COUNTIF(O7:O97,A6),"") ->  | B97: =IF(O97=B6,COUNTIF(O7:O97,B6),"") ->  | C97: =IF(O97=C6,COUNTIF(O7:O97,C6),"") ->  | D97: =IF(O97=D6,COUNTIF(O7:O97,D6),"") ->  | E97: =IF(O97=E6,COUNTIF(O7:O97,E6),"") ->  | F97: =IF(O97=F6,COUNTIF(O7:O97,F6),"") ->  | G97: 91 | T97: 0 | AM97: 91
A98: =IF(O98=A6,COUNTIF(O7:O98,A6),"") ->  | B98: =IF(O98=B6,COUNTIF(O7:O98,B6),"") ->  | C98: =IF(O98=C6,COUNTIF(O7:O98,C6),"") ->  | D98: =IF(O98=D6,COUNTIF(O7:O98,D6),"") ->  | E98: =IF(O98=E6,COUNTIF(O7:O98,E6),"") ->  | F98: =IF(O98=F6,COUNTIF(O7:O98,F6),"") ->  | G98: 92 | T98: 0 | AM98: 92
A99: =IF(O99=A6,COUNTIF(O7:O99,A6),"") ->  | B99: =IF(O99=B6,COUNTIF(O7:O99,B6),"") ->  | C99: =IF(O99=C6,COUNTIF(O7:O99,C6),"") ->  | D99: =IF(O99=D6,COUNTIF(O7:O99,D6),"") ->  | E99: =IF(O99=E6,COUNTIF(O7:O99,E6),"") ->  | F99: =IF(O99=F6,COUNTIF(O7:O99,F6),"") ->  | G99: 93 | T99: 0 | AM99: 93
A100: =IF(O100=A6,COUNTIF(O7:O100,A6),"") ->  | B100: =IF(O100=B6,COUNTIF(O7:O100,B6),"") ->  | C100: =IF(O100=C6,COUNTIF(O7:O100,C6),"") ->  | D100: =IF(O100=D6,COUNTIF(O7:O100,D6),"") ->  | E100: =IF(O100=E6,COUNTIF(O7:O100,E6),"") ->  | F100: =IF(O100=F6,COUNTIF(O7:O100,F6),"") ->  | G100: 94 | T100: 0 | AM100: 94
A101: =IF(O101=A6,COUNTIF(O7:O101,A6),"") ->  | B101: =IF(O101=B6,COUNTIF(O7:O101,B6),"") ->  | C101: =IF(O101=C6,COUNTIF(O7:O101,C6),"") ->  | D101: =IF(O101=D6,COUNTIF(O7:O101,D6),"") ->  | E101: =IF(O101=E6,COUNTIF(O7:O101,E6),"") ->  | F101: =IF(O101=F6,COUNTIF(O7:O101,F6),"") ->  | G101: 95 | T101: 0 | AM101: 95
A102: =IF(O102=A6,COUNTIF(O7:O102,A6),"") ->  | B102: =IF(O102=B6,COUNTIF(O7:O102,B6),"") ->  | C102: =IF(O102=C6,COUNTIF(O7:O102,C6),"") ->  | D102: =IF(O102=D6,COUNTIF(O7:O102,D6),"") ->  | E102: =IF(O102=E6,COUNTIF(O7:O102,E6),"") ->  | F102: =IF(O102=F6,COUNTIF(O7:O102,F6),"") ->  | G102: 96 | T102: 0 | AM102: 96
A103: =IF(O103=A6,COUNTIF(O7:O103,A6),"") ->  | B103: =IF(O103=B6,COUNTIF(O7:O103,B6),"") ->  | C103: =IF(O103=C6,COUNTIF(O7:O103,C6),"") ->  | D103: =IF(O103=D6,COUNTIF(O7:O103,D6),"") ->  | E103: =IF(O103=E6,COUNTIF(O7:O103,E6),"") ->  | F103: =IF(O103=F6,COUNTIF(O7:O103,F6),"") ->  | G103: 97 | I103: =IFERROR(VLOOKUP(H103,INDIRECT($AA$1),2,0),"") ->  | T103: 0 | AM103: 97
A104: =IF(O104=A6,COUNTIF(O7:O104,A6),"") ->  | B104: =IF(O104=B6,COUNTIF(O7:O104,B6),"") ->  | C104: =IF(O104=C6,COUNTIF(O7:O104,C6),"") ->  | D104: =IF(O104=D6,COUNTIF(O7:O104,D6),"") ->  | E104: =IF(O104=E6,COUNTIF(O7:O104,E6),"") ->  | F104: =IF(O104=F6,COUNTIF(O7:O104,F6),"") ->  | G104: 98 | T104: 0 | AM104: 98
A105: =IF(O105=A6,COUNTIF(O7:O105,A6),"") ->  | B105: =IF(O105=B6,COUNTIF(O7:O105,B6),"") ->  | C105: =IF(O105=C6,COUNTIF(O7:O105,C6),"") ->  | D105: =IF(O105=D6,COUNTIF(O7:O105,D6),"") ->  | E105: =IF(O105=E6,COUNTIF(O7:O105,E6),"") ->  | F105: =IF(O105=F6,COUNTIF(O7:O105,F6),"") ->  | G105: 99 | T105: 0 | AM105: 99
A106: =IF(O106=A6,COUNTIF(O7:O106,A6),"") ->  | B106: =IF(O106=B6,COUNTIF(O7:O106,B6),"") ->  | C106: =IF(O106=C6,COUNTIF(O7:O106,C6),"") ->  | D106: =IF(O106=D6,COUNTIF(O7:O106,D6),"") ->  | E106: =IF(O106=E6,COUNTIF(O7:O106,E6),"") ->  | F106: =IF(O106=F6,COUNTIF(O7:O106,F6),"") ->  | G106: 100 | T106: 0 | AM106: 100
G107: =CONCATENATE($G$5," ","Individual Medal Winners") -> Minor Boys Individual Medal Winners | T107: f
G108: Pos | H108: Num | I108: Name | O108: County | S108: Time
G109: 1 | H109: =IF(H7=0,"",H7) -> 61 | I109: Tom Slane | O109: Northumberland | S109: =IF(S7=0,"",S7) -> 9.03 | T109: =IF(H109="",0,1) -> 1
G110: 2 | H110: 82 | I110: Archie Gray | O110: North Yorkshire | S110: =IF(S8=0,"",S8) -> 9.12 | T110: =IF(H110="",0,1) -> 1
G111: 3 | H111: 83 | I111: Archie Bordewich | O111: North Yorkshire | S111: =IF(S9=0,"",S9) -> 9.13 | T111: =IF(H111="",0,1) -> 1
T112: g
G113: =CONCATENATE($G$5," ","Team Results") -> Minor Boys Team Results | T113: h | Y113: =G113 -> Minor Boys Team Results
H114: Team Name | M114: 1st | N114: 2nd | O114: 3rd | P114: 4th | Q114: 5th | R114: 6th | S114: Points | T114: i | W114: =P5 -> 0 | Z114: 1 | AA114: 2 | AB114: 3 | AC114: 4 | AD114: 5 | AE114: 6 | AF114: Pts
G115: 1 | H115: =IFERROR(VLOOKUP(G115,$X$115:$AF$119,2,0),"") -> North Yorkshire | M115: =IFERROR(VLOOKUP(G115,$X$115:$AF$119,3,0),"") -> 2 | N115: =IFERROR(VLOOKUP(G115,$X$115:$AF$119,4,0),"") -> 3 | O115: =IFERROR(VLOOKUP(G115,$X$115:$AF$119,5,0),"") -> 7 | P115: =IFERROR(VLOOKUP(G115,$X$115:$AF$119,6,0),"") -> 13 | Q115: =IFERROR(VLOOKUP(G115,$X$115:$AF$119,7,0),"") -> 14 | R115: =IFERROR(VLOOKUP(G115,$X$115:$AF$119,8,0),"") -> 19 | S115: =SUM(M115:R115) -> 58 | T115: =IF(H115="",0,1) -> 1 | W115: 7 | X115: =IF(OR(AJ115="",AJ115=0),0,RANK(AJ115,AJ115:AJ120,1)) -> 5 | Y115: =Home!F4 -> Cleveland | Z115: =IFERROR(VLOOKUP(Z114,$A$7:$G$106,W115,0),0) -> 25 | AA115: =IFERROR(VLOOKUP(AA114,A$7:G$106,W115,0),0) -> 31 | AB115: =IFERROR(VLOOKUP(AB114,A$7:G$106,W115,0),0) -> 39 | AC115: =IF(W114=3,0,IFERROR(VLOOKUP(AC114,A$7:G$106,W115,0),0)) -> 40 | AD115: =IF(W114=4,0,IFERROR(VLOOKUP(AD114,A$7:G$106,W115,0),0)) -> 42 | AE115: =IF(OR(W114=4,W114=5),0,IFERROR(VLOOKUP(AE114,A$7:G$106,W115,0),0)) -> 47 | AF115: =IF(AE115=0,0,SUM(Z115:AE115)) -> 224 | AG115: =IF(OR(AF115=0,AF115=""),0,RANK(AF115,AF115:AF120,1)) -> 6 | AH115: =IF(OR(AG115=0,AG115=""),"",IF(OR(AG115=AG116,AG115=AG117,AG115=AG118,AG115=AG119,AG115=AG120),"=","")) ->  | AI115: =IF(AH115="=",COUNTIF(AH115:AH115,"<>A")-COUNTIF(AH115:AH115,""),0) -> 0 | AJ115: =IF(AND(AG115=0,AI115=0),"",AG115+(AI115/10)+AL115/10) -> 6.6 | AK115: =X115 -> 5 | AL115: =IF(OR(AF115=0,AF115=""),0,RANK(Z115,Z115:Z120,1)) -> 6
G116: 2 | H116: =IFERROR(VLOOKUP(G116,$X$115:$AF$119,2,0),"") -> Durham | M116: =IFERROR(VLOOKUP(G116,$X$115:$AF$119,3,0),"") -> 5 | N116: =IFERROR(VLOOKUP(G116,$X$115:$AF$119,4,0),"") -> 6 | O116: =IFERROR(VLOOKUP(G116,$X$115:$AF$119,5,0),"") -> 8 | P116: =IFERROR(VLOOKUP(G116,$X$115:$AF$119,6,0),"") -> 9 | Q116: =IFERROR(VLOOKUP(G116,$X$115:$AF$119,7,0),"") -> 15 | R116: =IFERROR(VLOOKUP(G116,$X$115:$AF$119,8,0),"") -> 18 | S116: =SUM(M116:R116) -> 61 | T116: 1 | W116: 6 | X116: =IF(OR(AJ116="",AJ116=0),0,RANK(AJ116,AJ115:AJ120,1)) -> 4 | Y116: =Home!F5 -> Cumbria | Z116: =IFERROR(VLOOKUP(Z114,$B$7:$G$106,W116,0),0) -> 4 | AA116: =IFERROR(VLOOKUP(AA114,B$7:G$106,W116,0),0) -> 20 | AB116: =IFERROR(VLOOKUP(AB114,B$7:G$106,W116,0),0) -> 24 | AC116: =IF(W114=3,0,IFERROR(VLOOKUP(AC114,B$7:G$106,W116,0),0)) -> 27 | AD116: =IF(W114=4,0,IFERROR(VLOOKUP(AD114,B$7:G$106,W116,0),0)) -> 30 | AE116: =IF(OR(W114=4,W114=5),0,IFERROR(VLOOKUP(AE114,B$7:G$106,W116,0),0)) -> 32 | AF116: =IF(AE116=0,0,SUM(Z116:AE116)) -> 137 | AG116: =IF(OR(AF116=0,AF116=""),0,RANK(AF116,AF115:AF120,1)) -> 5 | AH116: =IF(OR(AG116=0,AG116=""),"",IF(OR(AG116=AG117,AG116=AG118,AG116=AG119,AG116=AG120,AG116=AG115),"=","")) ->  | AI116: =IF(AH116="=",COUNTIF(AH115:AH116,"<>A")-COUNTIF(AH115:AH116,""),0) -> 0 | AJ116: =IF(AND(AG116=0,AI116=0),"",AG116+(AI116/10)+AL116/10) -> 5.4 | AK116: =X116 -> 4 | AL116: =IF(OR(AF116=0,AF116=""),0,RANK(Z116,Z115:Z120,1)) -> 4
G117: 3 | H117: Northumberland | M117: 1 | N117: 10 | O117: 11 | P117: 12 | Q117: 16 | R117: 17 | S117: 67 | T117: 1 | W117: 5 | X117: =IF(OR(AJ117="",AJ117=0),0,RANK(AJ117,AJ115:AJ120,1)) -> 2 | Y117: =Home!F6 -> Durham | Z117: =IFERROR(VLOOKUP(Z114,$C$7:$G$106,W117,0),0) -> 5 | AA117: =IFERROR(VLOOKUP(AA114,C$7:G$106,W117,0),0) -> 6 | AB117: =IFERROR(VLOOKUP(AB114,C$7:G$106,W117,0),0) -> 8 | AC117: =IF(W114=3,0,IFERROR(VLOOKUP(AC114,C$7:G$106,W117,0),0)) -> 9 | AD117: =IF(W114=4,0,IFERROR(VLOOKUP(AD114,C$7:G$106,W117,0),0)) -> 15 | AE117: =IF(OR(W114=4,W114=5),0,IFERROR(VLOOKUP(AE114,C$7:G$106,W117,0),0)) -> 18 | AF117: 61 | AG117: =IF(OR(AF117=0,AF117=""),0,RANK(AF117,AF115:AF120,1)) -> 3 | AH117: =IF(OR(AG117=0,AG117=""),"",IF(OR(AG117=AG118,AG117=AG119,AG117=AG120,AG117=AG115,AG117=AG116),"=","")) ->  | AI117: =IF(AH117="=",COUNTIF(AH115:AH117,"<>A")-COUNTIF(AH115:AH117,""),0) -> 0 | AJ117: 3.5 | AK117: 2 | AL117: =IF(OR(AF117=0,AF117=""),0,RANK(Z117,Z115:Z120,1)) -> 5
G118: 4 | H118: Cumbria | M118: 4 | N118: 20 | O118: 24 | P118: 27 | Q118: 30 | R118: 32 | S118: 137 | T118: 1 | W118: 4 | X118: =IF(OR(AJ118="",AJ118=0),0,RANK(AJ118,AJ115:AJ120,1)) -> 3 | Y118: =Home!F7 -> Northumberland | Z118: =IFERROR(VLOOKUP(Z114,$D$7:$G$106,W118,0),0) -> 1 | AA118: =IFERROR(VLOOKUP(AA114,D$7:G$106,W118,0),0) -> 10 | AB118: =IFERROR(VLOOKUP(AB114,D$7:G$106,W118,0),0) -> 11 | AC118: =IF(W114=3,0,IFERROR(VLOOKUP(AC114,D$7:G$106,W118,0),0)) -> 12 | AD118: =IF(W114=4,0,IFERROR(VLOOKUP(AD114,D$7:G$106,W118,0),0)) -> 16 | AE118: =IF(OR(W114=4,W114=5),0,IFERROR(VLOOKUP(AE114,D$7:G$106,W118,0),0)) -> 17 | AF118: 67 | AG118: =IF(OR(AF118=0,AF118=""),0,RANK(AF118,AF115:AF120,1)) -> 4 | AH118: =IF(OR(AG118=0,AG118=""),"",IF(OR(AG118=AG119,AG118=AG120,AG118=AG115,AG118=AG116,AG118=AG117),"=","")) ->  | AI118: =IF(AH118="=",COUNTIF(AH115:AH118,"<>A")-COUNTIF(AH115:AH118,""),0) -> 0 | AJ118: 4.2 | AK118: 3 | AL118: =IF(OR(AF118=0,AF118=""),0,RANK(Z118,Z115:Z120,1)) -> 2
G119: 5 | H119: Cleveland | M119: 25 | N119: 31 | O119: 39 | P119: 40 | Q119: 42 | R119: 47 | S119: 224 | T119: 1 | W119: 3 | X119: =IF(OR(AJ119="",AJ119=0),0,RANK(AJ119,AJ115:AJ120,1)) -> 1 | Y119: =Home!F8 -> North Yorkshire | Z119: =IFERROR(VLOOKUP(Z114,$E$7:$G$106,W119,0),0) -> 2 | AA119: =IFERROR(VLOOKUP(AA114,E$7:G$106,W119,0),0) -> 3 | AB119: =IFERROR(VLOOKUP(AB114,E$7:G$106,W119,0),0) -> 7 | AC119: =IF(W114=3,0,IFERROR(VLOOKUP(AC114,E$7:G$106,W119,0),0)) -> 13 | AD119: =IF(W114=4,0,IFERROR(VLOOKUP(AD114,E$7:G$106,W119,0),0)) -> 14 | AE119: =IF(OR(W114=4,W114=5),0,IFERROR(VLOOKUP(AE114,E$7:G$106,W119,0),0)) -> 19 | AF119: 58 | AG119: =IF(OR(AF119=0,AF119=""),0,RANK(AF119,AF115:AF120,1)) -> 2 | AH119: =IF(OR(AG119=0,AG119=""),"",IF(OR(AG119=AG120,AG119=AG115,AG119=AG116,AG119=AG117,AG119=AG118),"=","")) ->  | AI119: =IF(AH119="=",COUNTIF(AH115:AH119,"<>A")-COUNTIF(AH115:AH119,""),0) -> 0 | AJ119: 2.3 | AK119: 1 | AL119: =IF(OR(AF119=0,AF119=""),0,RANK(Z119,Z115:Z120,1)) -> 3
W120: 2 | X120: =IF(OR(AJ120="",AJ120=0),0,RANK(AJ120,AJ115:AJ120,1)) -> 0 | Y120: =Home!F9 -> 0 | Z120: =IFERROR(VLOOKUP(Z114,F7:G106,W120,0),0) -> 0 | AA120: =IFERROR(VLOOKUP(AA114,F7:G106,W120,0),0) -> 0 | AB120: =IFERROR(VLOOKUP(AB114,F7:G106,W120,0),0) -> 0 | AC120: =IF(W114=3,0,IFERROR(VLOOKUP(AC114,F7:G106,W120,0),0)) -> 0 | AD120: =IF(W114=4,0,IFERROR(VLOOKUP(AD114,F7:G106,W120,0),0)) -> 0 | AE120: =IF(OR(W114=4,W114=5),0,IFERROR(VLOOKUP(AE114,F7:G106,W120,0),0)) -> 0 | AF120: =IF(AE120=0,0,SUM(Z120:AE120)) -> 0 | AG120: =IF(OR(AF120=0,AF120=""),0,RANK(AF120,AF115:AF120,1)) -> 0 | AH120: =IF(OR(AG120=0,AG120=""),"",IF(OR(AG120=AG115,AG120=AG116,AG120=AG117,AG120=AG118,AG120=AG119),"=","")) ->  | AI120: =IF(AH120="=",COUNTIF(AH115:AH120,"<>A")-COUNTIF(AH115:AH120,""),0) -> 0 | AK120: 0 | AL120: =IF(OR(AF120=0,AF120=""),0,RANK(Z120,Z115:Z120,1)) -> 0

Sheet Junior_Boys
G1: =Home!$B$1 -> Northern Schools' Inter-County Cross Country Championships | T1: a | V1: =CONCATENATE(W1,X1) -> Home!$B6 | W1: Home!$B | X1: =IF(Y1="Minor_Boys",4,IF(Y1="Junior_Boys",6,IF(Y1="Intermediate_Boys",8,IF(Y1="Senior_Boys",10,IF(Y1="Minor_Girls",5,IF(Y1="Junior_Girls",7,IF(Y1="Intermediate_Girls",9,IF(Y1="Senior_Girls",11,"")))))))) -> 6 | Y1: =MID(CELL("Filename",A1),SEARCH("]",CELL("Filename",A1),1)+1,32) -> Junior_Boys | AA1: =Y1 -> Junior_Boys | AE1: =CONCATENATE(Y1," ",Z1) -> Junior_Boys
G2: =Home!$B$2 -> Barnard Castle School | T2: b | V2: =CONCATENATE(W2,X2) -> Home!$D6 | W2: Home!$D | X2: =X1 -> 6
G3: =Home!$G$3 -> Saturday 3rd February 2018 | T3: c
T4: c
G5: =INDIRECT(V1) -> Junior Boys | N5: =CONCATENATE("Team Results"," ",INDIRECT(V2)," ","to Score") -> Team Results 6 to Score | T5: d
A6: =Home!F4 -> Cleveland | B6: =Home!F5 -> Cumbria | C6: =Home!F6 -> Durham | D6: =Home!F7 -> Northumberland | E6: =Home!F8 -> North Yorkshire | F6: =Home!F9 -> 0 | G6: Pos | H6: Num | I6: Name | O6: County | S6: Time | T6: e
A7: =IF(O7=A6,COUNTIF(O7:O7,A6),"") ->  | B7: =IF(O7=B6,COUNTIF(O7:O7,B6),"") -> 1 | C7: =IF(O7=C6,COUNTIF(O7:O7,C6),"") ->  | D7: =IF(O7=D6,COUNTIF(O7:O7,D6),"") ->  | E7: =IF(O7=E6,COUNTIF(O7:O7,E6),"") ->  | F7: =IF(O7=F6,COUNTIF(O7:O7,F6),"") ->  | G7: =IF(LEFT(S7,1)="D",0,AM7) -> 1 | H7: 21 | I7: =IFERROR(VLOOKUP(H7,INDIRECT($AA$1),2,0),"") -> Fraser Sproul | O7: =IFERROR(VLOOKUP(H7,INDIRECT($AA$1),3,0),"") -> Cumbria | S7: 14.31 | T7: =IF(H7=0,0,1) -> 1 | AM7: 1
A8: =IF(O8=A6,COUNTIF(O7:O8,A6),"") ->  | B8: =IF(O8=B6,COUNTIF(O7:O8,B6),"") ->  | C8: =IF(O8=C6,COUNTIF(O7:O8,C6),"") ->  | D8: =IF(O8=D6,COUNTIF(O7:O8,D6),"") ->  | E8: =IF(O8=E6,COUNTIF(O7:O8,E6),"") -> 1 | F8: =IF(O8=F6,COUNTIF(O7:O8,F6),"") ->  | G8: 2 | H8: 81 | I8: Kyle Rabjohn | O8: North Yorkshire | S8: 14.33 | T8: 1 | AM8: 2
A9: =IF(O9=A6,COUNTIF(O7:O9,A6),"") ->  | B9: =IF(O9=B6,COUNTIF(O7:O9,B6),"") -> 2 | C9: =IF(O9=C6,COUNTIF(O7:O9,C6),"") ->  | D9: =IF(O9=D6,COUNTIF(O7:O9,D6),"") ->  | E9: =IF(O9=E6,COUNTIF(O7:O9,E6),"") ->  | F9: =IF(O9=F6,COUNTIF(O7:O9,F6),"") ->  | G9: 3 | H9: 22 | I9: Daniel Sanderson | O9: Cumbria | S9: 14.46 | T9: 1 | AM9: 3
A10: =IF(O10=A6,COUNTIF(O7:O10,A6),"") ->  | B10: =IF(O10=B6,COUNTIF(O7:O10,B6),"") ->  | C10: =IF(O10=C6,COUNTIF(O7:O10,C6),"") ->  | D10: =IF(O10=D6,COUNTIF(O7:O10,D6),"") ->  | E10: =IF(O10=E6,COUNTIF(O7:O10,E6),"") -> 2 | F10: =IF(O10=F6,COUNTIF(O7:O10,F6),"") ->  | G10: 4 | H10: 82 | I10: Charlie Stephenson | O10: North Yorkshire | S10: 14.48 | T10: 1 | AM10: 4
A11: =IF(O11=A6,COUNTIF(O7:O11,A6),"") ->  | B11: =IF(O11=B6,COUNTIF(O7:O11,B6),"") ->  | C11: =IF(O11=C6,COUNTIF(O7:O11,C6),"") ->  | D11: =IF(O11=D6,COUNTIF(O7:O11,D6),"") -> 1 | E11: =IF(O11=E6,COUNTIF(O7:O11,E6),"") ->  | F11: =IF(O11=F6,COUNTIF(O7:O11,F6),"") ->  | G11: 5 | H11: 62 | I11: Euan Duffin | O11: Northumberland | S11: 14.5 | T11: 1 | AM11: 5
A12: =IF(O12=A6,COUNTIF(O7:O12,A6),"") ->  | B12: =IF(O12=B6,COUNTIF(O7:O12,B6),"") ->  | C12: =IF(O12=C6,COUNTIF(O7:O12,C6),"") ->  | D12: =IF(O12=D6,COUNTIF(O7:O12,D6),"") ->  | E12: =IF(O12=E6,COUNTIF(O7:O12,E6),"") -> 3 | F12: =IF(O12=F6,COUNTIF(O7:O12,F6),"") ->  | G12: 6 | H12: 84 | I12: Daniel Francis | O12: North Yorkshire | S12: 14.56 | T12: 1 | AM12: 6
A13: =IF(O13=A6,COUNTIF(O7:O13,A6),"") ->  | B13: =IF(O13=B6,COUNTIF(O7:O13,B6),"") ->  | C13: =IF(O13=C6,COUNTIF(O7:O13,C6),"") -> 1 | D13: =IF(O13=D6,COUNTIF(O7:O13,D6),"") ->  | E13: =IF(O13=E6,COUNTIF(O7:O13,E6),"") ->  | F13: =IF(O13=F6,COUNTIF(O7:O13,F6),"") ->  | G13: 7 | H13: 45 | I13: John Russell | O13: Durham | S13: 14.57 | T13: 1 | AM13: 7
A14: =IF(O14=A6,COUNTIF(O7:O14,A6),"") ->  | B14: =IF(O14=B6,COUNTIF(O7:O14,B6),"") ->  | C14: =IF(O14=C6,COUNTIF(O7:O14,C6),"") -> 2 | D14: =IF(O14=D6,COUNTIF(O7:O14,D6),"") ->  | E14: =IF(O14=E6,COUNTIF(O7:O14,E6),"") ->  | F14: =IF(O14=F6,COUNTIF(O7:O14,F6),"") ->  | G14: 8 | H14: 42 | I14: Christopher Perkins | O14: Durham | S14: 15.01 | T14: 1 | AM14: 8
A15: =IF(O15=A6,COUNTIF(O7:O15,A6),"") ->  | B15: =IF(O15=B6,COUNTIF(O7:O15,B6),"") ->  | C15: =IF(O15=C6,COUNTIF(O7:O15,C6),"") ->  | D15: =IF(O15=D6,COUNTIF(O7:O15,D6),"") ->  | E15: =IF(O15=E6,COUNTIF(O7:O15,E6),"") -> 4 | F15: =IF(O15=F6,COUNTIF(O7:O15,F6),"") ->  | G15: 9 | H15: 83 | I15: Will Hugill | O15: North Yorkshire | S15: 15.03 | T15: 1 | AM15: 9
A16: =IF(O16=A6,COUNTIF(O7:O16,A6),"") ->  | B16: =IF(O16=B6,COUNTIF(O7:O16,B6),"") ->  | C16: =IF(O16=C6,COUNTIF(O7:O16,C6),"") -> 3 | D16: =IF(O16=D6,COUNTIF(O7:O16,D6),"") ->  | E16: =IF(O16=E6,COUNTIF(O7:O16,E6),"") ->  | F16: =IF(O16=F6,COUNTIF(O7:O16,F6),"") ->  | G16: 10 | H16: 50 | I16: Joshua Wraith | O16: Durham | S16: 15.12 | T16: 1 | AM16: 10
A17: =IF(O17=A6,COUNTIF(O7:O17,A6),"") ->  | B17: =IF(O17=B6,COUNTIF(O7:O17,B6),"") ->  | C17: =IF(O17=C6,COUNTIF(O7:O17,C6),"") ->  | D17: =IF(O17=D6,COUNTIF(O7:O17,D6),"") -> 2 | E17: =IF(O17=E6,COUNTIF(O7:O17,E6),"") ->  | F17: =IF(O17=F6,COUNTIF(O7:O17,F6),"") ->  | G17: 11 | H17: 63 | I17: William Collinson | O17: Northumberland | S17: 15.14 | T17: 1 | AM17: 11
A18: =IF(O18=A6,COUNTIF(O7:O18,A6),"") ->  | B18: =IF(O18=B6,COUNTIF(O7:O18,B6),"") ->  | C18: =IF(O18=C6,COUNTIF(O7:O18,C6),"") -> 4 | D18: =IF(O18=D6,COUNTIF(O7:O18,D6),"") ->  | E18: =IF(O18=E6,COUNTIF(O7:O18,E6),"") ->  | F18: =IF(O18=F6,COUNTIF(O7:O18,F6),"") ->  | G18: 12 | H18: 60 | I18: 0 | O18: Durham | S18: 15.15 | T18: 1 | AM18: 12
A19: =IF(O19=A6,COUNTIF(O7:O19,A6),"") ->  | B19: =IF(O19=B6,COUNTIF(O7:O19,B6),"") -> 3 | C19: =IF(O19=C6,COUNTIF(O7:O19,C6),"") ->  | D19: =IF(O19=D6,COUNTIF(O7:O19,D6),"") ->  | E19: =IF(O19=E6,COUNTIF(O7:O19,E6),"") ->  | F19: =IF(O19=F6,COUNTIF(O7:O19,F6),"") ->  | G19: 13 | H19: 24 | I19: Oliie Sanders | O19: Cumbria | S19: 15.17 | T19: 1 | AM19: 13
A20: =IF(O20=A6,COUNTIF(O7:O20,A6),"") ->  | B20: =IF(O20=B6,COUNTIF(O7:O20,B6),"") ->  | C20: =IF(O20=C6,COUNTIF(O7:O20,C6),"") -> 5 | D20: =IF(O20=D6,COUNTIF(O7:O20,D6),"") ->  | E20: =IF(O20=E6,COUNTIF(O7:O20,E6),"") ->  | F20: =IF(O20=F6,COUNTIF(O7:O20,F6),"") ->  | G20: 14 | H20: 43 | I20: Adam Russell | O20: Durham | S20: 15.2 | T20: 1 | AM20: 14
A21: =IF(O21=A6,COUNTIF(O7:O21,A6),"") ->  | B21: =IF(O21=B6,COUNTIF(O7:O21,B6),"") -> 4 | C21: =IF(O21=C6,COUNTIF(O7:O21,C6),"") ->  | D21: =IF(O21=D6,COUNTIF(O7:O21,D6),"") ->  | E21: =IF(O21=E6,COUNTIF(O7:O21,E6),"") ->  | F21: =IF(O21=F6,COUNTIF(O7:O21,F6),"") ->  | G21: 15 | H21: 23 | I21: James Bowen | O21: Cumbria | S21: 15.23 | T21: 1 | AM21: 15
A22: =IF(O22=A6,COUNTIF(O7:O22,A6),"") ->  | B22: =IF(O22=B6,COUNTIF(O7:O22,B6),"") ->  | C22: =IF(O22=C6,COUNTIF(O7:O22,C6),"") ->  | D22: =IF(O22=D6,COUNTIF(O7:O22,D6),"") -> 3 | E22: =IF(O22=E6,COUNTIF(O7:O22,E6),"") ->  | F22: =IF(O22=F6,COUNTIF(O7:O22,F6),"") ->  | G22: 16 | H22: 74 | I22: Charlie Daley | O22: Northumberland | S22: 15.24 | T22: 1 | AM22: 16
A23: =IF(O23=A6,COUNTIF(O7:O23,A6),"") ->  | B23: =IF(O23=B6,COUNTIF(O7:O23,B6),"") ->  | C23: =IF(O23=C6,COUNTIF(O7:O23,C6),"") ->  | D23: =IF(O23=D6,COUNTIF(O7:O23,D6),"") -> 4 | E23: =IF(O23=E6,COUNTIF(O7:O23,E6),"") ->  | F23: =IF(O23=F6,COUNTIF(O7:O23,F6),"") ->  | G23: 17 | H23: 64 | I23: Dylan Davies | O23: Northumberland | S23: 15.25 | T23: 1 | AM23: 17
A24: =IF(O24=A6,COUNTIF(O7:O24,A6),"") ->  | B24: =IF(O24=B6,COUNTIF(O7:O24,B6),"") -> 5 | C24: =IF(O24=C6,COUNTIF(O7:O24,C6),"") ->  | D24: =IF(O24=D6,COUNTIF(O7:O24,D6),"") ->  | E24: =IF(O24=E6,COUNTIF(O7:O24,E6),"") ->  | F24: =IF(O24=F6,COUNTIF(O7:O24,F6),"") ->  | G24: 18 | H24: 25 | I24: John Egner | O24: Cumbria | S24: 15.26 | T24: 1 | AM24: 18
A25: =IF(O25=A6,COUNTIF(O7:O25,A6),"") ->  | B25: =IF(O25=B6,COUNTIF(O7:O25,B6),"") ->  | C25: =IF(O25=C6,COUNTIF(O7:O25,C6),"") ->  | D25: =IF(O25=D6,COUNTIF(O7:O25,D6),"") -> 5 | E25: =IF(O25=E6,COUNTIF(O7:O25,E6),"") ->  | F25: =IF(O25=F6,COUNTIF(O7:O25,F6),"") ->  | G25: 19 | H25: 65 | I25: Kieron Mutch | O25: Northumberland | S25: 15.27 | T25: 1 | AM25: 19
A26: =IF(O26=A6,COUNTIF(O7:O26,A6),"") ->  | B26: =IF(O26=B6,COUNTIF(O7:O26,B6),"") -> 6 | C26: =IF(O26=C6,COUNTIF(O7:O26,C6),"") ->  | D26: =IF(O26=D6,COUNTIF(O7:O26,D6),"") ->  | E26: =IF(O26=E6,COUNTIF(O7:O26,E6),"") ->  | F26: =IF(O26=F6,COUNTIF(O7:O26,F6),"") ->  | G26: 20 | H26: 30 | I26: George Sidaway | O26: Cumbria | S26: 15.33 | T26: 1 | AM26: 20
A27: =IF(O27=A6,COUNTIF(O7:O27,A6),"") ->  | B27: =IF(O27=B6,COUNTIF(O7:O27,B6),"") ->  | C27: =IF(O27=C6,COUNTIF(O7:O27,C6),"") ->  | D27: =IF(O27=D6,COUNTIF(O7:O27,D6),"") -> 6 | E27: =IF(O27=E6,COUNTIF(O7:O27,E6),"") ->  | F27: =IF(O27=F6,COUNTIF(O7:O27,F6),"") ->  | G27: 21 | H27: 68 | I27: Oliver Douglass | O27: Northumberland | S27: 15.37 | T27: 1 | AM27: 21
A28: =IF(O28=A6,COUNTIF(O7:O28,A6),"") ->  | B28: =IF(O28=B6,COUNTIF(O7:O28,B6),"") ->  | C28: =IF(O28=C6,COUNTIF(O7:O28,C6),"") ->  | D28: =IF(O28=D6,COUNTIF(O7:O28,D6),"") ->  | E28: =IF(O28=E6,COUNTIF(O7:O28,E6),"") -> 5 | F28: =IF(O28=F6,COUNTIF(O7:O28,F6),"") ->  | G28: 22 | H28: 85 | I28: Alex Thompson | O28: North Yorkshire | S28: 15.39 | T28: 1 | AM28: 22
A29: =IF(O29=A6,COUNTIF(O7:O29,A6),"") ->  | B29: =IF(O29=B6,COUNTIF(O7:O29,B6),"") ->  | C29: =IF(O29=C6,COUNTIF(O7:O29,C6),"") -> 6 | D29: =IF(O29=D6,COUNTIF(O7:O29,D6),"") ->  | E29: =IF(O29=E6,COUNTIF(O7:O29,E6),"") ->  | F29: =IF(O29=F6,COUNTIF(O7:O29,F6),"") ->  | G29: 23 | H29: 51 | I29: Thomas Wraith | O29: Durham | S29: 15.41 | T29: 1 | AM29: 23
A30: =IF(O30=A6,COUNTIF(O7:O30,A6),"") ->  | B30: =IF(O30=B6,COUNTIF(O7:O30,B6),"") -> 7 | C30: =IF(O30=C6,COUNTIF(O7:O30,C6),"") ->  | D30: =IF(O30=D6,COUNTIF(O7:O30,D6),"") ->  | E30: =IF(O30=E6,COUNTIF(O7:O30,E6),"") ->  | F30: =IF(O30=F6,COUNTIF(O7:O30,F6),"") ->  | G30: 24 | H30: 27 | I30: James Young | O30: Cumbria | S30: 15.42 | T30: 1 | AM30: 24
A31: =IF(O31=A6,COUNTIF(O7:O31,A6),"") ->  | B31: =IF(O31=B6,COUNTIF(O7:O31,B6),"") -> 8 | C31: =IF(O31=C6,COUNTIF(O7:O31,C6),"") ->  | D31: =IF(O31=D6,COUNTIF(O7:O31,D6),"") ->  | E31: =IF(O31=E6,COUNTIF(O7:O31,E6),"") ->  | F31: =IF(O31=F6,COUNTIF(O7:O31,F6),"") ->  | G31: 25 | H31: 29 | I31: Ben Smith | O31: Cumbria | S31: 15.43 | T31: 1 | AM31: 25
A32: =IF(O32=A6,COUNTIF(O7:O32,A6),"") -> 1 | B32: =IF(O32=B6,COUNTIF(O7:O32,B6),"") ->  | C32: =IF(O32=C6,COUNTIF(O7:O32,C6),"") ->  | D32: =IF(O32=D6,COUNTIF(O7:O32,D6),"") ->  | E32: =IF(O32=E6,COUNTIF(O7:O32,E6),"") ->  | F32: =IF(O32=F6,COUNTIF(O7:O32,F6),"") ->  | G32: 26 | H32: 1 | I32: Max Creasey | O32: Cleveland | S32: 15.44 | T32: 1 | AM32: 26
A33: =IF(O33=A6,COUNTIF(O7:O33,A6),"") ->  | B33: =IF(O33=B6,COUNTIF(O7:O33,B6),"") -> 9 | C33: =IF(O33=C6,COUNTIF(O7:O33,C6),"") ->  | D33: =IF(O33=D6,COUNTIF(O7:O33,D6),"") ->  | E33: =IF(O33=E6,COUNTIF(O7:O33,E6),"") ->  | F33: =IF(O33=F6,COUNTIF(O7:O33,F6),"") ->  | G33: 27 | H33: 35 | I33: Harry Bowen | O33: Cumbria | S33: 15.46 | T33: 1 | AM33: 27
A34: =IF(O34=A6,COUNTIF(O7:O34,A6),"") ->  | B34: =IF(O34=B6,COUNTIF(O7:O34,B6),"") ->  | C34: =IF(O34=C6,COUNTIF(O7:O34,C6),"") -> 7 | D34: =IF(O34=D6,COUNTIF(O7:O34,D6),"") ->  | E34: =IF(O34=E6,COUNTIF(O7:O34,E6),"") ->  | F34: =IF(O34=F6,COUNTIF(O7:O34,F6),"") ->  | G34: 28 | H34: 47 | I34: Chris Coulson | O34: Durham | S34: 15.47 | T34: 1 | AM34: 28
A35: =IF(O35=A6,COUNTIF(O7:O35,A6),"") ->  | B35: =IF(O35=B6,COUNTIF(O7:O35,B6),"") ->  | C35: =IF(O35=C6,COUNTIF(O7:O35,C6),"") ->  | D35: =IF(O35=D6,COUNTIF(O7:O35,D6),"") ->  | E35: =IF(O35=E6,COUNTIF(O7:O35,E6),"") -> 6 | F35: =IF(O35=F6,COUNTIF(O7:O35,F6),"") ->  | G35: 29 | H35: 86 | I35: Jath Lee | O35: North Yorkshire | S35: 15.49 | T35: 1 | AM35: 29
A36: =IF(O36=A6,COUNTIF(O7:O36,A6),"") ->  | B36: =IF(O36=B6,COUNTIF(O7:O36,B6),"") ->  | C36: =IF(O36=C6,COUNTIF(O7:O36,C6),"") -> 8 | D36: =IF(O36=D6,COUNTIF(O7:O36,D6),"") ->  | E36: =IF(O36=E6,COUNTIF(O7:O36,E6),"") ->  | F36: =IF(O36=F6,COUNTIF(O7:O36,F6),"") ->  | G36: 30 | H36: 46 | I36: Duncan Hughes | O36: Durham | S36: 15.51 | T36: 1 | AM36: 30
A37: =IF(O37=A6,COUNTIF(O7:O37,A6),"") ->  | B37: =IF(O37=B6,COUNTIF(O7:O37,B6),"") -> 10 | C37: =IF(O37=C6,COUNTIF(O7:O37,C6),"") ->  | D37: =IF(O37=D6,COUNTIF(O7:O37,D6),"") ->  | E37: =IF(O37=E6,COUNTIF(O7:O37,E6),"") ->  | F37: =IF(O37=F6,COUNTIF(O7:O37,F6),"") ->  | G37: 31 | H37: 33 | I37: Finn Harrison | O37: Cumbria | S37: 15.52 | T37: 1 | AM37: 31
A38: =IF(O38=A6,COUNTIF(O7:O38,A6),"") ->  | B38: =IF(O38=B6,COUNTIF(O7:O38,B6),"") -> 11 | C38: =IF(O38=C6,COUNTIF(O7:O38,C6),"") ->  | D38: =IF(O38=D6,COUNTIF(O7:O38,D6),"") ->  | E38: =IF(O38=E6,COUNTIF(O7:O38,E6),"") ->  | F38: =IF(O38=F6,COUNTIF(O7:O38,F6),"") ->  | G38: 32 | H38: 34 | I38: Felix Bower | O38: Cumbria | S38: 15.54 | T38: 1 | AM38: 32
A39: =IF(O39=A6,COUNTIF(O7:O39,A6),"") ->  | B39: =IF(O39=B6,COUNTIF(O7:O39,B6),"") -> 12 | C39: =IF(O39=C6,COUNTIF(O7:O39,C6),"") ->  | D39: =IF(O39=D6,COUNTIF(O7:O39,D6),"") ->  | E39: =IF(O39=E6,COUNTIF(O7:O39,E6),"") ->  | F39: =IF(O39=F6,COUNTIF(O7:O39,F6),"") ->  | G39: 33 | H39: 28 | I39: James Dixon | O39: Cumbria | S39: 15.55 | T39: 1 | AM39: 33
A40: =IF(O40=A6,COUNTIF(O7:O40,A6),"") ->  | B40: =IF(O40=B6,COUNTIF(O7:O40,B6),"") ->  | C40: =IF(O40=C6,COUNTIF(O7:O40,C6),"") ->  | D40: =IF(O40=D6,COUNTIF(O7:O40,D6),"") ->  | E40: =IF(O40=E6,COUNTIF(O7:O40,E6),"") -> 7 | F40: =IF(O40=F6,COUNTIF(O7:O40,F6),"") ->  | G40: 34 | H40: 88 | I40: Xavier Martin | O40: North Yorkshire | S40: 15.56 | T40: 1 | AM40: 34
A41: =IF(O41=A6,COUNTIF(O7:O41,A6),"") ->  | B41: =IF(O41=B6,COUNTIF(O7:O41,B6),"") ->  | C41: =IF(O41=C6,COUNTIF(O7:O41,C6),"") ->  | D41: =IF(O41=D6,COUNTIF(O7:O41,D6),"") -> 7 | E41: =IF(O41=E6,COUNTIF(O7:O41,E6),"") ->  | F41: =IF(O41=F6,COUNTIF(O7:O41,F6),"") ->  | G41: 35 | H41: 69 | I41: Luis White | O41: Northumberland | S41: 15.57 | T41: 1 | AM41: 35
A42: =IF(O42=A6,COUNTIF(O7:O42,A6),"") ->  | B42: =IF(O42=B6,COUNTIF(O7:O42,B6),"") ->  | C42: =IF(O42=C6,COUNTIF(O7:O42,C6),"") ->  | D42: =IF(O42=D6,COUNTIF(O7:O42,D6),"") -> 8 | E42: =IF(O42=E6,COUNTIF(O7:O42,E6),"") ->  | F42: =IF(O42=F6,COUNTIF(O7:O42,F6),"") ->  | G42: 36 | H42: 71 | I42: Zak Old | O42: Northumberland | S42: 15.58 | T42: 1 | AM42: 36
A43: =IF(O43=A6,COUNTIF(O7:O43,A6),"") ->  | B43: =IF(O43=B6,COUNTIF(O7:O43,B6),"") ->  | C43: =IF(O43=C6,COUNTIF(O7:O43,C6),"") -> 9 | D43: =IF(O43=D6,COUNTIF(O7:O43,D6),"") ->  | E43: =IF(O43=E6,COUNTIF(O7:O43,E6),"") ->  | F43: =IF(O43=F6,COUNTIF(O7:O43,F6),"") ->  | G43: 37 | H43: 56 | I43: Theo Barrow | O43: Durham | S43: 15.59 | T43: 1 | AM43: 37
A44: =IF(O44=A6,COUNTIF(O7:O44,A6),"") ->  | B44: =IF(O44=B6,COUNTIF(O7:O44,B6),"") ->  | C44: =IF(O44=C6,COUNTIF(O7:O44,C6),"") ->  | D44: =IF(O44=D6,COUNTIF(O7:O44,D6),"") -> 9 | E44: =IF(O44=E6,COUNTIF(O7:O44,E6),"") ->  | F44: =IF(O44=F6,COUNTIF(O7:O44,F6),"") ->  | G44: 38 | H44: 67 | I44: Samuel Tate | O44: Northumberland | S44: 16 | T44: 1 | AM44: 38
A45: =IF(O45=A6,COUNTIF(O7:O45,A6),"") ->  | B45: =IF(O45=B6,COUNTIF(O7:O45,B6),"") ->  | C45: =IF(O45=C6,COUNTIF(O7:O45,C6),"") ->  | D45: =IF(O45=D6,COUNTIF(O7:O45,D6),"") ->  | E45: =IF(O45=E6,COUNTIF(O7:O45,E6),"") -> 8 | F45: =IF(O45=F6,COUNTIF(O7:O45,F6),"") ->  | G45: 39 | H45: 87 | I45: Ben Rees | O45: North Yorkshire | S45: 16 | T45: 1 | AM45: 39
A46: =IF(O46=A6,COUNTIF(O7:O46,A6),"") -> 2 | B46: =IF(O46=B6,COUNTIF(O7:O46,B6),"") ->  | C46: =IF(O46=C6,COUNTIF(O7:O46,C6),"") ->  | D46: =IF(O46=D6,COUNTIF(O7:O46,D6),"") ->  | E46: =IF(O46=E6,COUNTIF(O7:O46,E6),"") ->  | F46: =IF(O46=F6,COUNTIF(O7:O46,F6),"") ->  | G46: 40 | H46: 4 | I46: Ben Johnson | O46: Cleveland | S46: 16 | T46: 1 | AM46: 40
A47: =IF(O47=A6,COUNTIF(O7:O47,A6),"") ->  | B47: =IF(O47=B6,COUNTIF(O7:O47,B6),"") ->  | C47: =IF(O47=C6,COUNTIF(O7:O47,C6),"") -> 10 | D47: =IF(O47=D6,COUNTIF(O7:O47,D6),"") ->  | E47: =IF(O47=E6,COUNTIF(O7:O47,E6),"") ->  | F47: =IF(O47=F6,COUNTIF(O7:O47,F6),"") ->  | G47: 41 | H47: 55 | I47: Ben Underwood | O47: Durham | S47: 16 | T47: 1 | AM47: 41
A48: =IF(O48=A6,COUNTIF(O7:O48,A6),"") -> 3 | B48: =IF(O48=B6,COUNTIF(O7:O48,B6),"") ->  | C48: =IF(O48=C6,COUNTIF(O7:O48,C6),"") ->  | D48: =IF(O48=D6,COUNTIF(O7:O48,D6),"") ->  | E48: =IF(O48=E6,COUNTIF(O7:O48,E6),"") ->  | F48: =IF(O48=F6,COUNTIF(O7:O48,F6),"") ->  | G48: 42 | H48: 5 | I48: Liam Cooper | O48: Cleveland | S48: 16.02 | T48: 1 | AM48: 42
A49: =IF(O49=A6,COUNTIF(O7:O49,A6),"") ->  | B49: =IF(O49=B6,COUNTIF(O7:O49,B6),"") ->  | C49: =IF(O49=C6,COUNTIF(O7:O49,C6),"") ->  | D49: =IF(O49=D6,COUNTIF(O7:O49,D6),"") ->  | E49: =IF(O49=E6,COUNTIF(O7:O49,E6),"") -> 9 | F49: =IF(O49=F6,COUNTIF(O7:O49,F6),"") ->  | G49: 43 | H49: 90 | I49: Jack Mudd-Bowes | O49: North Yorkshire | S49: 16.02 | T49: 1 | AM49: 43
A50: =IF(O50=A6,COUNTIF(O7:O50,A6),"") ->  | B50: =IF(O50=B6,COUNTIF(O7:O50,B6),"") ->  | C50: =IF(O50=C6,COUNTIF(O7:O50,C6),"") -> 11 | D50: =IF(O50=D6,COUNTIF(O7:O50,D6),"") ->  | E50: =IF(O50=E6,COUNTIF(O7:O50,E6),"") ->  | F50: =IF(O50=F6,COUNTIF(O7:O50,F6),"") ->  | G50: 44 | H50: 53 | I50: Freddie Langton | O50: Durham | S50: 16.03 | T50: 1 | AM50: 44
A51: =IF(O51=A6,COUNTIF(O7:O51,A6),"") -> 4 | B51: =IF(O51=B6,COUNTIF(O7:O51,B6),"") ->  | C51: =IF(O51=C6,COUNTIF(O7:O51,C6),"") ->  | D51: =IF(O51=D6,COUNTIF(O7:O51,D6),"") ->  | E51: =IF(O51=E6,COUNTIF(O7:O51,E6),"") ->  | F51: =IF(O51=F6,COUNTIF(O7:O51,F6),"") ->  | G51: 45 | H51: 7 | I51: Harvey Kaid | O51: Cleveland | S51: 16.03 | T51: 1 | AM51: 45
A52: =IF(O52=A6,COUNTIF(O7:O52,A6),"") ->  | B52: =IF(O52=B6,COUNTIF(O7:O52,B6),"") -> 13 | C52: =IF(O52=C6,COUNTIF(O7:O52,C6),"") ->  | D52: =IF(O52=D6,COUNTIF(O7:O52,D6),"") ->  | E52: =IF(O52=E6,COUNTIF(O7:O52,E6),"") ->  | F52: =IF(O52=F6,COUNTIF(O7:O52,F6),"") ->  | G52: 46 | H52: 26 | I52: Ben O'Dowd | O52: Cumbria | S52: 16.05 | T52: 1 | AM52: 46
A53: =IF(O53=A6,COUNTIF(O7:O53,A6),"") ->  | B53: =IF(O53=B6,COUNTIF(O7:O53,B6),"") ->  | C53: =IF(O53=C6,COUNTIF(O7:O53,C6),"") ->  | D53: =IF(O53=D6,COUNTIF(O7:O53,D6),"") ->  | E53: =IF(O53=E6,COUNTIF(O7:O53,E6),"") -> 10 | F53: =IF(O53=F6,COUNTIF(O7:O53,F6),"") ->  | G53: 47 | H53: 89 | I53: Joe O'brien | O53: North Yorkshire | S53: 16.07 | T53: 1 | AM53: 47
A54: =IF(O54=A6,COUNTIF(O7:O54,A6),"") ->  | B54: =IF(O54=B6,COUNTIF(O7:O54,B6),"") -> 14 | C54: =IF(O54=C6,COUNTIF(O7:O54,C6),"") ->  | D54: =IF(O54=D6,COUNTIF(O7:O54,D6),"") ->  | E54: =IF(O54=E6,COUNTIF(O7:O54,E6),"") ->  | F54: =IF(O54=F6,COUNTIF(O7:O54,F6),"") ->  | G54: 48 | H54: 32 | I54: Lucas Messenger Jones | O54: Cumbria | S54: 16.1 | T54: 1 | AM54: 48
A55: =IF(O55=A6,COUNTIF(O7:O55,A6),"") ->  | B55: =IF(O55=B6,COUNTIF(O7:O55,B6),"") -> 15 | C55: =IF(O55=C6,COUNTIF(O7:O55,C6),"") ->  | D55: =IF(O55=D6,COUNTIF(O7:O55,D6),"") ->  | E55: =IF(O55=E6,COUNTIF(O7:O55,E6),"") ->  | F55: =IF(O55=F6,COUNTIF(O7:O55,F6),"") ->  | G55: 49 | H55: 36 | I55: Finlay Corkill | O55: Cumbria | S55: 16.13 | T55: 1 | AM55: 49
A56: =IF(O56=A6,COUNTIF(O7:O56,A6),"") ->  | B56: =IF(O56=B6,COUNTIF(O7:O56,B6),"") ->  | C56: =IF(O56=C6,COUNTIF(O7:O56,C6),"") ->  | D56: =IF(O56=D6,COUNTIF(O7:O56,D6),"") ->  | E56: =IF(O56=E6,COUNTIF(O7:O56,E6),"") -> 11 | F56: =IF(O56=F6,COUNTIF(O7:O56,F6),"") ->  | G56: 50 | H56: 91 | I56: Edward Hanley | O56: North Yorkshire | S56: 16.13 | T56: 1 | AM56: 50
A57: =IF(O57=A6,COUNTIF(O7:O57,A6),"") ->  | B57: =IF(O57=B6,COUNTIF(O7:O57,B6),"") ->  | C57: =IF(O57=C6,COUNTIF(O7:O57,C6),"") -> 12 | D57: =IF(O57=D6,COUNTIF(O7:O57,D6),"") ->  | E57: =IF(O57=E6,COUNTIF(O7:O57,E6),"") ->  | F57: =IF(O57=F6,COUNTIF(O7:O57,F6),"") ->  | G57: 51 | H57: 49 | I57: Dillon Revell | O57: Durham | S57: 16.17 | T57: 1 | AM57: 51
A58: =IF(O58=A6,COUNTIF(O7:O58,A6),"") -> 5 | B58: =IF(O58=B6,COUNTIF(O7:O58,B6),"") ->  | C58: =IF(O58=C6,COUNTIF(O7:O58,C6),"") ->  | D58: =IF(O58=D6,COUNTIF(O7:O58,D6),"") ->  | E58: =IF(O58=E6,COUNTIF(O7:O58,E6),"") ->  | F58: =IF(O58=F6,COUNTIF(O7:O58,F6),"") ->  | G58: 52 | H58: 2 | I58: James Hughes | O58: Cleveland | S58: 16.19 | T58: 1 | AM58: 52
A59: =IF(O59=A6,COUNTIF(O7:O59,A6),"") ->  | B59: =IF(O59=B6,COUNTIF(O7:O59,B6),"") ->  | C59: =IF(O59=C6,COUNTIF(O7:O59,C6),"") ->  | D59: =IF(O59=D6,COUNTIF(O7:O59,D6),"") ->  | E59: =IF(O59=E6,COUNTIF(O7:O59,E6),"") -> 12 | F59: =IF(O59=F6,COUNTIF(O7:O59,F6),"") ->  | G59: 53 | H59: 94 | I59: Charlie Wright | O59: North Yorkshire | S59: 16.2 | T59: 1 | AM59: 53
A60: =IF(O60=A6,COUNTIF(O7:O60,A6),"") -> 6 | B60: =IF(O60=B6,COUNTIF(O7:O60,B6),"") ->  | C60: =IF(O60=C6,COUNTIF(O7:O60,C6),"") ->  | D60: =IF(O60=D6,COUNTIF(O7:O60,D6),"") ->  | E60: =IF(O60=E6,COUNTIF(O7:O60,E6),"") ->  | F60: =IF(O60=F6,COUNTIF(O7:O60,F6),"") ->  | G60: 54 | H60: 9 | I60: Matthew Walters | O60: Cleveland | S60: 16.22 | T60: 1 | AM60: 54
A61: =IF(O61=A6,COUNTIF(O7:O61,A6),"") ->  | B61: =IF(O61=B6,COUNTIF(O7:O61,B6),"") -> 16 | C61: =IF(O61=C6,COUNTIF(O7:O61,C6),"") ->  | D61: =IF(O61=D6,COUNTIF(O7:O61,D6),"") ->  | E61: =IF(O61=E6,COUNTIF(O7:O61,E6),"") ->  | F61: =IF(O61=F6,COUNTIF(O7:O61,F6),"") ->  | G61: 55 | H61: 39 | I61: Jacob Nelson | O61: Cumbria | S61: 16.23 | T61: 1 | AM61: 55
A62: =IF(O62=A6,COUNTIF(O7:O62,A6),"") ->  | B62: =IF(O62=B6,COUNTIF(O7:O62,B6),"") ->  | C62: =IF(O62=C6,COUNTIF(O7:O62,C6),"") ->  | D62: =IF(O62=D6,COUNTIF(O7:O62,D6),"") -> 10 | E62: =IF(O62=E6,COUNTIF(O7:O62,E6),"") ->  | F62: =IF(O62=F6,COUNTIF(O7:O62,F6),"") ->  | G62: 56 | H62: 66 | I62: Ralph Robinson | O62: Northumberland | S62: 16.27 | T62: 1 | AM62: 56
A63: =IF(O63=A6,COUNTIF(O7:O63,A6),"") ->  | B63: =IF(O63=B6,COUNTIF(O7:O63,B6),"") ->  | C63: =IF(O63=C6,COUNTIF(O7:O63,C6),"") -> 13 | D63: =IF(O63=D6,COUNTIF(O7:O63,D6),"") ->  | E63: =IF(O63=E6,COUNTIF(O7:O63,E6),"") ->  | F63: =IF(O63=F6,COUNTIF(O7:O63,F6),"") ->  | G63: 57 | H63: 58 | I63: Harry Wilson | O63: Durham | S63: 16.31 | T63: 1 | AM63: 57
A64: =IF(O64=A6,COUNTIF(O7:O64,A6),"") ->  | B64: =IF(O64=B6,COUNTIF(O7:O64,B6),"") ->  | C64: =IF(O64=C6,COUNTIF(O7:O64,C6),"") ->  | D64: =IF(O64=D6,COUNTIF(O7:O64,D6),"") -> 11 | E64: =IF(O64=E6,COUNTIF(O7:O64,E6),"") ->  | F64: =IF(O64=F6,COUNTIF(O7:O64,F6),"") ->  | G64: 58 | H64: 72 | I64: Dylan Gooding | O64: Northumberland | S64: 16.32 | T64: 1 | AM64: 58
A65: =IF(O65=A6,COUNTIF(O7:O65,A6),"") ->  | B65: =IF(O65=B6,COUNTIF(O7:O65,B6),"") ->  | C65: =IF(O65=C6,COUNTIF(O7:O65,C6),"") ->  | D65: =IF(O65=D6,COUNTIF(O7:O65,D6),"") ->  | E65: =IF(O65=E6,COUNTIF(O7:O65,E6),"") -> 13 | F65: =IF(O65=F6,COUNTIF(O7:O65,F6),"") ->  | G65: 59 | H65: 95 | I65: Sam Headley | O65: North Yorkshire | S65: 16.32 | T65: 1 | AM65: 59
A66: =IF(O66=A6,COUNTIF(O7:O66,A6),"") ->  | B66: =IF(O66=B6,COUNTIF(O7:O66,B6),"") ->  | C66: =IF(O66=C6,COUNTIF(O7:O66,C6),"") -> 14 | D66: =IF(O66=D6,COUNTIF(O7:O66,D6),"") ->  | E66: =IF(O66=E6,COUNTIF(O7:O66,E6),"") ->  | F66: =IF(O66=F6,COUNTIF(O7:O66,F6),"") ->  | G66: 60 | H66: 57 | I66: Liam Eastaugh | O66: Durham | S66: 16.38 | T66: 1 | AM66: 60
A67: =IF(O67=A6,COUNTIF(O7:O67,A6),"") ->  | B67: =IF(O67=B6,COUNTIF(O7:O67,B6),"") -> 17 | C67: =IF(O67=C6,COUNTIF(O7:O67,C6),"") ->  | D67: =IF(O67=D6,COUNTIF(O7:O67,D6),"") ->  | E67: =IF(O67=E6,COUNTIF(O7:O67,E6),"") ->  | F67: =IF(O67=F6,COUNTIF(O7:O67,F6),"") ->  | G67: 61 | H67: 31 | I67: Dylan Edwards | O67: Cumbria | S67: 16.41 | T67: 1 | AM67: 61
A68: =IF(O68=A6,COUNTIF(O7:O68,A6),"") ->  | B68: =IF(O68=B6,COUNTIF(O7:O68,B6),"") ->  | C68: =IF(O68=C6,COUNTIF(O7:O68,C6),"") -> 15 | D68: =IF(O68=D6,COUNTIF(O7:O68,D6),"") ->  | E68: =IF(O68=E6,COUNTIF(O7:O68,E6),"") ->  | F68: =IF(O68=F6,COUNTIF(O7:O68,F6),"") ->  | G68: 62 | H68: 54 | I68: Oliver McKenna | O68: Durham | S68: 16.42 | T68: 1 | AM68: 62
A69: =IF(O69=A6,COUNTIF(O7:O69,A6),"") -> 7 | B69: =IF(O69=B6,COUNTIF(O7:O69,B6),"") ->  | C69: =IF(O69=C6,COUNTIF(O7:O69,C6),"") ->  | D69: =IF(O69=D6,COUNTIF(O7:O69,D6),"") ->  | E69: =IF(O69=E6,COUNTIF(O7:O69,E6),"") ->  | F69: =IF(O69=F6,COUNTIF(O7:O69,F6),"") ->  | G69: 63 | H69: 11 | I69: Ben Hodgson | O69: Cleveland | S69: 16.43 | T69: 1 | AM69: 63
A70: =IF(O70=A6,COUNTIF(O7:O70,A6),"") ->  | B70: =IF(O70=B6,COUNTIF(O7:O70,B6),"") ->  | C70: =IF(O70=C6,COUNTIF(O7:O70,C6),"") ->  | D70: =IF(O70=D6,COUNTIF(O7:O70,D6),"") ->  | E70: =IF(O70=E6,COUNTIF(O7:O70,E6),"") -> 14 | F70: =IF(O70=F6,COUNTIF(O7:O70,F6),"") ->  | G70: 64 | H70: 92 | I70: Will Atkinson | O70: North Yorkshire | S70: 16.49 | T70: 1 | AM70: 64
A71: =IF(O71=A6,COUNTIF(O7:O71,A6),"") ->  | B71: =IF(O71=B6,COUNTIF(O7:O71,B6),"") ->  | C71: =IF(O71=C6,COUNTIF(O7:O71,C6),"") -> 16 | D71: =IF(O71=D6,COUNTIF(O7:O71,D6),"") ->  | E71: =IF(O71=E6,COUNTIF(O7:O71,E6),"") ->  | F71: =IF(O71=F6,COUNTIF(O7:O71,F6),"") ->  | G71: =IF(LEFT(S71,1)="D",0,AM71) -> 65 | H71: 48 | I71: =IFERROR(VLOOKUP(H71,INDIRECT($AA$1),2,0),"") -> Ben Dowsett | O71: =IFERROR(VLOOKUP(H71,INDIRECT($AA$1),3,0),"") -> Durham | S71: 16.51 | T71: =IF(H71=0,0,1) -> 1 | AM71: 65
A72: =IF(O72=A6,COUNTIF(O7:O72,A6),"") -> 8 | B72: =IF(O72=B6,COUNTIF(O7:O72,B6),"") ->  | C72: =IF(O72=C6,COUNTIF(O7:O72,C6),"") ->  | D72: =IF(O72=D6,COUNTIF(O7:O72,D6),"") ->  | E72: =IF(O72=E6,COUNTIF(O7:O72,E6),"") ->  | F72: =IF(O72=F6,COUNTIF(O7:O72,F6),"") ->  | G72: 66 | H72: 12 | I72: Alex Lake | O72: Cleveland | S72: 16.51 | T72: 1 | AM72: 66
A73: =IF(O73=A6,COUNTIF(O7:O73,A6),"") ->  | B73: =IF(O73=B6,COUNTIF(O7:O73,B6),"") ->  | C73: =IF(O73=C6,COUNTIF(O7:O73,C6),"") ->  | D73: =IF(O73=D6,COUNTIF(O7:O73,D6),"") -> 12 | E73: =IF(O73=E6,COUNTIF(O7:O73,E6),"") ->  | F73: =IF(O73=F6,COUNTIF(O7:O73,F6),"") ->  | G73: 67 | H73: 73 | I73: Ben Waterfield | O73: Northumberland | S73: 16.53 | T73: 1 | AM73: 67
A74: =IF(O74=A6,COUNTIF(O7:O74,A6),"") -> 9 | B74: =IF(O74=B6,COUNTIF(O7:O74,B6),"") ->  | C74: =IF(O74=C6,COUNTIF(O7:O74,C6),"") ->  | D74: =IF(O74=D6,COUNTIF(O7:O74,D6),"") ->  | E74: =IF(O74=E6,COUNTIF(O7:O74,E6),"") ->  | F74: =IF(O74=F6,COUNTIF(O7:O74,F6),"") ->  | G74: 68 | H74: 8 | I74: James Skull | O74: Cleveland | S74: 16.54 | T74: 1 | AM74: 68
A75: =IF(O75=A6,COUNTIF(O7:O75,A6),"") -> 10 | B75: =IF(O75=B6,COUNTIF(O7:O75,B6),"") ->  | C75: =IF(O75=C6,COUNTIF(O7:O75,C6),"") ->  | D75: =IF(O75=D6,COUNTIF(O7:O75,D6),"") ->  | E75: =IF(O75=E6,COUNTIF(O7:O75,E6),"") ->  | F75: =IF(O75=F6,COUNTIF(O7:O75,F6),"") ->  | G75: 69 | H75: 6 | I75: Will Simpson | O75: Cleveland | S75: 16.55 | T75: 1 | AM75: 69
A76: =IF(O76=A6,COUNTIF(O7:O76,A6),"") ->  | B76: =IF(O76=B6,COUNTIF(O7:O76,B6),"") ->  | C76: =IF(O76=C6,COUNTIF(O7:O76,C6),"") -> 17 | D76: =IF(O76=D6,COUNTIF(O7:O76,D6),"") ->  | E76: =IF(O76=E6,COUNTIF(O7:O76,E6),"") ->  | F76: =IF(O76=F6,COUNTIF(O7:O76,F6),"") ->  | G76: 70 | H76: 44 | I76: Peter Cook | O76: Durham | S76: 16.58 | T76: 1 | AM76: 70
A77: =IF(O77=A6,COUNTIF(O7:O77,A6),"") -> 11 | B77: =IF(O77=B6,COUNTIF(O7:O77,B6),"") ->  | C77: =IF(O77=C6,COUNTIF(O7:O77,C6),"") ->  | D77: =IF(O77=D6,COUNTIF(O7:O77,D6),"") ->  | E77: =IF(O77=E6,COUNTIF(O7:O77,E6),"") ->  | F77: =IF(O77=F6,COUNTIF(O7:O77,F6),"") ->  | G77: 71 | H77: 13 | I77: Frankie Angloy | O77: Cleveland | S77: 17.17 | T77: 1 | AM77: 71
A78: =IF(O78=A6,COUNTIF(O7:O78,A6),"") -> 12 | B78: =IF(O78=B6,COUNTIF(O7:O78,B6),"") ->  | C78: =IF(O78=C6,COUNTIF(O7:O78,C6),"") ->  | D78: =IF(O78=D6,COUNTIF(O7:O78,D6),"") ->  | E78: =IF(O78=E6,COUNTIF(O7:O78,E6),"") ->  | F78: =IF(O78=F6,COUNTIF(O7:O78,F6),"") ->  | G78: 72 | H78: 10 | I78: Scott Temple | O78: Cleveland | S78: 17.18 | T78: 1 | AM78: 72
A79: =IF(O79=A6,COUNTIF(O7:O79,A6),"") ->  | B79: =IF(O79=B6,COUNTIF(O7:O79,B6),"") ->  | C79: =IF(O79=C6,COUNTIF(O7:O79,C6),"") -> 18 | D79: =IF(O79=D6,COUNTIF(O7:O79,D6),"") ->  | E79: =IF(O79=E6,COUNTIF(O7:O79,E6),"") ->  | F79: =IF(O79=F6,COUNTIF(O7:O79,F6),"") ->  | G79: 73 | H79: 52 | I79: Ryan Stewart | O79: Durham | S79: 17.2 | T79: 1 | AM79: 73
A80: =IF(O80=A6,COUNTIF(O7:O80,A6),"") ->  | B80: =IF(O80=B6,COUNTIF(O7:O80,B6),"") ->  | C80: =IF(O80=C6,COUNTIF(O7:O80,C6),"") ->  | D80: =IF(O80=D6,COUNTIF(O7:O80,D6),"") ->  | E80: =IF(O80=E6,COUNTIF(O7:O80,E6),"") -> 15 | F80: =IF(O80=F6,COUNTIF(O7:O80,F6),"") ->  | G80: 74 | H80: 93 | I80: Theo Walton | O80: North Yorkshire | S80: 17.3 | T80: 1 | AM80: 74
A81: =IF(O81=A6,COUNTIF(O7:O81,A6),"") ->  | B81: =IF(O81=B6,COUNTIF(O7:O81,B6),"") ->  | C81: =IF(O81=C6,COUNTIF(O7:O81,C6),"") ->  | D81: =IF(O81=D6,COUNTIF(O7:O81,D6),"") -> 13 | E81: =IF(O81=E6,COUNTIF(O7:O81,E6),"") ->  | F81: =IF(O81=F6,COUNTIF(O7:O81,F6),"") ->  | G81: 75 | H81: 70 | I81: Wesley Croom | O81: Northumberland | S81: 17.35 | T81: 1 | AM81: 75
A82: =IF(O82=A6,COUNTIF(O7:O82,A6),"") -> 13 | B82: =IF(O82=B6,COUNTIF(O7:O82,B6),"") ->  | C82: =IF(O82=C6,COUNTIF(O7:O82,C6),"") ->  | D82: =IF(O82=D6,COUNTIF(O7:O82,D6),"") ->  | E82: =IF(O82=E6,COUNTIF(O7:O82,E6),"") ->  | F82: =IF(O82=F6,COUNTIF(O7:O82,F6),"") ->  | G82: 76 | H82: 16 | I82: Ollie Cairney | O82: Cleveland | S82: 18.13 | T82: 1 | AM82: 76
A83: =IF(O83=A6,COUNTIF(O7:O83,A6),"") -> 14 | B83: =IF(O83=B6,COUNTIF(O7:O83,B6),"") ->  | C83: =IF(O83=C6,COUNTIF(O7:O83,C6),"") ->  | D83: =IF(O83=D6,COUNTIF(O7:O83,D6),"") ->  | E83: =IF(O83=E6,COUNTIF(O7:O83,E6),"") ->  | F83: =IF(O83=F6,COUNTIF(O7:O83,F6),"") ->  | G83: 77 | H83: 14 | I83: Lochlain Lacy | O83: Cleveland | S83: 18.54 | T83: 1 | AM83: 77
A84: =IF(O84=A6,COUNTIF(O7:O84,A6),"") ->  | B84: =IF(O84=B6,COUNTIF(O7:O84,B6),"") ->  | C84: =IF(O84=C6,COUNTIF(O7:O84,C6),"") ->  | D84: =IF(O84=D6,COUNTIF(O7:O84,D6),"") ->  | E84: =IF(O84=E6,COUNTIF(O7:O84,E6),"") ->  | F84: =IF(O84=F6,COUNTIF(O7:O84,F6),"") ->  | G84: 78 | T84: 0 | AM84: 78
A85: =IF(O85=A6,COUNTIF(O7:O85,A6),"") ->  | B85: =IF(O85=B6,COUNTIF(O7:O85,B6),"") ->  | C85: =IF(O85=C6,COUNTIF(O7:O85,C6),"") ->  | D85: =IF(O85=D6,COUNTIF(O7:O85,D6),"") ->  | E85: =IF(O85=E6,COUNTIF(O7:O85,E6),"") ->  | F85: =IF(O85=F6,COUNTIF(O7:O85,F6),"") ->  | G85: 79 | T85: 0 | AM85: 79
A86: =IF(O86=A6,COUNTIF(O7:O86,A6),"") ->  | B86: =IF(O86=B6,COUNTIF(O7:O86,B6),"") ->  | C86: =IF(O86=C6,COUNTIF(O7:O86,C6),"") ->  | D86: =IF(O86=D6,COUNTIF(O7:O86,D6),"") ->  | E86: =IF(O86=E6,COUNTIF(O7:O86,E6),"") ->  | F86: =IF(O86=F6,COUNTIF(O7:O86,F6),"") ->  | G86: 80 | T86: 0 | AM86: 80
A87: =IF(O87=A6,COUNTIF(O7:O87,A6),"") ->  | B87: =IF(O87=B6,COUNTIF(O7:O87,B6),"") ->  | C87: =IF(O87=C6,COUNTIF(O7:O87,C6),"") ->  | D87: =IF(O87=D6,COUNTIF(O7:O87,D6),"") ->  | E87: =IF(O87=E6,COUNTIF(O7:O87,E6),"") ->  | F87: =IF(O87=F6,COUNTIF(O7:O87,F6),"") ->  | G87: 81 | T87: 0 | AM87: 81
A88: =IF(O88=A6,COUNTIF(O7:O88,A6),"") ->  | B88: =IF(O88=B6,COUNTIF(O7:O88,B6),"") ->  | C88: =IF(O88=C6,COUNTIF(O7:O88,C6),"") ->  | D88: =IF(O88=D6,COUNTIF(O7:O88,D6),"") ->  | E88: =IF(O88=E6,COUNTIF(O7:O88,E6),"") ->  | F88: =IF(O88=F6,COUNTIF(O7:O88,F6),"") ->  | G88: 82 | T88: 0 | AM88: 82
A89: =IF(O89=A6,COUNTIF(O7:O89,A6),"") ->  | B89: =IF(O89=B6,COUNTIF(O7:O89,B6),"") ->  | C89: =IF(O89=C6,COUNTIF(O7:O89,C6),"") ->  | D89: =IF(O89=D6,COUNTIF(O7:O89,D6),"") ->  | E89: =IF(O89=E6,COUNTIF(O7:O89,E6),"") ->  | F89: =IF(O89=F6,COUNTIF(O7:O89,F6),"") ->  | G89: 83 | T89: 0 | AM89: 83
A90: =IF(O90=A6,COUNTIF(O7:O90,A6),"") ->  | B90: =IF(O90=B6,COUNTIF(O7:O90,B6),"") ->  | C90: =IF(O90=C6,COUNTIF(O7:O90,C6),"") ->  | D90: =IF(O90=D6,COUNTIF(O7:O90,D6),"") ->  | E90: =IF(O90=E6,COUNTIF(O7:O90,E6),"") ->  | F90: =IF(O90=F6,COUNTIF(O7:O90,F6),"") ->  | G90: 84 | T90: 0 | AM90: 84
A91: =IF(O91=A6,COUNTIF(O7:O91,A6),"") ->  | B91: =IF(O91=B6,COUNTIF(O7:O91,B6),"") ->  | C91: =IF(O91=C6,COUNTIF(O7:O91,C6),"") ->  | D91: =IF(O91=D6,COUNTIF(O7:O91,D6),"") ->  | E91: =IF(O91=E6,COUNTIF(O7:O91,E6),"") ->  | F91: =IF(O91=F6,COUNTIF(O7:O91,F6),"") ->  | G91: 85 | T91: 0 | AM91: 85
A92: =IF(O92=A6,COUNTIF(O7:O92,A6),"") ->  | B92: =IF(O92=B6,COUNTIF(O7:O92,B6),"") ->  | C92: =IF(O92=C6,COUNTIF(O7:O92,C6),"") ->  | D92: =IF(O92=D6,COUNTIF(O7:O92,D6),"") ->  | E92: =IF(O92=E6,COUNTIF(O7:O92,E6),"") ->  | F92: =IF(O92=F6,COUNTIF(O7:O92,F6),"") ->  | G92: 86 | T92: 0 | AM92: 86
A93: =IF(O93=A6,COUNTIF(O7:O93,A6),"") ->  | B93: =IF(O93=B6,COUNTIF(O7:O93,B6),"") ->  | C93: =IF(O93=C6,COUNTIF(O7:O93,C6),"") ->  | D93: =IF(O93=D6,COUNTIF(O7:O93,D6),"") ->  | E93: =IF(O93=E6,COUNTIF(O7:O93,E6),"") ->  | F93: =IF(O93=F6,COUNTIF(O7:O93,F6),"") ->  | G93: 87 | T93: 0 | AM93: 87
A94: =IF(O94=A6,COUNTIF(O7:O94,A6),"") ->  | B94: =IF(O94=B6,COUNTIF(O7:O94,B6),"") ->  | C94: =IF(O94=C6,COUNTIF(O7:O94,C6),"") ->  | D94: =IF(O94=D6,COUNTIF(O7:O94,D6),"") ->  | E94: =IF(O94=E6,COUNTIF(O7:O94,E6),"") ->  | F94: =IF(O94=F6,COUNTIF(O7:O94,F6),"") ->  | G94: 88 | T94: 0 | AM94: 88
A95: =IF(O95=A6,COUNTIF(O7:O95,A6),"") ->  | B95: =IF(O95=B6,COUNTIF(O7:O95,B6),"") ->  | C95: =IF(O95=C6,COUNTIF(O7:O95,C6),"") ->  | D95: =IF(O95=D6,COUNTIF(O7:O95,D6),"") ->  | E95: =IF(O95=E6,COUNTIF(O7:O95,E6),"") ->  | F95: =IF(O95=F6,COUNTIF(O7:O95,F6),"") ->  | G95: 89 | T95: 0 | AM95: 89
A96: =IF(O96=A6,COUNTIF(O7:O96,A6),"") ->  | B96: =IF(O96=B6,COUNTIF(O7:O96,B6),"") ->  | C96: =IF(O96=C6,COUNTIF(O7:O96,C6),"") ->  | D96: =IF(O96=D6,COUNTIF(O7:O96,D6),"") ->  | E96: =IF(O96=E6,COUNTIF(O7:O96,E6),"") ->  | F96: =IF(O96=F6,COUNTIF(O7:O96,F6),"") ->  | G96: 90 | T96: 0 | AM96: 90
A97: =IF(O97=A6,COUNTIF(O7:O97,A6),"") ->  | B97: =IF(O97=B6,COUNTIF(O7:O97,B6),"") ->  | C97: =IF(O97=C6,COUNTIF(O7:O97,C6),"") ->  | D97: =IF(O97=D6,COUNTIF(O7:O97,D6),"") ->  | E97: =IF(O97=E6,COUNTIF(O7:O97,E6),"") ->  | F97: =IF(O97=F6,COUNTIF(O7:O97,F6),"") ->  | G97: 91 | T97: 0 | AM97: 91
A98: =IF(O98=A6,COUNTIF(O7:O98,A6),"") ->  | B98: =IF(O98=B6,COUNTIF(O7:O98,B6),"") ->  | C98: =IF(O98=C6,COUNTIF(O7:O98,C6),"") ->  | D98: =IF(O98=D6,COUNTIF(O7:O98,D6),"") ->  | E98: =IF(O98=E6,COUNTIF(O7:O98,E6),"") ->  | F98: =IF(O98=F6,COUNTIF(O7:O98,F6),"") ->  | G98: 92 | T98: 0 | AM98: 92
A99: =IF(O99=A6,COUNTIF(O7:O99,A6),"") ->  | B99: =IF(O99=B6,COUNTIF(O7:O99,B6),"") ->  | C99: =IF(O99=C6,COUNTIF(O7:O99,C6),"") ->  | D99: =IF(O99=D6,COUNTIF(O7:O99,D6),"") ->  | E99: =IF(O99=E6,COUNTIF(O7:O99,E6),"") ->  | F99: =IF(O99=F6,COUNTIF(O7:O99,F6),"") ->  | G99: 93 | T99: 0 | AM99: 93
A100: =IF(O100=A6,COUNTIF(O7:O100,A6),"") ->  | B100: =IF(O100=B6,COUNTIF(O7:O100,B6),"") ->  | C100: =IF(O100=C6,COUNTIF(O7:O100,C6),"") ->  | D100: =IF(O100=D6,COUNTIF(O7:O100,D6),"") ->  | E100: =IF(O100=E6,COUNTIF(O7:O100,E6),"") ->  | F100: =IF(O100=F6,COUNTIF(O7:O100,F6),"") ->  | G100: 94 | T100: 0 | AM100: 94
A101: =IF(O101=A6,COUNTIF(O7:O101,A6),"") ->  | B101: =IF(O101=B6,COUNTIF(O7:O101,B6),"") ->  | C101: =IF(O101=C6,COUNTIF(O7:O101,C6),"") ->  | D101: =IF(O101=D6,COUNTIF(O7:O101,D6),"") ->  | E101: =IF(O101=E6,COUNTIF(O7:O101,E6),"") ->  | F101: =IF(O101=F6,COUNTIF(O7:O101,F6),"") ->  | G101: 95 | T101: 0 | AM101: 95
A102: =IF(O102=A6,COUNTIF(O7:O102,A6),"") ->  | B102: =IF(O102=B6,COUNTIF(O7:O102,B6),"") ->  | C102: =IF(O102=C6,COUNTIF(O7:O102,C6),"") ->  | D102: =IF(O102=D6,COUNTIF(O7:O102,D6),"") ->  | E102: =IF(O102=E6,COUNTIF(O7:O102,E6),"") ->  | F102: =IF(O102=F6,COUNTIF(O7:O102,F6),"") ->  | G102: 96 | T102: 0 | AM102: 96
A103: =IF(O103=A6,COUNTIF(O7:O103,A6),"") ->  | B103: =IF(O103=B6,COUNTIF(O7:O103,B6),"") ->  | C103: =IF(O103=C6,COUNTIF(O7:O103,C6),"") ->  | D103: =IF(O103=D6,COUNTIF(O7:O103,D6),"") ->  | E103: =IF(O103=E6,COUNTIF(O7:O103,E6),"") ->  | F103: =IF(O103=F6,COUNTIF(O7:O103,F6),"") ->  | G103: 97 | T103: 0 | AM103: 97
A104: =IF(O104=A6,COUNTIF(O7:O104,A6),"") ->  | B104: =IF(O104=B6,COUNTIF(O7:O104,B6),"") ->  | C104: =IF(O104=C6,COUNTIF(O7:O104,C6),"") ->  | D104: =IF(O104=D6,COUNTIF(O7:O104,D6),"") ->  | E104: =IF(O104=E6,COUNTIF(O7:O104,E6),"") ->  | F104: =IF(O104=F6,COUNTIF(O7:O104,F6),"") ->  | G104: 98 | T104: 0 | AM104: 98
A105: =IF(O105=A6,COUNTIF(O7:O105,A6),"") ->  | B105: =IF(O105=B6,COUNTIF(O7:O105,B6),"") ->  | C105: =IF(O105=C6,COUNTIF(O7:O105,C6),"") ->  | D105: =IF(O105=D6,COUNTIF(O7:O105,D6),"") ->  | E105: =IF(O105=E6,COUNTIF(O7:O105,E6),"") ->  | F105: =IF(O105=F6,COUNTIF(O7:O105,F6),"") ->  | G105: 99 | T105: 0 | AM105: 99
A106: =IF(O106=A6,COUNTIF(O7:O106,A6),"") ->  | B106: =IF(O106=B6,COUNTIF(O7:O106,B6),"") ->  | C106: =IF(O106=C6,COUNTIF(O7:O106,C6),"") ->  | D106: =IF(O106=D6,COUNTIF(O7:O106,D6),"") ->  | E106: =IF(O106=E6,COUNTIF(O7:O106,E6),"") ->  | F106: =IF(O106=F6,COUNTIF(O7:O106,F6),"") ->  | G106: 100 | T106: 0 | AM106: 100
G107: =CONCATENATE($G$5," ","Individual Medal Winners") -> Junior Boys Individual Medal Winners | T107: f
G108: Pos | H108: Num | I108: Name | O108: County | S108: Time
G109: 1 | H109: =IF(H7=0,"",H7) -> 21 | I109: Fraser Sproul | O109: Cumbria | S109: =IF(S7=0,"",S7) -> 14.31 | T109: =IF(H109="",0,1) -> 1
G110: 2 | H110: 81 | I110: Kyle Rabjohn | O110: North Yorkshire | S110: =IF(S8=0,"",S8) -> 14.33 | T110: =IF(H110="",0,1) -> 1
G111: 3 | H111: 22 | I111: Daniel Sanderson | O111: Cumbria | S111: =IF(S9=0,"",S9) -> 14.46 | T111: =IF(H111="",0,1) -> 1
T112: g
G113: =CONCATENATE($G$5," ","Team Results") -> Junior Boys Team Results | T113: h | Y113: =G113 -> Junior Boys Team Results
H114: Team Name | M114: 1st | N114: 2nd | O114: 3rd | P114: 4th | Q114: 5th | R114: 6th | S114: Points | T114: i | W114: =P5 -> 0 | Z114: 1 | AA114: 2 | AB114: 3 | AC114: 4 | AD114: 5 | AE114: 6 | AF114: Pts
G115: 1 | H115: =IFERROR(VLOOKUP(G115,$X$115:$AF$119,2,0),"") -> Cumbria | M115: =IFERROR(VLOOKUP(G115,$X$115:$AF$119,3,0),"") -> 1 | N115: =IFERROR(VLOOKUP(G115,$X$115:$AF$119,4,0),"") -> 3 | O115: =IFERROR(VLOOKUP(G115,$X$115:$AF$119,5,0),"") -> 13 | P115: =IFERROR(VLOOKUP(G115,$X$115:$AF$119,6,0),"") -> 15 | Q115: =IFERROR(VLOOKUP(G115,$X$115:$AF$119,7,0),"") -> 18 | R115: =IFERROR(VLOOKUP(G115,$X$115:$AF$119,8,0),"") -> 20 | S115: =SUM(M115:R115) -> 70 | T115: =IF(H115="",0,1) -> 1 | W115: 7 | X115: =IF(OR(AJ115="",AJ115=0),0,RANK(AJ115,AJ115:AJ120,1)) -> 5 | Y115: =Home!F4 -> Cleveland | Z115: =IFERROR(VLOOKUP(Z114,$A$7:$G$106,W115,0),0) -> 26 | AA115: =IFERROR(VLOOKUP(AA114,A$7:G$106,W115,0),0) -> 40 | AB115: =IFERROR(VLOOKUP(AB114,A$7:G$106,W115,0),0) -> 42 | AC115: =IF(W114=3,0,IFERROR(VLOOKUP(AC114,A$7:G$106,W115,0),0)) -> 45 | AD115: =IF(W114=4,0,IFERROR(VLOOKUP(AD114,A$7:G$106,W115,0),0)) -> 52 | AE115: =IF(OR(W114=4,W114=5),0,IFERROR(VLOOKUP(AE114,A$7:G$106,W115,0),0)) -> 54 | AF115: =IF(AE115=0,0,SUM(Z115:AE115)) -> 259 | AG115: =IF(OR(AF115=0,AF115=""),0,RANK(AF115,AF115:AF120,1)) -> 6 | AH115: =IF(OR(AG115=0,AG115=""),"",IF(OR(AG115=AG116,AG115=AG117,AG115=AG118,AG115=AG119,AG115=AG120),"=","")) ->  | AI115: =IF(AH115="=",COUNTIF(AH115:AH115,"<>A")-COUNTIF(AH115:AH115,""),0) -> 0 | AJ115: =IF(AND(AG115=0,AI115=0),"",AG115+(AI115/10)+AL115/10) -> 6.6 | AK115: =X115 -> 5 | AL115: =IF(OR(AF115=0,AF115=""),0,RANK(Z115,Z115:Z120,1)) -> 6
G116: 2 | H116: =IFERROR(VLOOKUP(G116,$X$115:$AF$119,2,0),"") -> North Yorkshire | M116: =IFERROR(VLOOKUP(G116,$X$115:$AF$119,3,0),"") -> 2 | N116: =IFERROR(VLOOKUP(G116,$X$115:$AF$119,4,0),"") -> 4 | O116: =IFERROR(VLOOKUP(G116,$X$115:$AF$119,5,0),"") -> 6 | P116: =IFERROR(VLOOKUP(G116,$X$115:$AF$119,6,0),"") -> 9 | Q116: =IFERROR(VLOOKUP(G116,$X$115:$AF$119,7,0),"") -> 22 | R116: =IFERROR(VLOOKUP(G116,$X$115:$AF$119,8,0),"") -> 29 | S116: =SUM(M116:R116) -> 72 | T116: 1 | W116: 6 | X116: =IF(OR(AJ116="",AJ116=0),0,RANK(AJ116,AJ115:AJ120,1)) -> 1 | Y116: =Home!F5 -> Cumbria | Z116: =IFERROR(VLOOKUP(Z114,$B$7:$G$106,W116,0),0) -> 1 | AA116: =IFERROR(VLOOKUP(AA114,B$7:G$106,W116,0),0) -> 3 | AB116: =IFERROR(VLOOKUP(AB114,B$7:G$106,W116,0),0) -> 13 | AC116: =IF(W114=3,0,IFERROR(VLOOKUP(AC114,B$7:G$106,W116,0),0)) -> 15 | AD116: =IF(W114=4,0,IFERROR(VLOOKUP(AD114,B$7:G$106,W116,0),0)) -> 18 | AE116: =IF(OR(W114=4,W114=5),0,IFERROR(VLOOKUP(AE114,B$7:G$106,W116,0),0)) -> 20 | AF116: =IF(AE116=0,0,SUM(Z116:AE116)) -> 70 | AG116: =IF(OR(AF116=0,AF116=""),0,RANK(AF116,AF115:AF120,1)) -> 2 | AH116: =IF(OR(AG116=0,AG116=""),"",IF(OR(AG116=AG117,AG116=AG118,AG116=AG119,AG116=AG120,AG116=AG115),"=","")) ->  | AI116: =IF(AH116="=",COUNTIF(AH115:AH116,"<>A")-COUNTIF(AH115:AH116,""),0) -> 0 | AJ116: =IF(AND(AG116=0,AI116=0),"",AG116+(AI116/10)+AL116/10) -> 2.2 | AK116: =X116 -> 1 | AL116: =IF(OR(AF116=0,AF116=""),0,RANK(Z116,Z115:Z120,1)) -> 2
G117: 3 | H117: Durham | M117: 7 | N117: 8 | O117: 10 | P117: 12 | Q117: 14 | R117: 23 | S117: 74 | T117: 1 | W117: 5 | X117: =IF(OR(AJ117="",AJ117=0),0,RANK(AJ117,AJ115:AJ120,1)) -> 3 | Y117: =Home!F6 -> Durham | Z117: =IFERROR(VLOOKUP(Z114,$C$7:$G$106,W117,0),0) -> 7 | AA117: =IFERROR(VLOOKUP(AA114,C$7:G$106,W117,0),0) -> 8 | AB117: =IFERROR(VLOOKUP(AB114,C$7:G$106,W117,0),0) -> 10 | AC117: =IF(W114=3,0,IFERROR(VLOOKUP(AC114,C$7:G$106,W117,0),0)) -> 12 | AD117: =IF(W114=4,0,IFERROR(VLOOKUP(AD114,C$7:G$106,W117,0),0)) -> 14 | AE117: =IF(OR(W114=4,W114=5),0,IFERROR(VLOOKUP(AE114,C$7:G$106,W117,0),0)) -> 23 | AF117: 74 | AG117: =IF(OR(AF117=0,AF117=""),0,RANK(AF117,AF115:AF120,1)) -> 4 | AH117: =IF(OR(AG117=0,AG117=""),"",IF(OR(AG117=AG118,AG117=AG119,AG117=AG120,AG117=AG115,AG117=AG116),"=","")) ->  | AI117: =IF(AH117="=",COUNTIF(AH115:AH117,"<>A")-COUNTIF(AH115:AH117,""),0) -> 0 | AJ117: 4.5 | AK117: 3 | AL117: =IF(OR(AF117=0,AF117=""),0,RANK(Z117,Z115:Z120,1)) -> 5
G118: 4 | H118: Northumberland | M118: 5 | N118: 11 | O118: 16 | P118: 17 | Q118: 19 | R118: 21 | S118: 89 | T118: 1 | W118: 4 | X118: =IF(OR(AJ118="",AJ118=0),0,RANK(AJ118,AJ115:AJ120,1)) -> 4 | Y118: =Home!F7 -> Northumberland | Z118: =IFERROR(VLOOKUP(Z114,$D$7:$G$106,W118,0),0) -> 5 | AA118: =IFERROR(VLOOKUP(AA114,D$7:G$106,W118,0),0) -> 11 | AB118: =IFERROR(VLOOKUP(AB114,D$7:G$106,W118,0),0) -> 16 | AC118: =IF(W114=3,0,IFERROR(VLOOKUP(AC114,D$7:G$106,W118,0),0)) -> 17 | AD118: =IF(W114=4,0,IFERROR(VLOOKUP(AD114,D$7:G$106,W118,0),0)) -> 19 | AE118: =IF(OR(W114=4,W114=5),0,IFERROR(VLOOKUP(AE114,D$7:G$106,W118,0),0)) -> 21 | AF118: 89 | AG118: =IF(OR(AF118=0,AF118=""),0,RANK(AF118,AF115:AF120,1)) -> 5 | AH118: =IF(OR(AG118=0,AG118=""),"",IF(OR(AG118=AG119,AG118=AG120,AG118=AG115,AG118=AG116,AG118=AG117),"=","")) ->  | AI118: =IF(AH118="=",COUNTIF(AH115:AH118,"<>A")-COUNTIF(AH115:AH118,""),0) -> 0 | AJ118: 5.4 | AK118: 4 | AL118: =IF(OR(AF118=0,AF118=""),0,RANK(Z118,Z115:Z120,1)) -> 4
G119: 5 | H119: Cleveland | M119: 26 | N119: 40 | O119: 42 | P119: 45 | Q119: 52 | R119: 54 | S119: 259 | T119: 1 | W119: 3 | X119: =IF(OR(AJ119="",AJ119=0),0,RANK(AJ119,AJ115:AJ120,1)) -> 2 | Y119: =Home!F8 -> North Yorkshire | Z119: =IFERROR(VLOOKUP(Z114,$E$7:$G$106,W119,0),0) -> 2 | AA119: =IFERROR(VLOOKUP(AA114,E$7:G$106,W119,0),0) -> 4 | AB119: =IFERROR(VLOOKUP(AB114,E$7:G$106,W119,0),0) -> 6 | AC119: =IF(W114=3,0,IFERROR(VLOOKUP(AC114,E$7:G$106,W119,0),0)) -> 9 | AD119: =IF(W114=4,0,IFERROR(VLOOKUP(AD114,E$7:G$106,W119,0),0)) -> 22 | AE119: =IF(OR(W114=4,W114=5),0,IFERROR(VLOOKUP(AE114,E$7:G$106,W119,0),0)) -> 29 | AF119: 72 | AG119: =IF(OR(AF119=0,AF119=""),0,RANK(AF119,AF115:AF120,1)) -> 3 | AH119: =IF(OR(AG119=0,AG119=""),"",IF(OR(AG119=AG120,AG119=AG115,AG119=AG116,AG119=AG117,AG119=AG118),"=","")) ->  | AI119: =IF(AH119="=",COUNTIF(AH115:AH119,"<>A")-COUNTIF(AH115:AH119,""),0) -> 0 | AJ119: 3.3 | AK119: 2 | AL119: =IF(OR(AF119=0,AF119=""),0,RANK(Z119,Z115:Z120,1)) -> 3
W120: 2 | X120: =IF(OR(AJ120="",AJ120=0),0,RANK(AJ120,AJ115:AJ120,1)) -> 0 | Y120: =Home!F9 -> 0 | Z120: =IFERROR(VLOOKUP(Z114,F7:G106,W120,0),0) -> 0 | AA120: =IFERROR(VLOOKUP(AA114,F7:G106,W120,0),0) -> 0 | AB120: =IFERROR(VLOOKUP(AB114,F7:G106,W120,0),0) -> 0 | AC120: =IF(W114=3,0,IFERROR(VLOOKUP(AC114,F7:G106,W120,0),0)) -> 0 | AD120: =IF(W114=4,0,IFERROR(VLOOKUP(AD114,F7:G106,W120,0),0)) -> 0 | AE120: =IF(OR(W114=4,W114=5),0,IFERROR(VLOOKUP(AE114,F7:G106,W120,0),0)) -> 0 | AF120: =IF(AE120=0,0,SUM(Z120:AE120)) -> 0 | AG120: =IF(OR(AF120=0,AF120=""),0,RANK(AF120,AF115:AF120,1)) -> 0 | AH120: =IF(OR(AG120=0,AG120=""),"",IF(OR(AG120=AG115,AG120=AG116,AG120=AG117,AG120=AG118,AG120=AG119),"=","")) ->  | AI120: =IF(AH120="=",COUNTIF(AH115:AH120,"<>A")-COUNTIF(AH115:AH120,""),0) -> 0 | AK120: 0 | AL120: =IF(OR(AF120=0,AF120=""),0,RANK(Z120,Z115:Z120,1)) -> 0

Sheet Intermediate_Boys
G1: =Home!$B$1 -> Northern Schools' Inter-County Cross Country Championships | T1: a | V1: =CONCATENATE(W1,X1) -> Home!$B8 | W1: Home!$B | X1: =IF(Y1="Minor_Boys",4,IF(Y1="Junior_Boys",6,IF(Y1="Intermediate_Boys",8,IF(Y1="Senior_Boys",10,IF(Y1="Minor_Girls",5,IF(Y1="Junior_Girls",7,IF(Y1="Intermediate_Girls",9,IF(Y1="Senior_Girls",11,"")))))))) -> 8 | Y1: =MID(CELL("Filename",A1),SEARCH("]",CELL("Filename",A1),1)+1,32) -> Intermediate_Boys | AA1: =Y1 -> Intermediate_Boys | AE1: =CONCATENATE(Y1," ",Z1) -> Intermediate_Boys
G2: =Home!$B$2 -> Barnard Castle School | T2: b | V2: =CONCATENATE(W2,X2) -> Home!$D8 | W2: Home!$D | X2: =X1 -> 8
G3: =Home!$G$3 -> Saturday 3rd February 2018 | T3: c
T4: c
G5: =INDIRECT(V1) -> Intermediate Boys | N5: =CONCATENATE("Team Results"," ",INDIRECT(V2)," ","to Score") -> Team Results 6 to Score | T5: d
A6: =Home!F4 -> Cleveland | B6: =Home!F5 -> Cumbria | C6: =Home!F6 -> Durham | D6: =Home!F7 -> Northumberland | E6: =Home!F8 -> North Yorkshire | F6: =Home!F9 -> 0 | G6: Pos | H6: Num | I6: Name | O6: County | S6: Time | T6: e
A7: =IF(O7=A6,COUNTIF(O7:O7,A6),"") -> 1 | B7: =IF(O7=B6,COUNTIF(O7:O7,B6),"") ->  | C7: =IF(O7=C6,COUNTIF(O7:O7,C6),"") ->  | D7: =IF(O7=D6,COUNTIF(O7:O7,D6),"") ->  | E7: =IF(O7=E6,COUNTIF(O7:O7,E6),"") ->  | F7: =IF(O7=F6,COUNTIF(O7:O7,F6),"") ->  | G7: =IF(LEFT(S7,1)="D",0,AM7) -> 1 | H7: 1 | I7: =IFERROR(VLOOKUP(H7,INDIRECT($AA$1),2,0),"") -> Archie Lowe | O7: =IFERROR(VLOOKUP(H7,INDIRECT($AA$1),3,0),"") -> Cleveland | S7: 19.2 | T7: =IF(H7=0,0,1) -> 1 | AM7: 1
A8: =IF(O8=A6,COUNTIF(O7:O8,A6),"") ->  | B8: =IF(O8=B6,COUNTIF(O7:O8,B6),"") ->  | C8: =IF(O8=C6,COUNTIF(O7:O8,C6),"") ->  | D8: =IF(O8=D6,COUNTIF(O7:O8,D6),"") -> 1 | E8: =IF(O8=E6,COUNTIF(O7:O8,E6),"") ->  | F8: =IF(O8=F6,COUNTIF(O7:O8,F6),"") ->  | G8: 2 | H8: 61 | I8: Sam Charlton | O8: Northumberland | S8: 19.43 | T8: 1 | AM8: 2
A9: =IF(O9=A6,COUNTIF(O7:O9,A6),"") -> 2 | B9: =IF(O9=B6,COUNTIF(O7:O9,B6),"") ->  | C9: =IF(O9=C6,COUNTIF(O7:O9,C6),"") ->  | D9: =IF(O9=D6,COUNTIF(O7:O9,D6),"") ->  | E9: =IF(O9=E6,COUNTIF(O7:O9,E6),"") ->  | F9: =IF(O9=F6,COUNTIF(O7:O9,F6),"") ->  | G9: 3 | H9: 4 | I9: Patrick Haycock | O9: Cleveland | S9: 20.22 | T9: 1 | AM9: 3
A10: =IF(O10=A6,COUNTIF(O7:O10,A6),"") ->  | B10: =IF(O10=B6,COUNTIF(O7:O10,B6),"") ->  | C10: =IF(O10=C6,COUNTIF(O7:O10,C6),"") -> 1 | D10: =IF(O10=D6,COUNTIF(O7:O10,D6),"") ->  | E10: =IF(O10=E6,COUNTIF(O7:O10,E6),"") ->  | F10: =IF(O10=F6,COUNTIF(O7:O10,F6),"") ->  | G10: 4 | H10: 57 | I10: Will Bellamy | O10: Durham | S10: 20.23 | T10: 1 | AM10: 4
A11: =IF(O11=A6,COUNTIF(O7:O11,A6),"") -> 3 | B11: =IF(O11=B6,COUNTIF(O7:O11,B6),"") ->  | C11: =IF(O11=C6,COUNTIF(O7:O11,C6),"") ->  | D11: =IF(O11=D6,COUNTIF(O7:O11,D6),"") ->  | E11: =IF(O11=E6,COUNTIF(O7:O11,E6),"") ->  | F11: =IF(O11=F6,COUNTIF(O7:O11,F6),"") ->  | G11: 5 | H11: 2 | I11: Daniel Currie | O11: Cleveland | S11: 20.26 | T11: 1 | AM11: 5
A12: =IF(O12=A6,COUNTIF(O7:O12,A6),"") ->  | B12: =IF(O12=B6,COUNTIF(O7:O12,B6),"") ->  | C12: =IF(O12=C6,COUNTIF(O7:O12,C6),"") ->  | D12: =IF(O12=D6,COUNTIF(O7:O12,D6),"") -> 2 | E12: =IF(O12=E6,COUNTIF(O7:O12,E6),"") ->  | F12: =IF(O12=F6,COUNTIF(O7:O12,F6),"") ->  | G12: 6 | H12: 62 | I12: Ross Charlton | O12: Northumberland | S12: 20.29 | T12: 1 | AM12: 6
A13: =IF(O13=A6,COUNTIF(O7:O13,A6),"") ->  | B13: =IF(O13=B6,COUNTIF(O7:O13,B6),"") ->  | C13: =IF(O13=C6,COUNTIF(O7:O13,C6),"") ->  | D13: =IF(O13=D6,COUNTIF(O7:O13,D6),"") ->  | E13: =IF(O13=E6,COUNTIF(O7:O13,E6),"") -> 1 | F13: =IF(O13=F6,COUNTIF(O7:O13,F6),"") ->  | G13: 7 | H13: 81 | I13: Finnian Hutchinson | O13: North Yorkshire | S13: 20.44 | T13: 1 | AM13: 7
A14: =IF(O14=A6,COUNTIF(O7:O14,A6),"") ->  | B14: =IF(O14=B6,COUNTIF(O7:O14,B6),"") ->  | C14: =IF(O14=C6,COUNTIF(O7:O14,C6),"") ->  | D14: =IF(O14=D6,COUNTIF(O7:O14,D6),"") -> 3 | E14: =IF(O14=E6,COUNTIF(O7:O14,E6),"") ->  | F14: =IF(O14=F6,COUNTIF(O7:O14,F6),"") ->  | G14: 8 | H14: 76 | I14: Charlie McMillan | O14: Northumberland | S14: 20.52 | T14: 1 | AM14: 8
A15: =IF(O15=A6,COUNTIF(O7:O15,A6),"") ->  | B15: =IF(O15=B6,COUNTIF(O7:O15,B6),"") ->  | C15: =IF(O15=C6,COUNTIF(O7:O15,C6),"") ->  | D15: =IF(O15=D6,COUNTIF(O7:O15,D6),"") -> 4 | E15: =IF(O15=E6,COUNTIF(O7:O15,E6),"") ->  | F15: =IF(O15=F6,COUNTIF(O7:O15,F6),"") ->  | G15: 9 | H15: 63 | I15: Daniel Melling | O15: Northumberland | S15: 21 | T15: 1 | AM15: 9
A16: =IF(O16=A6,COUNTIF(O7:O16,A6),"") ->  | B16: =IF(O16=B6,COUNTIF(O7:O16,B6),"") ->  | C16: =IF(O16=C6,COUNTIF(O7:O16,C6),"") ->  | D16: =IF(O16=D6,COUNTIF(O7:O16,D6),"") -> 5 | E16: =IF(O16=E6,COUNTIF(O7:O16,E6),"") ->  | F16: =IF(O16=F6,COUNTIF(O7:O16,F6),"") ->  | G16: 10 | H16: 65 | I16: Josh Fiddaman | O16: Northumberland | S16: 21.05 | T16: 1 | AM16: 10
A17: =IF(O17=A6,COUNTIF(O7:O17,A6),"") ->  | B17: =IF(O17=B6,COUNTIF(O7:O17,B6),"") ->  | C17: =IF(O17=C6,COUNTIF(O7:O17,C6),"") -> 2 | D17: =IF(O17=D6,COUNTIF(O7:O17,D6),"") ->  | E17: =IF(O17=E6,COUNTIF(O7:O17,E6),"") ->  | F17: =IF(O17=F6,COUNTIF(O7:O17,F6),"") ->  | G17: 11 | H17: 46 | I17: Jamie Barnshaw | O17: Durham | S17: 21.1 | T17: 1 | AM17: 11
A18: =IF(O18=A6,COUNTIF(O7:O18,A6),"") ->  | B18: =IF(O18=B6,COUNTIF(O7:O18,B6),"") ->  | C18: =IF(O18=C6,COUNTIF(O7:O18,C6),"") ->  | D18: =IF(O18=D6,COUNTIF(O7:O18,D6),"") -> 6 | E18: =IF(O18=E6,COUNTIF(O7:O18,E6),"") ->  | F18: =IF(O18=F6,COUNTIF(O7:O18,F6),"") ->  | G18: 12 | H18: 66 | I18: Thomas Susham | O18: Northumberland | S18: 21.13 | T18: 1 | AM18: 12
A19: =IF(O19=A6,COUNTIF(O7:O19,A6),"") -> 4 | B19: =IF(O19=B6,COUNTIF(O7:O19,B6),"") ->  | C19: =IF(O19=C6,COUNTIF(O7:O19,C6),"") ->  | D19: =IF(O19=D6,COUNTIF(O7:O19,D6),"") ->  | E19: =IF(O19=E6,COUNTIF(O7:O19,E6),"") ->  | F19: =IF(O19=F6,COUNTIF(O7:O19,F6),"") ->  | G19: 13 | H19: 3 | I19: Dan Payne | O19: Cleveland | S19: 21.19 | T19: 1 | AM19: 13
A20: =IF(O20=A6,COUNTIF(O7:O20,A6),"") ->  | B20: =IF(O20=B6,COUNTIF(O7:O20,B6),"") ->  | C20: =IF(O20=C6,COUNTIF(O7:O20,C6),"") ->  | D20: =IF(O20=D6,COUNTIF(O7:O20,D6),"") ->  | E20: =IF(O20=E6,COUNTIF(O7:O20,E6),"") -> 2 | F20: =IF(O20=F6,COUNTIF(O7:O20,F6),"") ->  | G20: 14 | H20: 86 | I20: Toby Antcliff | O20: North Yorkshire | S20: 21.21 | T20: 1 | AM20: 14
A21: =IF(O21=A6,COUNTIF(O7:O21,A6),"") ->  | B21: =IF(O21=B6,COUNTIF(O7:O21,B6),"") ->  | C21: =IF(O21=C6,COUNTIF(O7:O21,C6),"") -> 3 | D21: =IF(O21=D6,COUNTIF(O7:O21,D6),"") ->  | E21: =IF(O21=E6,COUNTIF(O7:O21,E6),"") ->  | F21: =IF(O21=F6,COUNTIF(O7:O21,F6),"") ->  | G21: 15 | H21: 43 | I21: Cameron Thomas | O21: Durham | S21: 21.26 | T21: 1 | AM21: 15
A22: =IF(O22=A6,COUNTIF(O7:O22,A6),"") ->  | B22: =IF(O22=B6,COUNTIF(O7:O22,B6),"") ->  | C22: =IF(O22=C6,COUNTIF(O7:O22,C6),"") ->  | D22: =IF(O22=D6,COUNTIF(O7:O22,D6),"") ->  | E22: =IF(O22=E6,COUNTIF(O7:O22,E6),"") -> 3 | F22: =IF(O22=F6,COUNTIF(O7:O22,F6),"") ->  | G22: 16 | H22: 88 | I22: Tom Hayes | O22: North Yorkshire | S22: 21.28 | T22: 1 | AM22: 16
A23: =IF(O23=A6,COUNTIF(O7:O23,A6),"") ->  | B23: =IF(O23=B6,COUNTIF(O7:O23,B6),"") ->  | C23: =IF(O23=C6,COUNTIF(O7:O23,C6),"") ->  | D23: =IF(O23=D6,COUNTIF(O7:O23,D6),"") ->  | E23: =IF(O23=E6,COUNTIF(O7:O23,E6),"") -> 4 | F23: =IF(O23=F6,COUNTIF(O7:O23,F6),"") ->  | G23: 17 | H23: 85 | I23: Archie Lawson | O23: North Yorkshire | S23: 21.29 | T23: 1 | AM23: 17
A24: =IF(O24=A6,COUNTIF(O7:O24,A6),"") ->  | B24: =IF(O24=B6,COUNTIF(O7:O24,B6),"") ->  | C24: =IF(O24=C6,COUNTIF(O7:O24,C6),"") ->  | D24: =IF(O24=D6,COUNTIF(O7:O24,D6),"") ->  | E24: =IF(O24=E6,COUNTIF(O7:O24,E6),"") -> 5 | F24: =IF(O24=F6,COUNTIF(O7:O24,F6),"") ->  | G24: 18 | H24: 89 | I24: Joe Crannley | O24: North Yorkshire | S24: 21.3 | T24: 1 | AM24: 18
A25: =IF(O25=A6,COUNTIF(O7:O25,A6),"") ->  | B25: =IF(O25=B6,COUNTIF(O7:O25,B6),"") -> 1 | C25: =IF(O25=C6,COUNTIF(O7:O25,C6),"") ->  | D25: =IF(O25=D6,COUNTIF(O7:O25,D6),"") ->  | E25: =IF(O25=E6,COUNTIF(O7:O25,E6),"") ->  | F25: =IF(O25=F6,COUNTIF(O7:O25,F6),"") ->  | G25: 19 | H25: 40 | I25: Leo Peres | O25: Cumbria | S25: 21.35 | T25: 1 | AM25: 19
A26: =IF(O26=A6,COUNTIF(O7:O26,A6),"") ->  | B26: =IF(O26=B6,COUNTIF(O7:O26,B6),"") ->  | C26: =IF(O26=C6,COUNTIF(O7:O26,C6),"") ->  | D26: =IF(O26=D6,COUNTIF(O7:O26,D6),"") -> 7 | E26: =IF(O26=E6,COUNTIF(O7:O26,E6),"") ->  | F26: =IF(O26=F6,COUNTIF(O7:O26,F6),"") ->  | G26: 20 | H26: 68 | I26: Tom Balsdon | O26: Northumberland | S26: 21.4 | T26: 1 | AM26: 20
A27: =IF(O27=A6,COUNTIF(O7:O27,A6),"") ->  | B27: =IF(O27=B6,COUNTIF(O7:O27,B6),"") ->  | C27: =IF(O27=C6,COUNTIF(O7:O27,C6),"") -> 4 | D27: =IF(O27=D6,COUNTIF(O7:O27,D6),"") ->  | E27: =IF(O27=E6,COUNTIF(O7:O27,E6),"") ->  | F27: =IF(O27=F6,COUNTIF(O7:O27,F6),"") ->  | G27: 21 | H27: 45 | I27: Daniel Boyer | O27: Durham | S27: 21.4 | T27: 1 | AM27: 21
A28: =IF(O28=A6,COUNTIF(O7:O28,A6),"") ->  | B28: =IF(O28=B6,COUNTIF(O7:O28,B6),"") -> 2 | C28: =IF(O28=C6,COUNTIF(O7:O28,C6),"") ->  | D28: =IF(O28=D6,COUNTIF(O7:O28,D6),"") ->  | E28: =IF(O28=E6,COUNTIF(O7:O28,E6),"") ->  | F28: =IF(O28=F6,COUNTIF(O7:O28,F6),"") ->  | G28: 22 | H28: 23 | I28: Charlie Harding | O28: Cumbria | S28: 21.44 | T28: 1 | AM28: 22
A29: =IF(O29=A6,COUNTIF(O7:O29,A6),"") -> 5 | B29: =IF(O29=B6,COUNTIF(O7:O29,B6),"") ->  | C29: =IF(O29=C6,COUNTIF(O7:O29,C6),"") ->  | D29: =IF(O29=D6,COUNTIF(O7:O29,D6),"") ->  | E29: =IF(O29=E6,COUNTIF(O7:O29,E6),"") ->  | F29: =IF(O29=F6,COUNTIF(O7:O29,F6),"") ->  | G29: 23 | H29: 5 | I29: Jake Creasey | O29: Cleveland | S29: 21.46 | T29: 1 | AM29: 23
A30: =IF(O30=A6,COUNTIF(O7:O30,A6),"") ->  | B30: =IF(O30=B6,COUNTIF(O7:O30,B6),"") -> 3 | C30: =IF(O30=C6,COUNTIF(O7:O30,C6),"") ->  | D30: =IF(O30=D6,COUNTIF(O7:O30,D6),"") ->  | E30: =IF(O30=E6,COUNTIF(O7:O30,E6),"") ->  | F30: =IF(O30=F6,COUNTIF(O7:O30,F6),"") ->  | G30: 24 | H30: 27 | I30: Lewis Bowness | O30: Cumbria | S30: 21.5 | T30: 1 | AM30: 24
A31: =IF(O31=A6,COUNTIF(O7:O31,A6),"") ->  | B31: =IF(O31=B6,COUNTIF(O7:O31,B6),"") ->  | C31: =IF(O31=C6,COUNTIF(O7:O31,C6),"") ->  | D31: =IF(O31=D6,COUNTIF(O7:O31,D6),"") ->  | E31: =IF(O31=E6,COUNTIF(O7:O31,E6),"") -> 6 | F31: =IF(O31=F6,COUNTIF(O7:O31,F6),"") ->  | G31: 25 | H31: 87 | I31: Matthew Somers | O31: North Yorkshire | S31: 21.53 | T31: 1 | AM31: 25
A32: =IF(O32=A6,COUNTIF(O7:O32,A6),"") ->  | B32: =IF(O32=B6,COUNTIF(O7:O32,B6),"") ->  | C32: =IF(O32=C6,COUNTIF(O7:O32,C6),"") ->  | D32: =IF(O32=D6,COUNTIF(O7:O32,D6),"") -> 8 | E32: =IF(O32=E6,COUNTIF(O7:O32,E6),"") ->  | F32: =IF(O32=F6,COUNTIF(O7:O32,F6),"") ->  | G32: 26 | H32: 69 | I32: Roean Bennett | O32: Northumberland | S32: 21.54 | T32: 1 | AM32: 26
A33: =IF(O33=A6,COUNTIF(O7:O33,A6),"") ->  | B33: =IF(O33=B6,COUNTIF(O7:O33,B6),"") ->  | C33: =IF(O33=C6,COUNTIF(O7:O33,C6),"") -> 5 | D33: =IF(O33=D6,COUNTIF(O7:O33,D6),"") ->  | E33: =IF(O33=E6,COUNTIF(O7:O33,E6),"") ->  | F33: =IF(O33=F6,COUNTIF(O7:O33,F6),"") ->  | G33: 27 | H33: 48 | I33: Izaak Robinson Taylor | O33: Durham | S33: 22.04 | T33: 1 | AM33: 27
A34: =IF(O34=A6,COUNTIF(O7:O34,A6),"") ->  | B34: =IF(O34=B6,COUNTIF(O7:O34,B6),"") -> 4 | C34: =IF(O34=C6,COUNTIF(O7:O34,C6),"") ->  | D34: =IF(O34=D6,COUNTIF(O7:O34,D6),"") ->  | E34: =IF(O34=E6,COUNTIF(O7:O34,E6),"") ->  | F34: =IF(O34=F6,COUNTIF(O7:O34,F6),"") ->  | G34: 28 | H34: 25 | I34: Toby Umpleby | O34: Cumbria | S34: 22.08 | T34: 1 | AM34: 28
A35: =IF(O35=A6,COUNTIF(O7:O35,A6),"") -> 6 | B35: =IF(O35=B6,COUNTIF(O7:O35,B6),"") ->  | C35: =IF(O35=C6,COUNTIF(O7:O35,C6),"") ->  | D35: =IF(O35=D6,COUNTIF(O7:O35,D6),"") ->  | E35: =IF(O35=E6,COUNTIF(O7:O35,E6),"") ->  | F35: =IF(O35=F6,COUNTIF(O7:O35,F6),"") ->  | G35: 29 | H35: 9 | I35: Dominic Shipman | O35: Cleveland | S35: 22.1 | T35: 1 | AM35: 29
A36: =IF(O36=A6,COUNTIF(O7:O36,A6),"") ->  | B36: =IF(O36=B6,COUNTIF(O7:O36,B6),"") -> 5 | C36: =IF(O36=C6,COUNTIF(O7:O36,C6),"") ->  | D36: =IF(O36=D6,COUNTIF(O7:O36,D6),"") ->  | E36: =IF(O36=E6,COUNTIF(O7:O36,E6),"") ->  | F36: =IF(O36=F6,COUNTIF(O7:O36,F6),"") ->  | G36: 30 | H36: 26 | I36: Max Parry | O36: Cumbria | S36: 22.1 | T36: 1 | AM36: 30
A37: =IF(O37=A6,COUNTIF(O7:O37,A6),"") ->  | B37: =IF(O37=B6,COUNTIF(O7:O37,B6),"") ->  | C37: =IF(O37=C6,COUNTIF(O7:O37,C6),"") -> 6 | D37: =IF(O37=D6,COUNTIF(O7:O37,D6),"") ->  | E37: =IF(O37=E6,COUNTIF(O7:O37,E6),"") ->  | F37: =IF(O37=F6,COUNTIF(O7:O37,F6),"") ->  | G37: 31 | H37: 44 | I37: Daniel Joyce | O37: Durham | S37: 22.19 | T37: 1 | AM37: 31
A38: =IF(O38=A6,COUNTIF(O7:O38,A6),"") -> 7 | B38: =IF(O38=B6,COUNTIF(O7:O38,B6),"") ->  | C38: =IF(O38=C6,COUNTIF(O7:O38,C6),"") ->  | D38: =IF(O38=D6,COUNTIF(O7:O38,D6),"") ->  | E38: =IF(O38=E6,COUNTIF(O7:O38,E6),"") ->  | F38: =IF(O38=F6,COUNTIF(O7:O38,F6),"") ->  | G38: 32 | H38: 8 | I38: Harry Dunmure | O38: Cleveland | S38: 22.21 | T38: 1 | AM38: 32
A39: =IF(O39=A6,COUNTIF(O7:O39,A6),"") ->  | B39: =IF(O39=B6,COUNTIF(O7:O39,B6),"") ->  | C39: =IF(O39=C6,COUNTIF(O7:O39,C6),"") ->  | D39: =IF(O39=D6,COUNTIF(O7:O39,D6),"") -> 9 | E39: =IF(O39=E6,COUNTIF(O7:O39,E6),"") ->  | F39: =IF(O39=F6,COUNTIF(O7:O39,F6),"") ->  | G39: 33 | H39: 77 | I39: Harry Morris | O39: Northumberland | S39: 22.22 | T39: 1 | AM39: 33
A40: =IF(O40=A6,COUNTIF(O7:O40,A6),"") ->  | B40: =IF(O40=B6,COUNTIF(O7:O40,B6),"") -> 6 | C40: =IF(O40=C6,COUNTIF(O7:O40,C6),"") ->  | D40: =IF(O40=D6,COUNTIF(O7:O40,D6),"") ->  | E40: =IF(O40=E6,COUNTIF(O7:O40,E6),"") ->  | F40: =IF(O40=F6,COUNTIF(O7:O40,F6),"") ->  | G40: 34 | H40: 31 | I40: Felix Kirsten | O40: Cumbria | S40: 22.23 | T40: 1 | AM40: 34
A41: =IF(O41=A6,COUNTIF(O7:O41,A6),"") ->  | B41: =IF(O41=B6,COUNTIF(O7:O41,B6),"") -> 7 | C41: =IF(O41=C6,COUNTIF(O7:O41,C6),"") ->  | D41: =IF(O41=D6,COUNTIF(O7:O41,D6),"") ->  | E41: =IF(O41=E6,COUNTIF(O7:O41,E6),"") ->  | F41: =IF(O41=F6,COUNTIF(O7:O41,F6),"") ->  | G41: 35 | H41: 24 | I41: Mitchell Liddle | O41: Cumbria | S41: 22.24 | T41: 1 | AM41: 35
A42: =IF(O42=A6,COUNTIF(O7:O42,A6),"") ->  | B42: =IF(O42=B6,COUNTIF(O7:O42,B6),"") ->  | C42: =IF(O42=C6,COUNTIF(O7:O42,C6),"") ->  | D42: =IF(O42=D6,COUNTIF(O7:O42,D6),"") ->  | E42: =IF(O42=E6,COUNTIF(O7:O42,E6),"") -> 7 | F42: =IF(O42=F6,COUNTIF(O7:O42,F6),"") ->  | G42: 36 | H42: 90 | I42: Arthur Peel | O42: North Yorkshire | S42: 22.26 | T42: 1 | AM42: 36
A43: =IF(O43=A6,COUNTIF(O7:O43,A6),"") ->  | B43: =IF(O43=B6,COUNTIF(O7:O43,B6),"") ->  | C43: =IF(O43=C6,COUNTIF(O7:O43,C6),"") -> 7 | D43: =IF(O43=D6,COUNTIF(O7:O43,D6),"") ->  | E43: =IF(O43=E6,COUNTIF(O7:O43,E6),"") ->  | F43: =IF(O43=F6,COUNTIF(O7:O43,F6),"") ->  | G43: 37 | H43: 52 | I43: Joshua Dan | O43: Durham | S43: 22.27 | T43: 1 | AM43: 37
A44: =IF(O44=A6,COUNTIF(O7:O44,A6),"") ->  | B44: =IF(O44=B6,COUNTIF(O7:O44,B6),"") ->  | C44: =IF(O44=C6,COUNTIF(O7:O44,C6),"") ->  | D44: =IF(O44=D6,COUNTIF(O7:O44,D6),"") -> 10 | E44: =IF(O44=E6,COUNTIF(O7:O44,E6),"") ->  | F44: =IF(O44=F6,COUNTIF(O7:O44,F6),"") ->  | G44: 38 | H44: 67 | I44: Oscar Onley | O44: Northumberland | S44: 22.27 | T44: 1 | AM44: 38
A45: =IF(O45=A6,COUNTIF(O7:O45,A6),"") ->  | B45: =IF(O45=B6,COUNTIF(O7:O45,B6),"") ->  | C45: =IF(O45=C6,COUNTIF(O7:O45,C6),"") -> 8 | D45: =IF(O45=D6,COUNTIF(O7:O45,D6),"") ->  | E45: =IF(O45=E6,COUNTIF(O7:O45,E6),"") ->  | F45: =IF(O45=F6,COUNTIF(O7:O45,F6),"") ->  | G45: 39 | H45: 47 | I45: James Roberts | O45: Durham | S45: 22.35 | T45: 1 | AM45: 39
A46: =IF(O46=A6,COUNTIF(O7:O46,A6),"") ->  | B46: =IF(O46=B6,COUNTIF(O7:O46,B6),"") ->  | C46: =IF(O46=C6,COUNTIF(O7:O46,C6),"") -> 9 | D46: =IF(O46=D6,COUNTIF(O7:O46,D6),"") ->  | E46: =IF(O46=E6,COUNTIF(O7:O46,E6),"") ->  | F46: =IF(O46=F6,COUNTIF(O7:O46,F6),"") ->  | G46: 40 | H46: 54 | I46: Will Lindsey | O46: Durham | S46: 22.4 | T46: 1 | AM46: 40
A47: =IF(O47=A6,COUNTIF(O7:O47,A6),"") ->  | B47: =IF(O47=B6,COUNTIF(O7:O47,B6),"") ->  | C47: =IF(O47=C6,COUNTIF(O7:O47,C6),"") ->  | D47: =IF(O47=D6,COUNTIF(O7:O47,D6),"") ->  | E47: =IF(O47=E6,COUNTIF(O7:O47,E6),"") -> 8 | F47: =IF(O47=F6,COUNTIF(O7:O47,F6),"") ->  | G47: 41 | H47: 84 | I47: Kyle McLeay | O47: North Yorkshire | S47: 22.44 | T47: 1 | AM47: 41
A48: =IF(O48=A6,COUNTIF(O7:O48,A6),"") ->  | B48: =IF(O48=B6,COUNTIF(O7:O48,B6),"") ->  | C48: =IF(O48=C6,COUNTIF(O7:O48,C6),"") ->  | D48: =IF(O48=D6,COUNTIF(O7:O48,D6),"") ->  | E48: =IF(O48=E6,COUNTIF(O7:O48,E6),"") -> 9 | F48: =IF(O48=F6,COUNTIF(O7:O48,F6),"") ->  | G48: 42 | H48: 92 | I48: Matthew Lambert | O48: North Yorkshire | S48: 22.44 | T48: 1 | AM48: 42
A49: =IF(O49=A6,COUNTIF(O7:O49,A6),"") ->  | B49: =IF(O49=B6,COUNTIF(O7:O49,B6),"") ->  | C49: =IF(O49=C6,COUNTIF(O7:O49,C6),"") ->  | D49: =IF(O49=D6,COUNTIF(O7:O49,D6),"") ->  | E49: =IF(O49=E6,COUNTIF(O7:O49,E6),"") -> 10 | F49: =IF(O49=F6,COUNTIF(O7:O49,F6),"") ->  | G49: 43 | H49: 91 | I49: Will Thompson | O49: North Yorkshire | S49: 22.57 | T49: 1 | AM49: 43
A50: =IF(O50=A6,COUNTIF(O7:O50,A6),"") ->  | B50: =IF(O50=B6,COUNTIF(O7:O50,B6),"") ->  | C50: =IF(O50=C6,COUNTIF(O7:O50,C6),"") -> 10 | D50: =IF(O50=D6,COUNTIF(O7:O50,D6),"") ->  | E50: =IF(O50=E6,COUNTIF(O7:O50,E6),"") ->  | F50: =IF(O50=F6,COUNTIF(O7:O50,F6),"") ->  | G50: 44 | H50: 53 | I50: Liam Brittle | O50: Durham | S50: 23.01 | T50: 1 | AM50: 44
A51: =IF(O51=A6,COUNTIF(O7:O51,A6),"") -> 8 | B51: =IF(O51=B6,COUNTIF(O7:O51,B6),"") ->  | C51: =IF(O51=C6,COUNTIF(O7:O51,C6),"") ->  | D51: =IF(O51=D6,COUNTIF(O7:O51,D6),"") ->  | E51: =IF(O51=E6,COUNTIF(O7:O51,E6),"") ->  | F51: =IF(O51=F6,COUNTIF(O7:O51,F6),"") ->  | G51: 45 | H51: 7 | I51: Henry Mitson | O51: Cleveland | S51: 23.02 | T51: 1 | AM51: 45
A52: =IF(O52=A6,COUNTIF(O7:O52,A6),"") ->  | B52: =IF(O52=B6,COUNTIF(O7:O52,B6),"") ->  | C52: =IF(O52=C6,COUNTIF(O7:O52,C6),"") ->  | D52: =IF(O52=D6,COUNTIF(O7:O52,D6),"") -> 11 | E52: =IF(O52=E6,COUNTIF(O7:O52,E6),"") ->  | F52: =IF(O52=F6,COUNTIF(O7:O52,F6),"") ->  | G52: 46 | H52: 71 | I52: Daniel Buffham | O52: Northumberland | S52: 23.07 | T52: 1 | AM52: 46
A53: =IF(O53=A6,COUNTIF(O7:O53,A6),"") ->  | B53: =IF(O53=B6,COUNTIF(O7:O53,B6),"") ->  | C53: =IF(O53=C6,COUNTIF(O7:O53,C6),"") -> 11 | D53: =IF(O53=D6,COUNTIF(O7:O53,D6),"") ->  | E53: =IF(O53=E6,COUNTIF(O7:O53,E6),"") ->  | F53: =IF(O53=F6,COUNTIF(O7:O53,F6),"") ->  | G53: 47 | H53: 50 | I53: Alfie Phillips | O53: Durham | S53: 23.19 | T53: 1 | AM53: 47
A54: =IF(O54=A6,COUNTIF(O7:O54,A6),"") ->  | B54: =IF(O54=B6,COUNTIF(O7:O54,B6),"") ->  | C54: =IF(O54=C6,COUNTIF(O7:O54,C6),"") ->  | D54: =IF(O54=D6,COUNTIF(O7:O54,D6),"") -> 12 | E54: =IF(O54=E6,COUNTIF(O7:O54,E6),"") ->  | F54: =IF(O54=F6,COUNTIF(O7:O54,F6),"") ->  | G54: 48 | H54: 72 | I54: Jamie Styles | O54: Northumberland | S54: 23.29 | T54: 1 | AM54: 48
A55: =IF(O55=A6,COUNTIF(O7:O55,A6),"") ->  | B55: =IF(O55=B6,COUNTIF(O7:O55,B6),"") ->  | C55: =IF(O55=C6,COUNTIF(O7:O55,C6),"") -> 12 | D55: =IF(O55=D6,COUNTIF(O7:O55,D6),"") ->  | E55: =IF(O55=E6,COUNTIF(O7:O55,E6),"") ->  | F55: =IF(O55=F6,COUNTIF(O7:O55,F6),"") ->  | G55: 49 | H55: 49 | I55: Joshua Maner | O55: Durham | S55: 23.32 | T55: 1 | AM55: 49
A56: =IF(O56=A6,COUNTIF(O7:O56,A6),"") ->  | B56: =IF(O56=B6,COUNTIF(O7:O56,B6),"") -> 8 | C56: =IF(O56=C6,COUNTIF(O7:O56,C6),"") ->  | D56: =IF(O56=D6,COUNTIF(O7:O56,D6),"") ->  | E56: =IF(O56=E6,COUNTIF(O7:O56,E6),"") ->  | F56: =IF(O56=F6,COUNTIF(O7:O56,F6),"") ->  | G56: 50 | H56: 33 | I56: Toby Winnard | O56: Cumbria | S56: 23.44 | T56: 1 | AM56: 50
A57: =IF(O57=A6,COUNTIF(O7:O57,A6),"") ->  | B57: =IF(O57=B6,COUNTIF(O7:O57,B6),"") -> 9 | C57: =IF(O57=C6,COUNTIF(O7:O57,C6),"") ->  | D57: =IF(O57=D6,COUNTIF(O7:O57,D6),"") ->  | E57: =IF(O57=E6,COUNTIF(O7:O57,E6),"") ->  | F57: =IF(O57=F6,COUNTIF(O7:O57,F6),"") ->  | G57: 51 | H57: 35 | I57: Alex Beddoes | O57: Cumbria | S57: 23.51 | T57: 1 | AM57: 51
A58: =IF(O58=A6,COUNTIF(O7:O58,A6),"") ->  | B58: =IF(O58=B6,COUNTIF(O7:O58,B6),"") ->  | C58: =IF(O58=C6,COUNTIF(O7:O58,C6),"") -> 13 | D58: =IF(O58=D6,COUNTIF(O7:O58,D6),"") ->  | E58: =IF(O58=E6,COUNTIF(O7:O58,E6),"") ->  | F58: =IF(O58=F6,COUNTIF(O7:O58,F6),"") ->  | G58: 52 | H58: 56 | I58: Ollie Barrett | O58: Durham | S58: 23.54 | T58: 1 | AM58: 52
A59: =IF(O59=A6,COUNTIF(O7:O59,A6),"") ->  | B59: =IF(O59=B6,COUNTIF(O7:O59,B6),"") -> 10 | C59: =IF(O59=C6,COUNTIF(O7:O59,C6),"") ->  | D59: =IF(O59=D6,COUNTIF(O7:O59,D6),"") ->  | E59: =IF(O59=E6,COUNTIF(O7:O59,E6),"") ->  | F59: =IF(O59=F6,COUNTIF(O7:O59,F6),"") ->  | G59: 53 | H59: 29 | I59: Ben Edmondson | O59: Cumbria | S59: 23.59 | T59: 1 | AM59: 53
A60: =IF(O60=A6,COUNTIF(O7:O60,A6),"") ->  | B60: =IF(O60=B6,COUNTIF(O7:O60,B6),"") ->  | C60: =IF(O60=C6,COUNTIF(O7:O60,C6),"") -> 14 | D60: =IF(O60=D6,COUNTIF(O7:O60,D6),"") ->  | E60: =IF(O60=E6,COUNTIF(O7:O60,E6),"") ->  | F60: =IF(O60=F6,COUNTIF(O7:O60,F6),"") ->  | G60: 54 | H60: 55 | I60: Charles McIntosh | O60: Durham | S60: 24.02 | T60: 1 | AM60: 54
A61: =IF(O61=A6,COUNTIF(O7:O61,A6),"") -> 9 | B61: =IF(O61=B6,COUNTIF(O7:O61,B6),"") ->  | C61: =IF(O61=C6,COUNTIF(O7:O61,C6),"") ->  | D61: =IF(O61=D6,COUNTIF(O7:O61,D6),"") ->  | E61: =IF(O61=E6,COUNTIF(O7:O61,E6),"") ->  | F61: =IF(O61=F6,COUNTIF(O7:O61,F6),"") ->  | G61: 55 | H61: 13 | I61: Luke Hutchinson | O61: Cleveland | S61: 24.07 | T61: 1 | AM61: 55
A62: =IF(O62=A6,COUNTIF(O7:O62,A6),"") ->  | B62: =IF(O62=B6,COUNTIF(O7:O62,B6),"") ->  | C62: =IF(O62=C6,COUNTIF(O7:O62,C6),"") ->  | D62: =IF(O62=D6,COUNTIF(O7:O62,D6),"") -> 13 | E62: =IF(O62=E6,COUNTIF(O7:O62,E6),"") ->  | F62: =IF(O62=F6,COUNTIF(O7:O62,F6),"") ->  | G62: 56 | H62: 73 | I62: Ben Murray-John | O62: Northumberland | S62: 24.1 | T62: 1 | AM62: 56
A63: =IF(O63=A6,COUNTIF(O7:O63,A6),"") ->  | B63: =IF(O63=B6,COUNTIF(O7:O63,B6),"") ->  | C63: =IF(O63=C6,COUNTIF(O7:O63,C6),"") ->  | D63: =IF(O63=D6,COUNTIF(O7:O63,D6),"") -> 14 | E63: =IF(O63=E6,COUNTIF(O7:O63,E6),"") ->  | F63: =IF(O63=F6,COUNTIF(O7:O63,F6),"") ->  | G63: 57 | H63: 75 | I63: Luke Shears | O63: Northumberland | S63: 24.18 | T63: 1 | AM63: 57
A64: =IF(O64=A6,COUNTIF(O7:O64,A6),"") ->  | B64: =IF(O64=B6,COUNTIF(O7:O64,B6),"") ->  | C64: =IF(O64=C6,COUNTIF(O7:O64,C6),"") -> 15 | D64: =IF(O64=D6,COUNTIF(O7:O64,D6),"") ->  | E64: =IF(O64=E6,COUNTIF(O7:O64,E6),"") ->  | F64: =IF(O64=F6,COUNTIF(O7:O64,F6),"") ->  | G64: 58 | H64: 51 | I64: Matthew Appleby | O64: Durham | S64: 24.32 | T64: 1 | AM64: 58
A65: =IF(O65=A6,COUNTIF(O7:O65,A6),"") -> 10 | B65: =IF(O65=B6,COUNTIF(O7:O65,B6),"") ->  | C65: =IF(O65=C6,COUNTIF(O7:O65,C6),"") ->  | D65: =IF(O65=D6,COUNTIF(O7:O65,D6),"") ->  | E65: =IF(O65=E6,COUNTIF(O7:O65,E6),"") ->  | F65: =IF(O65=F6,COUNTIF(O7:O65,F6),"") ->  | G65: 59 | H65: 10 | I65: Ben Grounds | O65: Cleveland | S65: 24.32 | T65: 1 | AM65: 59
A66: =IF(O66=A6,COUNTIF(O7:O66,A6),"") ->  | B66: =IF(O66=B6,COUNTIF(O7:O66,B6),"") -> 11 | C66: =IF(O66=C6,COUNTIF(O7:O66,C6),"") ->  | D66: =IF(O66=D6,COUNTIF(O7:O66,D6),"") ->  | E66: =IF(O66=E6,COUNTIF(O7:O66,E6),"") ->  | F66: =IF(O66=F6,COUNTIF(O7:O66,F6),"") ->  | G66: 60 | H66: 37 | I66: Craig Bottomley | O66: Cumbria | S66: 24.59 | T66: 1 | AM66: 60
A67: =IF(O67=A6,COUNTIF(O7:O67,A6),"") ->  | B67: =IF(O67=B6,COUNTIF(O7:O67,B6),"") -> 12 | C67: =IF(O67=C6,COUNTIF(O7:O67,C6),"") ->  | D67: =IF(O67=D6,COUNTIF(O7:O67,D6),"") ->  | E67: =IF(O67=E6,COUNTIF(O7:O67,E6),"") ->  | F67: =IF(O67=F6,COUNTIF(O7:O67,F6),"") ->  | G67: 61 | H67: 34 | I67: Elliott Judge | O67: Cumbria | S67: 26.03 | T67: 1 | AM67: 61
A68: =IF(O68=A6,COUNTIF(O7:O68,A6),"") ->  | B68: =IF(O68=B6,COUNTIF(O7:O68,B6),"") ->  | C68: =IF(O68=C6,COUNTIF(O7:O68,C6),"") ->  | D68: =IF(O68=D6,COUNTIF(O7:O68,D6),"") -> 15 | E68: =IF(O68=E6,COUNTIF(O7:O68,E6),"") ->  | F68: =IF(O68=F6,COUNTIF(O7:O68,F6),"") ->  | G68: 62 | H68: 74 | I68: Brad Brown | O68: Northumberland | S68: 26.27 | T68: 1 | AM68: 62
A69: =IF(O69=A6,COUNTIF(O7:O69,A6),"") ->  | B69: =IF(O69=B6,COUNTIF(O7:O69,B6),"") ->  | C69: =IF(O69=C6,COUNTIF(O7:O69,C6),"") ->  | D69: =IF(O69=D6,COUNTIF(O7:O69,D6),"") ->  | E69: =IF(O69=E6,COUNTIF(O7:O69,E6),"") ->  | F69: =IF(O69=F6,COUNTIF(O7:O69,F6),"") ->  | G69: 63 | T69: 0 | AM69: 63
A70: =IF(O70=A6,COUNTIF(O7:O70,A6),"") ->  | B70: =IF(O70=B6,COUNTIF(O7:O70,B6),"") ->  | C70: =IF(O70=C6,COUNTIF(O7:O70,C6),"") ->  | D70: =IF(O70=D6,COUNTIF(O7:O70,D6),"") ->  | E70: =IF(O70=E6,COUNTIF(O7:O70,E6),"") ->  | F70: =IF(O70=F6,COUNTIF(O7:O70,F6),"") ->  | G70: 64 | T70: 0 | AM70: 64
A71: =IF(O71=A6,COUNTIF(O7:O71,A6),"") ->  | B71: =IF(O71=B6,COUNTIF(O7:O71,B6),"") ->  | C71: =IF(O71=C6,COUNTIF(O7:O71,C6),"") ->  | D71: =IF(O71=D6,COUNTIF(O7:O71,D6),"") ->  | E71: =IF(O71=E6,COUNTIF(O7:O71,E6),"") ->  | F71: =IF(O71=F6,COUNTIF(O7:O71,F6),"") ->  | G71: =IF(LEFT(S71,1)="D",0,AM71) -> 65 | I71: =IFERROR(VLOOKUP(H71,INDIRECT($AA$1),2,0),"") ->  | O71: =IFERROR(VLOOKUP(H71,INDIRECT($AA$1),3,0),"") ->  | T71: =IF(H71=0,0,1) -> 0 | AM71: 65
A72: =IF(O72=A6,COUNTIF(O7:O72,A6),"") ->  | B72: =IF(O72=B6,COUNTIF(O7:O72,B6),"") ->  | C72: =IF(O72=C6,COUNTIF(O7:O72,C6),"") ->  | D72: =IF(O72=D6,COUNTIF(O7:O72,D6),"") ->  | E72: =IF(O72=E6,COUNTIF(O7:O72,E6),"") ->  | F72: =IF(O72=F6,COUNTIF(O7:O72,F6),"") ->  | G72: 66 | T72: 0 | AM72: 66
A73: =IF(O73=A6,COUNTIF(O7:O73,A6),"") ->  | B73: =IF(O73=B6,COUNTIF(O7:O73,B6),"") ->  | C73: =IF(O73=C6,COUNTIF(O7:O73,C6),"") ->  | D73: =IF(O73=D6,COUNTIF(O7:O73,D6),"") ->  | E73: =IF(O73=E6,COUNTIF(O7:O73,E6),"") ->  | F73: =IF(O73=F6,COUNTIF(O7:O73,F6),"") ->  | G73: 67 | T73: 0 | AM73: 67
A74: =IF(O74=A6,COUNTIF(O7:O74,A6),"") ->  | B74: =IF(O74=B6,COUNTIF(O7:O74,B6),"") ->  | C74: =IF(O74=C6,COUNTIF(O7:O74,C6),"") ->  | D74: =IF(O74=D6,COUNTIF(O7:O74,D6),"") ->  | E74: =IF(O74=E6,COUNTIF(O7:O74,E6),"") ->  | F74: =IF(O74=F6,COUNTIF(O7:O74,F6),"") ->  | G74: 68 | T74: 0 | AM74: 68
A75: =IF(O75=A6,COUNTIF(O7:O75,A6),"") ->  | B75: =IF(O75=B6,COUNTIF(O7:O75,B6),"") ->  | C75: =IF(O75=C6,COUNTIF(O7:O75,C6),"") ->  | D75: =IF(O75=D6,COUNTIF(O7:O75,D6),"") ->  | E75: =IF(O75=E6,COUNTIF(O7:O75,E6),"") ->  | F75: =IF(O75=F6,COUNTIF(O7:O75,F6),"") ->  | G75: 69 | T75: 0 | AM75: 69
A76: =IF(O76=A6,COUNTIF(O7:O76,A6),"") ->  | B76: =IF(O76=B6,COUNTIF(O7:O76,B6),"") ->  | C76: =IF(O76=C6,COUNTIF(O7:O76,C6),"") ->  | D76: =IF(O76=D6,COUNTIF(O7:O76,D6),"") ->  | E76: =IF(O76=E6,COUNTIF(O7:O76,E6),"") ->  | F76: =IF(O76=F6,COUNTIF(O7:O76,F6),"") ->  | G76: 70 | T76: 0 | AM76: 70
A77: =IF(O77=A6,COUNTIF(O7:O77,A6),"") ->  | B77: =IF(O77=B6,COUNTIF(O7:O77,B6),"") ->  | C77: =IF(O77=C6,COUNTIF(O7:O77,C6),"") ->  | D77: =IF(O77=D6,COUNTIF(O7:O77,D6),"") ->  | E77: =IF(O77=E6,COUNTIF(O7:O77,E6),"") ->  | F77: =IF(O77=F6,COUNTIF(O7:O77,F6),"") ->  | G77: 71 | T77: 0 | AM77: 71
A78: =IF(O78=A6,COUNTIF(O7:O78,A6),"") ->  | B78: =IF(O78=B6,COUNTIF(O7:O78,B6),"") ->  | C78: =IF(O78=C6,COUNTIF(O7:O78,C6),"") ->  | D78: =IF(O78=D6,COUNTIF(O7:O78,D6),"") ->  | E78: =IF(O78=E6,COUNTIF(O7:O78,E6),"") ->  | F78: =IF(O78=F6,COUNTIF(O7:O78,F6),"") ->  | G78: 72 | T78: 0 | AM78: 72
A79: =IF(O79=A6,COUNTIF(O7:O79,A6),"") ->  | B79: =IF(O79=B6,COUNTIF(O7:O79,B6),"") ->  | C79: =IF(O79=C6,COUNTIF(O7:O79,C6),"") ->  | D79: =IF(O79=D6,COUNTIF(O7:O79,D6),"") ->  | E79: =IF(O79=E6,COUNTIF(O7:O79,E6),"") ->  | F79: =IF(O79=F6,COUNTIF(O7:O79,F6),"") ->  | G79: 73 | T79: 0 | AM79: 73
A80: =IF(O80=A6,COUNTIF(O7:O80,A6),"") ->  | B80: =IF(O80=B6,COUNTIF(O7:O80,B6),"") ->  | C80: =IF(O80=C6,COUNTIF(O7:O80,C6),"") ->  | D80: =IF(O80=D6,COUNTIF(O7:O80,D6),"") ->  | E80: =IF(O80=E6,COUNTIF(O7:O80,E6),"") ->  | F80: =IF(O80=F6,COUNTIF(O7:O80,F6),"") ->  | G80: 74 | T80: 0 | AM80: 74
A81: =IF(O81=A6,COUNTIF(O7:O81,A6),"") ->  | B81: =IF(O81=B6,COUNTIF(O7:O81,B6),"") ->  | C81: =IF(O81=C6,COUNTIF(O7:O81,C6),"") ->  | D81: =IF(O81=D6,COUNTIF(O7:O81,D6),"") ->  | E81: =IF(O81=E6,COUNTIF(O7:O81,E6),"") ->  | F81: =IF(O81=F6,COUNTIF(O7:O81,F6),"") ->  | G81: 75 | T81: 0 | AM81: 75
A82: =IF(O82=A6,COUNTIF(O7:O82,A6),"") ->  | B82: =IF(O82=B6,COUNTIF(O7:O82,B6),"") ->  | C82: =IF(O82=C6,COUNTIF(O7:O82,C6),"") ->  | D82: =IF(O82=D6,COUNTIF(O7:O82,D6),"") ->  | E82: =IF(O82=E6,COUNTIF(O7:O82,E6),"") ->  | F82: =IF(O82=F6,COUNTIF(O7:O82,F6),"") ->  | G82: 76 | T82: 0 | AM82: 76
A83: =IF(O83=A6,COUNTIF(O7:O83,A6),"") ->  | B83: =IF(O83=B6,COUNTIF(O7:O83,B6),"") ->  | C83: =IF(O83=C6,COUNTIF(O7:O83,C6),"") ->  | D83: =IF(O83=D6,COUNTIF(O7:O83,D6),"") ->  | E83: =IF(O83=E6,COUNTIF(O7:O83,E6),"") ->  | F83: =IF(O83=F6,COUNTIF(O7:O83,F6),"") ->  | G83: 77 | T83: 0 | AM83: 77
A84: =IF(O84=A6,COUNTIF(O7:O84,A6),"") ->  | B84: =IF(O84=B6,COUNTIF(O7:O84,B6),"") ->  | C84: =IF(O84=C6,COUNTIF(O7:O84,C6),"") ->  | D84: =IF(O84=D6,COUNTIF(O7:O84,D6),"") ->  | E84: =IF(O84=E6,COUNTIF(O7:O84,E6),"") ->  | F84: =IF(O84=F6,COUNTIF(O7:O84,F6),"") ->  | G84: 78 | T84: 0 | AM84: 78
A85: =IF(O85=A6,COUNTIF(O7:O85,A6),"") ->  | B85: =IF(O85=B6,COUNTIF(O7:O85,B6),"") ->  | C85: =IF(O85=C6,COUNTIF(O7:O85,C6),"") ->  | D85: =IF(O85=D6,COUNTIF(O7:O85,D6),"") ->  | E85: =IF(O85=E6,COUNTIF(O7:O85,E6),"") ->  | F85: =IF(O85=F6,COUNTIF(O7:O85,F6),"") ->  | G85: 79 | T85: 0 | AM85: 79
A86: =IF(O86=A6,COUNTIF(O7:O86,A6),"") ->  | B86: =IF(O86=B6,COUNTIF(O7:O86,B6),"") ->  | C86: =IF(O86=C6,COUNTIF(O7:O86,C6),"") ->  | D86: =IF(O86=D6,COUNTIF(O7:O86,D6),"") ->  | E86: =IF(O86=E6,COUNTIF(O7:O86,E6),"") ->  | F86: =IF(O86=F6,COUNTIF(O7:O86,F6),"") ->  | G86: 80 | T86: 0 | AM86: 80
A87: =IF(O87=A6,COUNTIF(O7:O87,A6),"") ->  | B87: =IF(O87=B6,COUNTIF(O7:O87,B6),"") ->  | C87: =IF(O87=C6,COUNTIF(O7:O87,C6),"") ->  | D87: =IF(O87=D6,COUNTIF(O7:O87,D6),"") ->  | E87: =IF(O87=E6,COUNTIF(O7:O87,E6),"") ->  | F87: =IF(O87=F6,COUNTIF(O7:O87,F6),"") ->  | G87: 81 | T87: 0 | AM87: 81
A88: =IF(O88=A6,COUNTIF(O7:O88,A6),"") ->  | B88: =IF(O88=B6,COUNTIF(O7:O88,B6),"") ->  | C88: =IF(O88=C6,COUNTIF(O7:O88,C6),"") ->  | D88: =IF(O88=D6,COUNTIF(O7:O88,D6),"") ->  | E88: =IF(O88=E6,COUNTIF(O7:O88,E6),"") ->  | F88: =IF(O88=F6,COUNTIF(O7:O88,F6),"") ->  | G88: 82 | T88: 0 | AM88: 82
A89: =IF(O89=A6,COUNTIF(O7:O89,A6),"") ->  | B89: =IF(O89=B6,COUNTIF(O7:O89,B6),"") ->  | C89: =IF(O89=C6,COUNTIF(O7:O89,C6),"") ->  | D89: =IF(O89=D6,COUNTIF(O7:O89,D6),"") ->  | E89: =IF(O89=E6,COUNTIF(O7:O89,E6),"") ->  | F89: =IF(O89=F6,COUNTIF(O7:O89,F6),"") ->  | G89: 83 | T89: 0 | AM89: 83
A90: =IF(O90=A6,COUNTIF(O7:O90,A6),"") ->  | B90: =IF(O90=B6,COUNTIF(O7:O90,B6),"") ->  | C90: =IF(O90=C6,COUNTIF(O7:O90,C6),"") ->  | D90: =IF(O90=D6,COUNTIF(O7:O90,D6),"") ->  | E90: =IF(O90=E6,COUNTIF(O7:O90,E6),"") ->  | F90: =IF(O90=F6,COUNTIF(O7:O90,F6),"") ->  | G90: 84 | T90: 0 | AM90: 84
A91: =IF(O91=A6,COUNTIF(O7:O91,A6),"") ->  | B91: =IF(O91=B6,COUNTIF(O7:O91,B6),"") ->  | C91: =IF(O91=C6,COUNTIF(O7:O91,C6),"") ->  | D91: =IF(O91=D6,COUNTIF(O7:O91,D6),"") ->  | E91: =IF(O91=E6,COUNTIF(O7:O91,E6),"") ->  | F91: =IF(O91=F6,COUNTIF(O7:O91,F6),"") ->  | G91: 85 | T91: 0 | AM91: 85
A92: =IF(O92=A6,COUNTIF(O7:O92,A6),"") ->  | B92: =IF(O92=B6,COUNTIF(O7:O92,B6),"") ->  | C92: =IF(O92=C6,COUNTIF(O7:O92,C6),"") ->  | D92: =IF(O92=D6,COUNTIF(O7:O92,D6),"") ->  | E92: =IF(O92=E6,COUNTIF(O7:O92,E6),"") ->  | F92: =IF(O92=F6,COUNTIF(O7:O92,F6),"") ->  | G92: 86 | T92: 0 | AM92: 86
A93: =IF(O93=A6,COUNTIF(O7:O93,A6),"") ->  | B93: =IF(O93=B6,COUNTIF(O7:O93,B6),"") ->  | C93: =IF(O93=C6,COUNTIF(O7:O93,C6),"") ->  | D93: =IF(O93=D6,COUNTIF(O7:O93,D6),"") ->  | E93: =IF(O93=E6,COUNTIF(O7:O93,E6),"") ->  | F93: =IF(O93=F6,COUNTIF(O7:O93,F6),"") ->  | G93: 87 | T93: 0 | AM93: 87
A94: =IF(O94=A6,COUNTIF(O7:O94,A6),"") ->  | B94: =IF(O94=B6,COUNTIF(O7:O94,B6),"") ->  | C94: =IF(O94=C6,COUNTIF(O7:O94,C6),"") ->  | D94: =IF(O94=D6,COUNTIF(O7:O94,D6),"") ->  | E94: =IF(O94=E6,COUNTIF(O7:O94,E6),"") ->  | F94: =IF(O94=F6,COUNTIF(O7:O94,F6),"") ->  | G94: 88 | T94: 0 | AM94: 88
A95: =IF(O95=A6,COUNTIF(O7:O95,A6),"") ->  | B95: =IF(O95=B6,COUNTIF(O7:O95,B6),"") ->  | C95: =IF(O95=C6,COUNTIF(O7:O95,C6),"") ->  | D95: =IF(O95=D6,COUNTIF(O7:O95,D6),"") ->  | E95: =IF(O95=E6,COUNTIF(O7:O95,E6),"") ->  | F95: =IF(O95=F6,COUNTIF(O7:O95,F6),"") ->  | G95: 89 | T95: 0 | AM95: 89
A96: =IF(O96=A6,COUNTIF(O7:O96,A6),"") ->  | B96: =IF(O96=B6,COUNTIF(O7:O96,B6),"") ->  | C96: =IF(O96=C6,COUNTIF(O7:O96,C6),"") ->  | D96: =IF(O96=D6,COUNTIF(O7:O96,D6),"") ->  | E96: =IF(O96=E6,COUNTIF(O7:O96,E6),"") ->  | F96: =IF(O96=F6,COUNTIF(O7:O96,F6),"") ->  | G96: 90 | T96: 0 | AM96: 90
A97: =IF(O97=A6,COUNTIF(O7:O97,A6),"") ->  | B97: =IF(O97=B6,COUNTIF(O7:O97,B6),"") ->  | C97: =IF(O97=C6,COUNTIF(O7:O97,C6),"") ->  | D97: =IF(O97=D6,COUNTIF(O7:O97,D6),"") ->  | E97: =IF(O97=E6,COUNTIF(O7:O97,E6),"") ->  | F97: =IF(O97=F6,COUNTIF(O7:O97,F6),"") ->  | G97: 91 | T97: 0 | AM97: 91
A98: =IF(O98=A6,COUNTIF(O7:O98,A6),"") ->  | B98: =IF(O98=B6,COUNTIF(O7:O98,B6),"") ->  | C98: =IF(O98=C6,COUNTIF(O7:O98,C6),"") ->  | D98: =IF(O98=D6,COUNTIF(O7:O98,D6),"") ->  | E98: =IF(O98=E6,COUNTIF(O7:O98,E6),"") ->  | F98: =IF(O98=F6,COUNTIF(O7:O98,F6),"") ->  | G98: 92 | T98: 0 | AM98: 92
A99: =IF(O99=A6,COUNTIF(O7:O99,A6),"") ->  | B99: =IF(O99=B6,COUNTIF(O7:O99,B6),"") ->  | C99: =IF(O99=C6,COUNTIF(O7:O99,C6),"") ->  | D99: =IF(O99=D6,COUNTIF(O7:O99,D6),"") ->  | E99: =IF(O99=E6,COUNTIF(O7:O99,E6),"") ->  | F99: =IF(O99=F6,COUNTIF(O7:O99,F6),"") ->  | G99: 93 | T99: 0 | AM99: 93
A100: =IF(O100=A6,COUNTIF(O7:O100,A6),"") ->  | B100: =IF(O100=B6,COUNTIF(O7:O100,B6),"") ->  | C100: =IF(O100=C6,COUNTIF(O7:O100,C6),"") ->  | D100: =IF(O100=D6,COUNTIF(O7:O100,D6),"") ->  | E100: =IF(O100=E6,COUNTIF(O7:O100,E6),"") ->  | F100: =IF(O100=F6,COUNTIF(O7:O100,F6),"") ->  | G100: 94 | T100: 0 | AM100: 94
A101: =IF(O101=A6,COUNTIF(O7:O101,A6),"") ->  | B101: =IF(O101=B6,COUNTIF(O7:O101,B6),"") ->  | C101: =IF(O101=C6,COUNTIF(O7:O101,C6),"") ->  | D101: =IF(O101=D6,COUNTIF(O7:O101,D6),"") ->  | E101: =IF(O101=E6,COUNTIF(O7:O101,E6),"") ->  | F101: =IF(O101=F6,COUNTIF(O7:O101,F6),"") ->  | G101: 95 | T101: 0 | AM101: 95
A102: =IF(O102=A6,COUNTIF(O7:O102,A6),"") ->  | B102: =IF(O102=B6,COUNTIF(O7:O102,B6),"") ->  | C102: =IF(O102=C6,COUNTIF(O7:O102,C6),"") ->  | D102: =IF(O102=D6,COUNTIF(O7:O102,D6),"") ->  | E102: =IF(O102=E6,COUNTIF(O7:O102,E6),"") ->  | F102: =IF(O102=F6,COUNTIF(O7:O102,F6),"") ->  | G102: 96 | T102: 0 | AM102: 96
A103: =IF(O103=A6,COUNTIF(O7:O103,A6),"") ->  | B103: =IF(O103=B6,COUNTIF(O7:O103,B6),"") ->  | C103: =IF(O103=C6,COUNTIF(O7:O103,C6),"") ->  | D103: =IF(O103=D6,COUNTIF(O7:O103,D6),"") ->  | E103: =IF(O103=E6,COUNTIF(O7:O103,E6),"") ->  | F103: =IF(O103=F6,COUNTIF(O7:O103,F6),"") ->  | G103: 97 | T103: 0 | AM103: 97
A104: =IF(O104=A6,COUNTIF(O7:O104,A6),"") ->  | B104: =IF(O104=B6,COUNTIF(O7:O104,B6),"") ->  | C104: =IF(O104=C6,COUNTIF(O7:O104,C6),"") ->  | D104: =IF(O104=D6,COUNTIF(O7:O104,D6),"") ->  | E104: =IF(O104=E6,COUNTIF(O7:O104,E6),"") ->  | F104: =IF(O104=F6,COUNTIF(O7:O104,F6),"") ->  | G104: 98 | T104: 0 | AM104: 98
A105: =IF(O105=A6,COUNTIF(O7:O105,A6),"") ->  | B105: =IF(O105=B6,COUNTIF(O7:O105,B6),"") ->  | C105: =IF(O105=C6,COUNTIF(O7:O105,C6),"") ->  | D105: =IF(O105=D6,COUNTIF(O7:O105,D6),"") ->  | E105: =IF(O105=E6,COUNTIF(O7:O105,E6),"") ->  | F105: =IF(O105=F6,COUNTIF(O7:O105,F6),"") ->  | G105: 99 | T105: 0 | AM105: 99
A106: =IF(O106=A6,COUNTIF(O7:O106,A6),"") ->  | B106: =IF(O106=B6,COUNTIF(O7:O106,B6),"") ->  | C106: =IF(O106=C6,COUNTIF(O7:O106,C6),"") ->  | D106: =IF(O106=D6,COUNTIF(O7:O106,D6),"") ->  | E106: =IF(O106=E6,COUNTIF(O7:O106,E6),"") ->  | F106: =IF(O106=F6,COUNTIF(O7:O106,F6),"") ->  | G106: 100 | T106: 0 | AM106: 100
G107: =CONCATENATE($G$5," ","Individual Medal Winners") -> Intermediate Boys Individual Medal Winners | T107: f
G108: Pos | H108: Num | I108: Name | O108: County | S108: Time
G109: 1 | H109: =IF(H7=0,"",H7) -> 1 | I109: Archie Lowe | O109: Cleveland | S109: =IF(S7=0,"",S7) -> 19.2 | T109: =IF(H109="",0,1) -> 1
G110: 2 | H110: 61 | I110: Sam Charlton | O110: Northumberland | S110: =IF(S8=0,"",S8) -> 19.43 | T110: =IF(H110="",0,1) -> 1
G111: 3 | H111: 4 | I111: Patrick Haycock | O111: Cleveland | S111: =IF(S9=0,"",S9) -> 20.22 | T111: =IF(H111="",0,1) -> 1
T112: g
G113: =CONCATENATE($G$5," ","Team Results") -> Intermediate Boys Team Results | T113: h | Y113: =G113 -> Intermediate Boys Team Results
H114: Team Name | M114: 1st | N114: 2nd | O114: 3rd | P114: 4th | Q114: 5th | R114: 6th | S114: Points | T114: i | W114: =P5 -> 0 | Z114: 1 | AA114: 2 | AB114: 3 | AC114: 4 | AD114: 5 | AE114: 6 | AF114: Pts
G115: 1 | H115: =IFERROR(VLOOKUP(G115,$X$115:$AF$119,2,0),"") -> Northumberland | M115: =IFERROR(VLOOKUP(G115,$X$115:$AF$119,3,0),"") -> 2 | N115: =IFERROR(VLOOKUP(G115,$X$115:$AF$119,4,0),"") -> 6 | O115: =IFERROR(VLOOKUP(G115,$X$115:$AF$119,5,0),"") -> 8 | P115: =IFERROR(VLOOKUP(G115,$X$115:$AF$119,6,0),"") -> 9 | Q115: =IFERROR(VLOOKUP(G115,$X$115:$AF$119,7,0),"") -> 10 | R115: =IFERROR(VLOOKUP(G115,$X$115:$AF$119,8,0),"") -> 12 | S115: =SUM(M115:R115) -> 47 | T115: =IF(H115="",0,1) -> 1 | W115: 7 | X115: =IF(OR(AJ115="",AJ115=0),0,RANK(AJ115,AJ115:AJ120,1)) -> 2 | Y115: =Home!F4 -> Cleveland | Z115: =IFERROR(VLOOKUP(Z114,$A$7:$G$106,W115,0),0) -> 1 | AA115: =IFERROR(VLOOKUP(AA114,A$7:G$106,W115,0),0) -> 3 | AB115: =IFERROR(VLOOKUP(AB114,A$7:G$106,W115,0),0) -> 5 | AC115: =IF(W114=3,0,IFERROR(VLOOKUP(AC114,A$7:G$106,W115,0),0)) -> 13 | AD115: =IF(W114=4,0,IFERROR(VLOOKUP(AD114,A$7:G$106,W115,0),0)) -> 23 | AE115: =IF(OR(W114=4,W114=5),0,IFERROR(VLOOKUP(AE114,A$7:G$106,W115,0),0)) -> 29 | AF115: =IF(AE115=0,0,SUM(Z115:AE115)) -> 74 | AG115: =IF(OR(AF115=0,AF115=""),0,RANK(AF115,AF115:AF120,1)) -> 3 | AH115: =IF(OR(AG115=0,AG115=""),"",IF(OR(AG115=AG116,AG115=AG117,AG115=AG118,AG115=AG119,AG115=AG120),"=","")) ->  | AI115: =IF(AH115="=",COUNTIF(AH115:AH115,"<>A")-COUNTIF(AH115:AH115,""),0) -> 0 | AJ115: =IF(AND(AG115=0,AI115=0),"",AG115+(AI115/10)+AL115/10) -> 3.2 | AK115: =X115 -> 2 | AL115: =IF(OR(AF115=0,AF115=""),0,RANK(Z115,Z115:Z120,1)) -> 2
G116: 2 | H116: =IFERROR(VLOOKUP(G116,$X$115:$AF$119,2,0),"") -> Cleveland | M116: =IFERROR(VLOOKUP(G116,$X$115:$AF$119,3,0),"") -> 1 | N116: =IFERROR(VLOOKUP(G116,$X$115:$AF$119,4,0),"") -> 3 | O116: =IFERROR(VLOOKUP(G116,$X$115:$AF$119,5,0),"") -> 5 | P116: =IFERROR(VLOOKUP(G116,$X$115:$AF$119,6,0),"") -> 13 | Q116: =IFERROR(VLOOKUP(G116,$X$115:$AF$119,7,0),"") -> 23 | R116: =IFERROR(VLOOKUP(G116,$X$115:$AF$119,8,0),"") -> 29 | S116: =SUM(M116:R116) -> 74 | T116: 1 | W116: 6 | X116: =IF(OR(AJ116="",AJ116=0),0,RANK(AJ116,AJ115:AJ120,1)) -> 5 | Y116: =Home!F5 -> Cumbria | Z116: =IFERROR(VLOOKUP(Z114,$B$7:$G$106,W116,0),0) -> 19 | AA116: =IFERROR(VLOOKUP(AA114,B$7:G$106,W116,0),0) -> 22 | AB116: =IFERROR(VLOOKUP(AB114,B$7:G$106,W116,0),0) -> 24 | AC116: =IF(W114=3,0,IFERROR(VLOOKUP(AC114,B$7:G$106,W116,0),0)) -> 28 | AD116: =IF(W114=4,0,IFERROR(VLOOKUP(AD114,B$7:G$106,W116,0),0)) -> 30 | AE116: =IF(OR(W114=4,W114=5),0,IFERROR(VLOOKUP(AE114,B$7:G$106,W116,0),0)) -> 34 | AF116: =IF(AE116=0,0,SUM(Z116:AE116)) -> 157 | AG116: =IF(OR(AF116=0,AF116=""),0,RANK(AF116,AF115:AF120,1)) -> 6 | AH116: =IF(OR(AG116=0,AG116=""),"",IF(OR(AG116=AG117,AG116=AG118,AG116=AG119,AG116=AG120,AG116=AG115),"=","")) ->  | AI116: =IF(AH116="=",COUNTIF(AH115:AH116,"<>A")-COUNTIF(AH115:AH116,""),0) -> 0 | AJ116: =IF(AND(AG116=0,AI116=0),"",AG116+(AI116/10)+AL116/10) -> 6.6 | AK116: =X116 -> 5 | AL116: =IF(OR(AF116=0,AF116=""),0,RANK(Z116,Z115:Z120,1)) -> 6
G117: 3 | H117: North Yorkshire | M117: 7 | N117: 14 | O117: 16 | P117: 17 | Q117: 18 | R117: 25 | S117: 97 | T117: 1 | W117: 5 | X117: =IF(OR(AJ117="",AJ117=0),0,RANK(AJ117,AJ115:AJ120,1)) -> 4 | Y117: =Home!F6 -> Durham | Z117: =IFERROR(VLOOKUP(Z114,$C$7:$G$106,W117,0),0) -> 4 | AA117: =IFERROR(VLOOKUP(AA114,C$7:G$106,W117,0),0) -> 11 | AB117: =IFERROR(VLOOKUP(AB114,C$7:G$106,W117,0),0) -> 15 | AC117: =IF(W114=3,0,IFERROR(VLOOKUP(AC114,C$7:G$106,W117,0),0)) -> 21 | AD117: =IF(W114=4,0,IFERROR(VLOOKUP(AD114,C$7:G$106,W117,0),0)) -> 27 | AE117: =IF(OR(W114=4,W114=5),0,IFERROR(VLOOKUP(AE114,C$7:G$106,W117,0),0)) -> 31 | AF117: 109 | AG117: =IF(OR(AF117=0,AF117=""),0,RANK(AF117,AF115:AF120,1)) -> 5 | AH117: =IF(OR(AG117=0,AG117=""),"",IF(OR(AG117=AG118,AG117=AG119,AG117=AG120,AG117=AG115,AG117=AG116),"=","")) ->  | AI117: =IF(AH117="=",COUNTIF(AH115:AH117,"<>A")-COUNTIF(AH115:AH117,""),0) -> 0 | AJ117: 5.4 | AK117: 4 | AL117: =IF(OR(AF117=0,AF117=""),0,RANK(Z117,Z115:Z120,1)) -> 4
G118: 4 | H118: Durham | M118: 4 | N118: 11 | O118: 15 | P118: 21 | Q118: 27 | R118: 31 | S118: 109 | T118: 1 | W118: 4 | X118: =IF(OR(AJ118="",AJ118=0),0,RANK(AJ118,AJ115:AJ120,1)) -> 1 | Y118: =Home!F7 -> Northumberland | Z118: =IFERROR(VLOOKUP(Z114,$D$7:$G$106,W118,0),0) -> 2 | AA118: =IFERROR(VLOOKUP(AA114,D$7:G$106,W118,0),0) -> 6 | AB118: =IFERROR(VLOOKUP(AB114,D$7:G$106,W118,0),0) -> 8 | AC118: =IF(W114=3,0,IFERROR(VLOOKUP(AC114,D$7:G$106,W118,0),0)) -> 9 | AD118: =IF(W114=4,0,IFERROR(VLOOKUP(AD114,D$7:G$106,W118,0),0)) -> 10 | AE118: =IF(OR(W114=4,W114=5),0,IFERROR(VLOOKUP(AE114,D$7:G$106,W118,0),0)) -> 12 | AF118: 47 | AG118: =IF(OR(AF118=0,AF118=""),0,RANK(AF118,AF115:AF120,1)) -> 2 | AH118: =IF(OR(AG118=0,AG118=""),"",IF(OR(AG118=AG119,AG118=AG120,AG118=AG115,AG118=AG116,AG118=AG117),"=","")) ->  | AI118: =IF(AH118="=",COUNTIF(AH115:AH118,"<>A")-COUNTIF(AH115:AH118,""),0) -> 0 | AJ118: 2.3 | AK118: 1 | AL118: =IF(OR(AF118=0,AF118=""),0,RANK(Z118,Z115:Z120,1)) -> 3
G119: 5 | H119: Cumbria | M119: 19 | N119: 22 | O119: 24 | P119: 28 | Q119: 30 | R119: 34 | S119: 157 | T119: 1 | W119: 3 | X119: =IF(OR(AJ119="",AJ119=0),0,RANK(AJ119,AJ115:AJ120,1)) -> 3 | Y119: =Home!F8 -> North Yorkshire | Z119: =IFERROR(VLOOKUP(Z114,$E$7:$G$106,W119,0),0) -> 7 | AA119: =IFERROR(VLOOKUP(AA114,E$7:G$106,W119,0),0) -> 14 | AB119: =IFERROR(VLOOKUP(AB114,E$7:G$106,W119,0),0) -> 16 | AC119: =IF(W114=3,0,IFERROR(VLOOKUP(AC114,E$7:G$106,W119,0),0)) -> 17 | AD119: =IF(W114=4,0,IFERROR(VLOOKUP(AD114,E$7:G$106,W119,0),0)) -> 18 | AE119: =IF(OR(W114=4,W114=5),0,IFERROR(VLOOKUP(AE114,E$7:G$106,W119,0),0)) -> 25 | AF119: 97 | AG119: =IF(OR(AF119=0,AF119=""),0,RANK(AF119,AF115:AF120,1)) -> 4 | AH119: =IF(OR(AG119=0,AG119=""),"",IF(OR(AG119=AG120,AG119=AG115,AG119=AG116,AG119=AG117,AG119=AG118),"=","")) ->  | AI119: =IF(AH119="=",COUNTIF(AH115:AH119,"<>A")-COUNTIF(AH115:AH119,""),0) -> 0 | AJ119: 4.5 | AK119: 3 | AL119: =IF(OR(AF119=0,AF119=""),0,RANK(Z119,Z115:Z120,1)) -> 5
W120: 2 | X120: =IF(OR(AJ120="",AJ120=0),0,RANK(AJ120,AJ115:AJ120,1)) -> 0 | Y120: =Home!F9 -> 0 | Z120: =IFERROR(VLOOKUP(Z114,F7:G106,W120,0),0) -> 0 | AA120: =IFERROR(VLOOKUP(AA114,F7:G106,W120,0),0) -> 0 | AB120: =IFERROR(VLOOKUP(AB114,F7:G106,W120,0),0) -> 0 | AC120: =IF(W114=3,0,IFERROR(VLOOKUP(AC114,F7:G106,W120,0),0)) -> 0 | AD120: =IF(W114=4,0,IFERROR(VLOOKUP(AD114,F7:G106,W120,0),0)) -> 0 | AE120: =IF(OR(W114=4,W114=5),0,IFERROR(VLOOKUP(AE114,F7:G106,W120,0),0)) -> 0 | AF120: =IF(AE120=0,0,SUM(Z120:AE120)) -> 0 | AG120: =IF(OR(AF120=0,AF120=""),0,RANK(AF120,AF115:AF120,1)) -> 0 | AH120: =IF(OR(AG120=0,AG120=""),"",IF(OR(AG120=AG115,AG120=AG116,AG120=AG117,AG120=AG118,AG120=AG119),"=","")) ->  | AI120: =IF(AH120="=",COUNTIF(AH115:AH120,"<>A")-COUNTIF(AH115:AH120,""),0) -> 0 | AK120: 0 | AL120: =IF(OR(AF120=0,AF120=""),0,RANK(Z120,Z115:Z120,1)) -> 0

Sheet Senior_Boys
G1: =Home!$B$1 -> Northern Schools' Inter-County Cross Country Championships | T1: a | V1: =CONCATENATE(W1,X1) -> Home!$B10 | W1: Home!$B | X1: =IF(Y1="Minor_Boys",4,IF(Y1="Junior_Boys",6,IF(Y1="Intermediate_Boys",8,IF(Y1="Senior_Boys",10,IF(Y1="Minor_Girls",5,IF(Y1="Junior_Girls",7,IF(Y1="Intermediate_Girls",9,IF(Y1="Senior_Girls",11,"")))))))) -> 10 | Y1: =MID(CELL("Filename",A1),SEARCH("]",CELL("Filename",A1),1)+1,32) -> Senior_Boys | AA1: =Y1 -> Senior_Boys | AE1: =CONCATENATE(Y1," ",Z1) -> Senior_Boys
G2: =Home!$B$2 -> Barnard Castle School | T2: b | V2: =CONCATENATE(W2,X2) -> Home!$D10 | W2: Home!$D | X2: =X1 -> 10
G3: =Home!$G$3 -> Saturday 3rd February 2018 | T3: c
T4: c
G5: =INDIRECT(V1) -> Senior Boys | N5: =CONCATENATE("Team Results"," ",INDIRECT(V2)," ","to Score") -> Team Results 6 to Score | T5: d
A6: =Home!F4 -> Cleveland | B6: =Home!F5 -> Cumbria | C6: =Home!F6 -> Durham | D6: =Home!F7 -> Northumberland | E6: =Home!F8 -> North Yorkshire | F6: =Home!F9 -> 0 | G6: Pos | H6: Num | I6: Name | O6: County | S6: Time | T6: e
A7: =IF(O7=A6,COUNTIF(O7:O7,A6),"") -> 1 | B7: =IF(O7=B6,COUNTIF(O7:O7,B6),"") ->  | C7: =IF(O7=C6,COUNTIF(O7:O7,C6),"") ->  | D7: =IF(O7=D6,COUNTIF(O7:O7,D6),"") ->  | E7: =IF(O7=E6,COUNTIF(O7:O7,E6),"") ->  | F7: =IF(O7=F6,COUNTIF(O7:O7,F6),"") ->  | G7: =IF(LEFT(S7,1)="D",0,AM7) -> 1 | H7: 1 | I7: =IFERROR(VLOOKUP(H7,INDIRECT($AA$1),2,0),"") -> Josh Cowpertwaite | O7: =IFERROR(VLOOKUP(H7,INDIRECT($AA$1),3,0),"") -> Cleveland | S7: 23.41 | T7: =IF(H7=0,0,1) -> 1 | AM7: 1
A8: =IF(O8=A6,COUNTIF(O7:O8,A6),"") ->  | B8: =IF(O8=B6,COUNTIF(O7:O8,B6),"") -> 1 | C8: =IF(O8=C6,COUNTIF(O7:O8,C6),"") ->  | D8: =IF(O8=D6,COUNTIF(O7:O8,D6),"") ->  | E8: =IF(O8=E6,COUNTIF(O7:O8,E6),"") ->  | F8: =IF(O8=F6,COUNTIF(O7:O8,F6),"") ->  | G8: 2 | H8: 21 | I8: Joe Dugdale | O8: Cumbria | S8: 24.24 | T8: 1 | AM8: 2
A9: =IF(O9=A6,COUNTIF(O7:O9,A6),"") ->  | B9: =IF(O9=B6,COUNTIF(O7:O9,B6),"") ->  | C9: =IF(O9=C6,COUNTIF(O7:O9,C6),"") ->  | D9: =IF(O9=D6,COUNTIF(O7:O9,D6),"") -> 1 | E9: =IF(O9=E6,COUNTIF(O7:O9,E6),"") ->  | F9: =IF(O9=F6,COUNTIF(O7:O9,F6),"") ->  | G9: 3 | H9: 61 | I9: Kieran Hedley | O9: Northumberland | S9: 24.52 | T9: 1 | AM9: 3
A10: =IF(O10=A6,COUNTIF(O7:O10,A6),"") ->  | B10: =IF(O10=B6,COUNTIF(O7:O10,B6),"") ->  | C10: =IF(O10=C6,COUNTIF(O7:O10,C6),"") ->  | D10: =IF(O10=D6,COUNTIF(O7:O10,D6),"") ->  | E10: =IF(O10=E6,COUNTIF(O7:O10,E6),"") -> 1 | F10: =IF(O10=F6,COUNTIF(O7:O10,F6),"") ->  | G10: 4 | H10: 81 | I10: Joe Hudson | O10: North Yorkshire | S10: 24.57 | T10: 1 | AM10: 4
A11: =IF(O11=A6,COUNTIF(O7:O11,A6),"") ->  | B11: =IF(O11=B6,COUNTIF(O7:O11,B6),"") ->  | C11: =IF(O11=C6,COUNTIF(O7:O11,C6),"") ->  | D11: =IF(O11=D6,COUNTIF(O7:O11,D6),"") ->  | E11: =IF(O11=E6,COUNTIF(O7:O11,E6),"") -> 2 | F11: =IF(O11=F6,COUNTIF(O7:O11,F6),"") ->  | G11: 5 | H11: 84 | I11: Jack Brennan | O11: North Yorkshire | S11: 24.59 | T11: 1 | AM11: 5
A12: =IF(O12=A6,COUNTIF(O7:O12,A6),"") ->  | B12: =IF(O12=B6,COUNTIF(O7:O12,B6),"") ->  | C12: =IF(O12=C6,COUNTIF(O7:O12,C6),"") ->  | D12: =IF(O12=D6,COUNTIF(O7:O12,D6),"") -> 2 | E12: =IF(O12=E6,COUNTIF(O7:O12,E6),"") ->  | F12: =IF(O12=F6,COUNTIF(O7:O12,F6),"") ->  | G12: 6 | H12: 62 | I12: Taylor Glover | O12: Northumberland | S12: 25.08 | T12: 1 | AM12: 6
A13: =IF(O13=A6,COUNTIF(O7:O13,A6),"") ->  | B13: =IF(O13=B6,COUNTIF(O7:O13,B6),"") ->  | C13: =IF(O13=C6,COUNTIF(O7:O13,C6),"") ->  | D13: =IF(O13=D6,COUNTIF(O7:O13,D6),"") ->  | E13: =IF(O13=E6,COUNTIF(O7:O13,E6),"") -> 3 | F13: =IF(O13=F6,COUNTIF(O7:O13,F6),"") ->  | G13: 7 | H13: 83 | I13: Ben Bergstrand | O13: North Yorkshire | S13: 25.21 | T13: 1 | AM13: 7
A14: =IF(O14=A6,COUNTIF(O7:O14,A6),"") ->  | B14: =IF(O14=B6,COUNTIF(O7:O14,B6),"") ->  | C14: =IF(O14=C6,COUNTIF(O7:O14,C6),"") ->  | D14: =IF(O14=D6,COUNTIF(O7:O14,D6),"") ->  | E14: =IF(O14=E6,COUNTIF(O7:O14,E6),"") -> 4 | F14: =IF(O14=F6,COUNTIF(O7:O14,F6),"") ->  | G14: 8 | H14: 82 | I14: Matthew Merrick | O14: North Yorkshire | S14: 25.43 | T14: 1 | AM14: 8
A15: =IF(O15=A6,COUNTIF(O7:O15,A6),"") ->  | B15: =IF(O15=B6,COUNTIF(O7:O15,B6),"") ->  | C15: =IF(O15=C6,COUNTIF(O7:O15,C6),"") ->  | D15: =IF(O15=D6,COUNTIF(O7:O15,D6),"") ->  | E15: =IF(O15=E6,COUNTIF(O7:O15,E6),"") -> 5 | F15: =IF(O15=F6,COUNTIF(O7:O15,F6),"") ->  | G15: 9 | H15: 85 | I15: Tom Barrett | O15: North Yorkshire | S15: 25.49 | T15: 1 | AM15: 9
A16: =IF(O16=A6,COUNTIF(O7:O16,A6),"") ->  | B16: =IF(O16=B6,COUNTIF(O7:O16,B6),"") -> 2 | C16: =IF(O16=C6,COUNTIF(O7:O16,C6),"") ->  | D16: =IF(O16=D6,COUNTIF(O7:O16,D6),"") ->  | E16: =IF(O16=E6,COUNTIF(O7:O16,E6),"") ->  | F16: =IF(O16=F6,COUNTIF(O7:O16,F6),"") ->  | G16: 10 | H16: 27 | I16: Joshua Liddle | O16: Cumbria | S16: 25.49 | T16: 1 | AM16: 10
A17: =IF(O17=A6,COUNTIF(O7:O17,A6),"") ->  | B17: =IF(O17=B6,COUNTIF(O7:O17,B6),"") ->  | C17: =IF(O17=C6,COUNTIF(O7:O17,C6),"") -> 1 | D17: =IF(O17=D6,COUNTIF(O7:O17,D6),"") ->  | E17: =IF(O17=E6,COUNTIF(O7:O17,E6),"") ->  | F17: =IF(O17=F6,COUNTIF(O7:O17,F6),"") ->  | G17: 11 | H17: 57 | I17: Luke Pickering | O17: Durham | S17: 25.56 | T17: 1 | AM17: 11
A18: =IF(O18=A6,COUNTIF(O7:O18,A6),"") ->  | B18: =IF(O18=B6,COUNTIF(O7:O18,B6),"") -> 3 | C18: =IF(O18=C6,COUNTIF(O7:O18,C6),"") ->  | D18: =IF(O18=D6,COUNTIF(O7:O18,D6),"") ->  | E18: =IF(O18=E6,COUNTIF(O7:O18,E6),"") ->  | F18: =IF(O18=F6,COUNTIF(O7:O18,F6),"") ->  | G18: 12 | H18: 23 | I18: Ben Van Djik | O18: Cumbria | S18: 25.58 | T18: 1 | AM18: 12
A19: =IF(O19=A6,COUNTIF(O7:O19,A6),"") ->  | B19: =IF(O19=B6,COUNTIF(O7:O19,B6),"") -> 4 | C19: =IF(O19=C6,COUNTIF(O7:O19,C6),"") ->  | D19: =IF(O19=D6,COUNTIF(O7:O19,D6),"") ->  | E19: =IF(O19=E6,COUNTIF(O7:O19,E6),"") ->  | F19: =IF(O19=F6,COUNTIF(O7:O19,F6),"") ->  | G19: 13 | H19: 25 | I19: Reuben Copley | O19: Cumbria | S19: 25.59 | T19: 1 | AM19: 13
A20: =IF(O20=A6,COUNTIF(O7:O20,A6),"") ->  | B20: =IF(O20=B6,COUNTIF(O7:O20,B6),"") ->  | C20: =IF(O20=C6,COUNTIF(O7:O20,C6),"") ->  | D20: =IF(O20=D6,COUNTIF(O7:O20,D6),"") -> 3 | E20: =IF(O20=E6,COUNTIF(O7:O20,E6),"") ->  | F20: =IF(O20=F6,COUNTIF(O7:O20,F6),"") ->  | G20: 14 | H20: 64 | I20: Max Pearson | O20: Northumberland | S20: 26.08 | T20: 1 | AM20: 14
A21: =IF(O21=A6,COUNTIF(O7:O21,A6),"") -> 2 | B21: =IF(O21=B6,COUNTIF(O7:O21,B6),"") ->  | C21: =IF(O21=C6,COUNTIF(O7:O21,C6),"") ->  | D21: =IF(O21=D6,COUNTIF(O7:O21,D6),"") ->  | E21: =IF(O21=E6,COUNTIF(O7:O21,E6),"") ->  | F21: =IF(O21=F6,COUNTIF(O7:O21,F6),"") ->  | G21: 15 | H21: 3 | I21: Luke Petit | O21: Cleveland | S21: 26.11 | T21: 1 | AM21: 15
A22: =IF(O22=A6,COUNTIF(O7:O22,A6),"") ->  | B22: =IF(O22=B6,COUNTIF(O7:O22,B6),"") ->  | C22: =IF(O22=C6,COUNTIF(O7:O22,C6),"") -> 2 | D22: =IF(O22=D6,COUNTIF(O7:O22,D6),"") ->  | E22: =IF(O22=E6,COUNTIF(O7:O22,E6),"") ->  | F22: =IF(O22=F6,COUNTIF(O7:O22,F6),"") ->  | G22: 16 | H22: 43 | I22: Jack Brown | O22: Durham | S22: 26.12 | T22: 1 | AM22: 16
A23: =IF(O23=A6,COUNTIF(O7:O23,A6),"") ->  | B23: =IF(O23=B6,COUNTIF(O7:O23,B6),"") ->  | C23: =IF(O23=C6,COUNTIF(O7:O23,C6),"") -> 3 | D23: =IF(O23=D6,COUNTIF(O7:O23,D6),"") ->  | E23: =IF(O23=E6,COUNTIF(O7:O23,E6),"") ->  | F23: =IF(O23=F6,COUNTIF(O7:O23,F6),"") ->  | G23: 17 | H23: 58 | I23: Michael Wade | O23: Durham | S23: 26.14 | T23: 1 | AM23: 17
A24: =IF(O24=A6,COUNTIF(O7:O24,A6),"") ->  | B24: =IF(O24=B6,COUNTIF(O7:O24,B6),"") ->  | C24: =IF(O24=C6,COUNTIF(O7:O24,C6),"") ->  | D24: =IF(O24=D6,COUNTIF(O7:O24,D6),"") ->  | E24: =IF(O24=E6,COUNTIF(O7:O24,E6),"") -> 6 | F24: =IF(O24=F6,COUNTIF(O7:O24,F6),"") ->  | G24: 18 | H24: 86 | I24: Sam Jackson | O24: North Yorkshire | S24: 26.19 | T24: 1 | AM24: 18
A25: =IF(O25=A6,COUNTIF(O7:O25,A6),"") ->  | B25: =IF(O25=B6,COUNTIF(O7:O25,B6),"") -> 5 | C25: =IF(O25=C6,COUNTIF(O7:O25,C6),"") ->  | D25: =IF(O25=D6,COUNTIF(O7:O25,D6),"") ->  | E25: =IF(O25=E6,COUNTIF(O7:O25,E6),"") ->  | F25: =IF(O25=F6,COUNTIF(O7:O25,F6),"") ->  | G25: 19 | H25: 24 | I25: Harry Greenbank | O25: Cumbria | S25: 26.21 | T25: 1 | AM25: 19
A26: =IF(O26=A6,COUNTIF(O7:O26,A6),"") ->  | B26: =IF(O26=B6,COUNTIF(O7:O26,B6),"") -> 6 | C26: =IF(O26=C6,COUNTIF(O7:O26,C6),"") ->  | D26: =IF(O26=D6,COUNTIF(O7:O26,D6),"") ->  | E26: =IF(O26=E6,COUNTIF(O7:O26,E6),"") ->  | F26: =IF(O26=F6,COUNTIF(O7:O26,F6),"") ->  | G26: 20 | H26: 31 | I26: Luke Bowen | O26: Cumbria | S26: 26.33 | T26: 1 | AM26: 20
A27: =IF(O27=A6,COUNTIF(O7:O27,A6),"") -> 3 | B27: =IF(O27=B6,COUNTIF(O7:O27,B6),"") ->  | C27: =IF(O27=C6,COUNTIF(O7:O27,C6),"") ->  | D27: =IF(O27=D6,COUNTIF(O7:O27,D6),"") ->  | E27: =IF(O27=E6,COUNTIF(O7:O27,E6),"") ->  | F27: =IF(O27=F6,COUNTIF(O7:O27,F6),"") ->  | G27: 21 | H27: 2 | I27: BenPalmer | O27: Cleveland | S27: 26.36 | T27: 1 | AM27: 21
A28: =IF(O28=A6,COUNTIF(O7:O28,A6),"") ->  | B28: =IF(O28=B6,COUNTIF(O7:O28,B6),"") ->  | C28: =IF(O28=C6,COUNTIF(O7:O28,C6),"") -> 4 | D28: =IF(O28=D6,COUNTIF(O7:O28,D6),"") ->  | E28: =IF(O28=E6,COUNTIF(O7:O28,E6),"") ->  | F28: =IF(O28=F6,COUNTIF(O7:O28,F6),"") ->  | G28: 22 | H28: 48 | I28: Joe Ponfret | O28: Durham | S28: 23.38 | T28: 1 | AM28: 22
A29: =IF(O29=A6,COUNTIF(O7:O29,A6),"") ->  | B29: =IF(O29=B6,COUNTIF(O7:O29,B6),"") ->  | C29: =IF(O29=C6,COUNTIF(O7:O29,C6),"") ->  | D29: =IF(O29=D6,COUNTIF(O7:O29,D6),"") ->  | E29: =IF(O29=E6,COUNTIF(O7:O29,E6),"") -> 7 | F29: =IF(O29=F6,COUNTIF(O7:O29,F6),"") ->  | G29: 23 | H29: 87 | I29: Jake Stephenson | O29: North Yorkshire | S29: 26.42 | T29: 1 | AM29: 23
A30: =IF(O30=A6,COUNTIF(O7:O30,A6),"") ->  | B30: =IF(O30=B6,COUNTIF(O7:O30,B6),"") ->  | C30: =IF(O30=C6,COUNTIF(O7:O30,C6),"") ->  | D30: =IF(O30=D6,COUNTIF(O7:O30,D6),"") -> 4 | E30: =IF(O30=E6,COUNTIF(O7:O30,E6),"") ->  | F30: =IF(O30=F6,COUNTIF(O7:O30,F6),"") ->  | G30: 24 | H30: 63 | I30: Patrick Donald | O30: Northumberland | S30: 26.42 | T30: 1 | AM30: 24
A31: =IF(O31=A6,COUNTIF(O7:O31,A6),"") ->  | B31: =IF(O31=B6,COUNTIF(O7:O31,B6),"") ->  | C31: =IF(O31=C6,COUNTIF(O7:O31,C6),"") ->  | D31: =IF(O31=D6,COUNTIF(O7:O31,D6),"") ->  | E31: =IF(O31=E6,COUNTIF(O7:O31,E6),"") -> 8 | F31: =IF(O31=F6,COUNTIF(O7:O31,F6),"") ->  | G31: 25 | H31: 89 | I31: Josh Fothergill | O31: North Yorkshire | S31: 26.43 | T31: 1 | AM31: 25
A32: =IF(O32=A6,COUNTIF(O7:O32,A6),"") ->  | B32: =IF(O32=B6,COUNTIF(O7:O32,B6),"") ->  | C32: =IF(O32=C6,COUNTIF(O7:O32,C6),"") -> 5 | D32: =IF(O32=D6,COUNTIF(O7:O32,D6),"") ->  | E32: =IF(O32=E6,COUNTIF(O7:O32,E6),"") ->  | F32: =IF(O32=F6,COUNTIF(O7:O32,F6),"") ->  | G32: 26 | H32: 45 | I32: Matthew Phillips | O32: Durham | S32: 26.44 | T32: 1 | AM32: 26
A33: =IF(O33=A6,COUNTIF(O7:O33,A6),"") ->  | B33: =IF(O33=B6,COUNTIF(O7:O33,B6),"") -> 7 | C33: =IF(O33=C6,COUNTIF(O7:O33,C6),"") ->  | D33: =IF(O33=D6,COUNTIF(O7:O33,D6),"") ->  | E33: =IF(O33=E6,COUNTIF(O7:O33,E6),"") ->  | F33: =IF(O33=F6,COUNTIF(O7:O33,F6),"") ->  | G33: 27 | H33: 29 | I33: Kieran Reynolds | O33: Cumbria | S33: 26.46 | T33: 1 | AM33: 27
A34: =IF(O34=A6,COUNTIF(O7:O34,A6),"") ->  | B34: =IF(O34=B6,COUNTIF(O7:O34,B6),"") -> 8 | C34: =IF(O34=C6,COUNTIF(O7:O34,C6),"") ->  | D34: =IF(O34=D6,COUNTIF(O7:O34,D6),"") ->  | E34: =IF(O34=E6,COUNTIF(O7:O34,E6),"") ->  | F34: =IF(O34=F6,COUNTIF(O7:O34,F6),"") ->  | G34: 28 | H34: 30 | I34: Edward Taylor | O34: Cumbria | S34: 26.49 | T34: 1 | AM34: 28
A35: =IF(O35=A6,COUNTIF(O7:O35,A6),"") ->  | B35: =IF(O35=B6,COUNTIF(O7:O35,B6),"") ->  | C35: =IF(O35=C6,COUNTIF(O7:O35,C6),"") ->  | D35: =IF(O35=D6,COUNTIF(O7:O35,D6),"") -> 5 | E35: =IF(O35=E6,COUNTIF(O7:O35,E6),"") ->  | F35: =IF(O35=F6,COUNTIF(O7:O35,F6),"") ->  | G35: 29 | H35: 65 | I35: James Morris | O35: Northumberland | S35: 26.5 | T35: 1 | AM35: 29
A36: =IF(O36=A6,COUNTIF(O7:O36,A6),"") ->  | B36: =IF(O36=B6,COUNTIF(O7:O36,B6),"") -> 9 | C36: =IF(O36=C6,COUNTIF(O7:O36,C6),"") ->  | D36: =IF(O36=D6,COUNTIF(O7:O36,D6),"") ->  | E36: =IF(O36=E6,COUNTIF(O7:O36,E6),"") ->  | F36: =IF(O36=F6,COUNTIF(O7:O36,F6),"") ->  | G36: 30 | H36: 33 | I36: Harry Bolton | O36: Cumbria | S36: 26.5 | T36: 1 | AM36: 30
A37: =IF(O37=A6,COUNTIF(O7:O37,A6),"") ->  | B37: =IF(O37=B6,COUNTIF(O7:O37,B6),"") ->  | C37: =IF(O37=C6,COUNTIF(O7:O37,C6),"") ->  | D37: =IF(O37=D6,COUNTIF(O7:O37,D6),"") -> 6 | E37: =IF(O37=E6,COUNTIF(O7:O37,E6),"") ->  | F37: =IF(O37=F6,COUNTIF(O7:O37,F6),"") ->  | G37: 31 | H37: 69 | I37: Matthew Briggs | O37: Northumberland | S37: 26.5 | T37: 1 | AM37: 31
A38: =IF(O38=A6,COUNTIF(O7:O38,A6),"") ->  | B38: =IF(O38=B6,COUNTIF(O7:O38,B6),"") -> 10 | C38: =IF(O38=C6,COUNTIF(O7:O38,C6),"") ->  | D38: =IF(O38=D6,COUNTIF(O7:O38,D6),"") ->  | E38: =IF(O38=E6,COUNTIF(O7:O38,E6),"") ->  | F38: =IF(O38=F6,COUNTIF(O7:O38,F6),"") ->  | G38: 32 | H38: 26 | I38: Jamie McMillan | O38: Cumbria | S38: 26.51 | T38: 1 | AM38: 32
A39: =IF(O39=A6,COUNTIF(O7:O39,A6),"") ->  | B39: =IF(O39=B6,COUNTIF(O7:O39,B6),"") ->  | C39: =IF(O39=C6,COUNTIF(O7:O39,C6),"") -> 6 | D39: =IF(O39=D6,COUNTIF(O7:O39,D6),"") ->  | E39: =IF(O39=E6,COUNTIF(O7:O39,E6),"") ->  | F39: =IF(O39=F6,COUNTIF(O7:O39,F6),"") ->  | G39: 33 | H39: 50 | I39: James Martin | O39: Durham | S39: 26.55 | T39: 1 | AM39: 33
A40: =IF(O40=A6,COUNTIF(O7:O40,A6),"") ->  | B40: =IF(O40=B6,COUNTIF(O7:O40,B6),"") ->  | C40: =IF(O40=C6,COUNTIF(O7:O40,C6),"") ->  | D40: =IF(O40=D6,COUNTIF(O7:O40,D6),"") -> 7 | E40: =IF(O40=E6,COUNTIF(O7:O40,E6),"") ->  | F40: =IF(O40=F6,COUNTIF(O7:O40,F6),"") ->  | G40: 34 | H40: 70 | I40: Alex Cunningham | O40: Northumberland | S40: 27 | T40: 1 | AM40: 34
A41: =IF(O41=A6,COUNTIF(O7:O41,A6),"") ->  | B41: =IF(O41=B6,COUNTIF(O7:O41,B6),"") -> 11 | C41: =IF(O41=C6,COUNTIF(O7:O41,C6),"") ->  | D41: =IF(O41=D6,COUNTIF(O7:O41,D6),"") ->  | E41: =IF(O41=E6,COUNTIF(O7:O41,E6),"") ->  | F41: =IF(O41=F6,COUNTIF(O7:O41,F6),"") ->  | G41: 35 | H41: 35 | I41: Jacob Aubrey | O41: Cumbria | S41: 27.07 | T41: 1 | AM41: 35
A42: =IF(O42=A6,COUNTIF(O7:O42,A6),"") ->  | B42: =IF(O42=B6,COUNTIF(O7:O42,B6),"") ->  | C42: =IF(O42=C6,COUNTIF(O7:O42,C6),"") -> 7 | D42: =IF(O42=D6,COUNTIF(O7:O42,D6),"") ->  | E42: =IF(O42=E6,COUNTIF(O7:O42,E6),"") ->  | F42: =IF(O42=F6,COUNTIF(O7:O42,F6),"") ->  | G42: 36 | H42: 44 | I42: Sean Mackie | O42: Durham | S42: 27.09 | T42: 1 | AM42: 36
A43: =IF(O43=A6,COUNTIF(O7:O43,A6),"") ->  | B43: =IF(O43=B6,COUNTIF(O7:O43,B6),"") ->  | C43: =IF(O43=C6,COUNTIF(O7:O43,C6),"") ->  | D43: =IF(O43=D6,COUNTIF(O7:O43,D6),"") -> 8 | E43: =IF(O43=E6,COUNTIF(O7:O43,E6),"") ->  | F43: =IF(O43=F6,COUNTIF(O7:O43,F6),"") ->  | G43: 37 | H43: 66 | I43: William Dixon | O43: Northumberland | S43: 27.2 | T43: 1 | AM43: 37
A44: =IF(O44=A6,COUNTIF(O7:O44,A6),"") -> 4 | B44: =IF(O44=B6,COUNTIF(O7:O44,B6),"") ->  | C44: =IF(O44=C6,COUNTIF(O7:O44,C6),"") ->  | D44: =IF(O44=D6,COUNTIF(O7:O44,D6),"") ->  | E44: =IF(O44=E6,COUNTIF(O7:O44,E6),"") ->  | F44: =IF(O44=F6,COUNTIF(O7:O44,F6),"") ->  | G44: 38 | H44: 4 | I44: Cameron Spence | O44: Cleveland | S44: 27.22 | T44: 1 | AM44: 38
A45: =IF(O45=A6,COUNTIF(O7:O45,A6),"") ->  | B45: =IF(O45=B6,COUNTIF(O7:O45,B6),"") ->  | C45: =IF(O45=C6,COUNTIF(O7:O45,C6),"") ->  | D45: =IF(O45=D6,COUNTIF(O7:O45,D6),"") -> 9 | E45: =IF(O45=E6,COUNTIF(O7:O45,E6),"") ->  | F45: =IF(O45=F6,COUNTIF(O7:O45,F6),"") ->  | G45: 39 | H45: 72 | I45: Leodhais MacPherson | O45: Northumberland | S45: 27.34 | T45: 1 | AM45: 39
A46: =IF(O46=A6,COUNTIF(O7:O46,A6),"") ->  | B46: =IF(O46=B6,COUNTIF(O7:O46,B6),"") ->  | C46: =IF(O46=C6,COUNTIF(O7:O46,C6),"") -> 8 | D46: =IF(O46=D6,COUNTIF(O7:O46,D6),"") ->  | E46: =IF(O46=E6,COUNTIF(O7:O46,E6),"") ->  | F46: =IF(O46=F6,COUNTIF(O7:O46,F6),"") ->  | G46: 40 | H46: 47 | I46: Jonny Langley | O46: Durham | S46: 27.4 | T46: 1 | AM46: 40
A47: =IF(O47=A6,COUNTIF(O7:O47,A6),"") ->  | B47: =IF(O47=B6,COUNTIF(O7:O47,B6),"") ->  | C47: =IF(O47=C6,COUNTIF(O7:O47,C6),"") ->  | D47: =IF(O47=D6,COUNTIF(O7:O47,D6),"") -> 10 | E47: =IF(O47=E6,COUNTIF(O7:O47,E6),"") ->  | F47: =IF(O47=F6,COUNTIF(O7:O47,F6),"") ->  | G47: 41 | H47: 67 | I47: Jack Boaden | O47: Northumberland | S47: 27.44 | T47: 1 | AM47: 41
A48: =IF(O48=A6,COUNTIF(O7:O48,A6),"") ->  | B48: =IF(O48=B6,COUNTIF(O7:O48,B6),"") ->  | C48: =IF(O48=C6,COUNTIF(O7:O48,C6),"") -> 9 | D48: =IF(O48=D6,COUNTIF(O7:O48,D6),"") ->  | E48: =IF(O48=E6,COUNTIF(O7:O48,E6),"") ->  | F48: =IF(O48=F6,COUNTIF(O7:O48,F6),"") ->  | G48: 42 | H48: 51 | I48: Jacob Stephenson | O48: Durham | S48: 28 | T48: 1 | AM48: 42
A49: =IF(O49=A6,COUNTIF(O7:O49,A6),"") ->  | B49: =IF(O49=B6,COUNTIF(O7:O49,B6),"") ->  | C49: =IF(O49=C6,COUNTIF(O7:O49,C6),"") -> 10 | D49: =IF(O49=D6,COUNTIF(O7:O49,D6),"") ->  | E49: =IF(O49=E6,COUNTIF(O7:O49,E6),"") ->  | F49: =IF(O49=F6,COUNTIF(O7:O49,F6),"") ->  | G49: 43 | H49: 52 | I49: Joshua Erlebach | O49: Durham | S49: 28.04 | T49: 1 | AM49: 43
A50: =IF(O50=A6,COUNTIF(O7:O50,A6),"") ->  | B50: =IF(O50=B6,COUNTIF(O7:O50,B6),"") ->  | C50: =IF(O50=C6,COUNTIF(O7:O50,C6),"") -> 11 | D50: =IF(O50=D6,COUNTIF(O7:O50,D6),"") ->  | E50: =IF(O50=E6,COUNTIF(O7:O50,E6),"") ->  | F50: =IF(O50=F6,COUNTIF(O7:O50,F6),"") ->  | G50: 44 | H50: 54 | I50: Conal Tufnell | O50: Durham | S50: 28.1 | T50: 1 | AM50: 44
A51: =IF(O51=A6,COUNTIF(O7:O51,A6),"") ->  | B51: =IF(O51=B6,COUNTIF(O7:O51,B6),"") ->  | C51: =IF(O51=C6,COUNTIF(O7:O51,C6),"") ->  | D51: =IF(O51=D6,COUNTIF(O7:O51,D6),"") ->  | E51: =IF(O51=E6,COUNTIF(O7:O51,E6),"") -> 9 | F51: =IF(O51=F6,COUNTIF(O7:O51,F6),"") ->  | G51: 45 | H51: 90 | I51: Jasper Johnson | O51: North Yorkshire | S51: 28.24 | T51: 1 | AM51: 45
A52: =IF(O52=A6,COUNTIF(O7:O52,A6),"") ->  | B52: =IF(O52=B6,COUNTIF(O7:O52,B6),"") ->  | C52: =IF(O52=C6,COUNTIF(O7:O52,C6),"") ->  | D52: =IF(O52=D6,COUNTIF(O7:O52,D6),"") ->  | E52: =IF(O52=E6,COUNTIF(O7:O52,E6),"") -> 10 | F52: =IF(O52=F6,COUNTIF(O7:O52,F6),"") ->  | G52: 46 | H52: 88 | I52: Harry Robson | O52: North Yorkshire | S52: 28.26 | T52: 1 | AM52: 46
A53: =IF(O53=A6,COUNTIF(O7:O53,A6),"") ->  | B53: =IF(O53=B6,COUNTIF(O7:O53,B6),"") -> 12 | C53: =IF(O53=C6,COUNTIF(O7:O53,C6),"") ->  | D53: =IF(O53=D6,COUNTIF(O7:O53,D6),"") ->  | E53: =IF(O53=E6,COUNTIF(O7:O53,E6),"") ->  | F53: =IF(O53=F6,COUNTIF(O7:O53,F6),"") ->  | G53: 47 | H53: 36 | I53: James Mattinson | O53: Cumbria | S53: 28.28 | T53: 1 | AM53: 47
A54: =IF(O54=A6,COUNTIF(O7:O54,A6),"") ->  | B54: =IF(O54=B6,COUNTIF(O7:O54,B6),"") -> 13 | C54: =IF(O54=C6,COUNTIF(O7:O54,C6),"") ->  | D54: =IF(O54=D6,COUNTIF(O7:O54,D6),"") ->  | E54: =IF(O54=E6,COUNTIF(O7:O54,E6),"") ->  | F54: =IF(O54=F6,COUNTIF(O7:O54,F6),"") ->  | G54: 48 | H54: 38 | I54: Struan Freeborn | O54: Cumbria | S54: 28.47 | T54: 1 | AM54: 48
A55: =IF(O55=A6,COUNTIF(O7:O55,A6),"") ->  | B55: =IF(O55=B6,COUNTIF(O7:O55,B6),"") ->  | C55: =IF(O55=C6,COUNTIF(O7:O55,C6),"") -> 12 | D55: =IF(O55=D6,COUNTIF(O7:O55,D6),"") ->  | E55: =IF(O55=E6,COUNTIF(O7:O55,E6),"") ->  | F55: =IF(O55=F6,COUNTIF(O7:O55,F6),"") ->  | G55: 49 | H55: 53 | I55: Adam Middleton | O55: Durham | S55: 29.26 | T55: 1 | AM55: 49
A56: =IF(O56=A6,COUNTIF(O7:O56,A6),"") ->  | B56: =IF(O56=B6,COUNTIF(O7:O56,B6),"") ->  | C56: =IF(O56=C6,COUNTIF(O7:O56,C6),"") -> 13 | D56: =IF(O56=D6,COUNTIF(O7:O56,D6),"") ->  | E56: =IF(O56=E6,COUNTIF(O7:O56,E6),"") ->  | F56: =IF(O56=F6,COUNTIF(O7:O56,F6),"") ->  | G56: 50 | H56: 56 | I56: Mitch Marshall | O56: Durham | S56: 29.59 | T56: 1 | AM56: 50
A57: =IF(O57=A6,COUNTIF(O7:O57,A6),"") ->  | B57: =IF(O57=B6,COUNTIF(O7:O57,B6),"") -> 14 | C57: =IF(O57=C6,COUNTIF(O7:O57,C6),"") ->  | D57: =IF(O57=D6,COUNTIF(O7:O57,D6),"") ->  | E57: =IF(O57=E6,COUNTIF(O7:O57,E6),"") ->  | F57: =IF(O57=F6,COUNTIF(O7:O57,F6),"") ->  | G57: 51 | H57: 22 | I57: Scott Evans | O57: Cumbria | S57: 30.11 | T57: 1 | AM57: 51
A58: =IF(O58=A6,COUNTIF(O7:O58,A6),"") ->  | B58: =IF(O58=B6,COUNTIF(O7:O58,B6),"") ->  | C58: =IF(O58=C6,COUNTIF(O7:O58,C6),"") -> 14 | D58: =IF(O58=D6,COUNTIF(O7:O58,D6),"") ->  | E58: =IF(O58=E6,COUNTIF(O7:O58,E6),"") ->  | F58: =IF(O58=F6,COUNTIF(O7:O58,F6),"") ->  | G58: 52 | H58: 55 | I58: Jack Prowse | O58: Durham | S58: 30.22 | T58: 1 | AM58: 52
A59: =IF(O59=A6,COUNTIF(O7:O59,A6),"") -> 5 | B59: =IF(O59=B6,COUNTIF(O7:O59,B6),"") ->  | C59: =IF(O59=C6,COUNTIF(O7:O59,C6),"") ->  | D59: =IF(O59=D6,COUNTIF(O7:O59,D6),"") ->  | E59: =IF(O59=E6,COUNTIF(O7:O59,E6),"") ->  | F59: =IF(O59=F6,COUNTIF(O7:O59,F6),"") ->  | G59: 53 | H59: 5 | I59: Scott Mann | O59: Cleveland | S59: 32.26 | T59: 1 | AM59: 53
A60: =IF(O60=A6,COUNTIF(O7:O60,A6),"") ->  | B60: =IF(O60=B6,COUNTIF(O7:O60,B6),"") ->  | C60: =IF(O60=C6,COUNTIF(O7:O60,C6),"") ->  | D60: =IF(O60=D6,COUNTIF(O7:O60,D6),"") ->  | E60: =IF(O60=E6,COUNTIF(O7:O60,E6),"") ->  | F60: =IF(O60=F6,COUNTIF(O7:O60,F6),"") ->  | G60: 54 | T60: 0 | AM60: 54
A61: =IF(O61=A6,COUNTIF(O7:O61,A6),"") ->  | B61: =IF(O61=B6,COUNTIF(O7:O61,B6),"") ->  | C61: =IF(O61=C6,COUNTIF(O7:O61,C6),"") ->  | D61: =IF(O61=D6,COUNTIF(O7:O61,D6),"") ->  | E61: =IF(O61=E6,COUNTIF(O7:O61,E6),"") ->  | F61: =IF(O61=F6,COUNTIF(O7:O61,F6),"") ->  | G61: 55 | T61: 0 | AM61: 55
A62: =IF(O62=A6,COUNTIF(O7:O62,A6),"") ->  | B62: =IF(O62=B6,COUNTIF(O7:O62,B6),"") ->  | C62: =IF(O62=C6,COUNTIF(O7:O62,C6),"") ->  | D62: =IF(O62=D6,COUNTIF(O7:O62,D6),"") ->  | E62: =IF(O62=E6,COUNTIF(O7:O62,E6),"") ->  | F62: =IF(O62=F6,COUNTIF(O7:O62,F6),"") ->  | G62: 56 | T62: 0 | AM62: 56
A63: =IF(O63=A6,COUNTIF(O7:O63,A6),"") ->  | B63: =IF(O63=B6,COUNTIF(O7:O63,B6),"") ->  | C63: =IF(O63=C6,COUNTIF(O7:O63,C6),"") ->  | D63: =IF(O63=D6,COUNTIF(O7:O63,D6),"") ->  | E63: =IF(O63=E6,COUNTIF(O7:O63,E6),"") ->  | F63: =IF(O63=F6,COUNTIF(O7:O63,F6),"") ->  | G63: 57 | T63: 0 | AM63: 57
A64: =IF(O64=A6,COUNTIF(O7:O64,A6),"") ->  | B64: =IF(O64=B6,COUNTIF(O7:O64,B6),"") ->  | C64: =IF(O64=C6,COUNTIF(O7:O64,C6),"") ->  | D64: =IF(O64=D6,COUNTIF(O7:O64,D6),"") ->  | E64: =IF(O64=E6,COUNTIF(O7:O64,E6),"") ->  | F64: =IF(O64=F6,COUNTIF(O7:O64,F6),"") ->  | G64: 58 | T64: 0 | AM64: 58
A65: =IF(O65=A6,COUNTIF(O7:O65,A6),"") ->  | B65: =IF(O65=B6,COUNTIF(O7:O65,B6),"") ->  | C65: =IF(O65=C6,COUNTIF(O7:O65,C6),"") ->  | D65: =IF(O65=D6,COUNTIF(O7:O65,D6),"") ->  | E65: =IF(O65=E6,COUNTIF(O7:O65,E6),"") ->  | F65: =IF(O65=F6,COUNTIF(O7:O65,F6),"") ->  | G65: 59 | T65: 0 | AM65: 59
A66: =IF(O66=A6,COUNTIF(O7:O66,A6),"") ->  | B66: =IF(O66=B6,COUNTIF(O7:O66,B6),"") ->  | C66: =IF(O66=C6,COUNTIF(O7:O66,C6),"") ->  | D66: =IF(O66=D6,COUNTIF(O7:O66,D6),"") ->  | E66: =IF(O66=E6,COUNTIF(O7:O66,E6),"") ->  | F66: =IF(O66=F6,COUNTIF(O7:O66,F6),"") ->  | G66: 60 | T66: 0 | AM66: 60
A67: =IF(O67=A6,COUNTIF(O7:O67,A6),"") ->  | B67: =IF(O67=B6,COUNTIF(O7:O67,B6),"") ->  | C67: =IF(O67=C6,COUNTIF(O7:O67,C6),"") ->  | D67: =IF(O67=D6,COUNTIF(O7:O67,D6),"") ->  | E67: =IF(O67=E6,COUNTIF(O7:O67,E6),"") ->  | F67: =IF(O67=F6,COUNTIF(O7:O67,F6),"") ->  | G67: 61 | T67: 0 | AM67: 61
A68: =IF(O68=A6,COUNTIF(O7:O68,A6),"") ->  | B68: =IF(O68=B6,COUNTIF(O7:O68,B6),"") ->  | C68: =IF(O68=C6,COUNTIF(O7:O68,C6),"") ->  | D68: =IF(O68=D6,COUNTIF(O7:O68,D6),"") ->  | E68: =IF(O68=E6,COUNTIF(O7:O68,E6),"") ->  | F68: =IF(O68=F6,COUNTIF(O7:O68,F6),"") ->  | G68: 62 | T68: 0 | AM68: 62
A69: =IF(O69=A6,COUNTIF(O7:O69,A6),"") ->  | B69: =IF(O69=B6,COUNTIF(O7:O69,B6),"") ->  | C69: =IF(O69=C6,COUNTIF(O7:O69,C6),"") ->  | D69: =IF(O69=D6,COUNTIF(O7:O69,D6),"") ->  | E69: =IF(O69=E6,COUNTIF(O7:O69,E6),"") ->  | F69: =IF(O69=F6,COUNTIF(O7:O69,F6),"") ->  | G69: 63 | T69: 0 | AM69: 63
A70: =IF(O70=A6,COUNTIF(O7:O70,A6),"") ->  | B70: =IF(O70=B6,COUNTIF(O7:O70,B6),"") ->  | C70: =IF(O70=C6,COUNTIF(O7:O70,C6),"") ->  | D70: =IF(O70=D6,COUNTIF(O7:O70,D6),"") ->  | E70: =IF(O70=E6,COUNTIF(O7:O70,E6),"") ->  | F70: =IF(O70=F6,COUNTIF(O7:O70,F6),"") ->  | G70: 64 | T70: 0 | AM70: 64
A71: =IF(O71=A6,COUNTIF(O7:O71,A6),"") ->  | B71: =IF(O71=B6,COUNTIF(O7:O71,B6),"") ->  | C71: =IF(O71=C6,COUNTIF(O7:O71,C6),"") ->  | D71: =IF(O71=D6,COUNTIF(O7:O71,D6),"") ->  | E71: =IF(O71=E6,COUNTIF(O7:O71,E6),"") ->  | F71: =IF(O71=F6,COUNTIF(O7:O71,F6),"") ->  | G71: =IF(LEFT(S71,1)="D",0,AM71) -> 65 | I71: =IFERROR(VLOOKUP(H71,INDIRECT($AA$1),2,0),"") ->  | O71: =IFERROR(VLOOKUP(H71,INDIRECT($AA$1),3,0),"") ->  | T71: =IF(H71=0,0,1) -> 0 | AM71: 65
A72: =IF(O72=A6,COUNTIF(O7:O72,A6),"") ->  | B72: =IF(O72=B6,COUNTIF(O7:O72,B6),"") ->  | C72: =IF(O72=C6,COUNTIF(O7:O72,C6),"") ->  | D72: =IF(O72=D6,COUNTIF(O7:O72,D6),"") ->  | E72: =IF(O72=E6,COUNTIF(O7:O72,E6),"") ->  | F72: =IF(O72=F6,COUNTIF(O7:O72,F6),"") ->  | G72: 66 | T72: 0 | AM72: 66
A73: =IF(O73=A6,COUNTIF(O7:O73,A6),"") ->  | B73: =IF(O73=B6,COUNTIF(O7:O73,B6),"") ->  | C73: =IF(O73=C6,COUNTIF(O7:O73,C6),"") ->  | D73: =IF(O73=D6,COUNTIF(O7:O73,D6),"") ->  | E73: =IF(O73=E6,COUNTIF(O7:O73,E6),"") ->  | F73: =IF(O73=F6,COUNTIF(O7:O73,F6),"") ->  | G73: 67 | T73: 0 | AM73: 67
A74: =IF(O74=A6,COUNTIF(O7:O74,A6),"") ->  | B74: =IF(O74=B6,COUNTIF(O7:O74,B6),"") ->  | C74: =IF(O74=C6,COUNTIF(O7:O74,C6),"") ->  | D74: =IF(O74=D6,COUNTIF(O7:O74,D6),"") ->  | E74: =IF(O74=E6,COUNTIF(O7:O74,E6),"") ->  | F74: =IF(O74=F6,COUNTIF(O7:O74,F6),"") ->  | G74: 68 | T74: 0 | AM74: 68
A75: =IF(O75=A6,COUNTIF(O7:O75,A6),"") ->  | B75: =IF(O75=B6,COUNTIF(O7:O75,B6),"") ->  | C75: =IF(O75=C6,COUNTIF(O7:O75,C6),"") ->  | D75: =IF(O75=D6,COUNTIF(O7:O75,D6),"") ->  | E75: =IF(O75=E6,COUNTIF(O7:O75,E6),"") ->  | F75: =IF(O75=F6,COUNTIF(O7:O75,F6),"") ->  | G75: 69 | T75: 0 | AM75: 69
A76: =IF(O76=A6,COUNTIF(O7:O76,A6),"") ->  | B76: =IF(O76=B6,COUNTIF(O7:O76,B6),"") ->  | C76: =IF(O76=C6,COUNTIF(O7:O76,C6),"") ->  | D76: =IF(O76=D6,COUNTIF(O7:O76,D6),"") ->  | E76: =IF(O76=E6,COUNTIF(O7:O76,E6),"") ->  | F76: =IF(O76=F6,COUNTIF(O7:O76,F6),"") ->  | G76: 70 | T76: 0 | AM76: 70
A77: =IF(O77=A6,COUNTIF(O7:O77,A6),"") ->  | B77: =IF(O77=B6,COUNTIF(O7:O77,B6),"") ->  | C77: =IF(O77=C6,COUNTIF(O7:O77,C6),"") ->  | D77: =IF(O77=D6,COUNTIF(O7:O77,D6),"") ->  | E77: =IF(O77=E6,COUNTIF(O7:O77,E6),"") ->  | F77: =IF(O77=F6,COUNTIF(O7:O77,F6),"") ->  | G77: 71 | T77: 0 | AM77: 71
A78: =IF(O78=A6,COUNTIF(O7:O78,A6),"") ->  | B78: =IF(O78=B6,COUNTIF(O7:O78,B6),"") ->  | C78: =IF(O78=C6,COUNTIF(O7:O78,C6),"") ->  | D78: =IF(O78=D6,COUNTIF(O7:O78,D6),"") ->  | E78: =IF(O78=E6,COUNTIF(O7:O78,E6),"") ->  | F78: =IF(O78=F6,COUNTIF(O7:O78,F6),"") ->  | G78: 72 | T78: 0 | AM78: 72
A79: =IF(O79=A6,COUNTIF(O7:O79,A6),"") ->  | B79: =IF(O79=B6,COUNTIF(O7:O79,B6),"") ->  | C79: =IF(O79=C6,COUNTIF(O7:O79,C6),"") ->  | D79: =IF(O79=D6,COUNTIF(O7:O79,D6),"") ->  | E79: =IF(O79=E6,COUNTIF(O7:O79,E6),"") ->  | F79: =IF(O79=F6,COUNTIF(O7:O79,F6),"") ->  | G79: 73 | T79: 0 | AM79: 73
A80: =IF(O80=A6,COUNTIF(O7:O80,A6),"") ->  | B80: =IF(O80=B6,COUNTIF(O7:O80,B6),"") ->  | C80: =IF(O80=C6,COUNTIF(O7:O80,C6),"") ->  | D80: =IF(O80=D6,COUNTIF(O7:O80,D6),"") ->  | E80: =IF(O80=E6,COUNTIF(O7:O80,E6),"") ->  | F80: =IF(O80=F6,COUNTIF(O7:O80,F6),"") ->  | G80: 74 | T80: 0 | AM80: 74
A81: =IF(O81=A6,COUNTIF(O7:O81,A6),"") ->  | B81: =IF(O81=B6,COUNTIF(O7:O81,B6),"") ->  | C81: =IF(O81=C6,COUNTIF(O7:O81,C6),"") ->  | D81: =IF(O81=D6,COUNTIF(O7:O81,D6),"") ->  | E81: =IF(O81=E6,COUNTIF(O7:O81,E6),"") ->  | F81: =IF(O81=F6,COUNTIF(O7:O81,F6),"") ->  | G81: 75 | T81: 0 | AM81: 75
A82: =IF(O82=A6,COUNTIF(O7:O82,A6),"") ->  | B82: =IF(O82=B6,COUNTIF(O7:O82,B6),"") ->  | C82: =IF(O82=C6,COUNTIF(O7:O82,C6),"") ->  | D82: =IF(O82=D6,COUNTIF(O7:O82,D6),"") ->  | E82: =IF(O82=E6,COUNTIF(O7:O82,E6),"") ->  | F82: =IF(O82=F6,COUNTIF(O7:O82,F6),"") ->  | G82: 76 | T82: 0 | AM82: 76
A83: =IF(O83=A6,COUNTIF(O7:O83,A6),"") ->  | B83: =IF(O83=B6,COUNTIF(O7:O83,B6),"") ->  | C83: =IF(O83=C6,COUNTIF(O7:O83,C6),"") ->  | D83: =IF(O83=D6,COUNTIF(O7:O83,D6),"") ->  | E83: =IF(O83=E6,COUNTIF(O7:O83,E6),"") ->  | F83: =IF(O83=F6,COUNTIF(O7:O83,F6),"") ->  | G83: 77 | T83: 0 | AM83: 77
A84: =IF(O84=A6,COUNTIF(O7:O84,A6),"") ->  | B84: =IF(O84=B6,COUNTIF(O7:O84,B6),"") ->  | C84: =IF(O84=C6,COUNTIF(O7:O84,C6),"") ->  | D84: =IF(O84=D6,COUNTIF(O7:O84,D6),"") ->  | E84: =IF(O84=E6,COUNTIF(O7:O84,E6),"") ->  | F84: =IF(O84=F6,COUNTIF(O7:O84,F6),"") ->  | G84: 78 | T84: 0 | AM84: 78
A85: =IF(O85=A6,COUNTIF(O7:O85,A6),"") ->  | B85: =IF(O85=B6,COUNTIF(O7:O85,B6),"") ->  | C85: =IF(O85=C6,COUNTIF(O7:O85,C6),"") ->  | D85: =IF(O85=D6,COUNTIF(O7:O85,D6),"") ->  | E85: =IF(O85=E6,COUNTIF(O7:O85,E6),"") ->  | F85: =IF(O85=F6,COUNTIF(O7:O85,F6),"") ->  | G85: 79 | T85: 0 | AM85: 79
A86: =IF(O86=A6,COUNTIF(O7:O86,A6),"") ->  | B86: =IF(O86=B6,COUNTIF(O7:O86,B6),"") ->  | C86: =IF(O86=C6,COUNTIF(O7:O86,C6),"") ->  | D86: =IF(O86=D6,COUNTIF(O7:O86,D6),"") ->  | E86: =IF(O86=E6,COUNTIF(O7:O86,E6),"") ->  | F86: =IF(O86=F6,COUNTIF(O7:O86,F6),"") ->  | G86: 80 | T86: 0 | AM86: 80
A87: =IF(O87=A6,COUNTIF(O7:O87,A6),"") ->  | B87: =IF(O87=B6,COUNTIF(O7:O87,B6),"") ->  | C87: =IF(O87=C6,COUNTIF(O7:O87,C6),"") ->  | D87: =IF(O87=D6,COUNTIF(O7:O87,D6),"") ->  | E87: =IF(O87=E6,COUNTIF(O7:O87,E6),"") ->  | F87: =IF(O87=F6,COUNTIF(O7:O87,F6),"") ->  | G87: 81 | T87: 0 | AM87: 81
A88: =IF(O88=A6,COUNTIF(O7:O88,A6),"") ->  | B88: =IF(O88=B6,COUNTIF(O7:O88,B6),"") ->  | C88: =IF(O88=C6,COUNTIF(O7:O88,C6),"") ->  | D88: =IF(O88=D6,COUNTIF(O7:O88,D6),"") ->  | E88: =IF(O88=E6,COUNTIF(O7:O88,E6),"") ->  | F88: =IF(O88=F6,COUNTIF(O7:O88,F6),"") ->  | G88: 82 | T88: 0 | AM88: 82
A89: =IF(O89=A6,COUNTIF(O7:O89,A6),"") ->  | B89: =IF(O89=B6,COUNTIF(O7:O89,B6),"") ->  | C89: =IF(O89=C6,COUNTIF(O7:O89,C6),"") ->  | D89: =IF(O89=D6,COUNTIF(O7:O89,D6),"") ->  | E89: =IF(O89=E6,COUNTIF(O7:O89,E6),"") ->  | F89: =IF(O89=F6,COUNTIF(O7:O89,F6),"") ->  | G89: 83 | T89: 0 | AM89: 83
A90: =IF(O90=A6,COUNTIF(O7:O90,A6),"") ->  | B90: =IF(O90=B6,COUNTIF(O7:O90,B6),"") ->  | C90: =IF(O90=C6,COUNTIF(O7:O90,C6),"") ->  | D90: =IF(O90=D6,COUNTIF(O7:O90,D6),"") ->  | E90: =IF(O90=E6,COUNTIF(O7:O90,E6),"") ->  | F90: =IF(O90=F6,COUNTIF(O7:O90,F6),"") ->  | G90: 84 | T90: 0 | AM90: 84
A91: =IF(O91=A6,COUNTIF(O7:O91,A6),"") ->  | B91: =IF(O91=B6,COUNTIF(O7:O91,B6),"") ->  | C91: =IF(O91=C6,COUNTIF(O7:O91,C6),"") ->  | D91: =IF(O91=D6,COUNTIF(O7:O91,D6),"") ->  | E91: =IF(O91=E6,COUNTIF(O7:O91,E6),"") ->  | F91: =IF(O91=F6,COUNTIF(O7:O91,F6),"") ->  | G91: 85 | T91: 0 | AM91: 85
A92: =IF(O92=A6,COUNTIF(O7:O92,A6),"") ->  | B92: =IF(O92=B6,COUNTIF(O7:O92,B6),"") ->  | C92: =IF(O92=C6,COUNTIF(O7:O92,C6),"") ->  | D92: =IF(O92=D6,COUNTIF(O7:O92,D6),"") ->  | E92: =IF(O92=E6,COUNTIF(O7:O92,E6),"") ->  | F92: =IF(O92=F6,COUNTIF(O7:O92,F6),"") ->  | G92: 86 | T92: 0 | AM92: 86
A93: =IF(O93=A6,COUNTIF(O7:O93,A6),"") ->  | B93: =IF(O93=B6,COUNTIF(O7:O93,B6),"") ->  | C93: =IF(O93=C6,COUNTIF(O7:O93,C6),"") ->  | D93: =IF(O93=D6,COUNTIF(O7:O93,D6),"") ->  | E93: =IF(O93=E6,COUNTIF(O7:O93,E6),"") ->  | F93: =IF(O93=F6,COUNTIF(O7:O93,F6),"") ->  | G93: 87 | T93: 0 | AM93: 87
A94: =IF(O94=A6,COUNTIF(O7:O94,A6),"") ->  | B94: =IF(O94=B6,COUNTIF(O7:O94,B6),"") ->  | C94: =IF(O94=C6,COUNTIF(O7:O94,C6),"") ->  | D94: =IF(O94=D6,COUNTIF(O7:O94,D6),"") ->  | E94: =IF(O94=E6,COUNTIF(O7:O94,E6),"") ->  | F94: =IF(O94=F6,COUNTIF(O7:O94,F6),"") ->  | G94: 88 | T94: 0 | AM94: 88
A95: =IF(O95=A6,COUNTIF(O7:O95,A6),"") ->  | B95: =IF(O95=B6,COUNTIF(O7:O95,B6),"") ->  | C95: =IF(O95=C6,COUNTIF(O7:O95,C6),"") ->  | D95: =IF(O95=D6,COUNTIF(O7:O95,D6),"") ->  | E95: =IF(O95=E6,COUNTIF(O7:O95,E6),"") ->  | F95: =IF(O95=F6,COUNTIF(O7:O95,F6),"") ->  | G95: 89 | T95: 0 | AM95: 89
A96: =IF(O96=A6,COUNTIF(O7:O96,A6),"") ->  | B96: =IF(O96=B6,COUNTIF(O7:O96,B6),"") ->  | C96: =IF(O96=C6,COUNTIF(O7:O96,C6),"") ->  | D96: =IF(O96=D6,COUNTIF(O7:O96,D6),"") ->  | E96: =IF(O96=E6,COUNTIF(O7:O96,E6),"") ->  | F96: =IF(O96=F6,COUNTIF(O7:O96,F6),"") ->  | G96: 90 | T96: 0 | AM96: 90
A97: =IF(O97=A6,COUNTIF(O7:O97,A6),"") ->  | B97: =IF(O97=B6,COUNTIF(O7:O97,B6),"") ->  | C97: =IF(O97=C6,COUNTIF(O7:O97,C6),"") ->  | D97: =IF(O97=D6,COUNTIF(O7:O97,D6),"") ->  | E97: =IF(O97=E6,COUNTIF(O7:O97,E6),"") ->  | F97: =IF(O97=F6,COUNTIF(O7:O97,F6),"") ->  | G97: 91 | T97: 0 | AM97: 91
A98: =IF(O98=A6,COUNTIF(O7:O98,A6),"") ->  | B98: =IF(O98=B6,COUNTIF(O7:O98,B6),"") ->  | C98: =IF(O98=C6,COUNTIF(O7:O98,C6),"") ->  | D98: =IF(O98=D6,COUNTIF(O7:O98,D6),"") ->  | E98: =IF(O98=E6,COUNTIF(O7:O98,E6),"") ->  | F98: =IF(O98=F6,COUNTIF(O7:O98,F6),"") ->  | G98: 92 | T98: 0 | AM98: 92
A99: =IF(O99=A6,COUNTIF(O7:O99,A6),"") ->  | B99: =IF(O99=B6,COUNTIF(O7:O99,B6),"") ->  | C99: =IF(O99=C6,COUNTIF(O7:O99,C6),"") ->  | D99: =IF(O99=D6,COUNTIF(O7:O99,D6),"") ->  | E99: =IF(O99=E6,COUNTIF(O7:O99,E6),"") ->  | F99: =IF(O99=F6,COUNTIF(O7:O99,F6),"") ->  | G99: 93 | T99: 0 | AM99: 93
A100: =IF(O100=A6,COUNTIF(O7:O100,A6),"") ->  | B100: =IF(O100=B6,COUNTIF(O7:O100,B6),"") ->  | C100: =IF(O100=C6,COUNTIF(O7:O100,C6),"") ->  | D100: =IF(O100=D6,COUNTIF(O7:O100,D6),"") ->  | E100: =IF(O100=E6,COUNTIF(O7:O100,E6),"") ->  | F100: =IF(O100=F6,COUNTIF(O7:O100,F6),"") ->  | G100: 94 | T100: 0 | AM100: 94
A101: =IF(O101=A6,COUNTIF(O7:O101,A6),"") ->  | B101: =IF(O101=B6,COUNTIF(O7:O101,B6),"") ->  | C101: =IF(O101=C6,COUNTIF(O7:O101,C6),"") ->  | D101: =IF(O101=D6,COUNTIF(O7:O101,D6),"") ->  | E101: =IF(O101=E6,COUNTIF(O7:O101,E6),"") ->  | F101: =IF(O101=F6,COUNTIF(O7:O101,F6),"") ->  | G101: 95 | T101: 0 | AM101: 95
A102: =IF(O102=A6,COUNTIF(O7:O102,A6),"") ->  | B102: =IF(O102=B6,COUNTIF(O7:O102,B6),"") ->  | C102: =IF(O102=C6,COUNTIF(O7:O102,C6),"") ->  | D102: =IF(O102=D6,COUNTIF(O7:O102,D6),"") ->  | E102: =IF(O102=E6,COUNTIF(O7:O102,E6),"") ->  | F102: =IF(O102=F6,COUNTIF(O7:O102,F6),"") ->  | G102: 96 | T102: 0 | AM102: 96
A103: =IF(O103=A6,COUNTIF(O7:O103,A6),"") ->  | B103: =IF(O103=B6,COUNTIF(O7:O103,B6),"") ->  | C103: =IF(O103=C6,COUNTIF(O7:O103,C6),"") ->  | D103: =IF(O103=D6,COUNTIF(O7:O103,D6),"") ->  | E103: =IF(O103=E6,COUNTIF(O7:O103,E6),"") ->  | F103: =IF(O103=F6,COUNTIF(O7:O103,F6),"") ->  | G103: 97 | T103: 0 | AM103: 97
A104: =IF(O104=A6,COUNTIF(O7:O104,A6),"") ->  | B104: =IF(O104=B6,COUNTIF(O7:O104,B6),"") ->  | C104: =IF(O104=C6,COUNTIF(O7:O104,C6),"") ->  | D104: =IF(O104=D6,COUNTIF(O7:O104,D6),"") ->  | E104: =IF(O104=E6,COUNTIF(O7:O104,E6),"") ->  | F104: =IF(O104=F6,COUNTIF(O7:O104,F6),"") ->  | G104: 98 | T104: 0 | AM104: 98
A105: =IF(O105=A6,COUNTIF(O7:O105,A6),"") ->  | B105: =IF(O105=B6,COUNTIF(O7:O105,B6),"") ->  | C105: =IF(O105=C6,COUNTIF(O7:O105,C6),"") ->  | D105: =IF(O105=D6,COUNTIF(O7:O105,D6),"") ->  | E105: =IF(O105=E6,COUNTIF(O7:O105,E6),"") ->  | F105: =IF(O105=F6,COUNTIF(O7:O105,F6),"") ->  | G105: 99 | T105: 0 | AM105: 99
A106: =IF(O106=A6,COUNTIF(O7:O106,A6),"") ->  | B106: =IF(O106=B6,COUNTIF(O7:O106,B6),"") ->  | C106: =IF(O106=C6,COUNTIF(O7:O106,C6),"") ->  | D106: =IF(O106=D6,COUNTIF(O7:O106,D6),"") ->  | E106: =IF(O106=E6,COUNTIF(O7:O106,E6),"") ->  | F106: =IF(O106=F6,COUNTIF(O7:O106,F6),"") ->  | G106: 100 | T106: 0 | AM106: 100
G107: =CONCATENATE($G$5," ","Individual Medal Winners") -> Senior Boys Individual Medal Winners | T107: f
G108: Pos | H108: Num | I108: Name | O108: County | S108: Time
G109: 1 | H109: =IF(H7=0,"",H7) -> 1 | I109: Josh Cowpertwaite | O109: Cleveland | S109: =IF(S7=0,"",S7) -> 23.41 | T109: =IF(H109="",0,1) -> 1
G110: 2 | H110: 21 | I110: Joe Dugdale | O110: Cumbria | S110: =IF(S8=0,"",S8) -> 24.24 | T110: =IF(H110="",0,1) -> 1
G111: 3 | H111: 61 | I111: Kieran Hedley | O111: Northumberland | S111: =IF(S9=0,"",S9) -> 24.52 | T111: =IF(H111="",0,1) -> 1
T112: g
G113: =CONCATENATE($G$5," ","Team Results") -> Senior Boys Team Results | T113: h | Y113: =G113 -> Senior Boys Team Results
H114: Team Name | M114: 1st | N114: 2nd | O114: 3rd | P114: 4th | Q114: 5th | R114: 6th | S114: Points | T114: i | W114: =P5 -> 0 | Z114: 1 | AA114: 2 | AB114: 3 | AC114: 4 | AD114: 5 | AE114: 6 | AF114: Pts
G115: 1 | H115: =IFERROR(VLOOKUP(G115,$X$115:$AF$119,2,0),"") -> North Yorkshire | M115: =IFERROR(VLOOKUP(G115,$X$115:$AF$119,3,0),"") -> 4 | N115: =IFERROR(VLOOKUP(G115,$X$115:$AF$119,4,0),"") -> 5 | O115: =IFERROR(VLOOKUP(G115,$X$115:$AF$119,5,0),"") -> 7 | P115: =IFERROR(VLOOKUP(G115,$X$115:$AF$119,6,0),"") -> 8 | Q115: =IFERROR(VLOOKUP(G115,$X$115:$AF$119,7,0),"") -> 9 | R115: =IFERROR(VLOOKUP(G115,$X$115:$AF$119,8,0),"") -> 18 | S115: =SUM(M115:R115) -> 51 | T115: =IF(H115="",0,1) -> 1 | W115: 7 | X115: =IF(OR(AJ115="",AJ115=0),0,RANK(AJ115,AJ115:AJ120,1)) -> 0 | Y115: =Home!F4 -> Cleveland | Z115: =IFERROR(VLOOKUP(Z114,$A$7:$G$106,W115,0),0) -> 1 | AA115: =IFERROR(VLOOKUP(AA114,A$7:G$106,W115,0),0) -> 15 | AB115: =IFERROR(VLOOKUP(AB114,A$7:G$106,W115,0),0) -> 21 | AC115: =IF(W114=3,0,IFERROR(VLOOKUP(AC114,A$7:G$106,W115,0),0)) -> 38 | AD115: =IF(W114=4,0,IFERROR(VLOOKUP(AD114,A$7:G$106,W115,0),0)) -> 53 | AE115: =IF(OR(W114=4,W114=5),0,IFERROR(VLOOKUP(AE114,A$7:G$106,W115,0),0)) -> 0 | AF115: =IF(AE115=0,0,SUM(Z115:AE115)) -> 0 | AG115: =IF(OR(AF115=0,AF115=""),0,RANK(AF115,AF115:AF120,1)) -> 0 | AH115: =IF(OR(AG115=0,AG115=""),"",IF(OR(AG115=AG116,AG115=AG117,AG115=AG118,AG115=AG119,AG115=AG120),"=","")) ->  | AI115: =IF(AH115="=",COUNTIF(AH115:AH115,"<>A")-COUNTIF(AH115:AH115,""),0) -> 0 | AJ115: =IF(AND(AG115=0,AI115=0),"",AG115+(AI115/10)+AL115/10) ->  | AK115: =X115 -> 0 | AL115: =IF(OR(AF115=0,AF115=""),0,RANK(Z115,Z115:Z120,1)) -> 0
G116: 2 | H116: =IFERROR(VLOOKUP(G116,$X$115:$AF$119,2,0),"") -> Cumbria | M116: =IFERROR(VLOOKUP(G116,$X$115:$AF$119,3,0),"") -> 2 | N116: =IFERROR(VLOOKUP(G116,$X$115:$AF$119,4,0),"") -> 10 | O116: =IFERROR(VLOOKUP(G116,$X$115:$AF$119,5,0),"") -> 12 | P116: =IFERROR(VLOOKUP(G116,$X$115:$AF$119,6,0),"") -> 13 | Q116: =IFERROR(VLOOKUP(G116,$X$115:$AF$119,7,0),"") -> 19 | R116: =IFERROR(VLOOKUP(G116,$X$115:$AF$119,8,0),"") -> 20 | S116: =SUM(M116:R116) -> 76 | T116: 1 | W116: 6 | X116: =IF(OR(AJ116="",AJ116=0),0,RANK(AJ116,AJ115:AJ120,1)) -> 2 | Y116: =Home!F5 -> Cumbria | Z116: =IFERROR(VLOOKUP(Z114,$B$7:$G$106,W116,0),0) -> 2 | AA116: =IFERROR(VLOOKUP(AA114,B$7:G$106,W116,0),0) -> 10 | AB116: =IFERROR(VLOOKUP(AB114,B$7:G$106,W116,0),0) -> 12 | AC116: =IF(W114=3,0,IFERROR(VLOOKUP(AC114,B$7:G$106,W116,0),0)) -> 13 | AD116: =IF(W114=4,0,IFERROR(VLOOKUP(AD114,B$7:G$106,W116,0),0)) -> 19 | AE116: =IF(OR(W114=4,W114=5),0,IFERROR(VLOOKUP(AE114,B$7:G$106,W116,0),0)) -> 20 | AF116: =IF(AE116=0,0,SUM(Z116:AE116)) -> 76 | AG116: =IF(OR(AF116=0,AF116=""),0,RANK(AF116,AF115:AF120,1)) -> 4 | AH116: =IF(OR(AG116=0,AG116=""),"",IF(OR(AG116=AG117,AG116=AG118,AG116=AG119,AG116=AG120,AG116=AG115),"=","")) ->  | AI116: =IF(AH116="=",COUNTIF(AH115:AH116,"<>A")-COUNTIF(AH115:AH116,""),0) -> 0 | AJ116: =IF(AND(AG116=0,AI116=0),"",AG116+(AI116/10)+AL116/10) -> 4.3 | AK116: =X116 -> 2 | AL116: =IF(OR(AF116=0,AF116=""),0,RANK(Z116,Z115:Z120,1)) -> 3
G117: 3 | H117: Northumberland | M117: 3 | N117: 6 | O117: 14 | P117: 24 | Q117: 29 | R117: 31 | S117: 107 | T117: 1 | W117: 5 | X117: =IF(OR(AJ117="",AJ117=0),0,RANK(AJ117,AJ115:AJ120,1)) -> 4 | Y117: =Home!F6 -> Durham | Z117: =IFERROR(VLOOKUP(Z114,$C$7:$G$106,W117,0),0) -> 11 | AA117: =IFERROR(VLOOKUP(AA114,C$7:G$106,W117,0),0) -> 16 | AB117: =IFERROR(VLOOKUP(AB114,C$7:G$106,W117,0),0) -> 17 | AC117: =IF(W114=3,0,IFERROR(VLOOKUP(AC114,C$7:G$106,W117,0),0)) -> 22 | AD117: =IF(W114=4,0,IFERROR(VLOOKUP(AD114,C$7:G$106,W117,0),0)) -> 26 | AE117: =IF(OR(W114=4,W114=5),0,IFERROR(VLOOKUP(AE114,C$7:G$106,W117,0),0)) -> 33 | AF117: 125 | AG117: =IF(OR(AF117=0,AF117=""),0,RANK(AF117,AF115:AF120,1)) -> 6 | AH117: =IF(OR(AG117=0,AG117=""),"",IF(OR(AG117=AG118,AG117=AG119,AG117=AG120,AG117=AG115,AG117=AG116),"=","")) ->  | AI117: =IF(AH117="=",COUNTIF(AH115:AH117,"<>A")-COUNTIF(AH115:AH117,""),0) -> 0 | AJ117: 6.6 | AK117: 4 | AL117: =IF(OR(AF117=0,AF117=""),0,RANK(Z117,Z115:Z120,1)) -> 6
G118: 4 | H118: Durham | M118: 11 | N118: 16 | O118: 17 | P118: 22 | Q118: 26 | R118: 33 | S118: 125 | T118: 1 | W118: 4 | X118: =IF(OR(AJ118="",AJ118=0),0,RANK(AJ118,AJ115:AJ120,1)) -> 3 | Y118: =Home!F7 -> Northumberland | Z118: =IFERROR(VLOOKUP(Z114,$D$7:$G$106,W118,0),0) -> 3 | AA118: =IFERROR(VLOOKUP(AA114,D$7:G$106,W118,0),0) -> 6 | AB118: =IFERROR(VLOOKUP(AB114,D$7:G$106,W118,0),0) -> 14 | AC118: =IF(W114=3,0,IFERROR(VLOOKUP(AC114,D$7:G$106,W118,0),0)) -> 24 | AD118: =IF(W114=4,0,IFERROR(VLOOKUP(AD114,D$7:G$106,W118,0),0)) -> 29 | AE118: =IF(OR(W114=4,W114=5),0,IFERROR(VLOOKUP(AE114,D$7:G$106,W118,0),0)) -> 31 | AF118: 107 | AG118: =IF(OR(AF118=0,AF118=""),0,RANK(AF118,AF115:AF120,1)) -> 5 | AH118: =IF(OR(AG118=0,AG118=""),"",IF(OR(AG118=AG119,AG118=AG120,AG118=AG115,AG118=AG116,AG118=AG117),"=","")) ->  | AI118: =IF(AH118="=",COUNTIF(AH115:AH118,"<>A")-COUNTIF(AH115:AH118,""),0) -> 0 | AJ118: 5.4 | AK118: 3 | AL118: =IF(OR(AF118=0,AF118=""),0,RANK(Z118,Z115:Z120,1)) -> 4
G119: 5 | S119: 0 | T119: 0 | W119: 3 | X119: =IF(OR(AJ119="",AJ119=0),0,RANK(AJ119,AJ115:AJ120,1)) -> 1 | Y119: =Home!F8 -> North Yorkshire | Z119: =IFERROR(VLOOKUP(Z114,$E$7:$G$106,W119,0),0) -> 4 | AA119: =IFERROR(VLOOKUP(AA114,E$7:G$106,W119,0),0) -> 5 | AB119: =IFERROR(VLOOKUP(AB114,E$7:G$106,W119,0),0) -> 7 | AC119: =IF(W114=3,0,IFERROR(VLOOKUP(AC114,E$7:G$106,W119,0),0)) -> 8 | AD119: =IF(W114=4,0,IFERROR(VLOOKUP(AD114,E$7:G$106,W119,0),0)) -> 9 | AE119: =IF(OR(W114=4,W114=5),0,IFERROR(VLOOKUP(AE114,E$7:G$106,W119,0),0)) -> 18 | AF119: 51 | AG119: =IF(OR(AF119=0,AF119=""),0,RANK(AF119,AF115:AF120,1)) -> 3 | AH119: =IF(OR(AG119=0,AG119=""),"",IF(OR(AG119=AG120,AG119=AG115,AG119=AG116,AG119=AG117,AG119=AG118),"=","")) ->  | AI119: =IF(AH119="=",COUNTIF(AH115:AH119,"<>A")-COUNTIF(AH115:AH119,""),0) -> 0 | AJ119: 3.5 | AK119: 1 | AL119: =IF(OR(AF119=0,AF119=""),0,RANK(Z119,Z115:Z120,1)) -> 5
W120: 2 | X120: =IF(OR(AJ120="",AJ120=0),0,RANK(AJ120,AJ115:AJ120,1)) -> 0 | Y120: =Home!F9 -> 0 | Z120: =IFERROR(VLOOKUP(Z114,F7:G106,W120,0),0) -> 0 | AA120: =IFERROR(VLOOKUP(AA114,F7:G106,W120,0),0) -> 0 | AB120: =IFERROR(VLOOKUP(AB114,F7:G106,W120,0),0) -> 0 | AC120: =IF(W114=3,0,IFERROR(VLOOKUP(AC114,F7:G106,W120,0),0)) -> 0 | AD120: =IF(W114=4,0,IFERROR(VLOOKUP(AD114,F7:G106,W120,0),0)) -> 0 | AE120: =IF(OR(W114=4,W114=5),0,IFERROR(VLOOKUP(AE114,F7:G106,W120,0),0)) -> 0 | AF120: =IF(AE120=0,0,SUM(Z120:AE120)) -> 0 | AG120: =IF(OR(AF120=0,AF120=""),0,RANK(AF120,AF115:AF120,1)) -> 0 | AH120: =IF(OR(AG120=0,AG120=""),"",IF(OR(AG120=AG115,AG120=AG116,AG120=AG117,AG120=AG118,AG120=AG119),"=","")) ->  | AI120: =IF(AH120="=",COUNTIF(AH115:AH120,"<>A")-COUNTIF(AH115:AH120,""),0) -> 0 | AK120: 0 | AL120: =IF(OR(AF120=0,AF120=""),0,RANK(Z120,Z115:Z120,1)) -> 0

Sheet Boys Declarations
A1: Minor Boys (Year 7) | E1: Junior Boys (Year 8/9) | I1: Intermediate Boys (Year 10/11) | M1: Senior Boys (Year 12/13)
A2: Num | B2: Name | C2: County | E2: Num | F2: Name | G2: County | I2: Num | J2: Name | K2: County | M2: Num | N2: Name | O2: County
A3: 1 | B3: Noah Payne | C3: Cleveland | E3: 1 | F3: Max Creasey | G3: Cleveland | I3: 1 | J3: Archie Lowe | K3: Cleveland | M3: 1 | N3: Josh Cowpertwaite | O3: Cleveland
A4: 2 | B4: Jack Farrell | C4: Cleveland | E4: 2 | F4: James Hughes | G4: Cleveland | I4: 2 | J4: Daniel Currie | K4: Cleveland | M4: 2 | N4: BenPalmer | O4: Cleveland
A5: 3 | B5: Riley Middleton | C5: Cleveland | E5: 3 | F5: Rohan Teasdale | G5: Cleveland | I5: 3 | J5: Dan Payne | K5: Cleveland | M5: 3 | N5: Luke Petit | O5: Cleveland
A6: 4 | B6: Oliver Samuel | C6: Cleveland | E6: 4 | F6: Ben Johnson | G6: Cleveland | I6: 4 | J6: Patrick Haycock | K6: Cleveland | M6: 4 | N6: Cameron Spence | O6: Cleveland
A7: 5 | B7: Tom Graham | C7: Cleveland | E7: 5 | F7: Liam Cooper | G7: Cleveland | I7: 5 | J7: Jake Creasey | K7: Cleveland | M7: 5 | N7: Scott Mann | O7: Cleveland
A8: 6 | B8: John Bolam | C8: Cleveland | E8: 6 | F8: Will Simpson | G8: Cleveland | I8: 6 | J8: Daniel Gunn | K8: Cleveland | M8: 6 | O8: Cleveland
A9: 7 | B9: Max Peverall | C9: Cleveland | E9: 7 | F9: Harvey Kaid | G9: Cleveland | I9: 7 | J9: Henry Mitson | K9: Cleveland | M9: 7 | O9: Cleveland
A10: 8 | B10: Liam Woods-Ruddick | C10: Cleveland | E10: 8 | F10: James Skull | G10: Cleveland | I10: 8 | J10: Harry Dunmure | K10: Cleveland | M10: 8 | O10: Cleveland
A11: 9 | C11: Cleveland | E11: 9 | F11: Matthew Walters | G11: Cleveland | I11: 9 | J11: Dominic Shipman | K11: Cleveland | M11: 9 | O11: Cleveland
A12: 10 | C12: Cleveland | E12: 10 | F12: Scott Temple | G12: Cleveland | I12: 10 | J12: Ben Grounds | K12: Cleveland | M12: 10 | O12: Cleveland
A13: 11 | C13: Cleveland | E13: 11 | F13: Ben Hodgson | G13: Cleveland | I13: 11 | J13: Bradley Povey | K13: Cleveland | M13: 11 | O13: Cleveland
A14: 12 | C14: Cleveland | E14: 12 | F14: Alex Lake | G14: Cleveland | I14: 12 | J14: Sadiquilah Safi | K14: Cleveland | M14: 12 | O14: Cleveland
A15: 13 | C15: Cleveland | E15: 13 | F15: Frankie Angloy | G15: Cleveland | I15: 13 | J15: Luke Hutchinson | K15: Cleveland | M15: 13 | O15: Cleveland
A16: 14 | C16: Cleveland | E16: 14 | F16: Lochlain Lacy | G16: Cleveland | I16: 14 | J16: Joe Micklewright | K16: Cleveland | M16: 14 | O16: Cleveland
A17: 15 | C17: Cleveland | E17: 15 | F17: Brad Jolly | G17: Cleveland | I17: 15 | J17: Kai Seed | K17: Cleveland | M17: 15 | O17: Cleveland
A18: 16 | C18: Cleveland | E18: 16 | F18: Ollie Cairney | G18: Cleveland | I18: 16 | J18: Arib Dad | K18: Cleveland | M18: 16 | O18: Cleveland
A19: 17 | C19: Cleveland | E19: 17 | G19: Cleveland | I19: 17 | K19: Cleveland | M19: 17 | O19: Cleveland
A20: 18 | C20: Cleveland | E20: 18 | G20: Cleveland | I20: 18 | K20: Cleveland | M20: 18 | O20: Cleveland
A21: 19 | C21: Cleveland | E21: 19 | G21: Cleveland | I21: 19 | K21: Cleveland | M21: 19 | O21: Cleveland
A22: 20 | C22: Cleveland | E22: 20 | G22: Cleveland | I22: 20 | K22: Cleveland | M22: 20 | O22: Cleveland
A23: 21 | B23: Thomas Renwick | C23: Cumbria | E23: 21 | F23: Fraser Sproul | G23: Cumbria | I23: 21 | J23: Sol Johl | K23: Cumbria | M23: 21 | N23: Joe Dugdale | O23: Cumbria
A24: 22 | B24: Hector Westmorland-Nicholson | C24: Cumbria | E24: 22 | F24: Daniel Sanderson | G24: Cumbria | I24: 22 | J24: Robin Regan | K24: Cumbria | M24: 22 | N24: Scott Evans | O24: Cumbria
A25: 23 | B25: Mason McAnaney | C25: Cumbria | E25: 23 | F25: James Bowen | G25: Cumbria | I25: 23 | J25: Charlie Harding | K25: Cumbria | M25: 23 | N25: Ben Van Djik | O25: Cumbria
A26: 24 | B26: Charlie Barry | C26: Cumbria | E26: 24 | F26: Oliie Sanders | G26: Cumbria | I26: 24 | J26: Mitchell Liddle | K26: Cumbria | M26: 24 | N26: Harry Greenbank | O26: Cumbria
A27: 25 | B27: Harry Ewbank | C27: Cumbria | E27: 25 | F27: John Egner | G27: Cumbria | I27: 25 | J27: Toby Umpleby | K27: Cumbria | M27: 25 | N27: Reuben Copley | O27: Cumbria
A28: 26 | B28: Oliver Smith | C28: Cumbria | E28: 26 | F28: Ben O'Dowd | G28: Cumbria | I28: 26 | J28: Max Parry | K28: Cumbria | M28: 26 | N28: Jamie McMillan | O28: Cumbria
A29: 27 | B29: Joseph Rigby | C29: Cumbria | E29: 27 | F29: James Young | G29: Cumbria | I29: 27 | J29: Lewis Bowness | K29: Cumbria | M29: 27 | N29: Joshua Liddle | O29: Cumbria
A30: 28 | B30: Fin Logue | C30: Cumbria | E30: 28 | F30: James Dixon | G30: Cumbria | I30: 28 | J30: Archie Irving | K30: Cumbria | M30: 28 | N30: George Rigal | O30: Cumbria
A31: 29 | B31: Greg Barnard McKenzie | C31: Cumbria | E31: 29 | F31: Ben Smith | G31: Cumbria | I31: 29 | J31: Ben Edmondson | K31: Cumbria | M31: 29 | N31: Kieran Reynolds | O31: Cumbria
A32: 30 | B32: Daniel Knott | C32: Cumbria | E32: 30 | F32: George Sidaway | G32: Cumbria | I32: 30 | J32: Jacob Smith | K32: Cumbria | M32: 30 | N32: Edward Taylor | O32: Cumbria
A33: 31 | B33: Ed Sargent | C33: Cumbria | E33: 31 | F33: Dylan Edwards | G33: Cumbria | I33: 31 | J33: Felix Kirsten | K33: Cumbria | M33: 31 | N33: Luke Bowen | O33: Cumbria
A34: 32 | B34: Kia Hatcher | C34: Cumbria | E34: 32 | F34: Lucas Messenger Jones | G34: Cumbria | I34: 32 | J34: Sam Almond | K34: Cumbria | M34: 32 | N34: Ben Granger | O34: Cumbria
A35: 33 | B35: Isaac Barber | C35: Cumbria | E35: 33 | F35: Finn Harrison | G35: Cumbria | I35: 33 | J35: Toby Winnard | K35: Cumbria | M35: 33 | N35: Harry Bolton | O35: Cumbria
A36: 34 | B36: Sam Hetherington | C36: Cumbria | E36: 34 | F36: Felix Bower | G36: Cumbria | I36: 34 | J36: Elliott Judge | K36: Cumbria | M36: 34 | N36: Spencer Bird | O36: Cumbria
A37: 35 | B37: Zane Alderson | C37: Cumbria | E37: 35 | F37: Harry Bowen | G37: Cumbria | I37: 35 | J37: Alex Beddoes | K37: Cumbria | M37: 35 | N37: Jacob Aubrey | O37: Cumbria
A38: 36 | B38: Aaron Fitzpatrick | C38: Cumbria | E38: 36 | F38: Finlay Corkill | G38: Cumbria | I38: 36 | J38: Harry Sidaway | K38: Cumbria | M38: 36 | N38: James Mattinson | O38: Cumbria
A39: 37 | B39: Finn Walker | C39: Cumbria | E39: 37 | F39: Freddie Hill | G39: Cumbria | I39: 37 | J39: Craig Bottomley | K39: Cumbria | M39: 37 | N39: Billy Robinson | O39: Cumbria
A40: 38 | B40: Ewan Wright | C40: Cumbria | E40: 38 | F40: Charlie Renney | G40: Cumbria | I40: 38 | J40: Seamus Edwards | K40: Cumbria | M40: 38 | N40: Struan Freeborn | O40: Cumbria
A41: 39 | B41: Caius Pennington | C41: Cumbria | E41: 39 | F41: Jacob Nelson | G41: Cumbria | I41: 39 | J41: Sam McSherry | K41: Cumbria | M41: 39 | N41: Harris Strickland | O41: Cumbria
A42: 40 | B42: Warren Dance | C42: Cumbria | E42: 40 | F42: Olly Saxon | G42: Cumbria | I42: 40 | J42: Leo Peres | K42: Cumbria | M42: 40 | N42: Jake shuttleworth | O42: Cumbria
A43: 41 | B43: Daniel Richardson | C43: Durham | E43: 41 | F43: David Race | G43: Durham | I43: 41 | J43: Henry Johnson | K43: Durham | M43: 41 | N43: Cameron Allan | O43: Durham
A44: 42 | B44: Dylan Wilson | C44: Durham | E44: 42 | F44: Christopher Perkins | G44: Durham | I44: 42 | J44: Sam Gibson | K44: Durham | M44: 42 | N44: Max Harris | O44: Durham
A45: 43 | B45: Angus Milne | C45: Durham | E45: 43 | F45: Adam Russell | G45: Durham | I45: 43 | J45: Cameron Thomas | K45: Durham | M45: 43 | N45: Jack Brown | O45: Durham
A46: 44 | B46: George Wilkinson | C46: Durham | E46: 44 | F46: Peter Cook | G46: Durham | I46: 44 | J46: Daniel Joyce | K46: Durham | M46: 44 | N46: Sean Mackie | O46: Durham
A47: 45 | B47: George Beevers | C47: Durham | E47: 45 | F47: John Russell | G47: Durham | I47: 45 | J47: Daniel Boyer | K47: Durham | M47: 45 | N47: Matthew Phillips | O47: Durham
A48: 46 | B48: Jordy Armstrong | C48: Durham | E48: 46 | F48: Duncan Hughes | G48: Durham | I48: 46 | J48: Jamie Barnshaw | K48: Durham | M48: 46 | N48: Ryan Watson | O48: Durham
A49: 47 | B49: Benjamin Giles | C49: Durham | E49: 47 | F49: Chris Coulson | G49: Durham | I49: 47 | J49: James Roberts | K49: Durham | M49: 47 | N49: Jonny Langley | O49: Durham
A50: 48 | B50: Luke Bell | C50: Durham | E50: 48 | F50: Ben Dowsett | G50: Durham | I50: 48 | J50: Izaak Robinson Taylor | K50: Durham | M50: 48 | N50: Joe Ponfret | O50: Durham
A51: 49 | B51: Sam Terry | C51: Durham | E51: 49 | F51: Dillon Revell | G51: Durham | I51: 49 | J51: Joshua Maner | K51: Durham | M51: 49 | N51: Ben Horsfield | O51: Durham
A52: 50 | B52: William Henderson | C52: Durham | E52: 50 | F52: Joshua Wraith | G52: Durham | I52: 50 | J52: Alfie Phillips | K52: Durham | M52: 50 | N52: James Martin | O52: Durham
A53: 51 | B53: Zach Twaddle | C53: Durham | E53: 51 | F53: Thomas Wraith | G53: Durham | I53: 51 | J53: Matthew Appleby | K53: Durham | M53: 51 | N53: Jacob Stephenson | O53: Durham
A54: 52 | B54: Noah Glanville | C54: Durham | E54: 52 | F54: Ryan Stewart | G54: Durham | I54: 52 | J54: Joshua Dan | K54: Durham | M54: 52 | N54: Joshua Erlebach | O54: Durham
A55: 53 | C55: Durham | E55: 53 | F55: Freddie Langton | G55: Durham | I55: 53 | J55: Liam Brittle | K55: Durham | M55: 53 | N55: Adam Middleton | O55: Durham
A56: 54 | C56: Durham | E56: 54 | F56: Oliver McKenna | G56: Durham | I56: 54 | J56: Will Lindsey | K56: Durham | M56: 54 | N56: Conal Tufnell | O56: Durham
A57: 55 | C57: Durham | E57: 55 | F57: Ben Underwood | G57: Durham | I57: 55 | J57: Charles McIntosh | K57: Durham | M57: 55 | N57: Jack Prowse | O57: Durham
A58: 56 | C58: Durham | E58: 56 | F58: Theo Barrow | G58: Durham | I58: 56 | J58: Ollie Barrett | K58: Durham | M58: 56 | N58: Mitch Marshall | O58: Durham
A59: 57 | C59: Durham | E59: 57 | F59: Liam Eastaugh | G59: Durham | I59: 57 | J59: Will Bellamy | K59: Durham | M59: 57 | N59: Luke Pickering | O59: Durham
A60: 58 | C60: Durham | E60: 58 | F60: Harry Wilson | G60: Durham | I60: 58 | J60: Adam Wilson | K60: Durham | M60: 58 | N60: Michael Wade | O60: Durham
A61: 59 | C61: Durham | E61: 59 | F61: Nathan Mawer | G61: Durham | I61: 59 | J61: Joshua Duarte | K61: Durham | M61: 59 | O61: Durham
A62: 60 | C62: Durham | E62: 60 | G62: Durham | I62: 60 | K62: Durham | M62: 60 | O62: Durham
A63: 61 | B63: Tom Slane | C63: Northumberland | E63: 61 | F63: Ethan McGlen | G63: Northumberland | I63: 61 | J63: Sam Charlton | K63: Northumberland | M63: 61 | N63: Kieran Hedley | O63: Northumberland
A64: 62 | B64: Max Murray-John | C64: Northumberland | E64: 62 | F64: Euan Duffin | G64: Northumberland | I64: 62 | J64: Ross Charlton | K64: Northumberland | M64: 62 | N64: Taylor Glover | O64: Northumberland
A65: 63 | B65: Ethan Bond | C65: Northumberland | E65: 63 | F65: William Collinson | G65: Northumberland | I65: 63 | J65: Daniel Melling | K65: Northumberland | M65: 63 | N65: Patrick Donald | O65: Northumberland
A66: 64 | B66: Noah Curran | C66: Northumberland | E66: 64 | F66: Dylan Davies | G66: Northumberland | I66: 64 | J66: Daniel Dixon | K66: Northumberland | M66: 64 | N66: Max Pearson | O66: Northumberland
A67: 65 | B67: Cameron Simpson | C67: Northumberland | E67: 65 | F67: Kieron Mutch | G67: Northumberland | I67: 65 | J67: Josh Fiddaman | K67: Northumberland | M67: 65 | N67: James Morris | O67: Northumberland
A68: 66 | B68: Charlie Whittaker | C68: Northumberland | E68: 66 | F68: Ralph Robinson | G68: Northumberland | I68: 66 | J68: Thomas Susham | K68: Northumberland | M68: 66 | N68: William Dixon | O68: Northumberland
A69: 67 | B69: Bertie Marr | C69: Northumberland | E69: 67 | F69: Samuel Tate | G69: Northumberland | I69: 67 | J69: Oscar Onley | K69: Northumberland | M69: 67 | N69: Jack Boaden | O69: Northumberland
A70: 68 | B70: Angus Cummings | C70: Northumberland | E70: 68 | F70: Oliver Douglass | G70: Northumberland | I70: 68 | J70: Tom Balsdon | K70: Northumberland | M70: 68 | N70: Cameron Grey | O70: Northumberland
A71: 69 | B71: Joseph Hudspith | C71: Northumberland | E71: 69 | F71: Luis White | G71: Northumberland | I71: 69 | J71: Roean Bennett | K71: Northumberland | M71: 69 | N71: Matthew Briggs | O71: Northumberland
A72: 70 | B72: Ryan Davies | C72: Northumberland | E72: 70 | F72: Wesley Croom | G72: Northumberland | I72: 70 | J72: Jake Dorman | K72: Northumberland | M72: 70 | N72: Alex Cunningham | O72: Northumberland
A73: 71 | B73: Nathaniel Henderson | C73: Northumberland | E73: 71 | F73: Zak Old | G73: Northumberland | I73: 71 | J73: Daniel Buffham | K73: Northumberland | M73: 71 | N73: Robbie Langford | O73: Northumberland
A74: 72 | B74: Lewis Henry | C74: Northumberland | E74: 72 | F74: Dylan Gooding | G74: Northumberland | I74: 72 | J74: Jamie Styles | K74: Northumberland | M74: 72 | N74: Leodhais MacPherson | O74: Northumberland
A75: 73 | B75: Oliver Dixon | C75: Northumberland | E75: 73 | F75: Ben Waterfield | G75: Northumberland | I75: 73 | J75: Ben Murray-John | K75: Northumberland | M75: 73 | O75: Northumberland
A76: 74 | B76: Harry Twinn | C76: Northumberland | E76: 74 | F76: Charlie Daley | G76: Northumberland | I76: 74 | J76: Brad Brown | K76: Northumberland | M76: 74 | O76: Northumberland
A77: 75 | B77: Daniel Lamb | C77: Northumberland | E77: 75 | G77: Northumberland | I77: 75 | J77: Luke Shears | K77: Northumberland | M77: 75 | O77: Northumberland
A78: 76 | B78: Adam Howliston | C78: Northumberland | E78: 76 | G78: Northumberland | I78: 76 | J78: Charlie McMillan | K78: Northumberland | M78: 76 | O78: Northumberland
A79: 77 | B79: Ben Asquith | C79: Northumberland | E79: 77 | G79: Northumberland | I79: 77 | J79: Harry Morris | K79: Northumberland | M79: 77 | O79: Northumberland
A80: 78 | C80: Northumberland | E80: 78 | G80: Northumberland | I80: 78 | K80: Northumberland | M80: 78 | O80: Northumberland
A81: 79 | C81: Northumberland | E81: 79 | G81: Northumberland | I81: 79 | K81: Northumberland | M81: 79 | O81: Northumberland
A82: 80 | C82: Northumberland | E82: 80 | G82: Northumberland | I82: 80 | K82: Northumberland | M82: 80 | O82: Northumberland
A83: 81 | B83: Campbell Darcy | C83: North Yorkshire | E83: 81 | F83: Kyle Rabjohn | G83: North Yorkshire | I83: 81 | J83: Finnian Hutchinson | K83: North Yorkshire | M83: 81 | N83: Joe Hudson | O83: North Yorkshire
A84: 82 | B84: Archie Gray | C84: North Yorkshire | E84: 82 | F84: Charlie Stephenson | G84: North Yorkshire | I84: 82 | J84: Sebastian Segger-Staveley | K84: North Yorkshire | M84: 82 | N84: Matthew Merrick | O84: North Yorkshire
A85: 83 | B85: Archie Bordewich | C85: North Yorkshire | E85: 83 | F85: Will Hugill | G85: North Yorkshire | I85: 83 | J85: Herbert Antcliff | K85: North Yorkshire | M85: 83 | N85: Ben Bergstrand | O85: North Yorkshire
A86: 84 | B86: Joshua Hammett | C86: North Yorkshire | E86: 84 | F86: Daniel Francis | G86: North Yorkshire | I86: 84 | J86: Kyle McLeay | K86: North Yorkshire | M86: 84 | N86: Jack Brennan | O86: North Yorkshire
A87: 85 | B87: Will Partner | C87: North Yorkshire | E87: 85 | F87: Alex Thompson | G87: North Yorkshire | I87: 85 | J87: Archie Lawson | K87: North Yorkshire | M87: 85 | N87: Tom Barrett | O87: North Yorkshire
A88: 86 | B88: Louis How | C88: North Yorkshire | E88: 86 | F88: Jath Lee | G88: North Yorkshire | I88: 86 | J88: Toby Antcliff | K88: North Yorkshire | M88: 86 | N88: Sam Jackson | O88: North Yorkshire
A89: 87 | B89: Isaac Henson | C89: North Yorkshire | E89: 87 | F89: Ben Rees | G89: North Yorkshire | I89: 87 | J89: Matthew Somers | K89: North Yorkshire | M89: 87 | N89: Jake Stephenson | O89: North Yorkshire
A90: 88 | B90: Sam Pratt | C90: North Yorkshire | E90: 88 | F90: Xavier Martin | G90: North Yorkshire | I90: 88 | J90: Tom Hayes | K90: North Yorkshire | M90: 88 | N90: Harry Robson | O90: North Yorkshire
A91: 89 | B91: Finlay Tulip | C91: North Yorkshire | E91: 89 | F91: Joe O'brien | G91: North Yorkshire | I91: 89 | J91: Joe Crannley | K91: North Yorkshire | M91: 89 | N91: Josh Fothergill | O91: North Yorkshire
A92: 90 | B92: Freddie Marsh | C92: North Yorkshire | E92: 90 | F92: Jack Mudd-Bowes | G92: North Yorkshire | I92: 90 | J92: Arthur Peel | K92: North Yorkshire | M92: 90 | N92: Jasper Johnson | O92: North Yorkshire
A93: 91 | B93: Cian Winter | C93: North Yorkshire | E93: 91 | F93: Edward Hanley | G93: North Yorkshire | I93: 91 | J93: Will Thompson | K93: North Yorkshire | M93: 91 | O93: North Yorkshire
A94: 92 | C94: North Yorkshire | E94: 92 | F94: Will Atkinson | G94: North Yorkshire | I94: 92 | J94: Matthew Lambert | K94: North Yorkshire | M94: 92 | O94: North Yorkshire
A95: 93 | C95: North Yorkshire | E95: 93 | F95: Theo Walton | G95: North Yorkshire | I95: 93 | K95: North Yorkshire | M95: 93 | O95: North Yorkshire
A96: 94 | C96: North Yorkshire | E96: 94 | F96: Charlie Wright | G96: North Yorkshire | I96: 94 | K96: North Yorkshire | M96: 94 | O96: North Yorkshire
A97: 95 | C97: North Yorkshire | E97: 95 | F97: Sam Headley | G97: North Yorkshire | I97: 95 | K97: North Yorkshire | M97: 95 | O97: North Yorkshire
A98: 96 | C98: North Yorkshire | E98: 96 | G98: North Yorkshire | I98: 96 | K98: North Yorkshire | M98: 96 | O98: North Yorkshire
A99: 97 | C99: North Yorkshire | E99: 97 | G99: North Yorkshire | I99: 97 | K99: North Yorkshire | M99: 97 | O99: North Yorkshire
A100: 98 | C100: North Yorkshire | E100: 98 | G100: North Yorkshire | I100: 98 | K100: North Yorkshire | M100: 98 | O100: North Yorkshire
A101: 99 | C101: North Yorkshire | E101: 99 | G101: North Yorkshire | I101: 99 | K101: North Yorkshire | M101: 99 | O101: North Yorkshire
A102: 100 | C102: North Yorkshire | E102: 100 | G102: North Yorkshire | I102: 100 | K102: North Yorkshire | M102: 100 | O102: North Yorkshire

Sheet Minor_Girls
G1: =Home!$B$1 -> Northern Schools' Inter-County Cross Country Championships | T1: a | V1: =CONCATENATE(W1,X1) -> Home!$B5 | W1: Home!$B | X1: =IF(Y1="Minor_Boys",4,IF(Y1="Junior_Boys",6,IF(Y1="Intermediate_Boys",8,IF(Y1="Senior_Boys",10,IF(Y1="Minor_Girls",5,IF(Y1="Junior_Girls",7,IF(Y1="Intermediate_Girls",9,IF(Y1="Senior_Girls",11,"")))))))) -> 5 | Y1: =MID(CELL("Filename",A1),SEARCH("]",CELL("Filename",A1),1)+1,32) -> Minor_Girls | AA1: =Y1 -> Minor_Girls | AE1: =CONCATENATE(Y1," ",Z1) -> Minor_Girls
G2: =Home!$B$2 -> Barnard Castle School | T2: b | V2: =CONCATENATE(W2,X2) -> Home!$D5 | W2: Home!$D | X2: =X1 -> 5
G3: =Home!$G$3 -> Saturday 3rd February 2018 | T3: c
T4: c
G5: =INDIRECT(V1) -> Minor Girls | N5: =CONCATENATE("Team Results"," ",INDIRECT(V2)," ","to Score") -> Team Results 6 to Score | T5: d
A6: =Home!F4 -> Cleveland | B6: =Home!F5 -> Cumbria | C6: =Home!F6 -> Durham | D6: =Home!F7 -> Northumberland | E6: =Home!F8 -> North Yorkshire | F6: =Home!F9 -> 0 | G6: Pos | H6: Num | I6: Name | O6: County | S6: Time | T6: e
A7: =IF(O7=A6,COUNTIF(O7:O7,A6),"") ->  | B7: =IF(O7=B6,COUNTIF(O7:O7,B6),"") -> 1 | C7: =IF(O7=C6,COUNTIF(O7:O7,C6),"") ->  | D7: =IF(O7=D6,COUNTIF(O7:O7,D6),"") ->  | E7: =IF(O7=E6,COUNTIF(O7:O7,E6),"") ->  | F7: =IF(O7=F6,COUNTIF(O7:O7,F6),"") ->  | G7: =IF(LEFT(S7,1)="D",0,AM7) -> 1 | H7: 21 | I7: =IFERROR(VLOOKUP(H7,INDIRECT($AA$1),2,0),"") -> Sarah Smith | O7: =IFERROR(VLOOKUP(H7,INDIRECT($AA$1),3,0),"") -> Cumbria | S7: 9.42 | T7: =IF(H7=0,0,1) -> 1 | AM7: 1
A8: =IF(O8=A6,COUNTIF(O7:O8,A6),"") ->  | B8: =IF(O8=B6,COUNTIF(O7:O8,B6),"") ->  | C8: =IF(O8=C6,COUNTIF(O7:O8,C6),"") ->  | D8: =IF(O8=D6,COUNTIF(O7:O8,D6),"") ->  | E8: =IF(O8=E6,COUNTIF(O7:O8,E6),"") -> 1 | F8: =IF(O8=F6,COUNTIF(O7:O8,F6),"") ->  | G8: 2 | H8: 81 | I8: Zoe Hill | O8: North Yorkshire | S8: 9.44 | T8: 1 | AM8: 2
A9: =IF(O9=A6,COUNTIF(O7:O9,A6),"") -> 1 | B9: =IF(O9=B6,COUNTIF(O7:O9,B6),"") ->  | C9: =IF(O9=C6,COUNTIF(O7:O9,C6),"") ->  | D9: =IF(O9=D6,COUNTIF(O7:O9,D6),"") ->  | E9: =IF(O9=E6,COUNTIF(O7:O9,E6),"") ->  | F9: =IF(O9=F6,COUNTIF(O7:O9,F6),"") ->  | G9: 3 | H9: 2 | I9: Gabby Hall | O9: Cleveland | S9: 9.49 | T9: 1 | AM9: 3
A10: =IF(O10=A6,COUNTIF(O7:O10,A6),"") ->  | B10: =IF(O10=B6,COUNTIF(O7:O10,B6),"") -> 2 | C10: =IF(O10=C6,COUNTIF(O7:O10,C6),"") ->  | D10: =IF(O10=D6,COUNTIF(O7:O10,D6),"") ->  | E10: =IF(O10=E6,COUNTIF(O7:O10,E6),"") ->  | F10: =IF(O10=F6,COUNTIF(O7:O10,F6),"") ->  | G10: 4 | H10: 22 | I10: Sophie Rylance | O10: Cumbria | S10: 9.53 | T10: 1 | AM10: 4
A11: =IF(O11=A6,COUNTIF(O7:O11,A6),"") ->  | B11: =IF(O11=B6,COUNTIF(O7:O11,B6),"") ->  | C11: =IF(O11=C6,COUNTIF(O7:O11,C6),"") ->  | D11: =IF(O11=D6,COUNTIF(O7:O11,D6),"") ->  | E11: =IF(O11=E6,COUNTIF(O7:O11,E6),"") -> 2 | F11: =IF(O11=F6,COUNTIF(O7:O11,F6),"") ->  | G11: 5 | H11: 83 | I11: Mollie Reynolds-Jones | O11: North Yorkshire | S11: 9.54 | T11: 1 | AM11: 5
A12: =IF(O12=A6,COUNTIF(O7:O12,A6),"") -> 2 | B12: =IF(O12=B6,COUNTIF(O7:O12,B6),"") ->  | C12: =IF(O12=C6,COUNTIF(O7:O12,C6),"") ->  | D12: =IF(O12=D6,COUNTIF(O7:O12,D6),"") ->  | E12: =IF(O12=E6,COUNTIF(O7:O12,E6),"") ->  | F12: =IF(O12=F6,COUNTIF(O7:O12,F6),"") ->  | G12: 6 | H12: 1 | I12: Emma Mcneil | O12: Cleveland | S12: 10.02 | T12: 1 | AM12: 6
A13: =IF(O13=A6,COUNTIF(O7:O13,A6),"") ->  | B13: =IF(O13=B6,COUNTIF(O7:O13,B6),"") -> 3 | C13: =IF(O13=C6,COUNTIF(O7:O13,C6),"") ->  | D13: =IF(O13=D6,COUNTIF(O7:O13,D6),"") ->  | E13: =IF(O13=E6,COUNTIF(O7:O13,E6),"") ->  | F13: =IF(O13=F6,COUNTIF(O7:O13,F6),"") ->  | G13: 7 | H13: 24 | I13: Maddie Hutton | O13: Cumbria | S13: 10.09 | T13: 1 | AM13: 7
A14: =IF(O14=A6,COUNTIF(O7:O14,A6),"") ->  | B14: =IF(O14=B6,COUNTIF(O7:O14,B6),"") -> 4 | C14: =IF(O14=C6,COUNTIF(O7:O14,C6),"") ->  | D14: =IF(O14=D6,COUNTIF(O7:O14,D6),"") ->  | E14: =IF(O14=E6,COUNTIF(O7:O14,E6),"") ->  | F14: =IF(O14=F6,COUNTIF(O7:O14,F6),"") ->  | G14: 8 | H14: 25 | I14: Elodie Malcolm | O14: Cumbria | S14: 10.1 | T14: 1 | AM14: 8
A15: =IF(O15=A6,COUNTIF(O7:O15,A6),"") ->  | B15: =IF(O15=B6,COUNTIF(O7:O15,B6),"") ->  | C15: =IF(O15=C6,COUNTIF(O7:O15,C6),"") -> 1 | D15: =IF(O15=D6,COUNTIF(O7:O15,D6),"") ->  | E15: =IF(O15=E6,COUNTIF(O7:O15,E6),"") ->  | F15: =IF(O15=F6,COUNTIF(O7:O15,F6),"") ->  | G15: 9 | H15: 44 | I15: Hannah Bowyer | O15: Durham | S15: 10.14 | T15: 1 | AM15: 9
A16: =IF(O16=A6,COUNTIF(O7:O16,A6),"") ->  | B16: =IF(O16=B6,COUNTIF(O7:O16,B6),"") ->  | C16: =IF(O16=C6,COUNTIF(O7:O16,C6),"") -> 2 | D16: =IF(O16=D6,COUNTIF(O7:O16,D6),"") ->  | E16: =IF(O16=E6,COUNTIF(O7:O16,E6),"") ->  | F16: =IF(O16=F6,COUNTIF(O7:O16,F6),"") ->  | G16: 10 | H16: 45 | I16: Tilly Abbott | O16: Durham | S16: 10.16 | T16: 1 | AM16: 10
A17: =IF(O17=A6,COUNTIF(O7:O17,A6),"") ->  | B17: =IF(O17=B6,COUNTIF(O7:O17,B6),"") ->  | C17: =IF(O17=C6,COUNTIF(O7:O17,C6),"") ->  | D17: =IF(O17=D6,COUNTIF(O7:O17,D6),"") ->  | E17: =IF(O17=E6,COUNTIF(O7:O17,E6),"") -> 3 | F17: =IF(O17=F6,COUNTIF(O7:O17,F6),"") ->  | G17: 11 | H17: 87 | I17: Willow Baker | O17: North Yorkshire | S17: 10.16 | T17: 1 | AM17: 11
A18: =IF(O18=A6,COUNTIF(O7:O18,A6),"") ->  | B18: =IF(O18=B6,COUNTIF(O7:O18,B6),"") ->  | C18: =IF(O18=C6,COUNTIF(O7:O18,C6),"") ->  | D18: =IF(O18=D6,COUNTIF(O7:O18,D6),"") ->  | E18: =IF(O18=E6,COUNTIF(O7:O18,E6),"") -> 4 | F18: =IF(O18=F6,COUNTIF(O7:O18,F6),"") ->  | G18: 12 | H18: 86 | I18: Holly McCowie | O18: North Yorkshire | S18: 10.18 | T18: 1 | AM18: 12
A19: =IF(O19=A6,COUNTIF(O7:O19,A6),"") ->  | B19: =IF(O19=B6,COUNTIF(O7:O19,B6),"") ->  | C19: =IF(O19=C6,COUNTIF(O7:O19,C6),"") ->  | D19: =IF(O19=D6,COUNTIF(O7:O19,D6),"") ->  | E19: =IF(O19=E6,COUNTIF(O7:O19,E6),"") -> 5 | F19: =IF(O19=F6,COUNTIF(O7:O19,F6),"") ->  | G19: 13 | H19: 84 | I19: Frances Hogg | O19: North Yorkshire | S19: 10.18 | T19: 1 | AM19: 13
A20: =IF(O20=A6,COUNTIF(O7:O20,A6),"") ->  | B20: =IF(O20=B6,COUNTIF(O7:O20,B6),"") ->  | C20: =IF(O20=C6,COUNTIF(O7:O20,C6),"") ->  | D20: =IF(O20=D6,COUNTIF(O7:O20,D6),"") -> 1 | E20: =IF(O20=E6,COUNTIF(O7:O20,E6),"") ->  | F20: =IF(O20=F6,COUNTIF(O7:O20,F6),"") ->  | G20: 14 | H20: 61 | I20: Katie Joslyn | O20: Northumberland | S20: 10.2 | T20: 1 | AM20: 14
A21: =IF(O21=A6,COUNTIF(O7:O21,A6),"") ->  | B21: =IF(O21=B6,COUNTIF(O7:O21,B6),"") ->  | C21: =IF(O21=C6,COUNTIF(O7:O21,C6),"") -> 3 | D21: =IF(O21=D6,COUNTIF(O7:O21,D6),"") ->  | E21: =IF(O21=E6,COUNTIF(O7:O21,E6),"") ->  | F21: =IF(O21=F6,COUNTIF(O7:O21,F6),"") ->  | G21: 15 | H21: 46 | I21: Anya Crowder | O21: Durham | S21: 10.23 | T21: 1 | AM21: 15
A22: =IF(O22=A6,COUNTIF(O7:O22,A6),"") ->  | B22: =IF(O22=B6,COUNTIF(O7:O22,B6),"") ->  | C22: =IF(O22=C6,COUNTIF(O7:O22,C6),"") ->  | D22: =IF(O22=D6,COUNTIF(O7:O22,D6),"") ->  | E22: =IF(O22=E6,COUNTIF(O7:O22,E6),"") -> 6 | F22: =IF(O22=F6,COUNTIF(O7:O22,F6),"") ->  | G22: 16 | H22: 85 | I22: Shannon Robinson | O22: North Yorkshire | S22: 10.24 | T22: 1 | AM22: 16
A23: =IF(O23=A6,COUNTIF(O7:O23,A6),"") ->  | B23: =IF(O23=B6,COUNTIF(O7:O23,B6),"") ->  | C23: =IF(O23=C6,COUNTIF(O7:O23,C6),"") ->  | D23: =IF(O23=D6,COUNTIF(O7:O23,D6),"") ->  | E23: =IF(O23=E6,COUNTIF(O7:O23,E6),"") -> 7 | F23: =IF(O23=F6,COUNTIF(O7:O23,F6),"") ->  | G23: 17 | H23: 82 | I23: Amelie Aylesbury | O23: North Yorkshire | S23: 10.26 | T23: 1 | AM23: 17
A24: =IF(O24=A6,COUNTIF(O7:O24,A6),"") ->  | B24: =IF(O24=B6,COUNTIF(O7:O24,B6),"") ->  | C24: =IF(O24=C6,COUNTIF(O7:O24,C6),"") -> 4 | D24: =IF(O24=D6,COUNTIF(O7:O24,D6),"") ->  | E24: =IF(O24=E6,COUNTIF(O7:O24,E6),"") ->  | F24: =IF(O24=F6,COUNTIF(O7:O24,F6),"") ->  | G24: 18 | H24: 41 | I24: Freya Clarkson | O24: Durham | S24: 10.28 | T24: 1 | AM24: 18
A25: =IF(O25=A6,COUNTIF(O7:O25,A6),"") ->  | B25: =IF(O25=B6,COUNTIF(O7:O25,B6),"") ->  | C25: =IF(O25=C6,COUNTIF(O7:O25,C6),"") -> 5 | D25: =IF(O25=D6,COUNTIF(O7:O25,D6),"") ->  | E25: =IF(O25=E6,COUNTIF(O7:O25,E6),"") ->  | F25: =IF(O25=F6,COUNTIF(O7:O25,F6),"") ->  | G25: 19 | H25: 47 | I25: Rachel Maclenwey | O25: Durham | S25: 10.29 | T25: 1 | AM25: 19
A26: =IF(O26=A6,COUNTIF(O7:O26,A6),"") ->  | B26: =IF(O26=B6,COUNTIF(O7:O26,B6),"") ->  | C26: =IF(O26=C6,COUNTIF(O7:O26,C6),"") ->  | D26: =IF(O26=D6,COUNTIF(O7:O26,D6),"") -> 2 | E26: =IF(O26=E6,COUNTIF(O7:O26,E6),"") ->  | F26: =IF(O26=F6,COUNTIF(O7:O26,F6),"") ->  | G26: 20 | H26: 63 | I26: Zara Naughton | O26: Northumberland | S26: 10.34 | T26: 1 | AM26: 20
A27: =IF(O27=A6,COUNTIF(O7:O27,A6),"") ->  | B27: =IF(O27=B6,COUNTIF(O7:O27,B6),"") ->  | C27: =IF(O27=C6,COUNTIF(O7:O27,C6),"") ->  | D27: =IF(O27=D6,COUNTIF(O7:O27,D6),"") -> 3 | E27: =IF(O27=E6,COUNTIF(O7:O27,E6),"") ->  | F27: =IF(O27=F6,COUNTIF(O7:O27,F6),"") ->  | G27: 21 | H27: 65 | I27: Laura Cottee | O27: Northumberland | S27: 10.34 | T27: 1 | AM27: 21
A28: =IF(O28=A6,COUNTIF(O7:O28,A6),"") ->  | B28: =IF(O28=B6,COUNTIF(O7:O28,B6),"") -> 5 | C28: =IF(O28=C6,COUNTIF(O7:O28,C6),"") ->  | D28: =IF(O28=D6,COUNTIF(O7:O28,D6),"") ->  | E28: =IF(O28=E6,COUNTIF(O7:O28,E6),"") ->  | F28: =IF(O28=F6,COUNTIF(O7:O28,F6),"") ->  | G28: 22 | H28: 35 | I28: Mia Brayshaw | O28: Cumbria | S28: 10.34 | T28: 1 | AM28: 22
A29: =IF(O29=A6,COUNTIF(O7:O29,A6),"") ->  | B29: =IF(O29=B6,COUNTIF(O7:O29,B6),"") ->  | C29: =IF(O29=C6,COUNTIF(O7:O29,C6),"") -> 6 | D29: =IF(O29=D6,COUNTIF(O7:O29,D6),"") ->  | E29: =IF(O29=E6,COUNTIF(O7:O29,E6),"") ->  | F29: =IF(O29=F6,COUNTIF(O7:O29,F6),"") ->  | G29: 23 | H29: 42 | I29: Jessica Peart | O29: Durham | S29: 10.34 | T29: 1 | AM29: 23
A30: =IF(O30=A6,COUNTIF(O7:O30,A6),"") ->  | B30: =IF(O30=B6,COUNTIF(O7:O30,B6),"") ->  | C30: =IF(O30=C6,COUNTIF(O7:O30,C6),"") -> 7 | D30: =IF(O30=D6,COUNTIF(O7:O30,D6),"") ->  | E30: =IF(O30=E6,COUNTIF(O7:O30,E6),"") ->  | F30: =IF(O30=F6,COUNTIF(O7:O30,F6),"") ->  | G30: 24 | H30: 43 | I30: Ava Local | O30: Durham | S30: 10.34 | T30: 1 | AM30: 24
A31: =IF(O31=A6,COUNTIF(O7:O31,A6),"") ->  | B31: =IF(O31=B6,COUNTIF(O7:O31,B6),"") -> 6 | C31: =IF(O31=C6,COUNTIF(O7:O31,C6),"") ->  | D31: =IF(O31=D6,COUNTIF(O7:O31,D6),"") ->  | E31: =IF(O31=E6,COUNTIF(O7:O31,E6),"") ->  | F31: =IF(O31=F6,COUNTIF(O7:O31,F6),"") ->  | G31: 25 | H31: 33 | I31: Fayth Bowness | O31: Cumbria | S31: 10.34 | T31: 1 | AM31: 25
A32: =IF(O32=A6,COUNTIF(O7:O32,A6),"") ->  | B32: =IF(O32=B6,COUNTIF(O7:O32,B6),"") ->  | C32: =IF(O32=C6,COUNTIF(O7:O32,C6),"") ->  | D32: =IF(O32=D6,COUNTIF(O7:O32,D6),"") -> 4 | E32: =IF(O32=E6,COUNTIF(O7:O32,E6),"") ->  | F32: =IF(O32=F6,COUNTIF(O7:O32,F6),"") ->  | G32: 26 | H32: 62 | I32: Faye Landless | O32: Northumberland | S32: 10.34 | T32: 1 | AM32: 26
A33: =IF(O33=A6,COUNTIF(O7:O33,A6),"") ->  | B33: =IF(O33=B6,COUNTIF(O7:O33,B6),"") -> 7 | C33: =IF(O33=C6,COUNTIF(O7:O33,C6),"") ->  | D33: =IF(O33=D6,COUNTIF(O7:O33,D6),"") ->  | E33: =IF(O33=E6,COUNTIF(O7:O33,E6),"") ->  | F33: =IF(O33=F6,COUNTIF(O7:O33,F6),"") ->  | G33: 27 | H33: 37 | I33: Ebony Blackwell | O33: Cumbria | S33: 10.34 | T33: 1 | AM33: 27
A34: =IF(O34=A6,COUNTIF(O7:O34,A6),"") -> 3 | B34: =IF(O34=B6,COUNTIF(O7:O34,B6),"") ->  | C34: =IF(O34=C6,COUNTIF(O7:O34,C6),"") ->  | D34: =IF(O34=D6,COUNTIF(O7:O34,D6),"") ->  | E34: =IF(O34=E6,COUNTIF(O7:O34,E6),"") ->  | F34: =IF(O34=F6,COUNTIF(O7:O34,F6),"") ->  | G34: 28 | H34: 4 | I34: Isabelle Troop | O34: Cleveland | S34: 10.37 | T34: 1 | AM34: 28
A35: =IF(O35=A6,COUNTIF(O7:O35,A6),"") ->  | B35: =IF(O35=B6,COUNTIF(O7:O35,B6),"") ->  | C35: =IF(O35=C6,COUNTIF(O7:O35,C6),"") ->  | D35: =IF(O35=D6,COUNTIF(O7:O35,D6),"") -> 5 | E35: =IF(O35=E6,COUNTIF(O7:O35,E6),"") ->  | F35: =IF(O35=F6,COUNTIF(O7:O35,F6),"") ->  | G35: 29 | H35: 64 | I35: Charlotte Payton | O35: Northumberland | S35: 10.38 | T35: 1 | AM35: 29
A36: =IF(O36=A6,COUNTIF(O7:O36,A6),"") ->  | B36: =IF(O36=B6,COUNTIF(O7:O36,B6),"") ->  | C36: =IF(O36=C6,COUNTIF(O7:O36,C6),"") ->  | D36: =IF(O36=D6,COUNTIF(O7:O36,D6),"") -> 6 | E36: =IF(O36=E6,COUNTIF(O7:O36,E6),"") ->  | F36: =IF(O36=F6,COUNTIF(O7:O36,F6),"") ->  | G36: 30 | H36: 66 | I36: Caitlin Flanagan | O36: Northumberland | S36: 10.4 | T36: 1 | AM36: 30
A37: =IF(O37=A6,COUNTIF(O7:O37,A6),"") ->  | B37: =IF(O37=B6,COUNTIF(O7:O37,B6),"") -> 8 | C37: =IF(O37=C6,COUNTIF(O7:O37,C6),"") ->  | D37: =IF(O37=D6,COUNTIF(O7:O37,D6),"") ->  | E37: =IF(O37=E6,COUNTIF(O7:O37,E6),"") ->  | F37: =IF(O37=F6,COUNTIF(O7:O37,F6),"") ->  | G37: 31 | H37: 26 | I37: Jessica Bailey | O37: Cumbria | S37: 10.42 | T37: 1 | AM37: 31
A38: =IF(O38=A6,COUNTIF(O7:O38,A6),"") ->  | B38: =IF(O38=B6,COUNTIF(O7:O38,B6),"") ->  | C38: =IF(O38=C6,COUNTIF(O7:O38,C6),"") ->  | D38: =IF(O38=D6,COUNTIF(O7:O38,D6),"") ->  | E38: =IF(O38=E6,COUNTIF(O7:O38,E6),"") -> 8 | F38: =IF(O38=F6,COUNTIF(O7:O38,F6),"") ->  | G38: 32 | H38: 88 | I38: Anya Potter-Firth | O38: North Yorkshire | S38: 10.51 | T38: 1 | AM38: 32
A39: =IF(O39=A6,COUNTIF(O7:O39,A6),"") ->  | B39: =IF(O39=B6,COUNTIF(O7:O39,B6),"") -> 9 | C39: =IF(O39=C6,COUNTIF(O7:O39,C6),"") ->  | D39: =IF(O39=D6,COUNTIF(O7:O39,D6),"") ->  | E39: =IF(O39=E6,COUNTIF(O7:O39,E6),"") ->  | F39: =IF(O39=F6,COUNTIF(O7:O39,F6),"") ->  | G39: 33 | H39: 28 | I39: Grace Monkhouse | O39: Cumbria | S39: 10.53 | T39: 1 | AM39: 33
A40: =IF(O40=A6,COUNTIF(O7:O40,A6),"") -> 4 | B40: =IF(O40=B6,COUNTIF(O7:O40,B6),"") ->  | C40: =IF(O40=C6,COUNTIF(O7:O40,C6),"") ->  | D40: =IF(O40=D6,COUNTIF(O7:O40,D6),"") ->  | E40: =IF(O40=E6,COUNTIF(O7:O40,E6),"") ->  | F40: =IF(O40=F6,COUNTIF(O7:O40,F6),"") ->  | G40: 34 | H40: 8 | I40: Fern Shelton | O40: Cleveland | S40: 10.55 | T40: 1 | AM40: 34
A41: =IF(O41=A6,COUNTIF(O7:O41,A6),"") ->  | B41: =IF(O41=B6,COUNTIF(O7:O41,B6),"") ->  | C41: =IF(O41=C6,COUNTIF(O7:O41,C6),"") ->  | D41: =IF(O41=D6,COUNTIF(O7:O41,D6),"") -> 7 | E41: =IF(O41=E6,COUNTIF(O7:O41,E6),"") ->  | F41: =IF(O41=F6,COUNTIF(O7:O41,F6),"") ->  | G41: 35 | H41: 68 | I41: Nikola Grinberga | O41: Northumberland | S41: 10.57 | T41: 1 | AM41: 35
A42: =IF(O42=A6,COUNTIF(O7:O42,A6),"") ->  | B42: =IF(O42=B6,COUNTIF(O7:O42,B6),"") ->  | C42: =IF(O42=C6,COUNTIF(O7:O42,C6),"") ->  | D42: =IF(O42=D6,COUNTIF(O7:O42,D6),"") -> 8 | E42: =IF(O42=E6,COUNTIF(O7:O42,E6),"") ->  | F42: =IF(O42=F6,COUNTIF(O7:O42,F6),"") ->  | G42: 36 | H42: 71 | I42: Georgina Mabbott | O42: Northumberland | S42: 10.58 | T42: 1 | AM42: 36
A43: =IF(O43=A6,COUNTIF(O7:O43,A6),"") ->  | B43: =IF(O43=B6,COUNTIF(O7:O43,B6),"") ->  | C43: =IF(O43=C6,COUNTIF(O7:O43,C6),"") ->  | D43: =IF(O43=D6,COUNTIF(O7:O43,D6),"") -> 9 | E43: =IF(O43=E6,COUNTIF(O7:O43,E6),"") ->  | F43: =IF(O43=F6,COUNTIF(O7:O43,F6),"") ->  | G43: 37 | H43: 67 | I43: Imogen Bungay | O43: Northumberland | S43: 10.59 | T43: 1 | AM43: 37
A44: =IF(O44=A6,COUNTIF(O7:O44,A6),"") ->  | B44: =IF(O44=B6,COUNTIF(O7:O44,B6),"") ->  | C44: =IF(O44=C6,COUNTIF(O7:O44,C6),"") -> 8 | D44: =IF(O44=D6,COUNTIF(O7:O44,D6),"") ->  | E44: =IF(O44=E6,COUNTIF(O7:O44,E6),"") ->  | F44: =IF(O44=F6,COUNTIF(O7:O44,F6),"") ->  | G44: 38 | H44: 50 | I44: Heather Robinson | O44: Durham | S44: 11 | T44: 1 | AM44: 38
A45: =IF(O45=A6,COUNTIF(O7:O45,A6),"") ->  | B45: =IF(O45=B6,COUNTIF(O7:O45,B6),"") -> 10 | C45: =IF(O45=C6,COUNTIF(O7:O45,C6),"") ->  | D45: =IF(O45=D6,COUNTIF(O7:O45,D6),"") ->  | E45: =IF(O45=E6,COUNTIF(O7:O45,E6),"") ->  | F45: =IF(O45=F6,COUNTIF(O7:O45,F6),"") ->  | G45: 39 | H45: 30 | I45: Bethan Saunders | O45: Cumbria | S45: 11.04 | T45: 1 | AM45: 39
A46: =IF(O46=A6,COUNTIF(O7:O46,A6),"") ->  | B46: =IF(O46=B6,COUNTIF(O7:O46,B6),"") ->  | C46: =IF(O46=C6,COUNTIF(O7:O46,C6),"") ->  | D46: =IF(O46=D6,COUNTIF(O7:O46,D6),"") ->  | E46: =IF(O46=E6,COUNTIF(O7:O46,E6),"") -> 9 | F46: =IF(O46=F6,COUNTIF(O7:O46,F6),"") ->  | G46: 40 | H46: 87 | I46: Willow Baker | O46: North Yorkshire | S46: 11.07 | T46: 1 | AM46: 40
A47: =IF(O47=A6,COUNTIF(O7:O47,A6),"") ->  | B47: =IF(O47=B6,COUNTIF(O7:O47,B6),"") -> 11 | C47: =IF(O47=C6,COUNTIF(O7:O47,C6),"") ->  | D47: =IF(O47=D6,COUNTIF(O7:O47,D6),"") ->  | E47: =IF(O47=E6,COUNTIF(O7:O47,E6),"") ->  | F47: =IF(O47=F6,COUNTIF(O7:O47,F6),"") ->  | G47: 41 | H47: 32 | I47: Ella Parr | O47: Cumbria | S47: 11.09 | T47: 1 | AM47: 41
A48: =IF(O48=A6,COUNTIF(O7:O48,A6),"") ->  | B48: =IF(O48=B6,COUNTIF(O7:O48,B6),"") ->  | C48: =IF(O48=C6,COUNTIF(O7:O48,C6),"") ->  | D48: =IF(O48=D6,COUNTIF(O7:O48,D6),"") -> 10 | E48: =IF(O48=E6,COUNTIF(O7:O48,E6),"") ->  | F48: =IF(O48=F6,COUNTIF(O7:O48,F6),"") ->  | G48: 42 | H48: 73 | I48: Eve Rudd | O48: Northumberland | S48: 11.09 | T48: 1 | AM48: 42
A49: =IF(O49=A6,COUNTIF(O7:O49,A6),"") ->  | B49: =IF(O49=B6,COUNTIF(O7:O49,B6),"") ->  | C49: =IF(O49=C6,COUNTIF(O7:O49,C6),"") ->  | D49: =IF(O49=D6,COUNTIF(O7:O49,D6),"") -> 11 | E49: =IF(O49=E6,COUNTIF(O7:O49,E6),"") ->  | F49: =IF(O49=F6,COUNTIF(O7:O49,F6),"") ->  | G49: 43 | H49: 69 | I49: Matilda Anderson | O49: Northumberland | S49: 11.1 | T49: 1 | AM49: 43
A50: =IF(O50=A6,COUNTIF(O7:O50,A6),"") ->  | B50: =IF(O50=B6,COUNTIF(O7:O50,B6),"") ->  | C50: =IF(O50=C6,COUNTIF(O7:O50,C6),"") -> 9 | D50: =IF(O50=D6,COUNTIF(O7:O50,D6),"") ->  | E50: =IF(O50=E6,COUNTIF(O7:O50,E6),"") ->  | F50: =IF(O50=F6,COUNTIF(O7:O50,F6),"") ->  | G50: 44 | H50: 48 | I50: Freya Gibson | O50: Durham | S50: 11.13 | T50: 1 | AM50: 44
A51: =IF(O51=A6,COUNTIF(O7:O51,A6),"") ->  | B51: =IF(O51=B6,COUNTIF(O7:O51,B6),"") -> 12 | C51: =IF(O51=C6,COUNTIF(O7:O51,C6),"") ->  | D51: =IF(O51=D6,COUNTIF(O7:O51,D6),"") ->  | E51: =IF(O51=E6,COUNTIF(O7:O51,E6),"") ->  | F51: =IF(O51=F6,COUNTIF(O7:O51,F6),"") ->  | G51: =IF(LEFT(S52,1)="D",0,AM51) -> 45 | H51: 34 | I51: Bethany Saunders | O51: Cumbria | S51: 11.15 | T51: 1 | AM51: 45
A52: =IF(O52=A6,COUNTIF(O7:O52,A6),"") ->  | B52: =IF(O52=B6,COUNTIF(O7:O52,B6),"") -> 13 | C52: =IF(O52=C6,COUNTIF(O7:O52,C6),"") ->  | D52: =IF(O52=D6,COUNTIF(O7:O52,D6),"") ->  | E52: =IF(O52=E6,COUNTIF(O7:O52,E6),"") ->  | F52: =IF(O52=F6,COUNTIF(O7:O52,F6),"") ->  | G52: =IF(LEFT(#REF!,1)="D",0,AM52) ->  | H52: 36 | I52: Holly Brown | O52: Cumbria | S52: 11.15 | T52: 1 | AM52: 46
A53: =IF(O53=A6,COUNTIF(O7:O53,A6),"") ->  | B53: =IF(O53=B6,COUNTIF(O7:O53,B6),"") ->  | C53: =IF(O53=C6,COUNTIF(O7:O53,C6),"") ->  | D53: =IF(O53=D6,COUNTIF(O7:O53,D6),"") -> 12 | E53: =IF(O53=E6,COUNTIF(O7:O53,E6),"") ->  | F53: =IF(O53=F6,COUNTIF(O7:O53,F6),"") ->  | G53: 47 | H53: 70 | I53: Daisy McClintock | O53: Northumberland | S53: 11.29 | T53: 1 | AM53: 47
A54: =IF(O54=A6,COUNTIF(O7:O54,A6),"") ->  | B54: =IF(O54=B6,COUNTIF(O7:O54,B6),"") ->  | C54: =IF(O54=C6,COUNTIF(O7:O54,C6),"") ->  | D54: =IF(O54=D6,COUNTIF(O7:O54,D6),"") ->  | E54: =IF(O54=E6,COUNTIF(O7:O54,E6),"") -> 10 | F54: =IF(O54=F6,COUNTIF(O7:O54,F6),"") ->  | G54: 48 | H54: 91 | I54: Emily Simpson | O54: North Yorkshire | S54: 11.33 | T54: 1 | AM54: 48
A55: =IF(O55=A6,COUNTIF(O7:O55,A6),"") ->  | B55: =IF(O55=B6,COUNTIF(O7:O55,B6),"") ->  | C55: =IF(O55=C6,COUNTIF(O7:O55,C6),"") ->  | D55: =IF(O55=D6,COUNTIF(O7:O55,D6),"") -> 13 | E55: =IF(O55=E6,COUNTIF(O7:O55,E6),"") ->  | F55: =IF(O55=F6,COUNTIF(O7:O55,F6),"") ->  | G55: 49 | H55: 72 | I55: Elizabeth Carragher | O55: Northumberland | S55: 11.34 | T55: 1 | AM55: 49
A56: =IF(O56=A6,COUNTIF(O7:O56,A6),"") ->  | B56: =IF(O56=B6,COUNTIF(O7:O56,B6),"") -> 14 | C56: =IF(O56=C6,COUNTIF(O7:O56,C6),"") ->  | D56: =IF(O56=D6,COUNTIF(O7:O56,D6),"") ->  | E56: =IF(O56=E6,COUNTIF(O7:O56,E6),"") ->  | F56: =IF(O56=F6,COUNTIF(O7:O56,F6),"") ->  | G56: 50 | H56: 23 | I56: Clara Samson | O56: Cumbria | S56: 11.46 | T56: 1 | AM56: 50
A57: =IF(O57=A6,COUNTIF(O7:O57,A6),"") -> 5 | B57: =IF(O57=B6,COUNTIF(O7:O57,B6),"") ->  | C57: =IF(O57=C6,COUNTIF(O7:O57,C6),"") ->  | D57: =IF(O57=D6,COUNTIF(O7:O57,D6),"") ->  | E57: =IF(O57=E6,COUNTIF(O7:O57,E6),"") ->  | F57: =IF(O57=F6,COUNTIF(O7:O57,F6),"") ->  | G57: 51 | H57: 5 | I57: Molly Thrower | O57: Cleveland | S57: 11.51 | T57: 1 | AM57: 51
A58: =IF(O58=A6,COUNTIF(O7:O58,A6),"") ->  | B58: =IF(O58=B6,COUNTIF(O7:O58,B6),"") ->  | C58: =IF(O58=C6,COUNTIF(O7:O58,C6),"") ->  | D58: =IF(O58=D6,COUNTIF(O7:O58,D6),"") -> 14 | E58: =IF(O58=E6,COUNTIF(O7:O58,E6),"") ->  | F58: =IF(O58=F6,COUNTIF(O7:O58,F6),"") ->  | G58: 52 | H58: 75 | I58: Sophia Cunningham | O58: Northumberland | S58: 12.15 | T58: 1 | AM58: 52
A59: =IF(O59=A6,COUNTIF(O7:O59,A6),"") ->  | B59: =IF(O59=B6,COUNTIF(O7:O59,B6),"") ->  | C59: =IF(O59=C6,COUNTIF(O7:O59,C6),"") ->  | D59: =IF(O59=D6,COUNTIF(O7:O59,D6),"") ->  | E59: =IF(O59=E6,COUNTIF(O7:O59,E6),"") ->  | F59: =IF(O59=F6,COUNTIF(O7:O59,F6),"") ->  | G59: 53 | T59: 0 | AM59: 53
A60: =IF(O60=A6,COUNTIF(O7:O60,A6),"") ->  | B60: =IF(O60=B6,COUNTIF(O7:O60,B6),"") ->  | C60: =IF(O60=C6,COUNTIF(O7:O60,C6),"") ->  | D60: =IF(O60=D6,COUNTIF(O7:O60,D6),"") ->  | E60: =IF(O60=E6,COUNTIF(O7:O60,E6),"") ->  | F60: =IF(O60=F6,COUNTIF(O7:O60,F6),"") ->  | G60: 54 | T60: 0 | AM60: 54
A61: =IF(O61=A6,COUNTIF(O7:O61,A6),"") ->  | B61: =IF(O61=B6,COUNTIF(O7:O61,B6),"") ->  | C61: =IF(O61=C6,COUNTIF(O7:O61,C6),"") ->  | D61: =IF(O61=D6,COUNTIF(O7:O61,D6),"") ->  | E61: =IF(O61=E6,COUNTIF(O7:O61,E6),"") ->  | F61: =IF(O61=F6,COUNTIF(O7:O61,F6),"") ->  | G61: 55 | T61: 0 | AM61: 55
A62: =IF(O62=A6,COUNTIF(O7:O62,A6),"") ->  | B62: =IF(O62=B6,COUNTIF(O7:O62,B6),"") ->  | C62: =IF(O62=C6,COUNTIF(O7:O62,C6),"") ->  | D62: =IF(O62=D6,COUNTIF(O7:O62,D6),"") ->  | E62: =IF(O62=E6,COUNTIF(O7:O62,E6),"") ->  | F62: =IF(O62=F6,COUNTIF(O7:O62,F6),"") ->  | G62: 56 | T62: 0 | AM62: 56
A63: =IF(O63=A6,COUNTIF(O7:O63,A6),"") ->  | B63: =IF(O63=B6,COUNTIF(O7:O63,B6),"") ->  | C63: =IF(O63=C6,COUNTIF(O7:O63,C6),"") ->  | D63: =IF(O63=D6,COUNTIF(O7:O63,D6),"") ->  | E63: =IF(O63=E6,COUNTIF(O7:O63,E6),"") ->  | F63: =IF(O63=F6,COUNTIF(O7:O63,F6),"") ->  | G63: 57 | T63: 0 | AM63: 57
A64: =IF(O64=A6,COUNTIF(O7:O64,A6),"") ->  | B64: =IF(O64=B6,COUNTIF(O7:O64,B6),"") ->  | C64: =IF(O64=C6,COUNTIF(O7:O64,C6),"") ->  | D64: =IF(O64=D6,COUNTIF(O7:O64,D6),"") ->  | E64: =IF(O64=E6,COUNTIF(O7:O64,E6),"") ->  | F64: =IF(O64=F6,COUNTIF(O7:O64,F6),"") ->  | G64: 58 | T64: 0 | AM64: 58
A65: =IF(O65=A6,COUNTIF(O7:O65,A6),"") ->  | B65: =IF(O65=B6,COUNTIF(O7:O65,B6),"") ->  | C65: =IF(O65=C6,COUNTIF(O7:O65,C6),"") ->  | D65: =IF(O65=D6,COUNTIF(O7:O65,D6),"") ->  | E65: =IF(O65=E6,COUNTIF(O7:O65,E6),"") ->  | F65: =IF(O65=F6,COUNTIF(O7:O65,F6),"") ->  | G65: 59 | T65: 0 | AM65: 59
A66: =IF(O66=A6,COUNTIF(O7:O66,A6),"") ->  | B66: =IF(O66=B6,COUNTIF(O7:O66,B6),"") ->  | C66: =IF(O66=C6,COUNTIF(O7:O66,C6),"") ->  | D66: =IF(O66=D6,COUNTIF(O7:O66,D6),"") ->  | E66: =IF(O66=E6,COUNTIF(O7:O66,E6),"") ->  | F66: =IF(O66=F6,COUNTIF(O7:O66,F6),"") ->  | G66: 60 | T66: 0 | AM66: 60
A67: =IF(O67=A6,COUNTIF(O7:O67,A6),"") ->  | B67: =IF(O67=B6,COUNTIF(O7:O67,B6),"") ->  | C67: =IF(O67=C6,COUNTIF(O7:O67,C6),"") ->  | D67: =IF(O67=D6,COUNTIF(O7:O67,D6),"") ->  | E67: =IF(O67=E6,COUNTIF(O7:O67,E6),"") ->  | F67: =IF(O67=F6,COUNTIF(O7:O67,F6),"") ->  | G67: 61 | T67: 0 | AM67: 61
A68: =IF(O68=A6,COUNTIF(O7:O68,A6),"") ->  | B68: =IF(O68=B6,COUNTIF(O7:O68,B6),"") ->  | C68: =IF(O68=C6,COUNTIF(O7:O68,C6),"") ->  | D68: =IF(O68=D6,COUNTIF(O7:O68,D6),"") ->  | E68: =IF(O68=E6,COUNTIF(O7:O68,E6),"") ->  | F68: =IF(O68=F6,COUNTIF(O7:O68,F6),"") ->  | G68: 62 | T68: 0 | AM68: 62
A69: =IF(O69=A6,COUNTIF(O7:O69,A6),"") ->  | B69: =IF(O69=B6,COUNTIF(O7:O69,B6),"") ->  | C69: =IF(O69=C6,COUNTIF(O7:O69,C6),"") ->  | D69: =IF(O69=D6,COUNTIF(O7:O69,D6),"") ->  | E69: =IF(O69=E6,COUNTIF(O7:O69,E6),"") ->  | F69: =IF(O69=F6,COUNTIF(O7:O69,F6),"") ->  | G69: 63 | T69: 0 | AM69: 63
A70: =IF(O70=A6,COUNTIF(O7:O70,A6),"") ->  | B70: =IF(O70=B6,COUNTIF(O7:O70,B6),"") ->  | C70: =IF(O70=C6,COUNTIF(O7:O70,C6),"") ->  | D70: =IF(O70=D6,COUNTIF(O7:O70,D6),"") ->  | E70: =IF(O70=E6,COUNTIF(O7:O70,E6),"") ->  | F70: =IF(O70=F6,COUNTIF(O7:O70,F6),"") ->  | G70: 64 | T70: 0 | AM70: 64
A71: =IF(O71=A6,COUNTIF(O7:O71,A6),"") ->  | B71: =IF(O71=B6,COUNTIF(O7:O71,B6),"") ->  | C71: =IF(O71=C6,COUNTIF(O7:O71,C6),"") ->  | D71: =IF(O71=D6,COUNTIF(O7:O71,D6),"") ->  | E71: =IF(O71=E6,COUNTIF(O7:O71,E6),"") ->  | F71: =IF(O71=F6,COUNTIF(O7:O71,F6),"") ->  | G71: =IF(LEFT(S71,1)="D",0,AM71) -> 65 | I71: =IFERROR(VLOOKUP(H71,INDIRECT($AA$1),2,0),"") ->  | O71: =IFERROR(VLOOKUP(H71,INDIRECT($AA$1),3,0),"") ->  | T71: =IF(H71=0,0,1) -> 0 | AM71: 65
A72: =IF(O72=A6,COUNTIF(O7:O72,A6),"") ->  | B72: =IF(O72=B6,COUNTIF(O7:O72,B6),"") ->  | C72: =IF(O72=C6,COUNTIF(O7:O72,C6),"") ->  | D72: =IF(O72=D6,COUNTIF(O7:O72,D6),"") ->  | E72: =IF(O72=E6,COUNTIF(O7:O72,E6),"") ->  | F72: =IF(O72=F6,COUNTIF(O7:O72,F6),"") ->  | G72: 66 | T72: 0 | AM72: 66
A73: =IF(O73=A6,COUNTIF(O7:O73,A6),"") ->  | B73: =IF(O73=B6,COUNTIF(O7:O73,B6),"") ->  | C73: =IF(O73=C6,COUNTIF(O7:O73,C6),"") ->  | D73: =IF(O73=D6,COUNTIF(O7:O73,D6),"") ->  | E73: =IF(O73=E6,COUNTIF(O7:O73,E6),"") ->  | F73: =IF(O73=F6,COUNTIF(O7:O73,F6),"") ->  | G73: 67 | T73: 0 | AM73: 67
A74: =IF(O74=A6,COUNTIF(O7:O74,A6),"") ->  | B74: =IF(O74=B6,COUNTIF(O7:O74,B6),"") ->  | C74: =IF(O74=C6,COUNTIF(O7:O74,C6),"") ->  | D74: =IF(O74=D6,COUNTIF(O7:O74,D6),"") ->  | E74: =IF(O74=E6,COUNTIF(O7:O74,E6),"") ->  | F74: =IF(O74=F6,COUNTIF(O7:O74,F6),"") ->  | G74: 68 | T74: 0 | AM74: 68
A75: =IF(O75=A6,COUNTIF(O7:O75,A6),"") ->  | B75: =IF(O75=B6,COUNTIF(O7:O75,B6),"") ->  | C75: =IF(O75=C6,COUNTIF(O7:O75,C6),"") ->  | D75: =IF(O75=D6,COUNTIF(O7:O75,D6),"") ->  | E75: =IF(O75=E6,COUNTIF(O7:O75,E6),"") ->  | F75: =IF(O75=F6,COUNTIF(O7:O75,F6),"") ->  | G75: 69 | T75: 0 | AM75: 69
A76: =IF(O76=A6,COUNTIF(O7:O76,A6),"") ->  | B76: =IF(O76=B6,COUNTIF(O7:O76,B6),"") ->  | C76: =IF(O76=C6,COUNTIF(O7:O76,C6),"") ->  | D76: =IF(O76=D6,COUNTIF(O7:O76,D6),"") ->  | E76: =IF(O76=E6,COUNTIF(O7:O76,E6),"") ->  | F76: =IF(O76=F6,COUNTIF(O7:O76,F6),"") ->  | G76: 70 | T76: 0 | AM76: 70
A77: =IF(O77=A6,COUNTIF(O7:O77,A6),"") ->  | B77: =IF(O77=B6,COUNTIF(O7:O77,B6),"") ->  | C77: =IF(O77=C6,COUNTIF(O7:O77,C6),"") ->  | D77: =IF(O77=D6,COUNTIF(O7:O77,D6),"") ->  | E77: =IF(O77=E6,COUNTIF(O7:O77,E6),"") ->  | F77: =IF(O77=F6,COUNTIF(O7:O77,F6),"") ->  | G77: 71 | T77: 0 | AM77: 71
A78: =IF(O78=A6,COUNTIF(O7:O78,A6),"") ->  | B78: =IF(O78=B6,COUNTIF(O7:O78,B6),"") ->  | C78: =IF(O78=C6,COUNTIF(O7:O78,C6),"") ->  | D78: =IF(O78=D6,COUNTIF(O7:O78,D6),"") ->  | E78: =IF(O78=E6,COUNTIF(O7:O78,E6),"") ->  | F78: =IF(O78=F6,COUNTIF(O7:O78,F6),"") ->  | G78: 72 | T78: 0 | AM78: 72
A79: =IF(O79=A6,COUNTIF(O7:O79,A6),"") ->  | B79: =IF(O79=B6,COUNTIF(O7:O79,B6),"") ->  | C79: =IF(O79=C6,COUNTIF(O7:O79,C6),"") ->  | D79: =IF(O79=D6,COUNTIF(O7:O79,D6),"") ->  | E79: =IF(O79=E6,COUNTIF(O7:O79,E6),"") ->  | F79: =IF(O79=F6,COUNTIF(O7:O79,F6),"") ->  | G79: 73 | T79: 0 | AM79: 73
A80: =IF(O80=A6,COUNTIF(O7:O80,A6),"") ->  | B80: =IF(O80=B6,COUNTIF(O7:O80,B6),"") ->  | C80: =IF(O80=C6,COUNTIF(O7:O80,C6),"") ->  | D80: =IF(O80=D6,COUNTIF(O7:O80,D6),"") ->  | E80: =IF(O80=E6,COUNTIF(O7:O80,E6),"") ->  | F80: =IF(O80=F6,COUNTIF(O7:O80,F6),"") ->  | G80: 74 | T80: 0 | AM80: 74
A81: =IF(O81=A6,COUNTIF(O7:O81,A6),"") ->  | B81: =IF(O81=B6,COUNTIF(O7:O81,B6),"") ->  | C81: =IF(O81=C6,COUNTIF(O7:O81,C6),"") ->  | D81: =IF(O81=D6,COUNTIF(O7:O81,D6),"") ->  | E81: =IF(O81=E6,COUNTIF(O7:O81,E6),"") ->  | F81: =IF(O81=F6,COUNTIF(O7:O81,F6),"") ->  | G81: 75 | T81: 0 | AM81: 75
A82: =IF(O82=A6,COUNTIF(O7:O82,A6),"") ->  | B82: =IF(O82=B6,COUNTIF(O7:O82,B6),"") ->  | C82: =IF(O82=C6,COUNTIF(O7:O82,C6),"") ->  | D82: =IF(O82=D6,COUNTIF(O7:O82,D6),"") ->  | E82: =IF(O82=E6,COUNTIF(O7:O82,E6),"") ->  | F82: =IF(O82=F6,COUNTIF(O7:O82,F6),"") ->  | G82: 76 | T82: 0 | AM82: 76
A83: =IF(O83=A6,COUNTIF(O7:O83,A6),"") ->  | B83: =IF(O83=B6,COUNTIF(O7:O83,B6),"") ->  | C83: =IF(O83=C6,COUNTIF(O7:O83,C6),"") ->  | D83: =IF(O83=D6,COUNTIF(O7:O83,D6),"") ->  | E83: =IF(O83=E6,COUNTIF(O7:O83,E6),"") ->  | F83: =IF(O83=F6,COUNTIF(O7:O83,F6),"") ->  | G83: 77 | T83: 0 | AM83: 77
A84: =IF(O84=A6,COUNTIF(O7:O84,A6),"") ->  | B84: =IF(O84=B6,COUNTIF(O7:O84,B6),"") ->  | C84: =IF(O84=C6,COUNTIF(O7:O84,C6),"") ->  | D84: =IF(O84=D6,COUNTIF(O7:O84,D6),"") ->  | E84: =IF(O84=E6,COUNTIF(O7:O84,E6),"") ->  | F84: =IF(O84=F6,COUNTIF(O7:O84,F6),"") ->  | G84: 78 | T84: 0 | AM84: 78
A85: =IF(O85=A6,COUNTIF(O7:O85,A6),"") ->  | B85: =IF(O85=B6,COUNTIF(O7:O85,B6),"") ->  | C85: =IF(O85=C6,COUNTIF(O7:O85,C6),"") ->  | D85: =IF(O85=D6,COUNTIF(O7:O85,D6),"") ->  | E85: =IF(O85=E6,COUNTIF(O7:O85,E6),"") ->  | F85: =IF(O85=F6,COUNTIF(O7:O85,F6),"") ->  | G85: 79 | T85: 0 | AM85: 79
A86: =IF(O86=A6,COUNTIF(O7:O86,A6),"") ->  | B86: =IF(O86=B6,COUNTIF(O7:O86,B6),"") ->  | C86: =IF(O86=C6,COUNTIF(O7:O86,C6),"") ->  | D86: =IF(O86=D6,COUNTIF(O7:O86,D6),"") ->  | E86: =IF(O86=E6,COUNTIF(O7:O86,E6),"") ->  | F86: =IF(O86=F6,COUNTIF(O7:O86,F6),"") ->  | G86: 80 | T86: 0 | AM86: 80
A87: =IF(O87=A6,COUNTIF(O7:O87,A6),"") ->  | B87: =IF(O87=B6,COUNTIF(O7:O87,B6),"") ->  | C87: =IF(O87=C6,COUNTIF(O7:O87,C6),"") ->  | D87: =IF(O87=D6,COUNTIF(O7:O87,D6),"") ->  | E87: =IF(O87=E6,COUNTIF(O7:O87,E6),"") ->  | F87: =IF(O87=F6,COUNTIF(O7:O87,F6),"") ->  | G87: 81 | T87: 0 | AM87: 81
A88: =IF(O88=A6,COUNTIF(O7:O88,A6),"") ->  | B88: =IF(O88=B6,COUNTIF(O7:O88,B6),"") ->  | C88: =IF(O88=C6,COUNTIF(O7:O88,C6),"") ->  | D88: =IF(O88=D6,COUNTIF(O7:O88,D6),"") ->  | E88: =IF(O88=E6,COUNTIF(O7:O88,E6),"") ->  | F88: =IF(O88=F6,COUNTIF(O7:O88,F6),"") ->  | G88: 82 | T88: 0 | AM88: 82
A89: =IF(O89=A6,COUNTIF(O7:O89,A6),"") ->  | B89: =IF(O89=B6,COUNTIF(O7:O89,B6),"") ->  | C89: =IF(O89=C6,COUNTIF(O7:O89,C6),"") ->  | D89: =IF(O89=D6,COUNTIF(O7:O89,D6),"") ->  | E89: =IF(O89=E6,COUNTIF(O7:O89,E6),"") ->  | F89: =IF(O89=F6,COUNTIF(O7:O89,F6),"") ->  | G89: 83 | T89: 0 | AM89: 83
A90: =IF(O90=A6,COUNTIF(O7:O90,A6),"") ->  | B90: =IF(O90=B6,COUNTIF(O7:O90,B6),"") ->  | C90: =IF(O90=C6,COUNTIF(O7:O90,C6),"") ->  | D90: =IF(O90=D6,COUNTIF(O7:O90,D6),"") ->  | E90: =IF(O90=E6,COUNTIF(O7:O90,E6),"") ->  | F90: =IF(O90=F6,COUNTIF(O7:O90,F6),"") ->  | G90: 84 | T90: 0 | AM90: 84
A91: =IF(O91=A6,COUNTIF(O7:O91,A6),"") ->  | B91: =IF(O91=B6,COUNTIF(O7:O91,B6),"") ->  | C91: =IF(O91=C6,COUNTIF(O7:O91,C6),"") ->  | D91: =IF(O91=D6,COUNTIF(O7:O91,D6),"") ->  | E91: =IF(O91=E6,COUNTIF(O7:O91,E6),"") ->  | F91: =IF(O91=F6,COUNTIF(O7:O91,F6),"") ->  | G91: 85 | T91: 0 | AM91: 85
A92: =IF(O92=A6,COUNTIF(O7:O92,A6),"") ->  | B92: =IF(O92=B6,COUNTIF(O7:O92,B6),"") ->  | C92: =IF(O92=C6,COUNTIF(O7:O92,C6),"") ->  | D92: =IF(O92=D6,COUNTIF(O7:O92,D6),"") ->  | E92: =IF(O92=E6,COUNTIF(O7:O92,E6),"") ->  | F92: =IF(O92=F6,COUNTIF(O7:O92,F6),"") ->  | G92: 86 | T92: 0 | AM92: 86
A93: =IF(O93=A6,COUNTIF(O7:O93,A6),"") ->  | B93: =IF(O93=B6,COUNTIF(O7:O93,B6),"") ->  | C93: =IF(O93=C6,COUNTIF(O7:O93,C6),"") ->  | D93: =IF(O93=D6,COUNTIF(O7:O93,D6),"") ->  | E93: =IF(O93=E6,COUNTIF(O7:O93,E6),"") ->  | F93: =IF(O93=F6,COUNTIF(O7:O93,F6),"") ->  | G93: 87 | T93: 0 | AM93: 87
A94: =IF(O94=A6,COUNTIF(O7:O94,A6),"") ->  | B94: =IF(O94=B6,COUNTIF(O7:O94,B6),"") ->  | C94: =IF(O94=C6,COUNTIF(O7:O94,C6),"") ->  | D94: =IF(O94=D6,COUNTIF(O7:O94,D6),"") ->  | E94: =IF(O94=E6,COUNTIF(O7:O94,E6),"") ->  | F94: =IF(O94=F6,COUNTIF(O7:O94,F6),"") ->  | G94: 88 | T94: 0 | AM94: 88
A95: =IF(O95=A6,COUNTIF(O7:O95,A6),"") ->  | B95: =IF(O95=B6,COUNTIF(O7:O95,B6),"") ->  | C95: =IF(O95=C6,COUNTIF(O7:O95,C6),"") ->  | D95: =IF(O95=D6,COUNTIF(O7:O95,D6),"") ->  | E95: =IF(O95=E6,COUNTIF(O7:O95,E6),"") ->  | F95: =IF(O95=F6,COUNTIF(O7:O95,F6),"") ->  | G95: 89 | T95: 0 | AM95: 89
A96: =IF(O96=A6,COUNTIF(O7:O96,A6),"") ->  | B96: =IF(O96=B6,COUNTIF(O7:O96,B6),"") ->  | C96: =IF(O96=C6,COUNTIF(O7:O96,C6),"") ->  | D96: =IF(O96=D6,COUNTIF(O7:O96,D6),"") ->  | E96: =IF(O96=E6,COUNTIF(O7:O96,E6),"") ->  | F96: =IF(O96=F6,COUNTIF(O7:O96,F6),"") ->  | G96: 90 | T96: 0 | AM96: 90
A97: =IF(O97=A6,COUNTIF(O7:O97,A6),"") ->  | B97: =IF(O97=B6,COUNTIF(O7:O97,B6),"") ->  | C97: =IF(O97=C6,COUNTIF(O7:O97,C6),"") ->  | D97: =IF(O97=D6,COUNTIF(O7:O97,D6),"") ->  | E97: =IF(O97=E6,COUNTIF(O7:O97,E6),"") ->  | F97: =IF(O97=F6,COUNTIF(O7:O97,F6),"") ->  | G97: 91 | T97: 0 | AM97: 91
A98: =IF(O98=A6,COUNTIF(O7:O98,A6),"") ->  | B98: =IF(O98=B6,COUNTIF(O7:O98,B6),"") ->  | C98: =IF(O98=C6,COUNTIF(O7:O98,C6),"") ->  | D98: =IF(O98=D6,COUNTIF(O7:O98,D6),"") ->  | E98: =IF(O98=E6,COUNTIF(O7:O98,E6),"") ->  | F98: =IF(O98=F6,COUNTIF(O7:O98,F6),"") ->  | G98: 92 | T98: 0 | AM98: 92
A99: =IF(O99=A6,COUNTIF(O7:O99,A6),"") ->  | B99: =IF(O99=B6,COUNTIF(O7:O99,B6),"") ->  | C99: =IF(O99=C6,COUNTIF(O7:O99,C6),"") ->  | D99: =IF(O99=D6,COUNTIF(O7:O99,D6),"") ->  | E99: =IF(O99=E6,COUNTIF(O7:O99,E6),"") ->  | F99: =IF(O99=F6,COUNTIF(O7:O99,F6),"") ->  | G99: 93 | T99: 0 | AM99: 93
A100: =IF(O100=A6,COUNTIF(O7:O100,A6),"") ->  | B100: =IF(O100=B6,COUNTIF(O7:O100,B6),"") ->  | C100: =IF(O100=C6,COUNTIF(O7:O100,C6),"") ->  | D100: =IF(O100=D6,COUNTIF(O7:O100,D6),"") ->  | E100: =IF(O100=E6,COUNTIF(O7:O100,E6),"") ->  | F100: =IF(O100=F6,COUNTIF(O7:O100,F6),"") ->  | G100: 94 | T100: 0 | AM100: 94
A101: =IF(O101=A6,COUNTIF(O7:O101,A6),"") ->  | B101: =IF(O101=B6,COUNTIF(O7:O101,B6),"") ->  | C101: =IF(O101=C6,COUNTIF(O7:O101,C6),"") ->  | D101: =IF(O101=D6,COUNTIF(O7:O101,D6),"") ->  | E101: =IF(O101=E6,COUNTIF(O7:O101,E6),"") ->  | F101: =IF(O101=F6,COUNTIF(O7:O101,F6),"") ->  | G101: 95 | T101: 0 | AM101: 95
A102: =IF(O102=A6,COUNTIF(O7:O102,A6),"") ->  | B102: =IF(O102=B6,COUNTIF(O7:O102,B6),"") ->  | C102: =IF(O102=C6,COUNTIF(O7:O102,C6),"") ->  | D102: =IF(O102=D6,COUNTIF(O7:O102,D6),"") ->  | E102: =IF(O102=E6,COUNTIF(O7:O102,E6),"") ->  | F102: =IF(O102=F6,COUNTIF(O7:O102,F6),"") ->  | G102: 96 | T102: 0 | AM102: 96
A103: =IF(O103=A6,COUNTIF(O7:O103,A6),"") ->  | B103: =IF(O103=B6,COUNTIF(O7:O103,B6),"") ->  | C103: =IF(O103=C6,COUNTIF(O7:O103,C6),"") ->  | D103: =IF(O103=D6,COUNTIF(O7:O103,D6),"") ->  | E103: =IF(O103=E6,COUNTIF(O7:O103,E6),"") ->  | F103: =IF(O103=F6,COUNTIF(O7:O103,F6),"") ->  | G103: 97 | T103: 0 | AM103: 97
A104: =IF(O104=A6,COUNTIF(O7:O104,A6),"") ->  | B104: =IF(O104=B6,COUNTIF(O7:O104,B6),"") ->  | C104: =IF(O104=C6,COUNTIF(O7:O104,C6),"") ->  | D104: =IF(O104=D6,COUNTIF(O7:O104,D6),"") ->  | E104: =IF(O104=E6,COUNTIF(O7:O104,E6),"") ->  | F104: =IF(O104=F6,COUNTIF(O7:O104,F6),"") ->  | G104: 98 | T104: 0 | AM104: 98
A105: =IF(O105=A6,COUNTIF(O7:O105,A6),"") ->  | B105: =IF(O105=B6,COUNTIF(O7:O105,B6),"") ->  | C105: =IF(O105=C6,COUNTIF(O7:O105,C6),"") ->  | D105: =IF(O105=D6,COUNTIF(O7:O105,D6),"") ->  | E105: =IF(O105=E6,COUNTIF(O7:O105,E6),"") ->  | F105: =IF(O105=F6,COUNTIF(O7:O105,F6),"") ->  | G105: 99 | T105: 0 | AM105: 99
A106: =IF(O106=A6,COUNTIF(O7:O106,A6),"") ->  | B106: =IF(O106=B6,COUNTIF(O7:O106,B6),"") ->  | C106: =IF(O106=C6,COUNTIF(O7:O106,C6),"") ->  | D106: =IF(O106=D6,COUNTIF(O7:O106,D6),"") ->  | E106: =IF(O106=E6,COUNTIF(O7:O106,E6),"") ->  | F106: =IF(O106=F6,COUNTIF(O7:O106,F6),"") ->  | G106: 100 | T106: 0 | AM106: 100
G107: =CONCATENATE($G$5," ","Individual Medal Winners") -> Minor Girls Individual Medal Winners | T107: f
G108: Pos | H108: Num | I108: Name | O108: County | S108: Time
G109: 1 | H109: =IF(H7=0,"",H7) -> 21 | I109: Sarah Smith | O109: Cumbria | S109: =IF(S7=0,"",S7) -> 9.42 | T109: =IF(H109="",0,1) -> 1
G110: 2 | H110: 81 | I110: Zoe Hill | O110: North Yorkshire | S110: =IF(S8=0,"",S8) -> 9.44 | T110: =IF(H110="",0,1) -> 1
G111: 3 | H111: 2 | I111: Gabby Hall | O111: Cleveland | S111: =IF(S9=0,"",S9) -> 9.49 | T111: =IF(H111="",0,1) -> 1
T112: g
G113: =CONCATENATE($G$5," ","Team Results") -> Minor Girls Team Results | T113: h | Y113: =G113 -> Minor Girls Team Results
H114: Team Name | M114: 1st | N114: 2nd | O114: 3rd | P114: 4th | Q114: 5th | R114: 6th | S114: Points | T114: i | W114: =P5 -> 0 | Z114: 1 | AA114: 2 | AB114: 3 | AC114: 4 | AD114: 5 | AE114: 6 | AF114: Pts
G115: 1 | H115: =IFERROR(VLOOKUP(G115,$X$115:$AF$119,2,0),"") -> North Yorkshire | M115: =IFERROR(VLOOKUP(G115,$X$115:$AF$119,3,0),"") -> 2 | N115: =IFERROR(VLOOKUP(G115,$X$115:$AF$119,4,0),"") -> 5 | O115: =IFERROR(VLOOKUP(G115,$X$115:$AF$119,5,0),"") -> 11 | P115: =IFERROR(VLOOKUP(G115,$X$115:$AF$119,6,0),"") -> 12 | Q115: =IFERROR(VLOOKUP(G115,$X$115:$AF$119,7,0),"") -> 13 | R115: =IFERROR(VLOOKUP(G115,$X$115:$AF$119,8,0),"") -> 16 | S115: =SUM(M115:R115) -> 59 | T115: =IF(H115="",0,1) -> 1 | W115: 7 | X115: =IF(OR(AJ115="",AJ115=0),0,RANK(AJ115,AJ115:AJ120,1)) -> 0 | Y115: =Home!F4 -> Cleveland | Z115: =IFERROR(VLOOKUP(Z114,$A$7:$G$106,W115,0),0) -> 3 | AA115: =IFERROR(VLOOKUP(AA114,A$7:G$106,W115,0),0) -> 6 | AB115: =IFERROR(VLOOKUP(AB114,A$7:G$106,W115,0),0) -> 28 | AC115: =IF(W114=3,0,IFERROR(VLOOKUP(AC114,A$7:G$106,W115,0),0)) -> 34 | AD115: =IF(W114=4,0,IFERROR(VLOOKUP(AD114,A$7:G$106,W115,0),0)) -> 51 | AE115: =IF(OR(W114=4,W114=5),0,IFERROR(VLOOKUP(AE114,A$7:G$106,W115,0),0)) -> 0 | AF115: =IF(AE115=0,0,SUM(Z115:AE115)) -> 0 | AG115: =IF(OR(AF115=0,AF115=""),0,RANK(AF115,AF115:AF120,1)) -> 0 | AH115: =IF(OR(AG115=0,AG115=""),"",IF(OR(AG115=AG116,AG115=AG117,AG115=AG118,AG115=AG119,AG115=AG120),"=","")) ->  | AI115: =IF(AH115="=",COUNTIF(AH115:AH115,"<>A")-COUNTIF(AH115:AH115,""),0) -> 0 | AJ115: =IF(AND(AG115=0,AI115=0),"",AG115+(AI115/10)+AL115/10) ->  | AK115: =X115 -> 0 | AL115: =IF(OR(AF115=0,AF115=""),0,RANK(Z115,Z115:Z120,1)) -> 0
G116: 2 | H116: =IFERROR(VLOOKUP(G116,$X$115:$AF$119,2,0),"") -> Cumbria | M116: =IFERROR(VLOOKUP(G116,$X$115:$AF$119,3,0),"") -> 1 | N116: =IFERROR(VLOOKUP(G116,$X$115:$AF$119,4,0),"") -> 4 | O116: =IFERROR(VLOOKUP(G116,$X$115:$AF$119,5,0),"") -> 7 | P116: =IFERROR(VLOOKUP(G116,$X$115:$AF$119,6,0),"") -> 8 | Q116: =IFERROR(VLOOKUP(G116,$X$115:$AF$119,7,0),"") -> 22 | R116: =IFERROR(VLOOKUP(G116,$X$115:$AF$119,8,0),"") -> 25 | S116: =SUM(M116:R116) -> 67 | T116: 1 | W116: 6 | X116: =IF(OR(AJ116="",AJ116=0),0,RANK(AJ116,AJ115:AJ120,1)) -> 2 | Y116: =Home!F5 -> Cumbria | Z116: =IFERROR(VLOOKUP(Z114,$B$7:$G$106,W116,0),0) -> 1 | AA116: =IFERROR(VLOOKUP(AA114,B$7:G$106,W116,0),0) -> 4 | AB116: =IFERROR(VLOOKUP(AB114,B$7:G$106,W116,0),0) -> 7 | AC116: =IF(W114=3,0,IFERROR(VLOOKUP(AC114,B$7:G$106,W116,0),0)) -> 8 | AD116: =IF(W114=4,0,IFERROR(VLOOKUP(AD114,B$7:G$106,W116,0),0)) -> 22 | AE116: =IF(OR(W114=4,W114=5),0,IFERROR(VLOOKUP(AE114,B$7:G$106,W116,0),0)) -> 25 | AF116: =IF(AE116=0,0,SUM(Z116:AE116)) -> 67 | AG116: =IF(OR(AF116=0,AF116=""),0,RANK(AF116,AF115:AF120,1)) -> 4 | AH116: =IF(OR(AG116=0,AG116=""),"",IF(OR(AG116=AG117,AG116=AG118,AG116=AG119,AG116=AG120,AG116=AG115),"=","")) ->  | AI116: =IF(AH116="=",COUNTIF(AH115:AH116,"<>A")-COUNTIF(AH115:AH116,""),0) -> 0 | AJ116: =IF(AND(AG116=0,AI116=0),"",AG116+(AI116/10)+AL116/10) -> 4.2 | AK116: =X116 -> 2 | AL116: =IF(OR(AF116=0,AF116=""),0,RANK(Z116,Z115:Z120,1)) -> 2
G117: 3 | H117: Durham | M117: 9 | N117: 10 | O117: 15 | P117: 18 | Q117: 19 | R117: 23 | S117: 94 | T117: 1 | W117: 5 | X117: =IF(OR(AJ117="",AJ117=0),0,RANK(AJ117,AJ115:AJ120,1)) -> 3 | Y117: =Home!F6 -> Durham | Z117: =IFERROR(VLOOKUP(Z114,$C$7:$G$106,W117,0),0) -> 9 | AA117: =IFERROR(VLOOKUP(AA114,C$7:G$106,W117,0),0) -> 10 | AB117: =IFERROR(VLOOKUP(AB114,C$7:G$106,W117,0),0) -> 15 | AC117: =IF(W114=3,0,IFERROR(VLOOKUP(AC114,C$7:G$106,W117,0),0)) -> 18 | AD117: =IF(W114=4,0,IFERROR(VLOOKUP(AD114,C$7:G$106,W117,0),0)) -> 19 | AE117: =IF(OR(W114=4,W114=5),0,IFERROR(VLOOKUP(AE114,C$7:G$106,W117,0),0)) -> 23 | AF117: 94 | AG117: =IF(OR(AF117=0,AF117=""),0,RANK(AF117,AF115:AF120,1)) -> 5 | AH117: =IF(OR(AG117=0,AG117=""),"",IF(OR(AG117=AG118,AG117=AG119,AG117=AG120,AG117=AG115,AG117=AG116),"=","")) ->  | AI117: =IF(AH117="=",COUNTIF(AH115:AH117,"<>A")-COUNTIF(AH115:AH117,""),0) -> 0 | AJ117: 5.5 | AK117: 3 | AL117: =IF(OR(AF117=0,AF117=""),0,RANK(Z117,Z115:Z120,1)) -> 5
G118: 4 | H118: Northumberland | M118: 14 | N118: 20 | O118: 21 | P118: 26 | Q118: 29 | R118: 30 | S118: 140 | T118: 1 | W118: 4 | X118: =IF(OR(AJ118="",AJ118=0),0,RANK(AJ118,AJ115:AJ120,1)) -> 4 | Y118: =Home!F7 -> Northumberland | Z118: =IFERROR(VLOOKUP(Z114,$D$7:$G$106,W118,0),0) -> 14 | AA118: =IFERROR(VLOOKUP(AA114,D$7:G$106,W118,0),0) -> 20 | AB118: =IFERROR(VLOOKUP(AB114,D$7:G$106,W118,0),0) -> 21 | AC118: =IF(W114=3,0,IFERROR(VLOOKUP(AC114,D$7:G$106,W118,0),0)) -> 26 | AD118: =IF(W114=4,0,IFERROR(VLOOKUP(AD114,D$7:G$106,W118,0),0)) -> 29 | AE118: =IF(OR(W114=4,W114=5),0,IFERROR(VLOOKUP(AE114,D$7:G$106,W118,0),0)) -> 30 | AF118: 140 | AG118: =IF(OR(AF118=0,AF118=""),0,RANK(AF118,AF115:AF120,1)) -> 6 | AH118: =IF(OR(AG118=0,AG118=""),"",IF(OR(AG118=AG119,AG118=AG120,AG118=AG115,AG118=AG116,AG118=AG117),"=","")) ->  | AI118: =IF(AH118="=",COUNTIF(AH115:AH118,"<>A")-COUNTIF(AH115:AH118,""),0) -> 0 | AJ118: 6.6 | AK118: 4 | AL118: =IF(OR(AF118=0,AF118=""),0,RANK(Z118,Z115:Z120,1)) -> 6
G119: 5 | S119: 0 | T119: 0 | W119: 3 | X119: =IF(OR(AJ119="",AJ119=0),0,RANK(AJ119,AJ115:AJ120,1)) -> 1 | Y119: =Home!F8 -> North Yorkshire | Z119: =IFERROR(VLOOKUP(Z114,$E$7:$G$106,W119,0),0) -> 2 | AA119: =IFERROR(VLOOKUP(AA114,E$7:G$106,W119,0),0) -> 5 | AB119: =IFERROR(VLOOKUP(AB114,E$7:G$106,W119,0),0) -> 11 | AC119: =IF(W114=3,0,IFERROR(VLOOKUP(AC114,E$7:G$106,W119,0),0)) -> 12 | AD119: =IF(W114=4,0,IFERROR(VLOOKUP(AD114,E$7:G$106,W119,0),0)) -> 13 | AE119: =IF(OR(W114=4,W114=5),0,IFERROR(VLOOKUP(AE114,E$7:G$106,W119,0),0)) -> 16 | AF119: 59 | AG119: =IF(OR(AF119=0,AF119=""),0,RANK(AF119,AF115:AF120,1)) -> 3 | AH119: =IF(OR(AG119=0,AG119=""),"",IF(OR(AG119=AG120,AG119=AG115,AG119=AG116,AG119=AG117,AG119=AG118),"=","")) ->  | AI119: =IF(AH119="=",COUNTIF(AH115:AH119,"<>A")-COUNTIF(AH115:AH119,""),0) -> 0 | AJ119: 3.3 | AK119: 1 | AL119: =IF(OR(AF119=0,AF119=""),0,RANK(Z119,Z115:Z120,1)) -> 3
W120: 2 | X120: =IF(OR(AJ120="",AJ120=0),0,RANK(AJ120,AJ115:AJ120,1)) -> 0 | Y120: =Home!F9 -> 0 | Z120: =IFERROR(VLOOKUP(Z114,F7:G106,W120,0),0) -> 0 | AA120: =IFERROR(VLOOKUP(AA114,F7:G106,W120,0),0) -> 0 | AB120: =IFERROR(VLOOKUP(AB114,F7:G106,W120,0),0) -> 0 | AC120: =IF(W114=3,0,IFERROR(VLOOKUP(AC114,F7:G106,W120,0),0)) -> 0 | AD120: =IF(W114=4,0,IFERROR(VLOOKUP(AD114,F7:G106,W120,0),0)) -> 0 | AE120: =IF(OR(W114=4,W114=5),0,IFERROR(VLOOKUP(AE114,F7:G106,W120,0),0)) -> 0 | AF120: =IF(AE120=0,0,SUM(Z120:AE120)) -> 0 | AG120: =IF(OR(AF120=0,AF120=""),0,RANK(AF120,AF115:AF120,1)) -> 0 | AH120: =IF(OR(AG120=0,AG120=""),"",IF(OR(AG120=AG115,AG120=AG116,AG120=AG117,AG120=AG118,AG120=AG119),"=","")) ->  | AI120: =IF(AH120="=",COUNTIF(AH115:AH120,"<>A")-COUNTIF(AH115:AH120,""),0) -> 0 | AK120: 0 | AL120: =IF(OR(AF120=0,AF120=""),0,RANK(Z120,Z115:Z120,1)) -> 0

Sheet Junior_Girls
G1: =Home!$B$1 -> Northern Schools' Inter-County Cross Country Championships | T1: a | V1: =CONCATENATE(W1,X1) -> Home!$B7 | W1: Home!$B | X1: =IF(Y1="Minor_Boys",4,IF(Y1="Junior_Boys",6,IF(Y1="Intermediate_Boys",8,IF(Y1="Senior_Boys",10,IF(Y1="Minor_Girls",5,IF(Y1="Junior_Girls",7,IF(Y1="Intermediate_Girls",9,IF(Y1="Senior_Girls",11,"")))))))) -> 7 | Y1: =MID(CELL("Filename",A1),SEARCH("]",CELL("Filename",A1),1)+1,32) -> Junior_Girls | AA1: =Y1 -> Junior_Girls | AE1: =CONCATENATE(Y1," ",Z1) -> Junior_Girls
G2: =Home!$B$2 -> Barnard Castle School | T2: b | V2: =CONCATENATE(W2,X2) -> Home!$D7 | W2: Home!$D | X2: =X1 -> 7
G3: =Home!$G$3 -> Saturday 3rd February 2018 | T3: c
T4: c
G5: =INDIRECT(V1) -> Junior Girls | N5: =CONCATENATE("Team Results"," ",INDIRECT(V2)," ","to Score") -> Team Results 6 to Score | T5: d
A6: =Home!F4 -> Cleveland | B6: =Home!F5 -> Cumbria | C6: =Home!F6 -> Durham | D6: =Home!F7 -> Northumberland | E6: =Home!F8 -> North Yorkshire | F6: =Home!F9 -> 0 | G6: Pos | H6: Num | I6: Name | O6: County | S6: Time | T6: e
A7: =IF(O7=A6,COUNTIF(O7:O7,A6),"") ->  | B7: =IF(O7=B6,COUNTIF(O7:O7,B6),"") -> 1 | C7: =IF(O7=C6,COUNTIF(O7:O7,C6),"") ->  | D7: =IF(O7=D6,COUNTIF(O7:O7,D6),"") ->  | E7: =IF(O7=E6,COUNTIF(O7:O7,E6),"") ->  | F7: =IF(O7=F6,COUNTIF(O7:O7,F6),"") ->  | G7: =IF(LEFT(S7,1)="D",0,AM7) -> 1 | H7: 21 | I7: =IFERROR(VLOOKUP(H7,INDIRECT($AA$1),2,0),"") -> Anna Mason | O7: =IFERROR(VLOOKUP(H7,INDIRECT($AA$1),3,0),"") -> Cumbria | S7: 12.2 | T7: =IF(H7=0,0,1) -> 1 | AM7: 1
A8: =IF(O8=A6,COUNTIF(O7:O8,A6),"") ->  | B8: =IF(O8=B6,COUNTIF(O7:O8,B6),"") -> 2 | C8: =IF(O8=C6,COUNTIF(O7:O8,C6),"") ->  | D8: =IF(O8=D6,COUNTIF(O7:O8,D6),"") ->  | E8: =IF(O8=E6,COUNTIF(O7:O8,E6),"") ->  | F8: =IF(O8=F6,COUNTIF(O7:O8,F6),"") ->  | G8: 2 | H8: 22 | I8: Olesia Winder | O8: Cumbria | S8: 12.28 | T8: 1 | AM8: 2
A9: =IF(O9=A6,COUNTIF(O7:O9,A6),"") ->  | B9: =IF(O9=B6,COUNTIF(O7:O9,B6),"") ->  | C9: =IF(O9=C6,COUNTIF(O7:O9,C6),"") ->  | D9: =IF(O9=D6,COUNTIF(O7:O9,D6),"") -> 1 | E9: =IF(O9=E6,COUNTIF(O7:O9,E6),"") ->  | F9: =IF(O9=F6,COUNTIF(O7:O9,F6),"") ->  | G9: 3 | H9: 61 | I9: Ines Curran | O9: Northumberland | S9: 12.35 | T9: 1 | AM9: 3
A10: =IF(O10=A6,COUNTIF(O7:O10,A6),"") ->  | B10: =IF(O10=B6,COUNTIF(O7:O10,B6),"") ->  | C10: =IF(O10=C6,COUNTIF(O7:O10,C6),"") ->  | D10: =IF(O10=D6,COUNTIF(O7:O10,D6),"") ->  | E10: =IF(O10=E6,COUNTIF(O7:O10,E6),"") -> 1 | F10: =IF(O10=F6,COUNTIF(O7:O10,F6),"") ->  | G10: 4 | H10: 81 | I10: Alice Jones | O10: North Yorkshire | S10: 12.36 | T10: 1 | AM10: 4
A11: =IF(O11=A6,COUNTIF(O7:O11,A6),"") ->  | B11: =IF(O11=B6,COUNTIF(O7:O11,B6),"") ->  | C11: =IF(O11=C6,COUNTIF(O7:O11,C6),"") ->  | D11: =IF(O11=D6,COUNTIF(O7:O11,D6),"") ->  | E11: =IF(O11=E6,COUNTIF(O7:O11,E6),"") -> 2 | F11: =IF(O11=F6,COUNTIF(O7:O11,F6),"") ->  | G11: 5 | H11: 83 | I11: Issy Nicholls | O11: North Yorkshire | S11: 12.38 | T11: 1 | AM11: 5
A12: =IF(O12=A6,COUNTIF(O7:O12,A6),"") ->  | B12: =IF(O12=B6,COUNTIF(O7:O12,B6),"") ->  | C12: =IF(O12=C6,COUNTIF(O7:O12,C6),"") -> 1 | D12: =IF(O12=D6,COUNTIF(O7:O12,D6),"") ->  | E12: =IF(O12=E6,COUNTIF(O7:O12,E6),"") ->  | F12: =IF(O12=F6,COUNTIF(O7:O12,F6),"") ->  | G12: 6 | H12: 46 | I12: Katie Francis | O12: Durham | S12: 12.42 | T12: 1 | AM12: 6
A13: =IF(O13=A6,COUNTIF(O7:O13,A6),"") ->  | B13: =IF(O13=B6,COUNTIF(O7:O13,B6),"") ->  | C13: =IF(O13=C6,COUNTIF(O7:O13,C6),"") -> 2 | D13: =IF(O13=D6,COUNTIF(O7:O13,D6),"") ->  | E13: =IF(O13=E6,COUNTIF(O7:O13,E6),"") ->  | F13: =IF(O13=F6,COUNTIF(O7:O13,F6),"") ->  | G13: 7 | H13: 47 | I13: Lucy Scothern | O13: Durham | S13: 12.53 | T13: 1 | AM13: 7
A14: =IF(O14=A6,COUNTIF(O7:O14,A6),"") ->  | B14: =IF(O14=B6,COUNTIF(O7:O14,B6),"") ->  | C14: =IF(O14=C6,COUNTIF(O7:O14,C6),"") ->  | D14: =IF(O14=D6,COUNTIF(O7:O14,D6),"") ->  | E14: =IF(O14=E6,COUNTIF(O7:O14,E6),"") -> 3 | F14: =IF(O14=F6,COUNTIF(O7:O14,F6),"") ->  | G14: 8 | H14: 82 | I14: Eve Whitaker | O14: North Yorkshire | S14: 12.54 | T14: 1 | AM14: 8
A15: =IF(O15=A6,COUNTIF(O7:O15,A6),"") ->  | B15: =IF(O15=B6,COUNTIF(O7:O15,B6),"") ->  | C15: =IF(O15=C6,COUNTIF(O7:O15,C6),"") ->  | D15: =IF(O15=D6,COUNTIF(O7:O15,D6),"") -> 2 | E15: =IF(O15=E6,COUNTIF(O7:O15,E6),"") ->  | F15: =IF(O15=F6,COUNTIF(O7:O15,F6),"") ->  | G15: 9 | H15: 62 | I15: Lauren Brown | O15: Northumberland | S15: 12.56 | T15: 1 | AM15: 9
A16: =IF(O16=A6,COUNTIF(O7:O16,A6),"") ->  | B16: =IF(O16=B6,COUNTIF(O7:O16,B6),"") ->  | C16: =IF(O16=C6,COUNTIF(O7:O16,C6),"") -> 3 | D16: =IF(O16=D6,COUNTIF(O7:O16,D6),"") ->  | E16: =IF(O16=E6,COUNTIF(O7:O16,E6),"") ->  | F16: =IF(O16=F6,COUNTIF(O7:O16,F6),"") ->  | G16: 10 | H16: 43 | I16: Tess Graham | O16: Durham | S16: 12.58 | T16: 1 | AM16: 10
A17: =IF(O17=A6,COUNTIF(O7:O17,A6),"") ->  | B17: =IF(O17=B6,COUNTIF(O7:O17,B6),"") ->  | C17: =IF(O17=C6,COUNTIF(O7:O17,C6),"") -> 4 | D17: =IF(O17=D6,COUNTIF(O7:O17,D6),"") ->  | E17: =IF(O17=E6,COUNTIF(O7:O17,E6),"") ->  | F17: =IF(O17=F6,COUNTIF(O7:O17,F6),"") ->  | G17: 11 | H17: 41 | I17: Emily Chong | O17: Durham | S17: 13.02 | T17: 1 | AM17: 11
A18: =IF(O18=A6,COUNTIF(O7:O18,A6),"") ->  | B18: =IF(O18=B6,COUNTIF(O7:O18,B6),"") ->  | C18: =IF(O18=C6,COUNTIF(O7:O18,C6),"") -> 5 | D18: =IF(O18=D6,COUNTIF(O7:O18,D6),"") ->  | E18: =IF(O18=E6,COUNTIF(O7:O18,E6),"") ->  | F18: =IF(O18=F6,COUNTIF(O7:O18,F6),"") ->  | G18: 12 | H18: 42 | I18: Amy Leonard | O18: Durham | S18: 13.03 | T18: 1 | AM18: 12
A19: =IF(O19=A6,COUNTIF(O7:O19,A6),"") ->  | B19: =IF(O19=B6,COUNTIF(O7:O19,B6),"") ->  | C19: =IF(O19=C6,COUNTIF(O7:O19,C6),"") -> 6 | D19: =IF(O19=D6,COUNTIF(O7:O19,D6),"") ->  | E19: =IF(O19=E6,COUNTIF(O7:O19,E6),"") ->  | F19: =IF(O19=F6,COUNTIF(O7:O19,F6),"") ->  | G19: 13 | H19: 44 | I19: Erin Keeler-Clarke | O19: Durham | S19: 13.05 | T19: 1 | AM19: 13
A20: =IF(O20=A6,COUNTIF(O7:O20,A6),"") ->  | B20: =IF(O20=B6,COUNTIF(O7:O20,B6),"") ->  | C20: =IF(O20=C6,COUNTIF(O7:O20,C6),"") ->  | D20: =IF(O20=D6,COUNTIF(O7:O20,D6),"") ->  | E20: =IF(O20=E6,COUNTIF(O7:O20,E6),"") -> 4 | F20: =IF(O20=F6,COUNTIF(O7:O20,F6),"") ->  | G20: 14 | H20: 87 | I20: Lexi Whitaker | O20: North Yorkshire | S20: 13.1 | T20: 1 | AM20: 14
A21: =IF(O21=A6,COUNTIF(O7:O21,A6),"") ->  | B21: =IF(O21=B6,COUNTIF(O7:O21,B6),"") ->  | C21: =IF(O21=C6,COUNTIF(O7:O21,C6),"") ->  | D21: =IF(O21=D6,COUNTIF(O7:O21,D6),"") ->  | E21: =IF(O21=E6,COUNTIF(O7:O21,E6),"") -> 5 | F21: =IF(O21=F6,COUNTIF(O7:O21,F6),"") ->  | G21: 15 | H21: 90 | I21: Inez Khaddi | O21: North Yorkshire | S21: 13.1 | T21: 1 | AM21: 15
A22: =IF(O22=A6,COUNTIF(O7:O22,A6),"") ->  | B22: =IF(O22=B6,COUNTIF(O7:O22,B6),"") ->  | C22: =IF(O22=C6,COUNTIF(O7:O22,C6),"") ->  | D22: =IF(O22=D6,COUNTIF(O7:O22,D6),"") -> 3 | E22: =IF(O22=E6,COUNTIF(O7:O22,E6),"") ->  | F22: =IF(O22=F6,COUNTIF(O7:O22,F6),"") ->  | G22: 16 | H22: 63 | I22: Kate Salthouse | O22: Northumberland | S22: 13.1 | T22: 1 | AM22: 16
A23: =IF(O23=A6,COUNTIF(O7:O23,A6),"") ->  | B23: =IF(O23=B6,COUNTIF(O7:O23,B6),"") -> 3 | C23: =IF(O23=C6,COUNTIF(O7:O23,C6),"") ->  | D23: =IF(O23=D6,COUNTIF(O7:O23,D6),"") ->  | E23: =IF(O23=E6,COUNTIF(O7:O23,E6),"") ->  | F23: =IF(O23=F6,COUNTIF(O7:O23,F6),"") ->  | G23: 17 | H23: 26 | I23: Lizzy Pawson | O23: Cumbria | S23: 13.12 | T23: 1 | AM23: 17
A24: =IF(O24=A6,COUNTIF(O7:O24,A6),"") ->  | B24: =IF(O24=B6,COUNTIF(O7:O24,B6),"") ->  | C24: =IF(O24=C6,COUNTIF(O7:O24,C6),"") -> 7 | D24: =IF(O24=D6,COUNTIF(O7:O24,D6),"") ->  | E24: =IF(O24=E6,COUNTIF(O7:O24,E6),"") ->  | F24: =IF(O24=F6,COUNTIF(O7:O24,F6),"") ->  | G24: 18 | H24: 49 | I24: Scarlett Newby | O24: Durham | S24: 13.13 | T24: 1 | AM24: 18
A25: =IF(O25=A6,COUNTIF(O7:O25,A6),"") ->  | B25: =IF(O25=B6,COUNTIF(O7:O25,B6),"") -> 4 | C25: =IF(O25=C6,COUNTIF(O7:O25,C6),"") ->  | D25: =IF(O25=D6,COUNTIF(O7:O25,D6),"") ->  | E25: =IF(O25=E6,COUNTIF(O7:O25,E6),"") ->  | F25: =IF(O25=F6,COUNTIF(O7:O25,F6),"") ->  | G25: 19 | H25: 30 | I25: Emily Swarbrick | O25: Cumbria | S25: 13.15 | T25: 1 | AM25: 19
A26: =IF(O26=A6,COUNTIF(O7:O26,A6),"") ->  | B26: =IF(O26=B6,COUNTIF(O7:O26,B6),"") -> 5 | C26: =IF(O26=C6,COUNTIF(O7:O26,C6),"") ->  | D26: =IF(O26=D6,COUNTIF(O7:O26,D6),"") ->  | E26: =IF(O26=E6,COUNTIF(O7:O26,E6),"") ->  | F26: =IF(O26=F6,COUNTIF(O7:O26,F6),"") ->  | G26: 20 | H26: 31 | I26: Melissa Mcintosh | O26: Cumbria | S26: 13.16 | T26: 1 | AM26: 20
A27: =IF(O27=A6,COUNTIF(O7:O27,A6),"") ->  | B27: =IF(O27=B6,COUNTIF(O7:O27,B6),"") -> 6 | C27: =IF(O27=C6,COUNTIF(O7:O27,C6),"") ->  | D27: =IF(O27=D6,COUNTIF(O7:O27,D6),"") ->  | E27: =IF(O27=E6,COUNTIF(O7:O27,E6),"") ->  | F27: =IF(O27=F6,COUNTIF(O7:O27,F6),"") ->  | G27: 21 | H27: 23 | I27: Millie Bell | O27: Cumbria | S27: 13.18 | T27: 1 | AM27: 21
A28: =IF(O28=A6,COUNTIF(O7:O28,A6),"") ->  | B28: =IF(O28=B6,COUNTIF(O7:O28,B6),"") ->  | C28: =IF(O28=C6,COUNTIF(O7:O28,C6),"") -> 8 | D28: =IF(O28=D6,COUNTIF(O7:O28,D6),"") ->  | E28: =IF(O28=E6,COUNTIF(O7:O28,E6),"") ->  | F28: =IF(O28=F6,COUNTIF(O7:O28,F6),"") ->  | G28: 22 | H28: 45 | I28: Cecilia Reid | O28: Durham | S28: 13.19 | T28: 1 | AM28: 22
A29: =IF(O29=A6,COUNTIF(O7:O29,A6),"") ->  | B29: =IF(O29=B6,COUNTIF(O7:O29,B6),"") ->  | C29: =IF(O29=C6,COUNTIF(O7:O29,C6),"") -> 9 | D29: =IF(O29=D6,COUNTIF(O7:O29,D6),"") ->  | E29: =IF(O29=E6,COUNTIF(O7:O29,E6),"") ->  | F29: =IF(O29=F6,COUNTIF(O7:O29,F6),"") ->  | G29: 23 | H29: 52 | I29: Ciara Thornley | O29: Durham | S29: 13.2 | T29: 1 | AM29: 23
A30: =IF(O30=A6,COUNTIF(O7:O30,A6),"") ->  | B30: =IF(O30=B6,COUNTIF(O7:O30,B6),"") ->  | C30: =IF(O30=C6,COUNTIF(O7:O30,C6),"") ->  | D30: =IF(O30=D6,COUNTIF(O7:O30,D6),"") -> 4 | E30: =IF(O30=E6,COUNTIF(O7:O30,E6),"") ->  | F30: =IF(O30=F6,COUNTIF(O7:O30,F6),"") ->  | G30: 24 | H30: 67 | I30: Lily Robson | O30: Northumberland | S30: 13.22 | T30: 1 | AM30: 24
A31: =IF(O31=A6,COUNTIF(O7:O31,A6),"") ->  | B31: =IF(O31=B6,COUNTIF(O7:O31,B6),"") ->  | C31: =IF(O31=C6,COUNTIF(O7:O31,C6),"") ->  | D31: =IF(O31=D6,COUNTIF(O7:O31,D6),"") ->  | E31: =IF(O31=E6,COUNTIF(O7:O31,E6),"") -> 6 | F31: =IF(O31=F6,COUNTIF(O7:O31,F6),"") ->  | G31: 25 | H31: 85 | I31: Marnie Scatchard | O31: North Yorkshire | S31: 13.24 | T31: 1 | AM31: 25
A32: =IF(O32=A6,COUNTIF(O7:O32,A6),"") ->  | B32: =IF(O32=B6,COUNTIF(O7:O32,B6),"") ->  | C32: =IF(O32=C6,COUNTIF(O7:O32,C6),"") ->  | D32: =IF(O32=D6,COUNTIF(O7:O32,D6),"") ->  | E32: =IF(O32=E6,COUNTIF(O7:O32,E6),"") -> 7 | F32: =IF(O32=F6,COUNTIF(O7:O32,F6),"") ->  | G32: 26 | H32: 91 | I32: Molly Acton | O32: North Yorkshire | S32: 13.24 | T32: 1 | AM32: 26
A33: =IF(O33=A6,COUNTIF(O7:O33,A6),"") ->  | B33: =IF(O33=B6,COUNTIF(O7:O33,B6),"") ->  | C33: =IF(O33=C6,COUNTIF(O7:O33,C6),"") ->  | D33: =IF(O33=D6,COUNTIF(O7:O33,D6),"") -> 5 | E33: =IF(O33=E6,COUNTIF(O7:O33,E6),"") ->  | F33: =IF(O33=F6,COUNTIF(O7:O33,F6),"") ->  | G33: 27 | H33: 66 | I33: Rosie Hughes | O33: Northumberland | S33: 13.24 | T33: 1 | AM33: 27
A34: =IF(O34=A6,COUNTIF(O7:O34,A6),"") ->  | B34: =IF(O34=B6,COUNTIF(O7:O34,B6),"") ->  | C34: =IF(O34=C6,COUNTIF(O7:O34,C6),"") ->  | D34: =IF(O34=D6,COUNTIF(O7:O34,D6),"") -> 6 | E34: =IF(O34=E6,COUNTIF(O7:O34,E6),"") ->  | F34: =IF(O34=F6,COUNTIF(O7:O34,F6),"") ->  | G34: 28 | H34: 65 | I34: Amy Ellis | O34: Northumberland | S34: 13.25 | T34: 1 | AM34: 28
A35: =IF(O35=A6,COUNTIF(O7:O35,A6),"") ->  | B35: =IF(O35=B6,COUNTIF(O7:O35,B6),"") ->  | C35: =IF(O35=C6,COUNTIF(O7:O35,C6),"") ->  | D35: =IF(O35=D6,COUNTIF(O7:O35,D6),"") -> 7 | E35: =IF(O35=E6,COUNTIF(O7:O35,E6),"") ->  | F35: =IF(O35=F6,COUNTIF(O7:O35,F6),"") ->  | G35: 29 | H35: 64 | I35: Millicent Breese | O35: Northumberland | S35: 13.26 | T35: 1 | AM35: 29
A36: =IF(O36=A6,COUNTIF(O7:O36,A6),"") ->  | B36: =IF(O36=B6,COUNTIF(O7:O36,B6),"") ->  | C36: =IF(O36=C6,COUNTIF(O7:O36,C6),"") ->  | D36: =IF(O36=D6,COUNTIF(O7:O36,D6),"") -> 8 | E36: =IF(O36=E6,COUNTIF(O7:O36,E6),"") ->  | F36: =IF(O36=F6,COUNTIF(O7:O36,F6),"") ->  | G36: 30 | H36: 69 | I36: Abigail Leiper | O36: Northumberland | S36: 13.27 | T36: 1 | AM36: 30
A37: =IF(O37=A6,COUNTIF(O7:O37,A6),"") -> 1 | B37: =IF(O37=B6,COUNTIF(O7:O37,B6),"") ->  | C37: =IF(O37=C6,COUNTIF(O7:O37,C6),"") ->  | D37: =IF(O37=D6,COUNTIF(O7:O37,D6),"") ->  | E37: =IF(O37=E6,COUNTIF(O7:O37,E6),"") ->  | F37: =IF(O37=F6,COUNTIF(O7:O37,F6),"") ->  | G37: 31 | H37: 2 | I37: Katie Lowe | O37: Cleveland | S37: 13.29 | T37: 1 | AM37: 31
A38: =IF(O38=A6,COUNTIF(O7:O38,A6),"") -> 2 | B38: =IF(O38=B6,COUNTIF(O7:O38,B6),"") ->  | C38: =IF(O38=C6,COUNTIF(O7:O38,C6),"") ->  | D38: =IF(O38=D6,COUNTIF(O7:O38,D6),"") ->  | E38: =IF(O38=E6,COUNTIF(O7:O38,E6),"") ->  | F38: =IF(O38=F6,COUNTIF(O7:O38,F6),"") ->  | G38: 32 | H38: 1 | I38: Lois Creasey | O38: Cleveland | S38: 13.31 | T38: 1 | AM38: 32
A39: =IF(O39=A6,COUNTIF(O7:O39,A6),"") ->  | B39: =IF(O39=B6,COUNTIF(O7:O39,B6),"") -> 7 | C39: =IF(O39=C6,COUNTIF(O7:O39,C6),"") ->  | D39: =IF(O39=D6,COUNTIF(O7:O39,D6),"") ->  | E39: =IF(O39=E6,COUNTIF(O7:O39,E6),"") ->  | F39: =IF(O39=F6,COUNTIF(O7:O39,F6),"") ->  | G39: 33 | H39: 29 | I39: Gemma O'Dowd | O39: Cumbria | S39: 13.32 | T39: 1 | AM39: 33
A40: =IF(O40=A6,COUNTIF(O7:O40,A6),"") ->  | B40: =IF(O40=B6,COUNTIF(O7:O40,B6),"") ->  | C40: =IF(O40=C6,COUNTIF(O7:O40,C6),"") ->  | D40: =IF(O40=D6,COUNTIF(O7:O40,D6),"") ->  | E40: =IF(O40=E6,COUNTIF(O7:O40,E6),"") -> 8 | F40: =IF(O40=F6,COUNTIF(O7:O40,F6),"") ->  | G40: 34 | H40: 86 | I40: Ella Colbourn | O40: North Yorkshire | S40: 13.36 | T40: 1 | AM40: 34
A41: =IF(O41=A6,COUNTIF(O7:O41,A6),"") ->  | B41: =IF(O41=B6,COUNTIF(O7:O41,B6),"") ->  | C41: =IF(O41=C6,COUNTIF(O7:O41,C6),"") ->  | D41: =IF(O41=D6,COUNTIF(O7:O41,D6),"") -> 9 | E41: =IF(O41=E6,COUNTIF(O7:O41,E6),"") ->  | F41: =IF(O41=F6,COUNTIF(O7:O41,F6),"") ->  | G41: 35 | H41: 70 | I41: Willow Morris | O41: Northumberland | S41: 13.39 | T41: 1 | AM41: 35
A42: =IF(O42=A6,COUNTIF(O7:O42,A6),"") ->  | B42: =IF(O42=B6,COUNTIF(O7:O42,B6),"") ->  | C42: =IF(O42=C6,COUNTIF(O7:O42,C6),"") ->  | D42: =IF(O42=D6,COUNTIF(O7:O42,D6),"") ->  | E42: =IF(O42=E6,COUNTIF(O7:O42,E6),"") -> 9 | F42: =IF(O42=F6,COUNTIF(O7:O42,F6),"") ->  | G42: 36 | H42: 88 | I42: Emma Peel | O42: North Yorkshire | S42: 13.44 | T42: 1 | AM42: 36
A43: =IF(O43=A6,COUNTIF(O7:O43,A6),"") -> 3 | B43: =IF(O43=B6,COUNTIF(O7:O43,B6),"") ->  | C43: =IF(O43=C6,COUNTIF(O7:O43,C6),"") ->  | D43: =IF(O43=D6,COUNTIF(O7:O43,D6),"") ->  | E43: =IF(O43=E6,COUNTIF(O7:O43,E6),"") ->  | F43: =IF(O43=F6,COUNTIF(O7:O43,F6),"") ->  | G43: 37 | H43: 6 | I43: Imogen Lillie | O43: Cleveland | S43: 13.44 | T43: 1 | AM43: 37
A44: =IF(O44=A6,COUNTIF(O7:O44,A6),"") ->  | B44: =IF(O44=B6,COUNTIF(O7:O44,B6),"") -> 8 | C44: =IF(O44=C6,COUNTIF(O7:O44,C6),"") ->  | D44: =IF(O44=D6,COUNTIF(O7:O44,D6),"") ->  | E44: =IF(O44=E6,COUNTIF(O7:O44,E6),"") ->  | F44: =IF(O44=F6,COUNTIF(O7:O44,F6),"") ->  | G44: 38 | H44: 36 | I44: Ava Taperell | O44: Cumbria | S44: 13 | T44: 1 | AM44: 38
A45: =IF(O45=A6,COUNTIF(O7:O45,A6),"") ->  | B45: =IF(O45=B6,COUNTIF(O7:O45,B6),"") ->  | C45: =IF(O45=C6,COUNTIF(O7:O45,C6),"") -> 10 | D45: =IF(O45=D6,COUNTIF(O7:O45,D6),"") ->  | E45: =IF(O45=E6,COUNTIF(O7:O45,E6),"") ->  | F45: =IF(O45=F6,COUNTIF(O7:O45,F6),"") ->  | G45: 39 | H45: 50 | I45: Abigail Thwaites | O45: Durham | S45: 13.44 | T45: 1 | AM45: 39
A46: =IF(O46=A6,COUNTIF(O7:O46,A6),"") ->  | B46: =IF(O46=B6,COUNTIF(O7:O46,B6),"") -> 9 | C46: =IF(O46=C6,COUNTIF(O7:O46,C6),"") ->  | D46: =IF(O46=D6,COUNTIF(O7:O46,D6),"") ->  | E46: =IF(O46=E6,COUNTIF(O7:O46,E6),"") ->  | F46: =IF(O46=F6,COUNTIF(O7:O46,F6),"") ->  | G46: 40 | H46: 25 | I46: Alicia Newing | O46: Cumbria | S46: 13.48 | T46: 1 | AM46: 40
A47: =IF(O47=A6,COUNTIF(O7:O47,A6),"") ->  | B47: =IF(O47=B6,COUNTIF(O7:O47,B6),"") -> 10 | C47: =IF(O47=C6,COUNTIF(O7:O47,C6),"") ->  | D47: =IF(O47=D6,COUNTIF(O7:O47,D6),"") ->  | E47: =IF(O47=E6,COUNTIF(O7:O47,E6),"") ->  | F47: =IF(O47=F6,COUNTIF(O7:O47,F6),"") ->  | G47: 41 | H47: 27 | I47: Amelie Marshall | O47: Cumbria | S47: 13.56 | T47: 1 | AM47: 41
A48: =IF(O48=A6,COUNTIF(O7:O48,A6),"") ->  | B48: =IF(O48=B6,COUNTIF(O7:O48,B6),"") ->  | C48: =IF(O48=C6,COUNTIF(O7:O48,C6),"") ->  | D48: =IF(O48=D6,COUNTIF(O7:O48,D6),"") ->  | E48: =IF(O48=E6,COUNTIF(O7:O48,E6),"") -> 10 | F48: =IF(O48=F6,COUNTIF(O7:O48,F6),"") ->  | G48: 42 | H48: 89 | I48: Alana Teasdale | O48: North Yorkshire | S48: 14 | T48: 1 | AM48: 42
A49: =IF(O49=A6,COUNTIF(O7:O49,A6),"") ->  | B49: =IF(O49=B6,COUNTIF(O7:O49,B6),"") ->  | C49: =IF(O49=C6,COUNTIF(O7:O49,C6),"") ->  | D49: =IF(O49=D6,COUNTIF(O7:O49,D6),"") -> 10 | E49: =IF(O49=E6,COUNTIF(O7:O49,E6),"") ->  | F49: =IF(O49=F6,COUNTIF(O7:O49,F6),"") ->  | G49: 43 | H49: 72 | I49: Holly Waugh | O49: Northumberland | S49: 14 | T49: 1 | AM49: 43
A50: =IF(O50=A6,COUNTIF(O7:O50,A6),"") ->  | B50: =IF(O50=B6,COUNTIF(O7:O50,B6),"") ->  | C50: =IF(O50=C6,COUNTIF(O7:O50,C6),"") -> 11 | D50: =IF(O50=D6,COUNTIF(O7:O50,D6),"") ->  | E50: =IF(O50=E6,COUNTIF(O7:O50,E6),"") ->  | F50: =IF(O50=F6,COUNTIF(O7:O50,F6),"") ->  | G50: 44 | H50: 48 | I50: Nicole Phillips | O50: Durham | S50: 14 | T50: 1 | AM50: 44
A51: =IF(O51=A6,COUNTIF(O7:O51,A6),"") ->  | B51: =IF(O51=B6,COUNTIF(O7:O51,B6),"") -> 11 | C51: =IF(O51=C6,COUNTIF(O7:O51,C6),"") ->  | D51: =IF(O51=D6,COUNTIF(O7:O51,D6),"") ->  | E51: =IF(O51=E6,COUNTIF(O7:O51,E6),"") ->  | F51: =IF(O51=F6,COUNTIF(O7:O51,F6),"") ->  | G51: 45 | H51: 32 | I51: Anna Taylor | O51: Cumbria | S51: 14.02 | T51: 1 | AM51: 45
A52: =IF(O52=A6,COUNTIF(O7:O52,A6),"") -> 4 | B52: =IF(O52=B6,COUNTIF(O7:O52,B6),"") ->  | C52: =IF(O52=C6,COUNTIF(O7:O52,C6),"") ->  | D52: =IF(O52=D6,COUNTIF(O7:O52,D6),"") ->  | E52: =IF(O52=E6,COUNTIF(O7:O52,E6),"") ->  | F52: =IF(O52=F6,COUNTIF(O7:O52,F6),"") ->  | G52: 46 | H52: 15 | I52: Jess Hall | O52: Cleveland | S52: 14.06 | T52: 1 | AM52: 46
A53: =IF(O53=A6,COUNTIF(O7:O53,A6),"") -> 5 | B53: =IF(O53=B6,COUNTIF(O7:O53,B6),"") ->  | C53: =IF(O53=C6,COUNTIF(O7:O53,C6),"") ->  | D53: =IF(O53=D6,COUNTIF(O7:O53,D6),"") ->  | E53: =IF(O53=E6,COUNTIF(O7:O53,E6),"") ->  | F53: =IF(O53=F6,COUNTIF(O7:O53,F6),"") ->  | G53: 47 | H53: 17 | I53: 0 | O53: Cleveland | S53: 14.07 | T53: 1 | AM53: 47
A54: =IF(O54=A6,COUNTIF(O7:O54,A6),"") -> 6 | B54: =IF(O54=B6,COUNTIF(O7:O54,B6),"") ->  | C54: =IF(O54=C6,COUNTIF(O7:O54,C6),"") ->  | D54: =IF(O54=D6,COUNTIF(O7:O54,D6),"") ->  | E54: =IF(O54=E6,COUNTIF(O7:O54,E6),"") ->  | F54: =IF(O54=F6,COUNTIF(O7:O54,F6),"") ->  | G54: 48 | H54: 4 | I54: Anna Reeves | O54: Cleveland | S54: 14.07 | T54: 1 | AM54: 48
A55: =IF(O55=A6,COUNTIF(O7:O55,A6),"") ->  | B55: =IF(O55=B6,COUNTIF(O7:O55,B6),"") -> 12 | C55: =IF(O55=C6,COUNTIF(O7:O55,C6),"") ->  | D55: =IF(O55=D6,COUNTIF(O7:O55,D6),"") ->  | E55: =IF(O55=E6,COUNTIF(O7:O55,E6),"") ->  | F55: =IF(O55=F6,COUNTIF(O7:O55,F6),"") ->  | G55: 49 | H55: 33 | I55: Martha Richards | O55: Cumbria | S55: 14.08 | T55: 1 | AM55: 49
A56: =IF(O56=A6,COUNTIF(O7:O56,A6),"") ->  | B56: =IF(O56=B6,COUNTIF(O7:O56,B6),"") ->  | C56: =IF(O56=C6,COUNTIF(O7:O56,C6),"") -> 12 | D56: =IF(O56=D6,COUNTIF(O7:O56,D6),"") ->  | E56: =IF(O56=E6,COUNTIF(O7:O56,E6),"") ->  | F56: =IF(O56=F6,COUNTIF(O7:O56,F6),"") ->  | G56: 50 | H56: 53 | I56: Beth Wilson | O56: Durham | S56: 14.09 | T56: 1 | AM56: 50
A57: =IF(O57=A6,COUNTIF(O7:O57,A6),"") ->  | B57: =IF(O57=B6,COUNTIF(O7:O57,B6),"") ->  | C57: =IF(O57=C6,COUNTIF(O7:O57,C6),"") ->  | D57: =IF(O57=D6,COUNTIF(O7:O57,D6),"") -> 11 | E57: =IF(O57=E6,COUNTIF(O7:O57,E6),"") ->  | F57: =IF(O57=F6,COUNTIF(O7:O57,F6),"") ->  | G57: 51 | H57: 68 | I57: Ellie Van Der Merwe | O57: Northumberland | S57: 14.12 | T57: 1 | AM57: 51
A58: =IF(O58=A6,COUNTIF(O7:O58,A6),"") -> 7 | B58: =IF(O58=B6,COUNTIF(O7:O58,B6),"") ->  | C58: =IF(O58=C6,COUNTIF(O7:O58,C6),"") ->  | D58: =IF(O58=D6,COUNTIF(O7:O58,D6),"") ->  | E58: =IF(O58=E6,COUNTIF(O7:O58,E6),"") ->  | F58: =IF(O58=F6,COUNTIF(O7:O58,F6),"") ->  | G58: 52 | H58: 5 | I58: Sophie Briming | O58: Cleveland | S58: 14.13 | T58: 1 | AM58: 52
A59: =IF(O59=A6,COUNTIF(O7:O59,A6),"") ->  | B59: =IF(O59=B6,COUNTIF(O7:O59,B6),"") ->  | C59: =IF(O59=C6,COUNTIF(O7:O59,C6),"") ->  | D59: =IF(O59=D6,COUNTIF(O7:O59,D6),"") -> 12 | E59: =IF(O59=E6,COUNTIF(O7:O59,E6),"") ->  | F59: =IF(O59=F6,COUNTIF(O7:O59,F6),"") ->  | G59: 53 | H59: 71 | I59: Rhiannon Hedley | O59: Northumberland | S59: 14.13 | T59: 1 | AM59: 53
A60: =IF(O60=A6,COUNTIF(O7:O60,A6),"") ->  | B60: =IF(O60=B6,COUNTIF(O7:O60,B6),"") ->  | C60: =IF(O60=C6,COUNTIF(O7:O60,C6),"") -> 13 | D60: =IF(O60=D6,COUNTIF(O7:O60,D6),"") ->  | E60: =IF(O60=E6,COUNTIF(O7:O60,E6),"") ->  | F60: =IF(O60=F6,COUNTIF(O7:O60,F6),"") ->  | G60: 54 | H60: 57 | I60: Kathyrn Lee | O60: Durham | S60: 14.13 | T60: 1 | AM60: 54
A61: =IF(O61=A6,COUNTIF(O7:O61,A6),"") -> 8 | B61: =IF(O61=B6,COUNTIF(O7:O61,B6),"") ->  | C61: =IF(O61=C6,COUNTIF(O7:O61,C6),"") ->  | D61: =IF(O61=D6,COUNTIF(O7:O61,D6),"") ->  | E61: =IF(O61=E6,COUNTIF(O7:O61,E6),"") ->  | F61: =IF(O61=F6,COUNTIF(O7:O61,F6),"") ->  | G61: 55 | H61: 3 | I61: Peta Collins | O61: Cleveland | S61: 14.16 | T61: 1 | AM61: 55
A62: =IF(O62=A6,COUNTIF(O7:O62,A6),"") ->  | B62: =IF(O62=B6,COUNTIF(O7:O62,B6),"") -> 13 | C62: =IF(O62=C6,COUNTIF(O7:O62,C6),"") ->  | D62: =IF(O62=D6,COUNTIF(O7:O62,D6),"") ->  | E62: =IF(O62=E6,COUNTIF(O7:O62,E6),"") ->  | F62: =IF(O62=F6,COUNTIF(O7:O62,F6),"") ->  | G62: 56 | H62: 28 | I62: Laura Brown | O62: Cumbria | S62: 14.18 | T62: 1 | AM62: 56
A63: =IF(O63=A6,COUNTIF(O7:O63,A6),"") -> 9 | B63: =IF(O63=B6,COUNTIF(O7:O63,B6),"") ->  | C63: =IF(O63=C6,COUNTIF(O7:O63,C6),"") ->  | D63: =IF(O63=D6,COUNTIF(O7:O63,D6),"") ->  | E63: =IF(O63=E6,COUNTIF(O7:O63,E6),"") ->  | F63: =IF(O63=F6,COUNTIF(O7:O63,F6),"") ->  | G63: 57 | H63: 8 | I63: Essie Croce | O63: Cleveland | S63: 14.25 | T63: 1 | AM63: 57
A64: =IF(O64=A6,COUNTIF(O7:O64,A6),"") ->  | B64: =IF(O64=B6,COUNTIF(O7:O64,B6),"") ->  | C64: =IF(O64=C6,COUNTIF(O7:O64,C6),"") ->  | D64: =IF(O64=D6,COUNTIF(O7:O64,D6),"") -> 13 | E64: =IF(O64=E6,COUNTIF(O7:O64,E6),"") ->  | F64: =IF(O64=F6,COUNTIF(O7:O64,F6),"") ->  | G64: 58 | H64: 73 | I64: Grace Larsen | O64: Northumberland | S64: 14.31 | T64: 1 | AM64: 58
A65: =IF(O65=A6,COUNTIF(O7:O65,A6),"") ->  | B65: =IF(O65=B6,COUNTIF(O7:O65,B6),"") ->  | C65: =IF(O65=C6,COUNTIF(O7:O65,C6),"") -> 14 | D65: =IF(O65=D6,COUNTIF(O7:O65,D6),"") ->  | E65: =IF(O65=E6,COUNTIF(O7:O65,E6),"") ->  | F65: =IF(O65=F6,COUNTIF(O7:O65,F6),"") ->  | G65: 59 | H65: 56 | I65: Florence Archer | O65: Durham | S65: 14.43 | T65: 1 | AM65: 59
A66: =IF(O66=A6,COUNTIF(O7:O66,A6),"") ->  | B66: =IF(O66=B6,COUNTIF(O7:O66,B6),"") ->  | C66: =IF(O66=C6,COUNTIF(O7:O66,C6),"") ->  | D66: =IF(O66=D6,COUNTIF(O7:O66,D6),"") ->  | E66: =IF(O66=E6,COUNTIF(O7:O66,E6),"") -> 11 | F66: =IF(O66=F6,COUNTIF(O7:O66,F6),"") ->  | G66: 60 | H66: 92 | I66: Mia Petrucci | O66: North Yorkshire | S66: 14.49 | T66: 1 | AM66: 60
A67: =IF(O67=A6,COUNTIF(O7:O67,A6),"") ->  | B67: =IF(O67=B6,COUNTIF(O7:O67,B6),"") ->  | C67: =IF(O67=C6,COUNTIF(O7:O67,C6),"") -> 15 | D67: =IF(O67=D6,COUNTIF(O7:O67,D6),"") ->  | E67: =IF(O67=E6,COUNTIF(O7:O67,E6),"") ->  | F67: =IF(O67=F6,COUNTIF(O7:O67,F6),"") ->  | G67: 61 | H67: 54 | I67: Bethaney Iveson | O67: Durham | S67: 14.57 | T67: 1 | AM67: 61
A68: =IF(O68=A6,COUNTIF(O7:O68,A6),"") -> 10 | B68: =IF(O68=B6,COUNTIF(O7:O68,B6),"") ->  | C68: =IF(O68=C6,COUNTIF(O7:O68,C6),"") ->  | D68: =IF(O68=D6,COUNTIF(O7:O68,D6),"") ->  | E68: =IF(O68=E6,COUNTIF(O7:O68,E6),"") ->  | F68: =IF(O68=F6,COUNTIF(O7:O68,F6),"") ->  | G68: 62 | H68: 12 | I68: Izzy Blackburn | O68: Cleveland | S68: 15 | T68: 1 | AM68: 62
A69: =IF(O69=A6,COUNTIF(O7:O69,A6),"") -> 11 | B69: =IF(O69=B6,COUNTIF(O7:O69,B6),"") ->  | C69: =IF(O69=C6,COUNTIF(O7:O69,C6),"") ->  | D69: =IF(O69=D6,COUNTIF(O7:O69,D6),"") ->  | E69: =IF(O69=E6,COUNTIF(O7:O69,E6),"") ->  | F69: =IF(O69=F6,COUNTIF(O7:O69,F6),"") ->  | G69: 63 | H69: 9 | I69: Maddy Cox | O69: Cleveland | S69: 15.02 | T69: 1 | AM69: 63
A70: =IF(O70=A6,COUNTIF(O7:O70,A6),"") ->  | B70: =IF(O70=B6,COUNTIF(O7:O70,B6),"") -> 14 | C70: =IF(O70=C6,COUNTIF(O7:O70,C6),"") ->  | D70: =IF(O70=D6,COUNTIF(O7:O70,D6),"") ->  | E70: =IF(O70=E6,COUNTIF(O7:O70,E6),"") ->  | F70: =IF(O70=F6,COUNTIF(O7:O70,F6),"") ->  | G70: 64 | H70: 37 | I70: Holly Dobson | O70: Cumbria | S70: 15.06 | T70: 1 | AM70: 64
A71: =IF(O71=A6,COUNTIF(O7:O71,A6),"") -> 12 | B71: =IF(O71=B6,COUNTIF(O7:O71,B6),"") ->  | C71: =IF(O71=C6,COUNTIF(O7:O71,C6),"") ->  | D71: =IF(O71=D6,COUNTIF(O7:O71,D6),"") ->  | E71: =IF(O71=E6,COUNTIF(O7:O71,E6),"") ->  | F71: =IF(O71=F6,COUNTIF(O7:O71,F6),"") ->  | G71: =IF(LEFT(S71,1)="D",0,AM71) -> 65 | H71: 13 | I71: =IFERROR(VLOOKUP(H71,INDIRECT($AA$1),2,0),"") -> Lucy Mcgouran | O71: =IFERROR(VLOOKUP(H71,INDIRECT($AA$1),3,0),"") -> Cleveland | S71: 15.45 | T71: =IF(H71=0,0,1) -> 1 | AM71: 65
A72: =IF(O72=A6,COUNTIF(O7:O72,A6),"") -> 13 | B72: =IF(O72=B6,COUNTIF(O7:O72,B6),"") ->  | C72: =IF(O72=C6,COUNTIF(O7:O72,C6),"") ->  | D72: =IF(O72=D6,COUNTIF(O7:O72,D6),"") ->  | E72: =IF(O72=E6,COUNTIF(O7:O72,E6),"") ->  | F72: =IF(O72=F6,COUNTIF(O7:O72,F6),"") ->  | G72: 66 | H72: 11 | I72: Heba Nane | O72: Cleveland | S72: 16.02 | T72: 1 | AM72: 66
A73: =IF(O73=A6,COUNTIF(O7:O73,A6),"") ->  | B73: =IF(O73=B6,COUNTIF(O7:O73,B6),"") ->  | C73: =IF(O73=C6,COUNTIF(O7:O73,C6),"") ->  | D73: =IF(O73=D6,COUNTIF(O7:O73,D6),"") ->  | E73: =IF(O73=E6,COUNTIF(O7:O73,E6),"") ->  | F73: =IF(O73=F6,COUNTIF(O7:O73,F6),"") ->  | G73: 67 | T73: 0 | AM73: 67
A74: =IF(O74=A6,COUNTIF(O7:O74,A6),"") ->  | B74: =IF(O74=B6,COUNTIF(O7:O74,B6),"") ->  | C74: =IF(O74=C6,COUNTIF(O7:O74,C6),"") ->  | D74: =IF(O74=D6,COUNTIF(O7:O74,D6),"") ->  | E74: =IF(O74=E6,COUNTIF(O7:O74,E6),"") ->  | F74: =IF(O74=F6,COUNTIF(O7:O74,F6),"") ->  | G74: 68 | T74: 0 | AM74: 68
A75: =IF(O75=A6,COUNTIF(O7:O75,A6),"") ->  | B75: =IF(O75=B6,COUNTIF(O7:O75,B6),"") ->  | C75: =IF(O75=C6,COUNTIF(O7:O75,C6),"") ->  | D75: =IF(O75=D6,COUNTIF(O7:O75,D6),"") ->  | E75: =IF(O75=E6,COUNTIF(O7:O75,E6),"") ->  | F75: =IF(O75=F6,COUNTIF(O7:O75,F6),"") ->  | G75: 69 | T75: 0 | AM75: 69
A76: =IF(O76=A6,COUNTIF(O7:O76,A6),"") ->  | B76: =IF(O76=B6,COUNTIF(O7:O76,B6),"") ->  | C76: =IF(O76=C6,COUNTIF(O7:O76,C6),"") ->  | D76: =IF(O76=D6,COUNTIF(O7:O76,D6),"") ->  | E76: =IF(O76=E6,COUNTIF(O7:O76,E6),"") ->  | F76: =IF(O76=F6,COUNTIF(O7:O76,F6),"") ->  | G76: 70 | T76: 0 | AM76: 70
A77: =IF(O77=A6,COUNTIF(O7:O77,A6),"") ->  | B77: =IF(O77=B6,COUNTIF(O7:O77,B6),"") ->  | C77: =IF(O77=C6,COUNTIF(O7:O77,C6),"") ->  | D77: =IF(O77=D6,COUNTIF(O7:O77,D6),"") ->  | E77: =IF(O77=E6,COUNTIF(O7:O77,E6),"") ->  | F77: =IF(O77=F6,COUNTIF(O7:O77,F6),"") ->  | G77: 71 | T77: 0 | AM77: 71
A78: =IF(O78=A6,COUNTIF(O7:O78,A6),"") ->  | B78: =IF(O78=B6,COUNTIF(O7:O78,B6),"") ->  | C78: =IF(O78=C6,COUNTIF(O7:O78,C6),"") ->  | D78: =IF(O78=D6,COUNTIF(O7:O78,D6),"") ->  | E78: =IF(O78=E6,COUNTIF(O7:O78,E6),"") ->  | F78: =IF(O78=F6,COUNTIF(O7:O78,F6),"") ->  | G78: 72 | T78: 0 | AM78: 72
A79: =IF(O79=A6,COUNTIF(O7:O79,A6),"") ->  | B79: =IF(O79=B6,COUNTIF(O7:O79,B6),"") ->  | C79: =IF(O79=C6,COUNTIF(O7:O79,C6),"") ->  | D79: =IF(O79=D6,COUNTIF(O7:O79,D6),"") ->  | E79: =IF(O79=E6,COUNTIF(O7:O79,E6),"") ->  | F79: =IF(O79=F6,COUNTIF(O7:O79,F6),"") ->  | G79: 73 | T79: 0 | AM79: 73
A80: =IF(O80=A6,COUNTIF(O7:O80,A6),"") ->  | B80: =IF(O80=B6,COUNTIF(O7:O80,B6),"") ->  | C80: =IF(O80=C6,COUNTIF(O7:O80,C6),"") ->  | D80: =IF(O80=D6,COUNTIF(O7:O80,D6),"") ->  | E80: =IF(O80=E6,COUNTIF(O7:O80,E6),"") ->  | F80: =IF(O80=F6,COUNTIF(O7:O80,F6),"") ->  | G80: 74 | T80: 0 | AM80: 74
A81: =IF(O81=A6,COUNTIF(O7:O81,A6),"") ->  | B81: =IF(O81=B6,COUNTIF(O7:O81,B6),"") ->  | C81: =IF(O81=C6,COUNTIF(O7:O81,C6),"") ->  | D81: =IF(O81=D6,COUNTIF(O7:O81,D6),"") ->  | E81: =IF(O81=E6,COUNTIF(O7:O81,E6),"") ->  | F81: =IF(O81=F6,COUNTIF(O7:O81,F6),"") ->  | G81: 75 | T81: 0 | AM81: 75
A82: =IF(O82=A6,COUNTIF(O7:O82,A6),"") ->  | B82: =IF(O82=B6,COUNTIF(O7:O82,B6),"") ->  | C82: =IF(O82=C6,COUNTIF(O7:O82,C6),"") ->  | D82: =IF(O82=D6,COUNTIF(O7:O82,D6),"") ->  | E82: =IF(O82=E6,COUNTIF(O7:O82,E6),"") ->  | F82: =IF(O82=F6,COUNTIF(O7:O82,F6),"") ->  | G82: 76 | T82: 0 | AM82: 76
A83: =IF(O83=A6,COUNTIF(O7:O83,A6),"") ->  | B83: =IF(O83=B6,COUNTIF(O7:O83,B6),"") ->  | C83: =IF(O83=C6,COUNTIF(O7:O83,C6),"") ->  | D83: =IF(O83=D6,COUNTIF(O7:O83,D6),"") ->  | E83: =IF(O83=E6,COUNTIF(O7:O83,E6),"") ->  | F83: =IF(O83=F6,COUNTIF(O7:O83,F6),"") ->  | G83: 77 | T83: 0 | AM83: 77
A84: =IF(O84=A6,COUNTIF(O7:O84,A6),"") ->  | B84: =IF(O84=B6,COUNTIF(O7:O84,B6),"") ->  | C84: =IF(O84=C6,COUNTIF(O7:O84,C6),"") ->  | D84: =IF(O84=D6,COUNTIF(O7:O84,D6),"") ->  | E84: =IF(O84=E6,COUNTIF(O7:O84,E6),"") ->  | F84: =IF(O84=F6,COUNTIF(O7:O84,F6),"") ->  | G84: 78 | T84: 0 | AM84: 78
A85: =IF(O85=A6,COUNTIF(O7:O85,A6),"") ->  | B85: =IF(O85=B6,COUNTIF(O7:O85,B6),"") ->  | C85: =IF(O85=C6,COUNTIF(O7:O85,C6),"") ->  | D85: =IF(O85=D6,COUNTIF(O7:O85,D6),"") ->  | E85: =IF(O85=E6,COUNTIF(O7:O85,E6),"") ->  | F85: =IF(O85=F6,COUNTIF(O7:O85,F6),"") ->  | G85: 79 | T85: 0 | AM85: 79
A86: =IF(O86=A6,COUNTIF(O7:O86,A6),"") ->  | B86: =IF(O86=B6,COUNTIF(O7:O86,B6),"") ->  | C86: =IF(O86=C6,COUNTIF(O7:O86,C6),"") ->  | D86: =IF(O86=D6,COUNTIF(O7:O86,D6),"") ->  | E86: =IF(O86=E6,COUNTIF(O7:O86,E6),"") ->  | F86: =IF(O86=F6,COUNTIF(O7:O86,F6),"") ->  | G86: 80 | T86: 0 | AM86: 80
A87: =IF(O87=A6,COUNTIF(O7:O87,A6),"") ->  | B87: =IF(O87=B6,COUNTIF(O7:O87,B6),"") ->  | C87: =IF(O87=C6,COUNTIF(O7:O87,C6),"") ->  | D87: =IF(O87=D6,COUNTIF(O7:O87,D6),"") ->  | E87: =IF(O87=E6,COUNTIF(O7:O87,E6),"") ->  | F87: =IF(O87=F6,COUNTIF(O7:O87,F6),"") ->  | G87: 81 | T87: 0 | AM87: 81
A88: =IF(O88=A6,COUNTIF(O7:O88,A6),"") ->  | B88: =IF(O88=B6,COUNTIF(O7:O88,B6),"") ->  | C88: =IF(O88=C6,COUNTIF(O7:O88,C6),"") ->  | D88: =IF(O88=D6,COUNTIF(O7:O88,D6),"") ->  | E88: =IF(O88=E6,COUNTIF(O7:O88,E6),"") ->  | F88: =IF(O88=F6,COUNTIF(O7:O88,F6),"") ->  | G88: 82 | T88: 0 | AM88: 82
A89: =IF(O89=A6,COUNTIF(O7:O89,A6),"") ->  | B89: =IF(O89=B6,COUNTIF(O7:O89,B6),"") ->  | C89: =IF(O89=C6,COUNTIF(O7:O89,C6),"") ->  | D89: =IF(O89=D6,COUNTIF(O7:O89,D6),"") ->  | E89: =IF(O89=E6,COUNTIF(O7:O89,E6),"") ->  | F89: =IF(O89=F6,COUNTIF(O7:O89,F6),"") ->  | G89: 83 | T89: 0 | AM89: 83
A90: =IF(O90=A6,COUNTIF(O7:O90,A6),"") ->  | B90: =IF(O90=B6,COUNTIF(O7:O90,B6),"") ->  | C90: =IF(O90=C6,COUNTIF(O7:O90,C6),"") ->  | D90: =IF(O90=D6,COUNTIF(O7:O90,D6),"") ->  | E90: =IF(O90=E6,COUNTIF(O7:O90,E6),"") ->  | F90: =IF(O90=F6,COUNTIF(O7:O90,F6),"") ->  | G90: 84 | T90: 0 | AM90: 84
A91: =IF(O91=A6,COUNTIF(O7:O91,A6),"") ->  | B91: =IF(O91=B6,COUNTIF(O7:O91,B6),"") ->  | C91: =IF(O91=C6,COUNTIF(O7:O91,C6),"") ->  | D91: =IF(O91=D6,COUNTIF(O7:O91,D6),"") ->  | E91: =IF(O91=E6,COUNTIF(O7:O91,E6),"") ->  | F91: =IF(O91=F6,COUNTIF(O7:O91,F6),"") ->  | G91: 85 | T91: 0 | AM91: 85
A92: =IF(O92=A6,COUNTIF(O7:O92,A6),"") ->  | B92: =IF(O92=B6,COUNTIF(O7:O92,B6),"") ->  | C92: =IF(O92=C6,COUNTIF(O7:O92,C6),"") ->  | D92: =IF(O92=D6,COUNTIF(O7:O92,D6),"") ->  | E92: =IF(O92=E6,COUNTIF(O7:O92,E6),"") ->  | F92: =IF(O92=F6,COUNTIF(O7:O92,F6),"") ->  | G92: 86 | T92: 0 | AM92: 86
A93: =IF(O93=A6,COUNTIF(O7:O93,A6),"") ->  | B93: =IF(O93=B6,COUNTIF(O7:O93,B6),"") ->  | C93: =IF(O93=C6,COUNTIF(O7:O93,C6),"") ->  | D93: =IF(O93=D6,COUNTIF(O7:O93,D6),"") ->  | E93: =IF(O93=E6,COUNTIF(O7:O93,E6),"") ->  | F93: =IF(O93=F6,COUNTIF(O7:O93,F6),"") ->  | G93: 87 | T93: 0 | AM93: 87
A94: =IF(O94=A6,COUNTIF(O7:O94,A6),"") ->  | B94: =IF(O94=B6,COUNTIF(O7:O94,B6),"") ->  | C94: =IF(O94=C6,COUNTIF(O7:O94,C6),"") ->  | D94: =IF(O94=D6,COUNTIF(O7:O94,D6),"") ->  | E94: =IF(O94=E6,COUNTIF(O7:O94,E6),"") ->  | F94: =IF(O94=F6,COUNTIF(O7:O94,F6),"") ->  | G94: 88 | T94: 0 | AM94: 88
A95: =IF(O95=A6,COUNTIF(O7:O95,A6),"") ->  | B95: =IF(O95=B6,COUNTIF(O7:O95,B6),"") ->  | C95: =IF(O95=C6,COUNTIF(O7:O95,C6),"") ->  | D95: =IF(O95=D6,COUNTIF(O7:O95,D6),"") ->  | E95: =IF(O95=E6,COUNTIF(O7:O95,E6),"") ->  | F95: =IF(O95=F6,COUNTIF(O7:O95,F6),"") ->  | G95: 89 | T95: 0 | AM95: 89
A96: =IF(O96=A6,COUNTIF(O7:O96,A6),"") ->  | B96: =IF(O96=B6,COUNTIF(O7:O96,B6),"") ->  | C96: =IF(O96=C6,COUNTIF(O7:O96,C6),"") ->  | D96: =IF(O96=D6,COUNTIF(O7:O96,D6),"") ->  | E96: =IF(O96=E6,COUNTIF(O7:O96,E6),"") ->  | F96: =IF(O96=F6,COUNTIF(O7:O96,F6),"") ->  | G96: 90 | T96: 0 | AM96: 90
A97: =IF(O97=A6,COUNTIF(O7:O97,A6),"") ->  | B97: =IF(O97=B6,COUNTIF(O7:O97,B6),"") ->  | C97: =IF(O97=C6,COUNTIF(O7:O97,C6),"") ->  | D97: =IF(O97=D6,COUNTIF(O7:O97,D6),"") ->  | E97: =IF(O97=E6,COUNTIF(O7:O97,E6),"") ->  | F97: =IF(O97=F6,COUNTIF(O7:O97,F6),"") ->  | G97: 91 | T97: 0 | AM97: 91
A98: =IF(O98=A6,COUNTIF(O7:O98,A6),"") ->  | B98: =IF(O98=B6,COUNTIF(O7:O98,B6),"") ->  | C98: =IF(O98=C6,COUNTIF(O7:O98,C6),"") ->  | D98: =IF(O98=D6,COUNTIF(O7:O98,D6),"") ->  | E98: =IF(O98=E6,COUNTIF(O7:O98,E6),"") ->  | F98: =IF(O98=F6,COUNTIF(O7:O98,F6),"") ->  | G98: 92 | T98: 0 | AM98: 92
A99: =IF(O99=A6,COUNTIF(O7:O99,A6),"") ->  | B99: =IF(O99=B6,COUNTIF(O7:O99,B6),"") ->  | C99: =IF(O99=C6,COUNTIF(O7:O99,C6),"") ->  | D99: =IF(O99=D6,COUNTIF(O7:O99,D6),"") ->  | E99: =IF(O99=E6,COUNTIF(O7:O99,E6),"") ->  | F99: =IF(O99=F6,COUNTIF(O7:O99,F6),"") ->  | G99: 93 | T99: 0 | AM99: 93
A100: =IF(O100=A6,COUNTIF(O7:O100,A6),"") ->  | B100: =IF(O100=B6,COUNTIF(O7:O100,B6),"") ->  | C100: =IF(O100=C6,COUNTIF(O7:O100,C6),"") ->  | D100: =IF(O100=D6,COUNTIF(O7:O100,D6),"") ->  | E100: =IF(O100=E6,COUNTIF(O7:O100,E6),"") ->  | F100: =IF(O100=F6,COUNTIF(O7:O100,F6),"") ->  | G100: 94 | T100: 0 | AM100: 94
A101: =IF(O101=A6,COUNTIF(O7:O101,A6),"") ->  | B101: =IF(O101=B6,COUNTIF(O7:O101,B6),"") ->  | C101: =IF(O101=C6,COUNTIF(O7:O101,C6),"") ->  | D101: =IF(O101=D6,COUNTIF(O7:O101,D6),"") ->  | E101: =IF(O101=E6,COUNTIF(O7:O101,E6),"") ->  | F101: =IF(O101=F6,COUNTIF(O7:O101,F6),"") ->  | G101: 95 | T101: 0 | AM101: 95
A102: =IF(O102=A6,COUNTIF(O7:O102,A6),"") ->  | B102: =IF(O102=B6,COUNTIF(O7:O102,B6),"") ->  | C102: =IF(O102=C6,COUNTIF(O7:O102,C6),"") ->  | D102: =IF(O102=D6,COUNTIF(O7:O102,D6),"") ->  | E102: =IF(O102=E6,COUNTIF(O7:O102,E6),"") ->  | F102: =IF(O102=F6,COUNTIF(O7:O102,F6),"") ->  | G102: 96 | T102: 0 | AM102: 96
A103: =IF(O103=A6,COUNTIF(O7:O103,A6),"") ->  | B103: =IF(O103=B6,COUNTIF(O7:O103,B6),"") ->  | C103: =IF(O103=C6,COUNTIF(O7:O103,C6),"") ->  | D103: =IF(O103=D6,COUNTIF(O7:O103,D6),"") ->  | E103: =IF(O103=E6,COUNTIF(O7:O103,E6),"") ->  | F103: =IF(O103=F6,COUNTIF(O7:O103,F6),"") ->  | G103: 97 | T103: 0 | AM103: 97
A104: =IF(O104=A6,COUNTIF(O7:O104,A6),"") ->  | B104: =IF(O104=B6,COUNTIF(O7:O104,B6),"") ->  | C104: =IF(O104=C6,COUNTIF(O7:O104,C6),"") ->  | D104: =IF(O104=D6,COUNTIF(O7:O104,D6),"") ->  | E104: =IF(O104=E6,COUNTIF(O7:O104,E6),"") ->  | F104: =IF(O104=F6,COUNTIF(O7:O104,F6),"") ->  | G104: 98 | T104: 0 | AM104: 98
A105: =IF(O105=A6,COUNTIF(O7:O105,A6),"") ->  | B105: =IF(O105=B6,COUNTIF(O7:O105,B6),"") ->  | C105: =IF(O105=C6,COUNTIF(O7:O105,C6),"") ->  | D105: =IF(O105=D6,COUNTIF(O7:O105,D6),"") ->  | E105: =IF(O105=E6,COUNTIF(O7:O105,E6),"") ->  | F105: =IF(O105=F6,COUNTIF(O7:O105,F6),"") ->  | G105: 99 | T105: 0 | AM105: 99
A106: =IF(O106=A6,COUNTIF(O7:O106,A6),"") ->  | B106: =IF(O106=B6,COUNTIF(O7:O106,B6),"") ->  | C106: =IF(O106=C6,COUNTIF(O7:O106,C6),"") ->  | D106: =IF(O106=D6,COUNTIF(O7:O106,D6),"") ->  | E106: =IF(O106=E6,COUNTIF(O7:O106,E6),"") ->  | F106: =IF(O106=F6,COUNTIF(O7:O106,F6),"") ->  | G106: 100 | T106: 0 | AM106: 100
G107: =CONCATENATE($G$5," ","Individual Medal Winners") -> Junior Girls Individual Medal Winners | T107: f
G108: Pos | H108: Num | I108: Name | O108: County | S108: Time
G109: 1 | H109: =IF(H7=0,"",H7) -> 21 | I109: Anna Mason | O109: Cumbria | S109: =IF(S7=0,"",S7) -> 12.2 | T109: =IF(H109="",0,1) -> 1
G110: 2 | H110: 22 | I110: Olesia Winder | O110: Cumbria | S110: =IF(S8=0,"",S8) -> 12.28 | T110: =IF(H110="",0,1) -> 1
G111: 3 | H111: 61 | I111: Ines Curran | O111: Northumberland | S111: =IF(S9=0,"",S9) -> 12.35 | T111: =IF(H111="",0,1) -> 1
T112: g
G113: =CONCATENATE($G$5," ","Team Results") -> Junior Girls Team Results | T113: h | Y113: =G113 -> Junior Girls Team Results
H114: Team Name | M114: 1st | N114: 2nd | O114: 3rd | P114: 4th | Q114: 5th | R114: 6th | S114: Points | T114: i | W114: =P5 -> 0 | Z114: 1 | AA114: 2 | AB114: 3 | AC114: 4 | AD114: 5 | AE114: 6 | AF114: Pts
G115: 1 | H115: =IFERROR(VLOOKUP(G115,$X$115:$AF$119,2,0),"") -> Durham | M115: =IFERROR(VLOOKUP(G115,$X$115:$AF$119,3,0),"") -> 6 | N115: =IFERROR(VLOOKUP(G115,$X$115:$AF$119,4,0),"") -> 7 | O115: =IFERROR(VLOOKUP(G115,$X$115:$AF$119,5,0),"") -> 10 | P115: =IFERROR(VLOOKUP(G115,$X$115:$AF$119,6,0),"") -> 11 | Q115: =IFERROR(VLOOKUP(G115,$X$115:$AF$119,7,0),"") -> 12 | R115: =IFERROR(VLOOKUP(G115,$X$115:$AF$119,8,0),"") -> 13 | S115: =SUM(M115:R115) -> 59 | T115: =IF(H115="",0,1) -> 1 | W115: 7 | X115: =IF(OR(AJ115="",AJ115=0),0,RANK(AJ115,AJ115:AJ120,1)) -> 5 | Y115: =Home!F4 -> Cleveland | Z115: =IFERROR(VLOOKUP(Z114,$A$7:$G$106,W115,0),0) -> 31 | AA115: =IFERROR(VLOOKUP(AA114,A$7:G$106,W115,0),0) -> 32 | AB115: =IFERROR(VLOOKUP(AB114,A$7:G$106,W115,0),0) -> 37 | AC115: =IF(W114=3,0,IFERROR(VLOOKUP(AC114,A$7:G$106,W115,0),0)) -> 46 | AD115: =IF(W114=4,0,IFERROR(VLOOKUP(AD114,A$7:G$106,W115,0),0)) -> 47 | AE115: =IF(OR(W114=4,W114=5),0,IFERROR(VLOOKUP(AE114,A$7:G$106,W115,0),0)) -> 48 | AF115: =IF(AE115=0,0,SUM(Z115:AE115)) -> 241 | AG115: =IF(OR(AF115=0,AF115=""),0,RANK(AF115,AF115:AF120,1)) -> 6 | AH115: =IF(OR(AG115=0,AG115=""),"",IF(OR(AG115=AG116,AG115=AG117,AG115=AG118,AG115=AG119,AG115=AG120),"=","")) ->  | AI115: =IF(AH115="=",COUNTIF(AH115:AH115,"<>A")-COUNTIF(AH115:AH115,""),0) -> 0 | AJ115: =IF(AND(AG115=0,AI115=0),"",AG115+(AI115/10)+AL115/10) -> 6.6 | AK115: =X115 -> 5 | AL115: =IF(OR(AF115=0,AF115=""),0,RANK(Z115,Z115:Z120,1)) -> 6
G116: 2 | H116: =IFERROR(VLOOKUP(G116,$X$115:$AF$119,2,0),"") -> North Yorkshire | M116: =IFERROR(VLOOKUP(G116,$X$115:$AF$119,3,0),"") -> 4 | N116: =IFERROR(VLOOKUP(G116,$X$115:$AF$119,4,0),"") -> 5 | O116: =IFERROR(VLOOKUP(G116,$X$115:$AF$119,5,0),"") -> 8 | P116: =IFERROR(VLOOKUP(G116,$X$115:$AF$119,6,0),"") -> 14 | Q116: =IFERROR(VLOOKUP(G116,$X$115:$AF$119,7,0),"") -> 15 | R116: =IFERROR(VLOOKUP(G116,$X$115:$AF$119,8,0),"") -> 25 | S116: =SUM(M116:R116) -> 71 | T116: 1 | W116: 6 | X116: =IF(OR(AJ116="",AJ116=0),0,RANK(AJ116,AJ115:AJ120,1)) -> 3 | Y116: =Home!F5 -> Cumbria | Z116: =IFERROR(VLOOKUP(Z114,$B$7:$G$106,W116,0),0) -> 1 | AA116: =IFERROR(VLOOKUP(AA114,B$7:G$106,W116,0),0) -> 2 | AB116: =IFERROR(VLOOKUP(AB114,B$7:G$106,W116,0),0) -> 17 | AC116: =IF(W114=3,0,IFERROR(VLOOKUP(AC114,B$7:G$106,W116,0),0)) -> 19 | AD116: =IF(W114=4,0,IFERROR(VLOOKUP(AD114,B$7:G$106,W116,0),0)) -> 20 | AE116: =IF(OR(W114=4,W114=5),0,IFERROR(VLOOKUP(AE114,B$7:G$106,W116,0),0)) -> 21 | AF116: =IF(AE116=0,0,SUM(Z116:AE116)) -> 80 | AG116: =IF(OR(AF116=0,AF116=""),0,RANK(AF116,AF115:AF120,1)) -> 4 | AH116: =IF(OR(AG116=0,AG116=""),"",IF(OR(AG116=AG117,AG116=AG118,AG116=AG119,AG116=AG120,AG116=AG115),"=","")) ->  | AI116: =IF(AH116="=",COUNTIF(AH115:AH116,"<>A")-COUNTIF(AH115:AH116,""),0) -> 0 | AJ116: =IF(AND(AG116=0,AI116=0),"",AG116+(AI116/10)+AL116/10) -> 4.2 | AK116: =X116 -> 3 | AL116: =IF(OR(AF116=0,AF116=""),0,RANK(Z116,Z115:Z120,1)) -> 2
G117: 3 | H117: Cumbria | M117: 1 | N117: 2 | O117: 17 | P117: 19 | Q117: 20 | R117: 21 | S117: 80 | T117: 1 | W117: 5 | X117: =IF(OR(AJ117="",AJ117=0),0,RANK(AJ117,AJ115:AJ120,1)) -> 1 | Y117: =Home!F6 -> Durham | Z117: =IFERROR(VLOOKUP(Z114,$C$7:$G$106,W117,0),0) -> 6 | AA117: =IFERROR(VLOOKUP(AA114,C$7:G$106,W117,0),0) -> 7 | AB117: =IFERROR(VLOOKUP(AB114,C$7:G$106,W117,0),0) -> 10 | AC117: =IF(W114=3,0,IFERROR(VLOOKUP(AC114,C$7:G$106,W117,0),0)) -> 11 | AD117: =IF(W114=4,0,IFERROR(VLOOKUP(AD114,C$7:G$106,W117,0),0)) -> 12 | AE117: =IF(OR(W114=4,W114=5),0,IFERROR(VLOOKUP(AE114,C$7:G$106,W117,0),0)) -> 13 | AF117: 59 | AG117: =IF(OR(AF117=0,AF117=""),0,RANK(AF117,AF115:AF120,1)) -> 2 | AH117: =IF(OR(AG117=0,AG117=""),"",IF(OR(AG117=AG118,AG117=AG119,AG117=AG120,AG117=AG115,AG117=AG116),"=","")) ->  | AI117: =IF(AH117="=",COUNTIF(AH115:AH117,"<>A")-COUNTIF(AH115:AH117,""),0) -> 0 | AJ117: 2.5 | AK117: 1 | AL117: =IF(OR(AF117=0,AF117=""),0,RANK(Z117,Z115:Z120,1)) -> 5
G118: 4 | H118: Northumberland | M118: 3 | N118: 9 | O118: 16 | P118: 24 | Q118: 27 | R118: 28 | S118: 107 | T118: 1 | W118: 4 | X118: =IF(OR(AJ118="",AJ118=0),0,RANK(AJ118,AJ115:AJ120,1)) -> 4 | Y118: =Home!F7 -> Northumberland | Z118: =IFERROR(VLOOKUP(Z114,$D$7:$G$106,W118,0),0) -> 3 | AA118: =IFERROR(VLOOKUP(AA114,D$7:G$106,W118,0),0) -> 9 | AB118: =IFERROR(VLOOKUP(AB114,D$7:G$106,W118,0),0) -> 16 | AC118: =IF(W114=3,0,IFERROR(VLOOKUP(AC114,D$7:G$106,W118,0),0)) -> 24 | AD118: =IF(W114=4,0,IFERROR(VLOOKUP(AD114,D$7:G$106,W118,0),0)) -> 27 | AE118: =IF(OR(W114=4,W114=5),0,IFERROR(VLOOKUP(AE114,D$7:G$106,W118,0),0)) -> 28 | AF118: 107 | AG118: =IF(OR(AF118=0,AF118=""),0,RANK(AF118,AF115:AF120,1)) -> 5 | AH118: =IF(OR(AG118=0,AG118=""),"",IF(OR(AG118=AG119,AG118=AG120,AG118=AG115,AG118=AG116,AG118=AG117),"=","")) ->  | AI118: =IF(AH118="=",COUNTIF(AH115:AH118,"<>A")-COUNTIF(AH115:AH118,""),0) -> 0 | AJ118: 5.3 | AK118: 4 | AL118: =IF(OR(AF118=0,AF118=""),0,RANK(Z118,Z115:Z120,1)) -> 3
G119: 5 | H119: Cleveland | M119: 31 | N119: 32 | O119: 37 | P119: 46 | Q119: 47 | R119: 48 | S119: 241 | T119: 1 | W119: 3 | X119: =IF(OR(AJ119="",AJ119=0),0,RANK(AJ119,AJ115:AJ120,1)) -> 2 | Y119: =Home!F8 -> North Yorkshire | Z119: =IFERROR(VLOOKUP(Z114,$E$7:$G$106,W119,0),0) -> 4 | AA119: =IFERROR(VLOOKUP(AA114,E$7:G$106,W119,0),0) -> 5 | AB119: =IFERROR(VLOOKUP(AB114,E$7:G$106,W119,0),0) -> 8 | AC119: =IF(W114=3,0,IFERROR(VLOOKUP(AC114,E$7:G$106,W119,0),0)) -> 14 | AD119: =IF(W114=4,0,IFERROR(VLOOKUP(AD114,E$7:G$106,W119,0),0)) -> 15 | AE119: =IF(OR(W114=4,W114=5),0,IFERROR(VLOOKUP(AE114,E$7:G$106,W119,0),0)) -> 25 | AF119: 71 | AG119: =IF(OR(AF119=0,AF119=""),0,RANK(AF119,AF115:AF120,1)) -> 3 | AH119: =IF(OR(AG119=0,AG119=""),"",IF(OR(AG119=AG120,AG119=AG115,AG119=AG116,AG119=AG117,AG119=AG118),"=","")) ->  | AI119: =IF(AH119="=",COUNTIF(AH115:AH119,"<>A")-COUNTIF(AH115:AH119,""),0) -> 0 | AJ119: 3.4 | AK119: 2 | AL119: =IF(OR(AF119=0,AF119=""),0,RANK(Z119,Z115:Z120,1)) -> 4
W120: 2 | X120: =IF(OR(AJ120="",AJ120=0),0,RANK(AJ120,AJ115:AJ120,1)) -> 0 | Y120: =Home!F9 -> 0 | Z120: =IFERROR(VLOOKUP(Z114,F7:G106,W120,0),0) -> 0 | AA120: =IFERROR(VLOOKUP(AA114,F7:G106,W120,0),0) -> 0 | AB120: =IFERROR(VLOOKUP(AB114,F7:G106,W120,0),0) -> 0 | AC120: =IF(W114=3,0,IFERROR(VLOOKUP(AC114,F7:G106,W120,0),0)) -> 0 | AD120: =IF(W114=4,0,IFERROR(VLOOKUP(AD114,F7:G106,W120,0),0)) -> 0 | AE120: =IF(OR(W114=4,W114=5),0,IFERROR(VLOOKUP(AE114,F7:G106,W120,0),0)) -> 0 | AF120: =IF(AE120=0,0,SUM(Z120:AE120)) -> 0 | AG120: =IF(OR(AF120=0,AF120=""),0,RANK(AF120,AF115:AF120,1)) -> 0 | AH120: =IF(OR(AG120=0,AG120=""),"",IF(OR(AG120=AG115,AG120=AG116,AG120=AG117,AG120=AG118,AG120=AG119),"=","")) ->  | AI120: =IF(AH120="=",COUNTIF(AH115:AH120,"<>A")-COUNTIF(AH115:AH120,""),0) -> 0 | AK120: 0 | AL120: =IF(OR(AF120=0,AF120=""),0,RANK(Z120,Z115:Z120,1)) -> 0

Sheet Intermediate_Girls
G1: =Home!$B$1 -> Northern Schools' Inter-County Cross Country Championships | T1: a | V1: =CONCATENATE(W1,X1) -> Home!$B9 | W1: Home!$B | X1: =IF(Y1="Minor_Boys",4,IF(Y1="Junior_Boys",6,IF(Y1="Intermediate_Boys",8,IF(Y1="Senior_Boys",10,IF(Y1="Minor_Girls",5,IF(Y1="Junior_Girls",7,IF(Y1="Intermediate_Girls",9,IF(Y1="Senior_Girls",11,"")))))))) -> 9 | Y1: =MID(CELL("Filename",A1),SEARCH("]",CELL("Filename",A1),1)+1,32) -> Intermediate_Girls | AA1: =Y1 -> Intermediate_Girls | AE1: =CONCATENATE(Y1," ",Z1) -> Intermediate_Girls
G2: =Home!$B$2 -> Barnard Castle School | T2: b | V2: =CONCATENATE(W2,X2) -> Home!$D9 | W2: Home!$D | X2: =X1 -> 9
G3: =Home!$G$3 -> Saturday 3rd February 2018 | T3: c
T4: c
G5: =INDIRECT(V1) -> Intermediate Girls | N5: =CONCATENATE("Team Results"," ",INDIRECT(V2)," ","to Score") -> Team Results 6 to Score | T5: d
A6: =Home!F4 -> Cleveland | B6: =Home!F5 -> Cumbria | C6: =Home!F6 -> Durham | D6: =Home!F7 -> Northumberland | E6: =Home!F8 -> North Yorkshire | F6: =Home!F9 -> 0 | G6: Pos | H6: Num | I6: Name | O6: County | S6: Time | T6: e
A7: =IF(O7=A6,COUNTIF(O7:O7,A6),"") ->  | B7: =IF(O7=B6,COUNTIF(O7:O7,B6),"") -> 1 | C7: =IF(O7=C6,COUNTIF(O7:O7,C6),"") ->  | D7: =IF(O7=D6,COUNTIF(O7:O7,D6),"") ->  | E7: =IF(O7=E6,COUNTIF(O7:O7,E6),"") ->  | F7: =IF(O7=F6,COUNTIF(O7:O7,F6),"") ->  | G7: =IF(LEFT(S7,1)="D",0,AM7) -> 1 | H7: 33 | I7: =IFERROR(VLOOKUP(H7,INDIRECT($AA$1),2,0),"") -> Olivia Mason | O7: =IFERROR(VLOOKUP(H7,INDIRECT($AA$1),3,0),"") -> Cumbria | S7: 15.52 | T7: =IF(H7=0,0,1) -> 1 | AM7: 1
A8: =IF(O8=A6,COUNTIF(O7:O8,A6),"") ->  | B8: =IF(O8=B6,COUNTIF(O7:O8,B6),"") -> 2 | C8: =IF(O8=C6,COUNTIF(O7:O8,C6),"") ->  | D8: =IF(O8=D6,COUNTIF(O7:O8,D6),"") ->  | E8: =IF(O8=E6,COUNTIF(O7:O8,E6),"") ->  | F8: =IF(O8=F6,COUNTIF(O7:O8,F6),"") ->  | G8: 2 | H8: 21 | I8: Rosie Woodhams | O8: Cumbria | S8: 16 | T8: 1 | AM8: 2
A9: =IF(O9=A6,COUNTIF(O7:O9,A6),"") ->  | B9: =IF(O9=B6,COUNTIF(O7:O9,B6),"") -> 3 | C9: =IF(O9=C6,COUNTIF(O7:O9,C6),"") ->  | D9: =IF(O9=D6,COUNTIF(O7:O9,D6),"") ->  | E9: =IF(O9=E6,COUNTIF(O7:O9,E6),"") ->  | F9: =IF(O9=F6,COUNTIF(O7:O9,F6),"") ->  | G9: 3 | H9: 22 | I9: Chloe Rylance | O9: Cumbria | S9: 16.09 | T9: 1 | AM9: 3
A10: =IF(O10=A6,COUNTIF(O7:O10,A6),"") ->  | B10: =IF(O10=B6,COUNTIF(O7:O10,B6),"") ->  | C10: =IF(O10=C6,COUNTIF(O7:O10,C6),"") -> 1 | D10: =IF(O10=D6,COUNTIF(O7:O10,D6),"") ->  | E10: =IF(O10=E6,COUNTIF(O7:O10,E6),"") ->  | F10: =IF(O10=F6,COUNTIF(O7:O10,F6),"") ->  | G10: 4 | H10: 42 | I10: Catherine Roberts | O10: Durham | S10: 16.21 | T10: 1 | AM10: 4
A11: =IF(O11=A6,COUNTIF(O7:O11,A6),"") ->  | B11: =IF(O11=B6,COUNTIF(O7:O11,B6),"") ->  | C11: =IF(O11=C6,COUNTIF(O7:O11,C6),"") -> 2 | D11: =IF(O11=D6,COUNTIF(O7:O11,D6),"") ->  | E11: =IF(O11=E6,COUNTIF(O7:O11,E6),"") ->  | F11: =IF(O11=F6,COUNTIF(O7:O11,F6),"") ->  | G11: 5 | H11: 43 | I11: Lydia James | O11: Durham | S11: 16.22 | T11: 1 | AM11: 5
A12: =IF(O12=A6,COUNTIF(O7:O12,A6),"") ->  | B12: =IF(O12=B6,COUNTIF(O7:O12,B6),"") ->  | C12: =IF(O12=C6,COUNTIF(O7:O12,C6),"") ->  | D12: =IF(O12=D6,COUNTIF(O7:O12,D6),"") -> 1 | E12: =IF(O12=E6,COUNTIF(O7:O12,E6),"") ->  | F12: =IF(O12=F6,COUNTIF(O7:O12,F6),"") ->  | G12: 6 | H12: 61 | I12: Holly Peck | O12: Northumberland | S12: 16.4 | T12: 1 | AM12: 6
A13: =IF(O13=A6,COUNTIF(O7:O13,A6),"") ->  | B13: =IF(O13=B6,COUNTIF(O7:O13,B6),"") ->  | C13: =IF(O13=C6,COUNTIF(O7:O13,C6),"") -> 3 | D13: =IF(O13=D6,COUNTIF(O7:O13,D6),"") ->  | E13: =IF(O13=E6,COUNTIF(O7:O13,E6),"") ->  | F13: =IF(O13=F6,COUNTIF(O7:O13,F6),"") ->  | G13: 7 | H13: 47 | I13: Rebecca Wren | O13: Durham | S13: 16.57 | T13: 1 | AM13: 7
A14: =IF(O14=A6,COUNTIF(O7:O14,A6),"") ->  | B14: =IF(O14=B6,COUNTIF(O7:O14,B6),"") -> 4 | C14: =IF(O14=C6,COUNTIF(O7:O14,C6),"") ->  | D14: =IF(O14=D6,COUNTIF(O7:O14,D6),"") ->  | E14: =IF(O14=E6,COUNTIF(O7:O14,E6),"") ->  | F14: =IF(O14=F6,COUNTIF(O7:O14,F6),"") ->  | G14: 8 | H14: 23 | I14: Molly Wren | O14: Cumbria | S14: 16.58 | T14: 1 | AM14: 8
A15: =IF(O15=A6,COUNTIF(O7:O15,A6),"") ->  | B15: =IF(O15=B6,COUNTIF(O7:O15,B6),"") ->  | C15: =IF(O15=C6,COUNTIF(O7:O15,C6),"") ->  | D15: =IF(O15=D6,COUNTIF(O7:O15,D6),"") ->  | E15: =IF(O15=E6,COUNTIF(O7:O15,E6),"") -> 1 | F15: =IF(O15=F6,COUNTIF(O7:O15,F6),"") ->  | G15: 9 | H15: 81 | I15: Bethany Bergstrand | O15: North Yorkshire | S15: 17.03 | T15: 1 | AM15: 9
A16: =IF(O16=A6,COUNTIF(O7:O16,A6),"") ->  | B16: =IF(O16=B6,COUNTIF(O7:O16,B6),"") ->  | C16: =IF(O16=C6,COUNTIF(O7:O16,C6),"") -> 4 | D16: =IF(O16=D6,COUNTIF(O7:O16,D6),"") ->  | E16: =IF(O16=E6,COUNTIF(O7:O16,E6),"") ->  | F16: =IF(O16=F6,COUNTIF(O7:O16,F6),"") ->  | G16: 10 | H16: 44 | I16: Anna Pigford | O16: Durham | S16: 17.09 | T16: 1 | AM16: 10
A17: =IF(O17=A6,COUNTIF(O7:O17,A6),"") ->  | B17: =IF(O17=B6,COUNTIF(O7:O17,B6),"") ->  | C17: =IF(O17=C6,COUNTIF(O7:O17,C6),"") ->  | D17: =IF(O17=D6,COUNTIF(O7:O17,D6),"") ->  | E17: =IF(O17=E6,COUNTIF(O7:O17,E6),"") -> 2 | F17: =IF(O17=F6,COUNTIF(O7:O17,F6),"") ->  | G17: 11 | H17: 83 | I17: Emma Hart | O17: North Yorkshire | S17: 17.15 | T17: 1 | AM17: 11
A18: =IF(O18=A6,COUNTIF(O7:O18,A6),"") ->  | B18: =IF(O18=B6,COUNTIF(O7:O18,B6),"") -> 5 | C18: =IF(O18=C6,COUNTIF(O7:O18,C6),"") ->  | D18: =IF(O18=D6,COUNTIF(O7:O18,D6),"") ->  | E18: =IF(O18=E6,COUNTIF(O7:O18,E6),"") ->  | F18: =IF(O18=F6,COUNTIF(O7:O18,F6),"") ->  | G18: 12 | H18: 25 | I18: Mia Easthope | O18: Cumbria | S18: 17.18 | T18: 1 | AM18: 12
A19: =IF(O19=A6,COUNTIF(O7:O19,A6),"") ->  | B19: =IF(O19=B6,COUNTIF(O7:O19,B6),"") ->  | C19: =IF(O19=C6,COUNTIF(O7:O19,C6),"") ->  | D19: =IF(O19=D6,COUNTIF(O7:O19,D6),"") ->  | E19: =IF(O19=E6,COUNTIF(O7:O19,E6),"") -> 3 | F19: =IF(O19=F6,COUNTIF(O7:O19,F6),"") ->  | G19: 13 | H19: 82 | I19: Emily Jones | O19: North Yorkshire | S19: 17.24 | T19: 1 | AM19: 13
A20: =IF(O20=A6,COUNTIF(O7:O20,A6),"") ->  | B20: =IF(O20=B6,COUNTIF(O7:O20,B6),"") ->  | C20: =IF(O20=C6,COUNTIF(O7:O20,C6),"") ->  | D20: =IF(O20=D6,COUNTIF(O7:O20,D6),"") ->  | E20: =IF(O20=E6,COUNTIF(O7:O20,E6),"") -> 4 | F20: =IF(O20=F6,COUNTIF(O7:O20,F6),"") ->  | G20: 14 | H20: 84 | I20: Holly Moss | O20: North Yorkshire | S20: 17.25 | T20: 1 | AM20: 14
A21: =IF(O21=A6,COUNTIF(O7:O21,A6),"") ->  | B21: =IF(O21=B6,COUNTIF(O7:O21,B6),"") ->  | C21: =IF(O21=C6,COUNTIF(O7:O21,C6),"") ->  | D21: =IF(O21=D6,COUNTIF(O7:O21,D6),"") ->  | E21: =IF(O21=E6,COUNTIF(O7:O21,E6),"") -> 5 | F21: =IF(O21=F6,COUNTIF(O7:O21,F6),"") ->  | G21: 15 | H21: 90 | I21: Anika Schwarze-Chintapatla | O21: North Yorkshire | S21: 17.33 | T21: 1 | AM21: 15
A22: =IF(O22=A6,COUNTIF(O7:O22,A6),"") ->  | B22: =IF(O22=B6,COUNTIF(O7:O22,B6),"") ->  | C22: =IF(O22=C6,COUNTIF(O7:O22,C6),"") -> 5 | D22: =IF(O22=D6,COUNTIF(O7:O22,D6),"") ->  | E22: =IF(O22=E6,COUNTIF(O7:O22,E6),"") ->  | F22: =IF(O22=F6,COUNTIF(O7:O22,F6),"") ->  | G22: 16 | H22: 46 | I22: Ellie Phillips | O22: Durham | S22: 17.35 | T22: 1 | AM22: 16
A23: =IF(O23=A6,COUNTIF(O7:O23,A6),"") ->  | B23: =IF(O23=B6,COUNTIF(O7:O23,B6),"") ->  | C23: =IF(O23=C6,COUNTIF(O7:O23,C6),"") -> 6 | D23: =IF(O23=D6,COUNTIF(O7:O23,D6),"") ->  | E23: =IF(O23=E6,COUNTIF(O7:O23,E6),"") ->  | F23: =IF(O23=F6,COUNTIF(O7:O23,F6),"") ->  | G23: 17 | H23: 45 | I23: Eva Hardie | O23: Durham | S23: 17.42 | T23: 1 | AM23: 17
A24: =IF(O24=A6,COUNTIF(O7:O24,A6),"") ->  | B24: =IF(O24=B6,COUNTIF(O7:O24,B6),"") -> 6 | C24: =IF(O24=C6,COUNTIF(O7:O24,C6),"") ->  | D24: =IF(O24=D6,COUNTIF(O7:O24,D6),"") ->  | E24: =IF(O24=E6,COUNTIF(O7:O24,E6),"") ->  | F24: =IF(O24=F6,COUNTIF(O7:O24,F6),"") ->  | G24: 18 | H24: 30 | I24: Mia Doherty | O24: Cumbria | S24: 17.57 | T24: 1 | AM24: 18
A25: =IF(O25=A6,COUNTIF(O7:O25,A6),"") ->  | B25: =IF(O25=B6,COUNTIF(O7:O25,B6),"") -> 7 | C25: =IF(O25=C6,COUNTIF(O7:O25,C6),"") ->  | D25: =IF(O25=D6,COUNTIF(O7:O25,D6),"") ->  | E25: =IF(O25=E6,COUNTIF(O7:O25,E6),"") ->  | F25: =IF(O25=F6,COUNTIF(O7:O25,F6),"") ->  | G25: 19 | H25: 27 | I25: Clara Davies | O25: Cumbria | S25: 17.58 | T25: 1 | AM25: 19
A26: =IF(O26=A6,COUNTIF(O7:O26,A6),"") ->  | B26: =IF(O26=B6,COUNTIF(O7:O26,B6),"") -> 8 | C26: =IF(O26=C6,COUNTIF(O7:O26,C6),"") ->  | D26: =IF(O26=D6,COUNTIF(O7:O26,D6),"") ->  | E26: =IF(O26=E6,COUNTIF(O7:O26,E6),"") ->  | F26: =IF(O26=F6,COUNTIF(O7:O26,F6),"") ->  | G26: 20 | H26: 26 | I26: Alex Duckitt | O26: Cumbria | S26: 17.58 | T26: 1 | AM26: 20
A27: =IF(O27=A6,COUNTIF(O7:O27,A6),"") ->  | B27: =IF(O27=B6,COUNTIF(O7:O27,B6),"") ->  | C27: =IF(O27=C6,COUNTIF(O7:O27,C6),"") ->  | D27: =IF(O27=D6,COUNTIF(O7:O27,D6),"") -> 2 | E27: =IF(O27=E6,COUNTIF(O7:O27,E6),"") ->  | F27: =IF(O27=F6,COUNTIF(O7:O27,F6),"") ->  | G27: 21 | H27: 62 | I27: Suzannah Fielding | O27: Northumberland | S27: 17.58 | T27: 1 | AM27: 21
A28: =IF(O28=A6,COUNTIF(O7:O28,A6),"") ->  | B28: =IF(O28=B6,COUNTIF(O7:O28,B6),"") ->  | C28: =IF(O28=C6,COUNTIF(O7:O28,C6),"") ->  | D28: =IF(O28=D6,COUNTIF(O7:O28,D6),"") -> 3 | E28: =IF(O28=E6,COUNTIF(O7:O28,E6),"") ->  | F28: =IF(O28=F6,COUNTIF(O7:O28,F6),"") ->  | G28: 22 | H28: 76 | I28: Hannah Tumia | O28: Northumberland | S28: 17.58 | T28: 1 | AM28: 22
A29: =IF(O29=A6,COUNTIF(O7:O29,A6),"") ->  | B29: =IF(O29=B6,COUNTIF(O7:O29,B6),"") ->  | C29: =IF(O29=C6,COUNTIF(O7:O29,C6),"") ->  | D29: =IF(O29=D6,COUNTIF(O7:O29,D6),"") ->  | E29: =IF(O29=E6,COUNTIF(O7:O29,E6),"") -> 6 | F29: =IF(O29=F6,COUNTIF(O7:O29,F6),"") ->  | G29: 23 | H29: 88 | I29: Georgia Neary | O29: North Yorkshire | S29: 18.02 | T29: 1 | AM29: 23
A30: =IF(O30=A6,COUNTIF(O7:O30,A6),"") ->  | B30: =IF(O30=B6,COUNTIF(O7:O30,B6),"") ->  | C30: =IF(O30=C6,COUNTIF(O7:O30,C6),"") ->  | D30: =IF(O30=D6,COUNTIF(O7:O30,D6),"") -> 4 | E30: =IF(O30=E6,COUNTIF(O7:O30,E6),"") ->  | F30: =IF(O30=F6,COUNTIF(O7:O30,F6),"") ->  | G30: 24 | H30: 65 | I30: Grace Varley | O30: Northumberland | S30: 18.07 | T30: 1 | AM30: 24
A31: =IF(O31=A6,COUNTIF(O7:O31,A6),"") ->  | B31: =IF(O31=B6,COUNTIF(O7:O31,B6),"") ->  | C31: =IF(O31=C6,COUNTIF(O7:O31,C6),"") -> 7 | D31: =IF(O31=D6,COUNTIF(O7:O31,D6),"") ->  | E31: =IF(O31=E6,COUNTIF(O7:O31,E6),"") ->  | F31: =IF(O31=F6,COUNTIF(O7:O31,F6),"") ->  | G31: 25 | H31: 48 | I31: Sophie Robson | O31: Durham | S31: 18.09 | T31: 1 | AM31: 25
A32: =IF(O32=A6,COUNTIF(O7:O32,A6),"") ->  | B32: =IF(O32=B6,COUNTIF(O7:O32,B6),"") ->  | C32: =IF(O32=C6,COUNTIF(O7:O32,C6),"") ->  | D32: =IF(O32=D6,COUNTIF(O7:O32,D6),"") ->  | E32: =IF(O32=E6,COUNTIF(O7:O32,E6),"") -> 7 | F32: =IF(O32=F6,COUNTIF(O7:O32,F6),"") ->  | G32: 26 | H32: 89 | I32: Phoebe Hall | O32: North Yorkshire | S32: 18.1 | T32: 1 | AM32: 26
A33: =IF(O33=A6,COUNTIF(O7:O33,A6),"") ->  | B33: =IF(O33=B6,COUNTIF(O7:O33,B6),"") -> 9 | C33: =IF(O33=C6,COUNTIF(O7:O33,C6),"") ->  | D33: =IF(O33=D6,COUNTIF(O7:O33,D6),"") ->  | E33: =IF(O33=E6,COUNTIF(O7:O33,E6),"") ->  | F33: =IF(O33=F6,COUNTIF(O7:O33,F6),"") ->  | G33: 27 | H33: 34 | I33: Nicole Mattinson | O33: Cumbria | S33: 18.2 | T33: 1 | AM33: 27
A34: =IF(O34=A6,COUNTIF(O7:O34,A6),"") ->  | B34: =IF(O34=B6,COUNTIF(O7:O34,B6),"") ->  | C34: =IF(O34=C6,COUNTIF(O7:O34,C6),"") -> 8 | D34: =IF(O34=D6,COUNTIF(O7:O34,D6),"") ->  | E34: =IF(O34=E6,COUNTIF(O7:O34,E6),"") ->  | F34: =IF(O34=F6,COUNTIF(O7:O34,F6),"") ->  | G34: 28 | H34: 50 | I34: Chloe Fairclough | O34: Durham | S34: 18.24 | T34: 1 | AM34: 28
A35: =IF(O35=A6,COUNTIF(O7:O35,A6),"") ->  | B35: =IF(O35=B6,COUNTIF(O7:O35,B6),"") ->  | C35: =IF(O35=C6,COUNTIF(O7:O35,C6),"") ->  | D35: =IF(O35=D6,COUNTIF(O7:O35,D6),"") ->  | E35: =IF(O35=E6,COUNTIF(O7:O35,E6),"") -> 8 | F35: =IF(O35=F6,COUNTIF(O7:O35,F6),"") ->  | G35: 29 | H35: 87 | I35: Freddie Moore | O35: North Yorkshire | S35: 18.25 | T35: 1 | AM35: 29
A36: =IF(O36=A6,COUNTIF(O7:O36,A6),"") ->  | B36: =IF(O36=B6,COUNTIF(O7:O36,B6),"") -> 10 | C36: =IF(O36=C6,COUNTIF(O7:O36,C6),"") ->  | D36: =IF(O36=D6,COUNTIF(O7:O36,D6),"") ->  | E36: =IF(O36=E6,COUNTIF(O7:O36,E6),"") ->  | F36: =IF(O36=F6,COUNTIF(O7:O36,F6),"") ->  | G36: 30 | H36: 24 | I36: Natasha Cookson | O36: Cumbria | S36: 18.27 | T36: 1 | AM36: 30
A37: =IF(O37=A6,COUNTIF(O7:O37,A6),"") ->  | B37: =IF(O37=B6,COUNTIF(O7:O37,B6),"") ->  | C37: =IF(O37=C6,COUNTIF(O7:O37,C6),"") -> 9 | D37: =IF(O37=D6,COUNTIF(O7:O37,D6),"") ->  | E37: =IF(O37=E6,COUNTIF(O7:O37,E6),"") ->  | F37: =IF(O37=F6,COUNTIF(O7:O37,F6),"") ->  | G37: 31 | H37: 49 | I37: Megan Noble | O37: Durham | S37: 18.33 | T37: 1 | AM37: 31
A38: =IF(O38=A6,COUNTIF(O7:O38,A6),"") ->  | B38: =IF(O38=B6,COUNTIF(O7:O38,B6),"") ->  | C38: =IF(O38=C6,COUNTIF(O7:O38,C6),"") -> 10 | D38: =IF(O38=D6,COUNTIF(O7:O38,D6),"") ->  | E38: =IF(O38=E6,COUNTIF(O7:O38,E6),"") ->  | F38: =IF(O38=F6,COUNTIF(O7:O38,F6),"") ->  | G38: 32 | H38: 55 | I38: Lara Greggs | O38: Durham | S38: 18.35 | T38: 1 | AM38: 32
A39: =IF(O39=A6,COUNTIF(O7:O39,A6),"") ->  | B39: =IF(O39=B6,COUNTIF(O7:O39,B6),"") ->  | C39: =IF(O39=C6,COUNTIF(O7:O39,C6),"") ->  | D39: =IF(O39=D6,COUNTIF(O7:O39,D6),"") -> 5 | E39: =IF(O39=E6,COUNTIF(O7:O39,E6),"") ->  | F39: =IF(O39=F6,COUNTIF(O7:O39,F6),"") ->  | G39: 33 | H39: 64 | I39: Lily Heaton | O39: Northumberland | S39: 18.39 | T39: 1 | AM39: 33
A40: =IF(O40=A6,COUNTIF(O7:O40,A6),"") ->  | B40: =IF(O40=B6,COUNTIF(O7:O40,B6),"") -> 11 | C40: =IF(O40=C6,COUNTIF(O7:O40,C6),"") ->  | D40: =IF(O40=D6,COUNTIF(O7:O40,D6),"") ->  | E40: =IF(O40=E6,COUNTIF(O7:O40,E6),"") ->  | F40: =IF(O40=F6,COUNTIF(O7:O40,F6),"") ->  | G40: 34 | H40: 28 | I40: Olivia Graham | O40: Cumbria | S40: 18.4 | T40: 1 | AM40: 34
A41: =IF(O41=A6,COUNTIF(O7:O41,A6),"") ->  | B41: =IF(O41=B6,COUNTIF(O7:O41,B6),"") -> 12 | C41: =IF(O41=C6,COUNTIF(O7:O41,C6),"") ->  | D41: =IF(O41=D6,COUNTIF(O7:O41,D6),"") ->  | E41: =IF(O41=E6,COUNTIF(O7:O41,E6),"") ->  | F41: =IF(O41=F6,COUNTIF(O7:O41,F6),"") ->  | G41: 35 | H41: 29 | I41: Ruby Frankland | O41: Cumbria | S41: 18.43 | T41: 1 | AM41: 35
A42: =IF(O42=A6,COUNTIF(O7:O42,A6),"") ->  | B42: =IF(O42=B6,COUNTIF(O7:O42,B6),"") ->  | C42: =IF(O42=C6,COUNTIF(O7:O42,C6),"") ->  | D42: =IF(O42=D6,COUNTIF(O7:O42,D6),"") -> 6 | E42: =IF(O42=E6,COUNTIF(O7:O42,E6),"") ->  | F42: =IF(O42=F6,COUNTIF(O7:O42,F6),"") ->  | G42: 36 | H42: 70 | I42: Lily Shaw | O42: Northumberland | S42: 18.48 | T42: 1 | AM42: 36
A43: =IF(O43=A6,COUNTIF(O7:O43,A6),"") ->  | B43: =IF(O43=B6,COUNTIF(O7:O43,B6),"") -> 13 | C43: =IF(O43=C6,COUNTIF(O7:O43,C6),"") ->  | D43: =IF(O43=D6,COUNTIF(O7:O43,D6),"") ->  | E43: =IF(O43=E6,COUNTIF(O7:O43,E6),"") ->  | F43: =IF(O43=F6,COUNTIF(O7:O43,F6),"") ->  | G43: 37 | H43: 35 | I43: Bella Matarewicz | O43: Cumbria | S43: 18.49 | T43: 1 | AM43: 37
A44: =IF(O44=A6,COUNTIF(O7:O44,A6),"") ->  | B44: =IF(O44=B6,COUNTIF(O7:O44,B6),"") -> 14 | C44: =IF(O44=C6,COUNTIF(O7:O44,C6),"") ->  | D44: =IF(O44=D6,COUNTIF(O7:O44,D6),"") ->  | E44: =IF(O44=E6,COUNTIF(O7:O44,E6),"") ->  | F44: =IF(O44=F6,COUNTIF(O7:O44,F6),"") ->  | G44: 38 | H44: 32 | I44: Nicole Clegg | O44: Cumbria | S44: 18.53 | T44: 1 | AM44: 38
A45: =IF(O45=A6,COUNTIF(O7:O45,A6),"") -> 1 | B45: =IF(O45=B6,COUNTIF(O7:O45,B6),"") ->  | C45: =IF(O45=C6,COUNTIF(O7:O45,C6),"") ->  | D45: =IF(O45=D6,COUNTIF(O7:O45,D6),"") ->  | E45: =IF(O45=E6,COUNTIF(O7:O45,E6),"") ->  | F45: =IF(O45=F6,COUNTIF(O7:O45,F6),"") ->  | G45: 39 | H45: 7 | I45: Ruby Whitney | O45: Cleveland | S45: 18.57 | T45: 1 | AM45: 39
A46: =IF(O46=A6,COUNTIF(O7:O46,A6),"") ->  | B46: =IF(O46=B6,COUNTIF(O7:O46,B6),"") ->  | C46: =IF(O46=C6,COUNTIF(O7:O46,C6),"") ->  | D46: =IF(O46=D6,COUNTIF(O7:O46,D6),"") ->  | E46: =IF(O46=E6,COUNTIF(O7:O46,E6),"") -> 9 | F46: =IF(O46=F6,COUNTIF(O7:O46,F6),"") ->  | G46: 40 | H46: 92 | I46: Abi Robinson | O46: North Yorkshire | S46: 18.57 | T46: 1 | AM46: 40
A47: =IF(O47=A6,COUNTIF(O7:O47,A6),"") ->  | B47: =IF(O47=B6,COUNTIF(O7:O47,B6),"") ->  | C47: =IF(O47=C6,COUNTIF(O7:O47,C6),"") ->  | D47: =IF(O47=D6,COUNTIF(O7:O47,D6),"") -> 7 | E47: =IF(O47=E6,COUNTIF(O7:O47,E6),"") ->  | F47: =IF(O47=F6,COUNTIF(O7:O47,F6),"") ->  | G47: 41 | H47: 74 | I47: Ella Duffield | O47: Northumberland | S47: 19.02 | T47: 1 | AM47: 41
A48: =IF(O48=A6,COUNTIF(O7:O48,A6),"") ->  | B48: =IF(O48=B6,COUNTIF(O7:O48,B6),"") ->  | C48: =IF(O48=C6,COUNTIF(O7:O48,C6),"") ->  | D48: =IF(O48=D6,COUNTIF(O7:O48,D6),"") ->  | E48: =IF(O48=E6,COUNTIF(O7:O48,E6),"") -> 10 | F48: =IF(O48=F6,COUNTIF(O7:O48,F6),"") ->  | G48: 42 | H48: 91 | I48: Jess Head | O48: North Yorkshire | S48: 19.03 | T48: 1 | AM48: 42
A49: =IF(O49=A6,COUNTIF(O7:O49,A6),"") -> 2 | B49: =IF(O49=B6,COUNTIF(O7:O49,B6),"") ->  | C49: =IF(O49=C6,COUNTIF(O7:O49,C6),"") ->  | D49: =IF(O49=D6,COUNTIF(O7:O49,D6),"") ->  | E49: =IF(O49=E6,COUNTIF(O7:O49,E6),"") ->  | F49: =IF(O49=F6,COUNTIF(O7:O49,F6),"") ->  | G49: 43 | H49: 4 | I49: Rebecca Tilley | O49: Cleveland | S49: 19.04 | T49: 1 | AM49: 43
A50: =IF(O50=A6,COUNTIF(O7:O50,A6),"") ->  | B50: =IF(O50=B6,COUNTIF(O7:O50,B6),"") ->  | C50: =IF(O50=C6,COUNTIF(O7:O50,C6),"") ->  | D50: =IF(O50=D6,COUNTIF(O7:O50,D6),"") -> 8 | E50: =IF(O50=E6,COUNTIF(O7:O50,E6),"") ->  | F50: =IF(O50=F6,COUNTIF(O7:O50,F6),"") ->  | G50: 44 | H50: 72 | I50: Kirsty Duffin | O50: Northumberland | S50: 19.07 | T50: 1 | AM50: 44
A51: =IF(O51=A6,COUNTIF(O7:O51,A6),"") -> 3 | B51: =IF(O51=B6,COUNTIF(O7:O51,B6),"") ->  | C51: =IF(O51=C6,COUNTIF(O7:O51,C6),"") ->  | D51: =IF(O51=D6,COUNTIF(O7:O51,D6),"") ->  | E51: =IF(O51=E6,COUNTIF(O7:O51,E6),"") ->  | F51: =IF(O51=F6,COUNTIF(O7:O51,F6),"") ->  | G51: 45 | H51: 2 | I51: Charlotte Bennett | O51: Cleveland | S51: 19.08 | T51: 1 | AM51: 45
A52: =IF(O52=A6,COUNTIF(O7:O52,A6),"") -> 4 | B52: =IF(O52=B6,COUNTIF(O7:O52,B6),"") ->  | C52: =IF(O52=C6,COUNTIF(O7:O52,C6),"") ->  | D52: =IF(O52=D6,COUNTIF(O7:O52,D6),"") ->  | E52: =IF(O52=E6,COUNTIF(O7:O52,E6),"") ->  | F52: =IF(O52=F6,COUNTIF(O7:O52,F6),"") ->  | G52: 46 | H52: 8 | I52: Megan Tipper | O52: Cleveland | S52: 19.09 | T52: 1 | AM52: 46
A53: =IF(O53=A6,COUNTIF(O7:O53,A6),"") ->  | B53: =IF(O53=B6,COUNTIF(O7:O53,B6),"") ->  | C53: =IF(O53=C6,COUNTIF(O7:O53,C6),"") -> 11 | D53: =IF(O53=D6,COUNTIF(O7:O53,D6),"") ->  | E53: =IF(O53=E6,COUNTIF(O7:O53,E6),"") ->  | F53: =IF(O53=F6,COUNTIF(O7:O53,F6),"") ->  | G53: 47 | H53: 52 | I53: Hannah Holman | O53: Durham | S53: 19.1 | T53: 1 | AM53: 47
A54: =IF(O54=A6,COUNTIF(O7:O54,A6),"") ->  | B54: =IF(O54=B6,COUNTIF(O7:O54,B6),"") ->  | C54: =IF(O54=C6,COUNTIF(O7:O54,C6),"") -> 12 | D54: =IF(O54=D6,COUNTIF(O7:O54,D6),"") ->  | E54: =IF(O54=E6,COUNTIF(O7:O54,E6),"") ->  | F54: =IF(O54=F6,COUNTIF(O7:O54,F6),"") ->  | G54: 48 | H54: 54 | I54: Jessica Levy | O54: Durham | S54: 19.1 | T54: 1 | AM54: 48
A55: =IF(O55=A6,COUNTIF(O7:O55,A6),"") ->  | B55: =IF(O55=B6,COUNTIF(O7:O55,B6),"") ->  | C55: =IF(O55=C6,COUNTIF(O7:O55,C6),"") -> 13 | D55: =IF(O55=D6,COUNTIF(O7:O55,D6),"") ->  | E55: =IF(O55=E6,COUNTIF(O7:O55,E6),"") ->  | F55: =IF(O55=F6,COUNTIF(O7:O55,F6),"") ->  | G55: 49 | H55: 51 | I55: Jessica Holman | O55: Durham | S55: 19.14 | T55: 1 | AM55: 49
A56: =IF(O56=A6,COUNTIF(O7:O56,A6),"") ->  | B56: =IF(O56=B6,COUNTIF(O7:O56,B6),"") -> 15 | C56: =IF(O56=C6,COUNTIF(O7:O56,C6),"") ->  | D56: =IF(O56=D6,COUNTIF(O7:O56,D6),"") ->  | E56: =IF(O56=E6,COUNTIF(O7:O56,E6),"") ->  | F56: =IF(O56=F6,COUNTIF(O7:O56,F6),"") ->  | G56: 50 | H56: 38 | I56: Anna Herr | O56: Cumbria | S56: 19.15 | T56: 1 | AM56: 50
A57: =IF(O57=A6,COUNTIF(O7:O57,A6),"") -> 5 | B57: =IF(O57=B6,COUNTIF(O7:O57,B6),"") ->  | C57: =IF(O57=C6,COUNTIF(O7:O57,C6),"") ->  | D57: =IF(O57=D6,COUNTIF(O7:O57,D6),"") ->  | E57: =IF(O57=E6,COUNTIF(O7:O57,E6),"") ->  | F57: =IF(O57=F6,COUNTIF(O7:O57,F6),"") ->  | G57: 51 | H57: 3 | I57: Jordan Thrower | O57: Cleveland | S57: 19.16 | T57: 1 | AM57: 51
A58: =IF(O58=A6,COUNTIF(O7:O58,A6),"") ->  | B58: =IF(O58=B6,COUNTIF(O7:O58,B6),"") ->  | C58: =IF(O58=C6,COUNTIF(O7:O58,C6),"") ->  | D58: =IF(O58=D6,COUNTIF(O7:O58,D6),"") -> 9 | E58: =IF(O58=E6,COUNTIF(O7:O58,E6),"") ->  | F58: =IF(O58=F6,COUNTIF(O7:O58,F6),"") ->  | G58: 52 | H58: 68 | I58: Megan Cottee | O58: Northumberland | S58: 19.2 | T58: 1 | AM58: 52
A59: =IF(O59=A6,COUNTIF(O7:O59,A6),"") ->  | B59: =IF(O59=B6,COUNTIF(O7:O59,B6),"") ->  | C59: =IF(O59=C6,COUNTIF(O7:O59,C6),"") ->  | D59: =IF(O59=D6,COUNTIF(O7:O59,D6),"") -> 10 | E59: =IF(O59=E6,COUNTIF(O7:O59,E6),"") ->  | F59: =IF(O59=F6,COUNTIF(O7:O59,F6),"") ->  | G59: 53 | H59: 66 | I59: Chloe Wellings | O59: Northumberland | S59: 19.24 | T59: 1 | AM59: 53
A60: =IF(O60=A6,COUNTIF(O7:O60,A6),"") ->  | B60: =IF(O60=B6,COUNTIF(O7:O60,B6),"") ->  | C60: =IF(O60=C6,COUNTIF(O7:O60,C6),"") ->  | D60: =IF(O60=D6,COUNTIF(O7:O60,D6),"") -> 11 | E60: =IF(O60=E6,COUNTIF(O7:O60,E6),"") ->  | F60: =IF(O60=F6,COUNTIF(O7:O60,F6),"") ->  | G60: 54 | H60: 75 | I60: Abigail Bedford | O60: Northumberland | S60: 19.25 | T60: 1 | AM60: 54
A61: =IF(O61=A6,COUNTIF(O7:O61,A6),"") ->  | B61: =IF(O61=B6,COUNTIF(O7:O61,B6),"") -> 16 | C61: =IF(O61=C6,COUNTIF(O7:O61,C6),"") ->  | D61: =IF(O61=D6,COUNTIF(O7:O61,D6),"") ->  | E61: =IF(O61=E6,COUNTIF(O7:O61,E6),"") ->  | F61: =IF(O61=F6,COUNTIF(O7:O61,F6),"") ->  | G61: 55 | H61: 36 | I61: Maisie Gough | O61: Cumbria | S61: 19.33 | T61: 1 | AM61: 55
A62: =IF(O62=A6,COUNTIF(O7:O62,A6),"") ->  | B62: =IF(O62=B6,COUNTIF(O7:O62,B6),"") -> 17 | C62: =IF(O62=C6,COUNTIF(O7:O62,C6),"") ->  | D62: =IF(O62=D6,COUNTIF(O7:O62,D6),"") ->  | E62: =IF(O62=E6,COUNTIF(O7:O62,E6),"") ->  | F62: =IF(O62=F6,COUNTIF(O7:O62,F6),"") ->  | G62: 56 | H62: 37 | I62: Molly Barrett | O62: Cumbria | S62: 19.35 | T62: 1 | AM62: 56
A63: =IF(O63=A6,COUNTIF(O7:O63,A6),"") ->  | B63: =IF(O63=B6,COUNTIF(O7:O63,B6),"") ->  | C63: =IF(O63=C6,COUNTIF(O7:O63,C6),"") -> 14 | D63: =IF(O63=D6,COUNTIF(O7:O63,D6),"") ->  | E63: =IF(O63=E6,COUNTIF(O7:O63,E6),"") ->  | F63: =IF(O63=F6,COUNTIF(O7:O63,F6),"") ->  | G63: 57 | H63: 56 | I63: Bethany Chapman | O63: Durham | S63: 19.5 | T63: 1 | AM63: 57
A64: =IF(O64=A6,COUNTIF(O7:O64,A6),"") -> 6 | B64: =IF(O64=B6,COUNTIF(O7:O64,B6),"") ->  | C64: =IF(O64=C6,COUNTIF(O7:O64,C6),"") ->  | D64: =IF(O64=D6,COUNTIF(O7:O64,D6),"") ->  | E64: =IF(O64=E6,COUNTIF(O7:O64,E6),"") ->  | F64: =IF(O64=F6,COUNTIF(O7:O64,F6),"") ->  | G64: 58 | H64: 14 | I64: Harriet Thompson | O64: Cleveland | S64: 19.52 | T64: 1 | AM64: 58
A65: =IF(O65=A6,COUNTIF(O7:O65,A6),"") ->  | B65: =IF(O65=B6,COUNTIF(O7:O65,B6),"") ->  | C65: =IF(O65=C6,COUNTIF(O7:O65,C6),"") ->  | D65: =IF(O65=D6,COUNTIF(O7:O65,D6),"") -> 12 | E65: =IF(O65=E6,COUNTIF(O7:O65,E6),"") ->  | F65: =IF(O65=F6,COUNTIF(O7:O65,F6),"") ->  | G65: 59 | H65: 73 | I65: Amelie Brook | O65: Northumberland | S65: 20.02 | T65: 1 | AM65: 59
A66: =IF(O66=A6,COUNTIF(O7:O66,A6),"") -> 7 | B66: =IF(O66=B6,COUNTIF(O7:O66,B6),"") ->  | C66: =IF(O66=C6,COUNTIF(O7:O66,C6),"") ->  | D66: =IF(O66=D6,COUNTIF(O7:O66,D6),"") ->  | E66: =IF(O66=E6,COUNTIF(O7:O66,E6),"") ->  | F66: =IF(O66=F6,COUNTIF(O7:O66,F6),"") ->  | G66: 60 | H66: 15 | I66: Sophie Vickers | O66: Cleveland | S66: 20.04 | T66: 1 | AM66: 60
A67: =IF(O67=A6,COUNTIF(O7:O67,A6),"") -> 8 | B67: =IF(O67=B6,COUNTIF(O7:O67,B6),"") ->  | C67: =IF(O67=C6,COUNTIF(O7:O67,C6),"") ->  | D67: =IF(O67=D6,COUNTIF(O7:O67,D6),"") ->  | E67: =IF(O67=E6,COUNTIF(O7:O67,E6),"") ->  | F67: =IF(O67=F6,COUNTIF(O7:O67,F6),"") ->  | G67: 61 | H67: 6 | I67: F Roger | O67: Cleveland | S67: 20.06 | T67: 1 | AM67: 61
A68: =IF(O68=A6,COUNTIF(O7:O68,A6),"") ->  | B68: =IF(O68=B6,COUNTIF(O7:O68,B6),"") ->  | C68: =IF(O68=C6,COUNTIF(O7:O68,C6),"") -> 15 | D68: =IF(O68=D6,COUNTIF(O7:O68,D6),"") ->  | E68: =IF(O68=E6,COUNTIF(O7:O68,E6),"") ->  | F68: =IF(O68=F6,COUNTIF(O7:O68,F6),"") ->  | G68: 62 | H68: 53 | I68: Ishbel Speirs | O68: Durham | S68: 20.18 | T68: 1 | AM68: 62
A69: =IF(O69=A6,COUNTIF(O7:O69,A6),"") ->  | B69: =IF(O69=B6,COUNTIF(O7:O69,B6),"") ->  | C69: =IF(O69=C6,COUNTIF(O7:O69,C6),"") -> 16 | D69: =IF(O69=D6,COUNTIF(O7:O69,D6),"") ->  | E69: =IF(O69=E6,COUNTIF(O7:O69,E6),"") ->  | F69: =IF(O69=F6,COUNTIF(O7:O69,F6),"") ->  | G69: 63 | H69: 57 | I69: Jasmine Crang | O69: Durham | S69: 20.21 | T69: 1 | AM69: 63
A70: =IF(O70=A6,COUNTIF(O7:O70,A6),"") -> 9 | B70: =IF(O70=B6,COUNTIF(O7:O70,B6),"") ->  | C70: =IF(O70=C6,COUNTIF(O7:O70,C6),"") ->  | D70: =IF(O70=D6,COUNTIF(O7:O70,D6),"") ->  | E70: =IF(O70=E6,COUNTIF(O7:O70,E6),"") ->  | F70: =IF(O70=F6,COUNTIF(O7:O70,F6),"") ->  | G70: 64 | H70: 13 | I70: Estelle Matthews | O70: Cleveland | S70: 20.29 | T70: 1 | AM70: 64
